Workbook

Sheet Overview
A2: CDCM Annual Review Pack | G2: Colour coding
G3: Data input
A4: Company: | B4: ='CDCM Forecast Data'!F3 -> WPD South West | G4: Void cell in input data table
A5: Date of Issue: | B5: ='CDCM Forecast Data'!F4 -> 2012-12-21 | G5: Calculation
G6: Copy data
A7: ="Although every effort has been made to ensure the accuracy of the information provided in this annual review pack, " & 'CDCM Forecast Data'!F3 & " does not accept any liability for the accuracy of the information contained herein and, in particular, " & 'CDCM Forecast Data'!F3 & " or any of its employees, shall not be held liable for any misstatement or opinion on which the recipient of this statement relies or seeks to rely." -> Although every effort has been made to ensure the accuracy of the information provided in this annual review pack, WPD South West does not accept any liability for the accuracy of the information contained herein and, in particular, WPD South West or any of its employees, shall not be held liable for any misstatement or opinion on which the recipient of this statement relies or seeks to rely. | G7: Void cell in calculation table
G8: Space for user notes
A12: Contents:
A14: Sheet Name | B14: Detail
A15: Commentary | B15: This sheet contains the DNO's commentary on the forecast input CDCM data for the forecast over the 5 year period.
A16: CDCM Forecast Data | B16: This sheet contains historical and forecast data for all CDCM inputs except for volume data (table 1053) and matrix of applicability data (table 1025 - 1028). The RPI forecast is seperated out and listed as a standalone assumption. Any forecasts that relate to RPI will be linked to this row. Comments are provided alongside each forecast explaining any assumptions made by the DNO.
A17: Mat of App | B17: This sheet contains the forecast CDCM matrix of applicability data (table 1025 - 1028). The default value is that the same matrix will be used for each of the five years.
A18: CDCM Volume Forecasts | B18: This sheet contains forecast CDCM volume data (table 1053). The matrix at the top can be used to apply different growth rates to groups of customers.
A19: CDCM Timebands | B19: Contains the time bands that the DNO plans to use for the coming year and advance warning of any changes.
A20: CDCM Input Sheet (Y) | B20: This sheet contains the CDCM input sheet for base year 0 (Y) in a format that can be copy and pasted (paste-value) into the CDCM spreadsheet model.
A21: CDCM Input Sheet (Y + 1) | B21: This sheet contains the CDCM input sheet for base year +1 (Y+1) in a format that can be copy and pasted (paste-value) into the CDCM spreadsheet model.
A22: CDCM Input Sheet (Y + 2) | B22: This sheet contains the CDCM input sheet for base year +2 (Y+2) in a format that can be copy and pasted (paste-value) into the CDCM spreadsheet model.
A23: CDCM Input Sheet (Y + 3) | B23: This sheet contains the CDCM input sheet for base year +3 (Y+3) in a format that can be copy and pasted (paste-value) into the CDCM spreadsheet model.
A24: CDCM Input Sheet (Y + 4) | B24: This sheet contains the CDCM input sheet for base year +4 (Y+4) in a format that can be copy and pasted (paste-value) into the CDCM spreadsheet model.
A25: Tariffs | B25: This sheet contains the CDCM tariffs that are produced from the CDCM input data, after the Macro on this sheet has been run. It contains the tariffs for each of the 5 years.
A26: DNO Checklist | B26: This sheet contains a checklist for the DNOs to ensure all items have been updated when producing the Annual review Pack.

Sheet ARP Versions (hidden)
B3: CDCM Annual Review Pack AdatVersions
B5: ARP Version Ref | D5: ARP Adatptation Number | G5: Description
B7: 100 | D7: 100 | G7: Initial Model for 2011 to 2012
B8: 100 | D8: 100 | G8: Model Used for 2012 to 2013
B9: 101 | D9: 101 | G9: Model Used for 2013 to 2014
B10: 101 | D10: 102 | G10: Adapted to comply with DCP130 and DCP132

Sheet Commentary
B3: ='CDCM Forecast Data'!F3 -> WPD South West

Sheet CDCM Forecast Data
E3: Company: | F3: WPD South West
E4: Date of Issue: | F4: 2012-12-21
E5: Status | F5: April 2013'
D9: Historical CDCM Input Data (Actuals) | F9: ="CDCM Values - "&F5 -> CDCM Values - April 2013' | G9: Forecast CDCM Values
C10: Year Ref -> | D10: Y-2 | E10: Y-1 | F10: Y | G10: Y+1 | H10: Y+2 | I10: Y+3 | J10: Y+4
C11: Charging Year -> | D11: 2011/12 | E11: 2012/13 | F11: 2013/14 | G11: 2014/15 | H11: 2015/16 | I11: 2016/17 | J11: 2017/18
C12: DPCR -> | D12: DPCR5 | E12: DPCR5 | F12: DPCR5 | G12: DPCR5 | H12: RIIO - ED1 | I12: RIIO - ED1 | J12: RIIO - ED1 | K12: Assumptions
C13: RPI Forecast: | G13: 0.0217 | H13: 0.02 | I13: 0.02 | J13: 0.02
B14: 1 | C14: 1000 Company name, charging year and model version
B15: =+B14+1 -> 2 | C15: Company | D15: WPD South West | E15: WPD South West | F15: WPD South West | G15: WPD South West | H15: WPD South West | I15: WPD South West | J15: WPD South West
B16: =+B15+1 -> 3 | C16: Year | D16: ="April " & LEFT(D11,4) -> April 2011 | E16: April 2012 | F16: April 2013 | G16: April 2014 | H16: April 2015 | I16: April 2016 | J16: April 2017
B17: 4 | C17: Version
B18: 5 | C18: 1010 Financial and general assumptions
B19: 6 | C19: Rate of return | F19: 0.056 | G19: 0.056 | H19: 0.056 | I19: 0.056 | J19: 0.056
B20: 7 | C20: Annualisation period (years) | F20: 40 | G20: 40 | H20: 40 | I20: 40 | J20: 40
B21: 8 | C21: Power factor | F21: 0.95 | G21: 0.95 | H21: 0.95 | I21: 0.95 | J21: 0.95
B22: 9 | C22: Days in the charging period | F22: 365 | G22: 365 | H22: 366 | I22: 365 | J22: 365
B23: 10 | C23: 1017 Diversity allowance between top and bottom of network level
B24: 11 | C24: GSPs | F24: 0.022 | G24: =F24 -> 0.022 | H24: =G24 -> 0.022 | I24: 0.022 | J24: 0.022
B25: 12 | C25: 132kV | F25: 0.031 | G25: =F25 -> 0.031 | H25: 0.031 | I25: 0.031 | J25: 0.031
B26: 13 | C26: EHV | F26: 0.075 | G26: 0.075 | H26: 0.075 | I26: 0.075 | J26: 0.075
B27: 14 | C27: HV | F27: 0.37 | G27: 0.37 | H27: 0.37 | I27: 0.37 | J27: 0.37
B28: 15 | C28: 1018 Proportion of relevant load going through 132kV/HV direct transformation
B29: 16 | C29: 1019 Network model GSP demand (MW) | F29: 500 | G29: 500 | H29: 500 | I29: 500 | J29: 500
B30: 17 | C30: 1020 Gross asset cost by network level (£)
B31: 18 | C31: 132kV | F31: 103585529.4 | G31: =F31*(1+G$13) -> 105833335.4 | H31: =G31*(1+H$13) -> 107950002.1 | I31: =H31*(1+I$13) -> 110109002.1 | J31: =I31*(1+J$13) -> 112311182.2
B32: 19 | C32: 132kV/EHV | F32: 15428415.49 | G32: =F32*(1+G$13) -> 15763212.11 | H32: 16078476.35 | I32: 16400045.88 | J32: 16728046.79
B33: 20 | C33: EHV | F33: 45522370.03 | G33: 46510205.46 | H33: 47440409.57 | I33: 48389217.76 | J33: 49357002.12
B34: 21 | C34: EHV/HV | F34: 36390100.11 | G34: 37179765.28 | H34: 37923360.59 | I34: 38681827.8 | J34: 39455464.36
B35: 22 | C35: 132kV/HV | G35: 0 | H35: 0 | I35: 0 | J35: 0
B36: 23 | C36: HV | F36: 152121207.2 | G36: 155422237.4 | H36: 158530682.1 | I36: 161701295.8 | J36: 164935321.7
B37: 24 | C37: HV/LV | F37: 59367391.63 | G37: 60655664.03 | H37: 61868777.31 | I37: 63106152.86 | J37: 64368275.91
B38: 25 | C38: LV circuits | F38: 132391580.6 | G38: 135264477.9 | H38: 137969767.5 | I38: 140729162.8 | J38: 143543746.1
B39: 26 | C39: 1022 LV service model asset cost (£)
B40: 27 | C40: LV service model 1 | F40: 4553.43 | G40: 4689.776689 | H40: =IF(OR($F40 = 0,$F40="")=FALSE,G40*(1+H$13),"-") -> 4783.572223 | I40: 4879.243667 | J40: 4976.828541
B41: 28 | C41: LV service model 2 | F41: 543.4733333 | G41: 578.9437507 | H41: 590.5226258 | I41: 602.3330783 | J41: 614.3797398
B42: 29 | C42: LV service model 3 | F42: 618.9708333 | G42: 683.874895 | H42: 697.5523929 | I42: 711.5034408 | J42: 725.7335096
B43: 30 | C43: LV service model 4 | F43: 471.8933333 | G43: 509.4741107 | H43: 519.6635929 | I43: 530.0568647 | J43: 540.658002
B44: 31 | C44: LV service model 5 | F44: 1214.751333 | G44: 1169.036632 | H44: 1192.417365 | I44: 1216.265712 | J44: 1240.591027
B45: 32 | C45: LV service model 6 | F45: 877.825 | G45: 858.6034748 | H45: 875.7755442 | I45: 893.2910551 | J45: 911.1568762
B46: 33 | C46: LV service model 7 | F46: 0 | G46: 0 | H46: =IF(OR($F46 = 0,$F46="")=FALSE,G46*(1+H$13),"-") -> - | I46: =IF(OR($F46 = 0,$F46="")=FALSE,H46*(1+I$13),"-") -> - | J46: -
B47: 34 | C47: LV service model 8 | F47: 532 | G47: 450.314275 | H47: =IF(OR($F47 = 0,$F47="")=FALSE,G47*(1+H$13),"-") -> 459.3205605 | I47: =IF(OR($F47 = 0,$F47="")=FALSE,H47*(1+I$13),"-") -> 468.5069717 | J47: 477.8771111
B48: 35 | C48: 1023 HV service model asset cost (£)
B49: 36 | C49: HV service model 1 | F49: 9790.194 | G49: 8748.377769 | H49: =IF(OR($F49 = 0,$F49="")=FALSE,G49*(1+H$13),"-") -> 8923.345324 | I49: 9101.812231 | J49: 9283.848475
B50: 37 | C50: HV service model 2 | F50: 4208 | G50: 4299.3136 | H50: 4385.299872 | I50: 4473.005869 | J50: 4562.465987
B51: 38 | C51: HV service model 3 | G51: - | H51: - | I51: - | J51: -
B52: 39 | C52: HV service model 4 | G52: - | H52: - | I52: - | J52: -
B53: 40 | C53: HV service model 5 | G53: - | H53: - | I53: - | J53: -
B54: 41 | C54: 1025 Matrix of applicability of LV service models to tariffs with fixed charges
B55: 42 | C55: 1026 Matrix of applicability of LV service models to unmetered tariffs
B56: 43 | C56: 1028 Matrix of applicability of HV service models to tariffs with fixed charges
B57: 44 | C57: 1032 Loss adjustment factors to transmission
B58: 45 | C58: 132kV | F58: 1.013 | G58: =F58 -> 1.013 | H58: =G58 -> 1.013 | I58: 1.013 | J58: 1.013
B59: 46 | C59: 132kV/EHV | F59: 1.017 | G59: =F59 -> 1.017 | H59: 1.017 | I59: 1.017 | J59: 1.017
B60: 47 | C60: EHV | F60: 1.032 | G60: 1.032 | H60: 1.032 | I60: 1.032 | J60: 1.032
B61: 48 | C61: EHV/HV | F61: 1.042 | G61: 1.042 | H61: 1.042 | I61: 1.042 | J61: 1.042
B62: 49 | C62: HV | F62: 1.065 | G62: 1.065 | H62: 1.065 | I62: 1.065 | J62: 1.065
B63: 50 | C63: HV/LV | F63: 1.078 | G63: 1.078 | H63: 1.078 | I63: 1.078 | J63: 1.078
B64: 51 | C64: LV circuits | F64: 1.087 | G64: 1.087 | H64: 1.087 | I64: 1.087 | J64: 1.087
B65: 52 | C65: 1037 Embedded network (LDNO) discounts
B66: 53 | C66: LDNO LV: LV user | F66: 0.3580021725 | G66: =F66 -> 0.3580021725 | H66: =G66 -> 0.3580021725 | I66: 0.3580021725 | J66: 0.3580021725
B67: 54 | C67: LDNO HV: LV user | F67: 0.6121303874 | G67: =F67 -> 0.6121303874 | H67: 0.6121303874 | I67: 0.6121303874 | J67: 0.6121303874
B68: 55 | C68: LDNO HV: LV sub user | F68: 0.3773090501 | G68: 0.3773090501 | H68: 0.3773090501 | I68: 0.3773090501 | J68: 0.3773090501
B69: 56 | C69: LDNO HV: HV user | F69: 0.2678469175 | G69: 0.2678469175 | H69: 0.2678469175 | I69: 0.2678469175 | J69: 0.2678469175
B70: 57 | C70: 1041 Load profile data for demand users: coincidence factor
B71: 58 | C71: Domestic Unrestricted | F71: ='Smoothed Input Details'!E15 -> 0.9110931172 | G71: =F71 -> 0.9110931172 | H71: =G71 -> 0.9110931172 | I71: =H71 -> 0.9110931172 | J71: 0.9110931172
B72: 59 | C72: Domestic Two Rate | F72: ='Smoothed Input Details'!E16 -> 0.3144256013 | G72: =F72 -> 0.3144256013 | H72: =G72 -> 0.3144256013 | I72: =H72 -> 0.3144256013 | J72: 0.3144256013
B73: 60 | C73: Domestic Off Peak (related MPAN)
B74: 61 | C74: Small Non Domestic Unrestricted | F74: ='Smoothed Input Details'!E18 -> 0.6277145101 | G74: =F74 -> 0.6277145101 | H74: =G74 -> 0.6277145101 | I74: =H74 -> 0.6277145101 | J74: 0.6277145101
B75: 62 | C75: Small Non Domestic Two Rate | F75: ='Smoothed Input Details'!E19 -> 0.5306730516 | G75: =F75 -> 0.5306730516 | H75: =G75 -> 0.5306730516 | I75: =H75 -> 0.5306730516 | J75: 0.5306730516
B76: 63 | C76: Small Non Domestic Off Peak (related MPAN)
B77: 64 | C77: LV Medium Non-Domestic | F77: ='Smoothed Input Details'!E21 -> 0.8006161179 | G77: =F77 -> 0.8006161179 | H77: =G77 -> 0.8006161179 | I77: 0.8006161179 | J77: 0.8006161179
B78: 65 | C78: LV Sub Medium Non-Domestic | F78: ='Smoothed Input Details'!E22 -> 0.7829460721 | G78: =F78 -> 0.7829460721 | H78: 0.7829460721 | I78: 0.7829460721 | J78: 0.7829460721
B79: 66 | C79: HV Medium Non-Domestic | F79: ='Smoothed Input Details'!E23 -> 0.7512811282 | G79: 0.7512811282 | H79: 0.7512811282 | I79: 0.7512811282 | J79: 0.7512811282
B80: =+B79+1 -> 67 | C80: LV HH Metered | F80: ='Smoothed Input Details'!E24 -> 0.8145064582 | G80: 0.8145064582 | H80: 0.8145064582 | I80: 0.8145064582 | J80: 0.8145064582
B81: 68 | C81: LV Sub HH Metered | F81: ='Smoothed Input Details'!E25 -> 0.782726117 | G81: 0.782726117 | H81: 0.782726117 | I81: 0.782726117 | J81: 0.782726117
B82: 69 | C82: HV HH Metered | F82: ='Smoothed Input Details'!E26 -> 0.8113670182 | G82: 0.8113670182 | H82: 0.8113670182 | I82: 0.8113670182 | J82: 0.8113670182
B83: 70 | C83: HV Sub HH Metered | F83: ='Smoothed Input Details'!E27 -> 0.4992999836 | G83: 0.4992999836 | H83: 0.4992999836 | I83: 0.4992999836 | J83: 0.4992999836
B84: 71 | C84: NHH UMS category A | F84: 1 | G84: 1 | H84: 1 | I84: 1 | J84: 1
B85: 72 | C85: NHH UMS category B | F85: 1 | G85: 1 | H85: 1 | I85: 1 | J85: 1
B86: 73 | C86: NHH UMS category C | F86: 1 | G86: 1 | H86: 1 | I86: 1 | J86: 1
B87: 74 | C87: NHH UMS category D | F87: 0.02906666667 | G87: 0.02906666667 | H87: 0.02906666667 | I87: 0.02906666667 | J87: 0.02906666667
B88: 75 | C88: LV UMS (Pseudo HH Metered) | F88: ='Smoothed Input Details'!E29 -> 0.9230565392 | G88: 0.9230565392 | H88: 0.9230565392 | I88: 0.9230565392 | J88: 0.9230565392
B89: 76 | C89: 1041 Load profile data for demand users: load factor
B90: 77 | C90: Domestic Unrestricted | F90: ='Smoothed Input Details'!E38 -> 0.3992113024 | G90: =F90 -> 0.3992113024 | H90: =G90 -> 0.3992113024 | I90: 0.3992113024 | J90: 0.3992113024
B91: 78 | C91: Domestic Two Rate | F91: ='Smoothed Input Details'!E39 -> 0.2187041838 | G91: =F91 -> 0.2187041838 | H91: 0.2187041838 | I91: 0.2187041838 | J91: 0.2187041838
B92: 79 | C92: Domestic Off Peak (related MPAN) | F92: ='Smoothed Input Details'!E40 -> 0.1367858009 | G92: 0.1367858009 | H92: 0.1367858009 | I92: 0.1367858009 | J92: 0.1367858009
B93: 80 | C93: Small Non Domestic Unrestricted | F93: ='Smoothed Input Details'!E41 -> 0.3620931243 | G93: 0.3620931243 | H93: 0.3620931243 | I93: 0.3620931243 | J93: 0.3620931243
B94: 81 | C94: Small Non Domestic Two Rate | F94: ='Smoothed Input Details'!E42 -> 0.3950566623 | G94: 0.3950566623 | H94: 0.3950566623 | I94: 0.3950566623 | J94: 0.3950566623
B95: 82 | C95: Small Non Domestic Off Peak (related MPAN) | F95: ='Smoothed Input Details'!E43 -> 0.2258067728 | G95: 0.2258067728 | H95: 0.2258067728 | I95: 0.2258067728 | J95: 0.2258067728
B96: 83 | C96: LV Medium Non-Domestic | F96: ='Smoothed Input Details'!E44 -> 0.5594720869 | G96: 0.5594720869 | H96: 0.5594720869 | I96: 0.5594720869 | J96: 0.5594720869
B97: 84 | C97: LV Sub Medium Non-Domestic | F97: ='Smoothed Input Details'!E45 -> 0.5684359804 | G97: 0.5684359804 | H97: 0.5684359804 | I97: 0.5684359804 | J97: 0.5684359804
B98: 85 | C98: HV Medium Non-Domestic | F98: ='Smoothed Input Details'!E46 -> 0.409929049 | G98: =F98 -> 0.409929049 | H98: 0.409929049 | I98: 0.409929049 | J98: 0.409929049
B99: 86 | C99: LV HH Metered | F99: ='Smoothed Input Details'!E47 -> 0.580821256 | G99: 0.580821256 | H99: 0.580821256 | I99: 0.580821256 | J99: 0.580821256
B100: 87 | C100: LV Sub HH Metered | F100: ='Smoothed Input Details'!E48 -> 0.6075756983 | G100: 0.6075756983 | H100: 0.6075756983 | I100: 0.6075756983 | J100: 0.6075756983
B101: 88 | C101: HV HH Metered | F101: ='Smoothed Input Details'!E49 -> 0.7201136334 | G101: 0.7201136334 | H101: 0.7201136334 | I101: 0.7201136334 | J101: 0.7201136334
B102: 89 | C102: HV Sub HH Metered | F102: ='Smoothed Input Details'!E50 -> 0.5610911178 | G102: 0.5610911178 | H102: 0.5610911178 | I102: 0.5610911178 | J102: 0.5610911178
B103: 90 | C103: NHH UMS category A | F103: 1 | G103: 1 | H103: 1 | I103: 1 | J103: 1
B104: 91 | C104: NHH UMS category B | F104: 0.4743289155 | G104: 0.4743289155 | H104: 0.4743289155 | I104: 0.4743289155 | J104: 0.4743289155
B105: 92 | C105: NHH UMS category C | F105: 0.2537152397 | G105: 0.2537152397 | H105: 0.2537152397 | I105: 0.2537152397 | J105: 0.2537152397
B106: 93 | C106: NHH UMS category D | F106: 0.553 | G106: 0.553 | H106: 0.553 | I106: 0.553 | J106: 0.553
B107: 94 | C107: LV UMS (Pseudo HH Metered) | F107: ='Smoothed Input Details'!E52 -> 0.4774652203 | G107: 0.4774652203 | H107: 0.4774652203 | I107: 0.4774652203 | J107: 0.4774652203
B108: 95 | C108: 1053. Volume forecasts for the charging year
B109: 96 | C109: 1055 Transmission exit charges (£/year) | F109: 8248563.971 | G109: =F109*(1+G$13) -> 8427557.809 | H109: =G109*(1+H$13) -> 8596108.965 | I109: 8768031.144 | J109: 8943391.767
B110: 97 | C110: 1059 Other Expenditure (£/year)
B111: 98 | C111: Direct cost (£/year) | F111: 24134794.83 | G111: =F111*(1+G$13) -> 24658519.88 | H111: =G111*(1+H$13) -> 25151690.28 | I111: 25654724.08 | J111: 26167818.57
B112: 99 | C112: Indirect cost (£/year) | F112: 86359159.44 | G112: =F112*(1+G$13) -> 88233153.2 | H112: =G112*(1+H$13) -> 89997816.27 | I112: 91797772.59 | J112: 93633728.05
B113: 100 | C113: Indirect cost proportion | F113: 0.6 | G113: 0.6 | H113: 0.6 | I113: 0.6 | J113: 0.6
B114: 101 | C114: Network rates (£/year) | F114: 16264338.93 | G114: =F114*(1+G$13) -> 16617275.08 | H114: =G114*(1+H$13) -> 16949620.59 | I114: 17288613 | J114: 17634385.26
B115: 102 | C115: 1060 Customer contributions under current connection charging policy
B116: 103 | C116: LV network
B117: 104 | C117: Assets 132kV | G117: =F117 -> 0 | H117: =G117 -> 0 | I117: 0 | J117: 0
B118: 105 | C118: Assets 132kV/EHV | G118: =F118 -> 0 | H118: 0 | I118: 0 | J118: 0
B119: 106 | C119: Assets EHV | G119: 0 | H119: 0 | I119: 0 | J119: 0
B120: 107 | C120: Assets EHV/HV | F120: 0.81 | G120: 0.81 | H120: 0.81 | I120: 0.81 | J120: 0.81
B121: 108 | C121: Assets 132kV/HV | G121: 0 | H121: 0 | I121: 0 | J121: 0
B122: 109 | C122: Assets HV | F122: 0.81 | G122: 0.81 | H122: 0.81 | I122: 0.81 | J122: 0.81
B123: 110 | C123: Assets HV/LV | F123: 0.95 | G123: 0.95 | H123: 0.95 | I123: 0.95 | J123: 0.95
B124: 111 | C124: Assets LV circuits | F124: 0.95 | G124: 0.95 | H124: 0.95 | I124: 0.95 | J124: 0.95
B125: 112 | C125: LV substation
B126: 113 | C126: Assets 132kV | F126: 0 | G126: =F126 -> 0 | H126: =G126 -> 0 | I126: 0 | J126: 0
B127: 114 | C127: Assets 132kV/EHV | F127: 0 | G127: =F127 -> 0 | H127: 0 | I127: 0 | J127: 0
B128: 115 | C128: Assets EHV | G128: 0 | H128: 0 | I128: 0 | J128: 0
B129: 116 | C129: Assets EHV/HV | F129: 0.81 | G129: 0.81 | H129: 0.81 | I129: 0.81 | J129: 0.81
B130: 117 | C130: Assets 132kV/HV | G130: 0 | H130: 0 | I130: 0 | J130: 0
B131: 118 | C131: Assets HV | F131: 0.81 | G131: 0.81 | H131: 0.81 | I131: 0.81 | J131: 0.81
B132: 119 | C132: Assets HV/LV | F132: 0.95 | G132: 0.95 | H132: 0.95 | I132: 0.95 | J132: 0.95
B133: 120 | C133: HV network
B134: 121 | C134: Assets 132kV | F134: 0 | G134: =F134 -> 0 | H134: =G134 -> 0 | I134: 0 | J134: 0
B135: 122 | C135: Assets 132kV/EHV | F135: 0.67 | G135: =F135 -> 0.67 | H135: 0.67 | I135: 0.67 | J135: 0.67
B136: 123 | C136: Assets EHV | F136: 0.67 | G136: 0.67 | H136: 0.67 | I136: 0.67 | J136: 0.67
B137: 124 | C137: Assets EHV/HV | F137: 1 | G137: 1 | H137: 1 | I137: 1 | J137: 1
B138: 125 | C138: Assets 132kV/HV | G138: 0 | H138: 0 | I138: 0 | J138: 0
B139: 126 | C139: Assets HV | F139: 1 | G139: 1 | H139: 1 | I139: 1 | J139: 1
B140: 127 | C140: HV substation
B141: 128 | C141: Assets 132kV | F141: 0 | G141: 0 | H141: 0 | I141: 0 | J141: 0
B142: 129 | C142: Assets 132kV/EHV | F142: 0.67 | G142: 0.67 | H142: 0.67 | I142: 0.67 | J142: 0.67
B143: 130 | C143: Assets EHV | F143: 0.67 | G143: 0.67 | H143: 0.67 | I143: 0.67 | J143: 0.67
B144: =+B143+1 -> 131 | C144: Assets EHV/HV | F144: 1 | G144: 1 | H144: 1 | I144: 1 | J144: 1
B145: 132 | C145: Assets 132kV/HV | G145: 0 | H145: 0 | I145: 0 | J145: 0
B146: 133 | C146: 1061 Average split of rate 1 units by distribution time band
B147: 134 | C147: RED
B148: 135 | C148: Domestic Two Rate | F148: ='Smoothed Input Details'!K62 -> 0.1098233476 | G148: =F148 -> 0.1098233476 | H148: =G148 -> 0.1098233476 | I148: 0.1098233476 | J148: 0.1098233476
B149: 136 | C149: Domestic Off Peak (related MPAN) | F149: ='Smoothed Input Details'!K63 -> 0.001990705194 | G149: =F149 -> 0.001990705194 | H149: 0.001990705194 | I149: 0.001990705194 | J149: 0.001990705194
B150: 137 | C150: Small Non Domestic Two Rate | F150: ='Smoothed Input Details'!K64 -> 0.08109302625 | G150: 0.08109302625 | H150: 0.08109302625 | I150: 0.08109302625 | J150: 0.08109302625
B151: 138 | C151: Small Non Domestic Off Peak (related MPAN) | F151: ='Smoothed Input Details'!K65 -> 0.002353569747 | G151: 0.002353569747 | H151: 0.002353569747 | I151: 0.002353569747 | J151: 0.002353569747
B152: 139 | C152: LV Medium Non-Domestic | F152: ='Smoothed Input Details'!K66 -> 0.07379037515 | G152: 0.07379037515 | H152: 0.07379037515 | I152: 0.07379037515 | J152: 0.07379037515
B153: 140 | C153: LV Sub Medium Non-Domestic | F153: ='Smoothed Input Details'!K67 -> 0.07365694399 | G153: 0.07365694399 | H153: 0.07365694399 | I153: 0.07365694399 | J153: 0.07365694399
B154: 141 | C154: HV Medium Non-Domestic | F154: ='Smoothed Input Details'!K68 -> 0.0701899199 | G154: 0.0701899199 | H154: 0.0701899199 | I154: 0.0701899199 | J154: 0.0701899199
B155: 142 | C155: AMBER
B156: 143 | C156: Domestic Two Rate | F156: ='Smoothed Input Details'!L62 -> 0.5339844331 | G156: =F156 -> 0.5339844331 | H156: =G156 -> 0.5339844331 | I156: 0.5339844331 | J156: 0.5339844331
B157: 144 | C157: Domestic Off Peak (related MPAN) | F157: ='Smoothed Input Details'!L63 -> 0.1119200542 | G157: =F157 -> 0.1119200542 | H157: 0.1119200542 | I157: 0.1119200542 | J157: 0.1119200542
B158: 145 | C158: Small Non Domestic Two Rate | F158: ='Smoothed Input Details'!L64 -> 0.6337868666 | G158: =F158 -> 0.6337868666 | H158: 0.6337868666 | I158: 0.6337868666 | J158: 0.6337868666
B159: 146 | C159: Small Non Domestic Off Peak (related MPAN) | F159: ='Smoothed Input Details'!L65 -> 0.1434744498 | G159: =F159 -> 0.1434744498 | H159: 0.1434744498 | I159: 0.1434744498 | J159: 0.1434744498
B160: 147 | C160: LV Medium Non-Domestic | F160: ='Smoothed Input Details'!L66 -> 0.5519844496 | G160: =F160 -> 0.5519844496 | H160: 0.5519844496 | I160: 0.5519844496 | J160: 0.5519844496
B161: 148 | C161: LV Sub Medium Non-Domestic | F161: ='Smoothed Input Details'!L67 -> 0.5606688669 | G161: =F161 -> 0.5606688669 | H161: 0.5606688669 | I161: 0.5606688669 | J161: 0.5606688669
B162: 149 | C162: HV Medium Non-Domestic | F162: ='Smoothed Input Details'!L68 -> 0.5374986505 | G162: =F162 -> 0.5374986505 | H162: 0.5374986505 | I162: 0.5374986505 | J162: 0.5374986505
B163: 150 | C163: GREEN
B164: 151 | C164: Domestic Two Rate | F164: ='Smoothed Input Details'!M62 -> 0.3561922193 | G164: =F164 -> 0.3561922193 | H164: =G164 -> 0.3561922193 | I164: 0.3561922193 | J164: 0.3561922193
B165: 152 | C165: Domestic Off Peak (related MPAN) | F165: ='Smoothed Input Details'!M63 -> 0.8860894882 | G165: =F165 -> 0.8860894882 | H165: 0.8860894882 | I165: 0.8860894882 | J165: 0.8860894882
B166: 153 | C166: Small Non Domestic Two Rate | F166: ='Smoothed Input Details'!M64 -> 0.2851201071 | G166: =F166 -> 0.2851201071 | H166: 0.2851201071 | I166: 0.2851201071 | J166: 0.2851201071
B167: 154 | C167: Small Non Domestic Off Peak (related MPAN) | F167: ='Smoothed Input Details'!M65 -> 0.8541719805 | G167: =F167 -> 0.8541719805 | H167: 0.8541719805 | I167: 0.8541719805 | J167: 0.8541719805
B168: 155 | C168: LV Medium Non-Domestic | F168: ='Smoothed Input Details'!M66 -> 0.3742251752 | G168: =F168 -> 0.3742251752 | H168: 0.3742251752 | I168: 0.3742251752 | J168: 0.3742251752
B169: 156 | C169: LV Sub Medium Non-Domestic | F169: ='Smoothed Input Details'!M67 -> 0.3656741891 | G169: =F169 -> 0.3656741891 | H169: 0.3656741891 | I169: 0.3656741891 | J169: 0.3656741891
B170: 157 | C170: HV Medium Non-Domestic | F170: ='Smoothed Input Details'!M68 -> 0.3923114296 | G170: =F170 -> 0.3923114296 | H170: 0.3923114296 | I170: 0.3923114296 | J170: 0.3923114296
B171: 158 | C171: 1062 Average split of rate 2 units by distribution time band
B172: 159 | C172: RED
B173: 160 | C173: Domestic Two Rate | F173: ='Smoothed Input Details'!K78 -> 0 | G173: =F173 -> 0 | H173: =G173 -> 0 | I173: 0 | J173: 0
B174: 161 | C174: Small Non Domestic Two Rate | F174: ='Smoothed Input Details'!K79 -> 0 | G174: =F174 -> 0 | H174: 0 | I174: 0 | J174: 0
B175: 162 | C175: LV Medium Non-Domestic | F175: ='Smoothed Input Details'!K80 -> 0 | G175: 0 | H175: 0 | I175: 0 | J175: 0
B176: 163 | C176: LV Sub Medium Non-Domestic | F176: ='Smoothed Input Details'!K81 -> 0 | G176: 0 | H176: 0 | I176: 0 | J176: 0
B177: 164 | C177: HV Medium Non-Domestic | F177: ='Smoothed Input Details'!K82 -> 0 | G177: 0 | H177: 0 | I177: 0 | J177: 0
B178: 165 | C178: AMBER
B179: 166 | C179: Domestic Two Rate | F179: ='Smoothed Input Details'!L78 -> 0.02923184764 | G179: =F179 -> 0.02923184764 | H179: =G179 -> 0.02923184764 | I179: 0.02923184764 | J179: 0.02923184764
B180: 167 | C180: Small Non Domestic Two Rate | F180: ='Smoothed Input Details'!L79 -> 0.0199181275 | G180: =F180 -> 0.0199181275 | H180: 0.0199181275 | I180: 0.0199181275 | J180: 0.0199181275
B181: 168 | C181: LV Medium Non-Domestic | F181: ='Smoothed Input Details'!L80 -> 0.001146654964 | G181: =F181 -> 0.001146654964 | H181: 0.001146654964 | I181: 0.001146654964 | J181: 0.001146654964
B182: 169 | C182: LV Sub Medium Non-Domestic | F182: ='Smoothed Input Details'!L81 -> 0.002131893811 | G182: =F182 -> 0.002131893811 | H182: 0.002131893811 | I182: 0.002131893811 | J182: 0.002131893811
B183: 170 | C183: HV Medium Non-Domestic | F183: ='Smoothed Input Details'!L82 -> 0.0004919749133 | G183: =F183 -> 0.0004919749133 | H183: 0.0004919749133 | I183: 0.0004919749133 | J183: 0.0004919749133
B184: 171 | C184: GREEN
B185: 172 | C185: Domestic Two Rate | F185: ='Smoothed Input Details'!M78 -> 0.9707681524 | G185: =F185 -> 0.9707681524 | H185: =G185 -> 0.9707681524 | I185: 0.9707681524 | J185: 0.9707681524
B186: 173 | C186: Small Non Domestic Two Rate | F186: ='Smoothed Input Details'!M79 -> 0.9800818725 | G186: =F186 -> 0.9800818725 | H186: 0.9800818725 | I186: 0.9800818725 | J186: 0.9800818725
B187: 174 | C187: LV Medium Non-Domestic | F187: ='Smoothed Input Details'!M80 -> 0.998853345 | G187: =F187 -> 0.998853345 | H187: 0.998853345 | I187: 0.998853345 | J187: 0.998853345
B188: 175 | C188: LV Sub Medium Non-Domestic | F188: ='Smoothed Input Details'!M81 -> 0.9978681062 | G188: =F188 -> 0.9978681062 | H188: 0.9978681062 | I188: 0.9978681062 | J188: 0.9978681062
B189: 176 | C189: HV Medium Non-Domestic | F189: ='Smoothed Input Details'!M82 -> 0.9995080251 | G189: =F189 -> 0.9995080251 | H189: 0.9995080251 | I189: 0.9995080251 | J189: 0.9995080251
B190: 177 | C190: 1064. Average split of rate 1 units by special distribution time band
B191: 178 | C191: BLACK
B192: 179 | C192: NHH UMS category A | F192: 0.01750380518 | G192: =F192 -> 0.01750380518 | H192: =G192 -> 0.01750380518 | I192: 0.01750380518 | J192: 0.01750380518
B193: 180 | C193: NHH UMS category B | F193: 0.03329825014 | G193: =F193 -> 0.03329825014 | H193: 0.03329825014 | I193: 0.03329825014 | J193: 0.03329825014
B194: 181 | C194: NHH UMS category C | F194: 0.0640174592 | G194: 0.0640174592 | H194: 0.0640174592 | I194: 0.0640174592 | J194: 0.0640174592
B195: 182 | C195: NHH UMS category D | F195: 0.005237402553 | G195: 0.005237402553 | H195: 0.005237402553 | I195: 0.005237402553 | J195: 0.005237402553
B196: 183 | C196: YELLOW
B197: 184 | C197: NHH UMS category A | F197: 0.4352359209 | G197: =F197 -> 0.4352359209 | H197: =G197 -> 0.4352359209 | I197: 0.4352359209 | J197: 0.4352359209
B198: 185 | C198: NHH UMS category B | F198: 0.1490267059 | G198: =F198 -> 0.1490267059 | H198: 0.1490267059 | I198: 0.1490267059 | J198: 0.1490267059
B199: 186 | C199: NHH UMS category C | F199: 0.3035331636 | G199: =F199 -> 0.3035331636 | H199: 0.3035331636 | I199: 0.3035331636 | J199: 0.3035331636
B200: 187 | C200: NHH UMS category D | F200: 0.6788299374 | G200: =F200 -> 0.6788299374 | H200: 0.6788299374 | I200: 0.6788299374 | J200: 0.6788299374
B201: 188 | C201: GREEN
B202: 189 | C202: NHH UMS category A | F202: 0.547260274 | G202: =F202 -> 0.547260274 | H202: =G202 -> 0.547260274 | I202: 0.547260274 | J202: 0.547260274
B203: 190 | C203: NHH UMS category B | F203: 0.817675044 | G203: =F203 -> 0.817675044 | H203: 0.817675044 | I203: 0.817675044 | J203: 0.817675044
B204: 191 | C204: NHH UMS category C | F204: 0.6324493772 | G204: =F204 -> 0.6324493772 | H204: 0.6324493772 | I204: 0.6324493772 | J204: 0.6324493772
B205: 192 | C205: NHH UMS category D | F205: 0.3159326601 | G205: =F205 -> 0.3159326601 | H205: 0.3159326601 | I205: 0.3159326601 | J205: 0.3159326601
... 65 more rows

Sheet Smoothed Input Details
A1: DNO | B1: =+'CDCM Forecast Data'!F3:G3 -> 
A2: Charges for (year Y) | B2: =+'CDCM Forecast Data'!F11 -> 2013/14
A4: Year charges are set (year Y-1) | B4: =+'CDCM Forecast Data'!E11 -> 2012/13
A6: Year to which input data relates
A7: Year Y-2 | B7: 2011/12
A8: Year Y - 3 | B8: 2010/11
A9: Year Y - 4 | B9: 2009/10
A11: 1041 - load profile for demand users - coincidence factors
A12: 2012/13 charges are set in 2011/12 using historical dats for the previous three years
B14: Y - 4 | C14: Y - 3 | D14: Y - 2 | E14: Information to be used calculating tariffs in year t
A15: Domestic Unrestricted | B15: 0.8658728484 | C15: 0.880728576 | D15: 0.9866779271 | E15: =AVERAGE(B15:D15) -> 0.9110931172
A16: Domestic Two Rate | B16: 0.2958626316 | C16: 0.3251280427 | D16: 0.3222861295 | E16: =AVERAGE(B16:D16) -> 0.3144256013
A17: Domestic Off Peak (related MPAN)
A18: Small Non Domestic Unrestricted | B18: 0.6815465009 | C18: 0.6915188711 | D18: 0.5100781583 | E18: 0.6277145101
A19: Small Non Domestic Two Rate | B19: 0.5538936061 | C19: 0.5608749778 | D19: 0.4772505709 | E19: 0.5306730516
A20: Small Non Domestic Off Peak (related MPAN)
A21: LV Medium Non-Domestic | B21: 0.8083417288 | C21: 0.8211625351 | D21: 0.7723440899 | E21: 0.8006161179
A22: LV Sub Medium Non-Domestic | B22: 0.7724350947 | C22: 0.8071014626 | D22: 0.7693016588 | E22: 0.7829460721
A23: HV Medium Non-Domestic | B23: 0.7285067873 | C23: 0.7578947368 | D23: 0.7674418605 | E23: 0.7512811282
A24: LV HH Metered | B24: 0.83239219 | C24: 0.8481671145 | D24: 0.7629600702 | E24: 0.8145064582
A25: LV Sub HH Metered | B25: 0.8002069082 | C25: 0.8084168409 | D25: 0.739554602 | E25: 0.782726117
A26: HV HH Metered | B26: 0.8230466648 | C26: 0.8274285322 | D26: 0.7836258577 | E26: 0.8113670182
A27: HV Sub HH Metered | B27: 0.5584045584 | C27: 0.4832131227 | D27: 0.4562822699 | E27: 0.4992999836
A28: NHH UMS | B28: 0.8506769943 | C28: 0.9525533091 | D28: 0.9659393142 | E28: 0.9230565392
A29: LV UMS (Pseudo HH Metered) | B29: 0.8506769943 | C29: 0.9525533091 | D29: 0.9659393142 | E29: 0.9230565392
A33: 1041 - load profile for demand users - load factors
A34: 2012/13 charges are set in 2011/12 using historical data for the previous three years
B37: Y - 4 | C37: Y - 3 | D37: Y - 2 | E37: Information to be used calculating tariffs in year t
A38: Domestic Unrestricted | B38: 0.3917685408 | C38: 0.3941882225 | D38: 0.4116771439 | E38: =AVERAGE(B38:D38) -> 0.3992113024
A39: Domestic Two Rate | B39: 0.2135881524 | C39: 0.2215732168 | D39: 0.2209511823 | E39: =AVERAGE(B39:D39) -> 0.2187041838
A40: Domestic Off Peak (related MPAN) | B40: 0.1645918345 | C40: 0.133580054 | D40: 0.1121855142 | E40: 0.1367858009
A41: Small Non Domestic Unrestricted | B41: 0.3456663377 | C41: 0.347058393 | D41: 0.3935546422 | E41: 0.3620931243
A42: Small Non Domestic Two Rate | B42: 0.3996386432 | C42: 0.3818560937 | D42: 0.40367525 | E42: 0.3950566623
A43: Small Non Domestic Off Peak (related MPAN) | B43: 0.2133781752 | C43: 0.1822226687 | D43: 0.2818194745 | E43: 0.2258067728
A44: LV Medium Non-Domestic | B44: 0.5457320634 | C44: 0.5484444308 | D44: 0.5842397666 | E44: 0.5594720869
A45: LV Sub Medium Non-Domestic | B45: 0.5411116476 | C45: 0.5693260503 | D45: 0.5948702434 | E45: 0.5684359804
A46: HV Medium Non-Domestic | B46: 0.410187194 | C46: 0.4186527678 | D46: 0.4009471852 | E46: 0.409929049
A47: LV HH Metered | B47: 0.585970601 | C47: 0.5763020108 | D47: 0.580191156 | E47: 0.580821256
A48: LV Sub HH Metered | B48: 0.6124080853 | C48: 0.6017576095 | D48: 0.6085614001 | E48: 0.6075756983
A49: HV HH Metered | B49: 0.7076289052 | C49: 0.7259985428 | D49: 0.7267134521 | E49: 0.7201136334
A50: HV Sub HH Metered | B50: 0.5776158414 | C50: 0.4850899741 | D50: 0.6205675381 | E50: 0.5610911178
A51: NHH UMS | B51: 0.4530012355 | C51: 0.4961504926 | D51: 0.483243933 | E51: 0.4774652203
A52: LV UMS (Pseudo HH Metered) | B52: 0.4530012355 | C52: 0.4961504926 | D52: 0.483243933 | E52: 0.4774652203
A56: 1061 - Average split of rate 1 units by distribution time band
A57: 2012/13 charges are set in 2011/12 using historical data for the previous three years
B60: Y - 4 | E60: Y - 3 | H60: Y - 2 | K60: Information to be used calculating tariffs in year t
B61: Red | C61: Amber | D61: Green | E61: Red | F61: Amber | G61: Green | H61: Red | I61: Amber | J61: Green | K61: Red | L61: Amber | M61: Green
A62: Domestic Two Rate | B62: 0.1121368554 | C62: 0.5430860395 | D62: 0.3447771051 | E62: 0.109161867 | F62: 0.5284630498 | G62: 0.3623750832 | H62: 0.1081713205 | I62: 0.5304042099 | J62: 0.3614244695 | K62: =AVERAGE(B62,E62,H62) -> 0.1098233476 | L62: 0.5339844331 | M62: 0.3561922193
A63: Domestic Off Peak (related MPAN) | B63: 0.004721412204 | C63: 0.1987737901 | D63: 0.7965047977 | E63: 0 | F63: 0.02440474125 | G63: 0.9755960013 | H63: 0.001250703377 | I63: 0.1125816311 | J63: 0.8861676656 | K63: 0.001990705194 | L63: 0.1119200542 | M63: 0.8860894882
A64: Small Non Domestic Two Rate | B64: 0.08090502047 | C64: 0.6376232963 | D64: 0.2814716832 | E64: 0.08142481085 | F64: 0.6340139341 | G64: 0.2845612551 | H64: 0.08094924744 | I64: 0.6297233695 | J64: 0.2893273831 | K64: 0.08109302625 | L64: 0.6337868666 | M64: 0.2851201071
A65: Small Non Domestic Off Peak (related MPAN) | B65: 0.003967877418 | C65: 0.2110035876 | D65: 0.785028535 | E65: 0.001529666931 | F65: 0.1095305892 | G65: 0.8889397438 | H65: 0.001563164892 | I65: 0.1098891726 | J65: 0.8885476626 | K65: 0.002353569747 | L65: 0.1434744498 | M65: 0.8541719805
A66: LV Medium Non-Domestic | B66: 0.07287146189 | C66: 0.5585366999 | D66: 0.3685918382 | E66: 0.0732819819 | F66: 0.5419116304 | G66: 0.3848063877 | H66: 0.07521768165 | I66: 0.5555050185 | J66: 0.3692772998 | K66: 0.07379037515 | L66: 0.5519844496 | M66: 0.3742251752
A67: LV Sub Medium Non-Domestic | B67: 0.07248129027 | C67: 0.566403127 | D67: 0.3611155827 | E67: 0.07321778327 | F67: 0.5506439803 | G67: 0.3761382364 | H67: 0.07527175842 | I67: 0.5649594933 | J67: 0.3597687482 | K67: 0.07365694399 | L67: =AVERAGE(C67,F67,I67) -> 0.5606688669 | M67: =AVERAGE(D67,G67,J67) -> 0.3656741891
A68: HV Medium Non-Domestic | B68: 0.0703856919 | C68: 0.5572994341 | D68: 0.372314874 | E68: 0.06972370217 | F68: 0.5220637756 | G68: 0.4082125222 | H68: 0.07046036564 | I68: 0.5331327418 | J68: 0.3964068926 | K68: 0.0701899199 | L68: =AVERAGE(C68,F68,I68) -> 0.5374986505 | M68: =AVERAGE(D68,G68,J68) -> 0.3923114296
A72: 1062 - Average split of rate 2 units by distribution time band
A73: 2012/13 charges are set in 2011/12 using historical data for the previous three years
B76: Y - 4 | E76: Y - 3 | H76: Y - 2 | K76: Information to be used calculating tariffs in year t
B77: Red | C77: Amber | D77: Green | E77: Red | F77: Amber | G77: Green | H77: Red | I77: Amber | J77: Green | K77: Red | L77: Amber | M77: Green
A78: Domestic Two Rate | B78: 0 | C78: 0.0393087879 | D78: 0.9606912121 | F78: 0.02189903613 | G78: 0.9781009639 | H78: 0 | I78: 0.02648771889 | J78: 0.9735122811 | K78: =AVERAGE(B78,E78,H78) -> 0 | L78: =AVERAGE(C78,F78,I78) -> 0.02923184764 | M78: 0.9707681524
A79: Small Non Domestic Two Rate | B79: 0 | C79: 0.02078171045 | D79: 0.9792182895 | F79: 0.01890926201 | G79: 0.981090738 | H79: 0 | I79: 0.02006341002 | J79: 0.97993659 | K79: =AVERAGE(B79,E79,H79) -> 0 | L79: 0.0199181275 | M79: 0.9800818725
A80: LV Medium Non-Domestic | B80: 0 | C80: 0.000606651979 | D80: 0.999393348 | F80: 0.0009627896168 | G80: 0.9990372104 | H80: 0 | I80: 0.001870523295 | J80: 0.9981294767 | K80: =AVERAGE(B80,E80,H80) -> 0 | L80: 0.001146654964 | M80: 0.998853345
A81: LV Sub Medium Non-Domestic | B81: 0 | C81: 0.001464641013 | D81: 0.998535359 | F81: 0.002370309797 | G81: 0.9976296902 | H81: 0 | I81: 0.002560730624 | J81: 0.9974392694 | K81: =AVERAGE(B81,E81,H81) -> 0 | L81: 0.002131893811 | M81: 0.9978681062
A82: HV Medium Non-Domestic | C82: 0 | D82: 1 | F82: 0.00147592474 | G82: 0.9985240753 | H82: 0 | I82: 0 | J82: 1 | K82: =AVERAGE(B82,E82,H82) -> 0 | L82: 0.0004919749133 | M82: 0.9995080251
A86: 1069 - Peaking probabilities by network level
A87: 2012/13 charges are set in 2011/12 using historical data for the previous three years
B90: Y - 4 | E90: Y - 3 | H90: Y - 2 | K90: Information to be used calculating tariffs in year t
B91: Red | C91: Amber | D91: Green | E91: Red | F91: Amber | G91: Green | H91: Red | I91: Amber | J91: Green | K91: Red | L91: Amber | M91: Green
A92: GSPs | B92: 1 | C92: 0 | D92: 0 | E92: 1 | H92: 1 | K92: =AVERAGE(B92,E92,H92) -> 1 | L92: =AVERAGE(C92,F92,I92) -> 0 | M92: =AVERAGE(D92,G92,J92) -> 0
A93: 132kV | B93: 0.8731 | C93: 0.0249 | D93: 0.1021 | E93: 0.734559752 | F93: 0.1027945897 | G93: 0.1626456583 | H93: 0.8723201681 | I93: 0.03678289797 | J93: 0.09089693394 | K93: =AVERAGE(B93,E93,H93) -> 0.8266599734 | L93: 0.05482582923 | M93: 0.1185475307
A94: 132kV/EHV | B94: 0.8731 | C94: 0.0249 | D94: 0.1021 | E94: 0.734559752 | F94: 0.1027945897 | G94: 0.1626456583 | H94: 0.8723201681 | I94: 0.03678289797 | J94: 0.09089693394 | K94: 0.8266599734 | L94: 0.05482582923 | M94: 0.1185475307
A95: EHV | B95: 0.5326 | C95: 0.2941 | D95: 0.1732 | E95: 0.5288596776 | F95: 0.316971915 | G95: 0.1541684074 | H95: 0.5490938884 | I95: 0.3029021496 | J95: 0.148003962 | K95: 0.5368511887 | L95: 0.3046580216 | M95: 0.1584574565
A96: EHV/HV | B96: 0.5326 | C96: 0.2941 | D96: 0.1732 | E96: 0.5288596776 | F96: 0.316971915 | G96: 0.1541684074 | H96: 0.5490938884 | I96: 0.3029021496 | J96: 0.148003962 | K96: 0.5368511887 | L96: 0.3046580216 | M96: 0.1584574565
A97: 132kV/HV | B97: 0.8731 | C97: 0.0249 | D97: 0.1021 | E97: 0.734559752 | F97: 0.1027945897 | G97: 0.1626456583 | H97: 0.8723201681 | I97: 0.03678289797 | J97: 0.09089693394 | K97: 0.8266599734 | L97: 0.05482582923 | M97: 0.1185475307
A98: HV | B98: 0.5326 | C98: 0.2941 | D98: 0.1732 | E98: 0.5288596776 | F98: 0.316971915 | G98: 0.1541684074 | H98: 0.5490938884 | I98: 0.3029021496 | J98: 0.148003962 | K98: 0.5368511887 | L98: 0.3046580216 | M98: 0.1584574565
A99: HV/LV | B99: 0.5326 | C99: 0.2941 | D99: 0.1732 | E99: 0.5288596776 | F99: 0.316971915 | G99: 0.1541684074 | H99: 0.5490938884 | I99: 0.3029021496 | J99: 0.148003962 | K99: 0.5368511887 | L99: 0.3046580216 | M99: 0.1584574565
A100: LV circuits | B100: 0.5326 | C100: 0.2941 | D100: 0.1732 | E100: 0.5288596776 | F100: 0.316971915 | G100: 0.1541684074 | H100: 0.5490938884 | I100: 0.3029021496 | J100: 0.148003962 | K100: 0.5368511887 | L100: 0.3046580216 | M100: 0.1584574565

Sheet Mat of App
B3: 1025. Matrix of applicability of LV service models to tariffs with fixed charges
C5: ='CDCM Forecast Data'!$F$11 -> 2013/14 | K5: ='CDCM Forecast Data'!$G$11 -> 2014/15 | S5: ='CDCM Forecast Data'!$H$11 -> 2015/16 | AA5: ='CDCM Forecast Data'!$I$11 -> 2016/17 | AI5: ='CDCM Forecast Data'!$J$11 -> 2017/18
C6: LV service model 1 | D6: LV service model 2 | E6: LV service model 3 | F6: LV service model 4 | G6: LV service model 5 | H6: LV service model 6 | I6: LV service model 7 | J6: LV service model 8 | K6: LV service model 1 | L6: LV service model 2 | M6: LV service model 3 | N6: LV service model 4 | O6: LV service model 5 | P6: LV service model 6 | Q6: LV service model 7 | R6: LV service model 8 | S6: LV service model 1 | T6: LV service model 2 | U6: LV service model 3 | V6: LV service model 4 | W6: LV service model 5 | X6: LV service model 6 | Y6: LV service model 7 | Z6: LV service model 8 | AA6: LV service model 1 | AB6: LV service model 2 | AC6: LV service model 3 | AD6: LV service model 4 | AE6: LV service model 5 | AF6: LV service model 6 | AG6: LV service model 7 | AH6: LV service model 8 | AI6: LV service model 1 | AJ6: LV service model 2 | AK6: LV service model 3 | AL6: LV service model 4 | AM6: LV service model 5 | AN6: LV service model 6 | AO6: LV service model 7 | AP6: LV service model 8
B7: Domestic Unrestricted | C7: 0.05 | D7: 0 | E7: 0 | F7: 0 | G7: 0 | H7: 0 | I7: 0 | J7: 0 | K7: =C7 -> 0.05 | L7: =D7 -> 0 | M7: 0 | N7: 0 | O7: 0 | P7: 0 | Q7: 0 | R7: 0 | S7: 0.05 | T7: 0 | U7: 0 | V7: 0 | W7: 0 | X7: 0 | Y7: 0 | Z7: 0 | AA7: 0.05 | AB7: =T7 -> 0 | AC7: 0 | AD7: 0 | AE7: 0 | AF7: 0 | AG7: 0 | AH7: 0 | AI7: 0.05 | AJ7: 0 | AK7: 0 | AL7: 0 | AM7: 0 | AN7: 0 | AO7: 0 | AP7: 0
B8: Domestic Two Rate | C8: 0.05 | D8: 0 | E8: 0 | F8: 0 | G8: 0 | H8: 0 | I8: 0 | J8: 0 | K8: =C8 -> 0.05 | L8: 0 | M8: 0 | N8: 0 | O8: 0 | P8: 0 | Q8: 0 | R8: 0 | S8: 0.05 | T8: 0 | U8: 0 | V8: 0 | W8: 0 | X8: 0 | Y8: 0 | Z8: 0 | AA8: 0.05 | AB8: 0 | AC8: 0 | AD8: 0 | AE8: 0 | AF8: 0 | AG8: 0 | AH8: 0 | AI8: 0.05 | AJ8: 0 | AK8: 0 | AL8: 0 | AM8: 0 | AN8: 0 | AO8: 0 | AP8: 0
B9: Small Non Domestic Unrestricted | C9: 0 | D9: 1 | E9: 0 | F9: 0 | G9: 0 | H9: 0 | I9: 0 | J9: 0 | K9: 0 | L9: 1 | M9: 0 | N9: 0 | O9: 0 | P9: 0 | Q9: 0 | R9: 0 | S9: 0 | T9: 1 | U9: 0 | V9: 0 | W9: 0 | X9: 0 | Y9: 0 | Z9: 0 | AA9: 0 | AB9: 1 | AC9: 0 | AD9: 0 | AE9: 0 | AF9: 0 | AG9: 0 | AH9: 0 | AI9: 0 | AJ9: 1 | AK9: 0 | AL9: 0 | AM9: 0 | AN9: 0 | AO9: 0 | AP9: 0
B10: Small Non Domestic Two Rate | C10: 0 | D10: 1 | E10: 0 | F10: 0 | G10: 0 | H10: 0 | I10: 0 | J10: 0 | K10: 0 | L10: 1 | M10: 0 | N10: 0 | O10: 0 | P10: 0 | Q10: 0 | R10: 0 | S10: 0 | T10: 1 | U10: 0 | V10: 0 | W10: 0 | X10: 0 | Y10: 0 | Z10: 0 | AA10: 0 | AB10: 1 | AC10: 0 | AD10: 0 | AE10: 0 | AF10: 0 | AG10: 0 | AH10: 0 | AI10: 0 | AJ10: 1 | AK10: 0 | AL10: 0 | AM10: 0 | AN10: 0 | AO10: 0 | AP10: 0
B11: LV Medium Non-Domestic | C11: 0 | E11: 1 | F11: 0 | G11: 0 | H11: 0 | I11: 0 | J11: 0 | K11: 0 | L11: 0 | M11: 1 | N11: 0 | O11: 0 | P11: 0 | Q11: 0 | R11: 0 | S11: 0 | T11: 0 | U11: 1 | V11: 0 | W11: 0 | X11: 0 | Y11: 0 | Z11: 0 | AA11: 0 | AB11: 0 | AC11: 1 | AD11: 0 | AE11: 0 | AF11: 0 | AG11: 0 | AH11: 0 | AI11: 0 | AJ11: 0 | AK11: 1 | AL11: 0 | AM11: 0 | AN11: 0 | AO11: 0 | AP11: 0
B12: LV Sub Medium Non-Domestic | C12: 0 | F12: 1 | G12: 0 | H12: 0 | I12: 0 | J12: 0 | K12: 0 | L12: 0 | M12: 0 | N12: 1 | O12: 0 | P12: 0 | Q12: 0 | R12: 0 | S12: 0 | T12: 0 | U12: 0 | V12: 1 | W12: 0 | X12: 0 | Y12: 0 | Z12: 0 | AA12: 0 | AB12: 0 | AC12: 0 | AD12: 1 | AE12: 0 | AF12: 0 | AG12: 0 | AH12: 0 | AI12: 0 | AJ12: 0 | AK12: 0 | AL12: 1 | AM12: 0 | AN12: 0 | AO12: 0 | AP12: 0
B13: LV HH Metered | C13: 0 | F13: 0 | G13: 1 | H13: 0 | I13: 0 | J13: 0 | K13: 0 | L13: 0 | M13: 0 | N13: 0 | O13: 1 | P13: 0 | Q13: 0 | R13: 0 | S13: 0 | T13: 0 | U13: 0 | V13: 0 | W13: 1 | X13: 0 | Y13: 0 | Z13: 0 | AA13: 0 | AB13: 0 | AC13: 0 | AD13: 0 | AE13: 1 | AF13: 0 | AG13: 0 | AH13: 0 | AI13: 0 | AJ13: 0 | AK13: 0 | AL13: 0 | AM13: 1 | AN13: 0 | AO13: 0 | AP13: 0
B14: LV Sub HH Metered | C14: 0 | F14: 0 | G14: 0 | H14: 1 | I14: 0 | J14: 0 | K14: 0 | L14: 0 | M14: 0 | N14: 0 | O14: 0 | P14: 1 | Q14: 0 | R14: 0 | S14: 0 | T14: 0 | U14: 0 | V14: 0 | W14: 0 | X14: 1 | Y14: 0 | Z14: 0 | AA14: 0 | AB14: 0 | AC14: 0 | AD14: 0 | AE14: 0 | AF14: 1 | AG14: 0 | AH14: 0 | AI14: 0 | AJ14: 0 | AK14: 0 | AL14: 0 | AM14: 0 | AN14: 1 | AO14: 0 | AP14: 0
B15: LV Generation NHH | C15: 0 | E15: 0 | F15: 0 | H15: 0 | I15: 1 | J15: 0 | K15: 0 | L15: 0 | M15: 0 | N15: 0 | O15: 0 | P15: 0 | Q15: 1 | R15: 0 | S15: 0 | T15: 0 | U15: 0 | V15: 0 | W15: 0 | X15: 0 | Y15: 1 | Z15: 0 | AA15: 0 | AB15: 0 | AC15: 0 | AD15: 0 | AE15: 0 | AF15: 0 | AG15: 1 | AH15: 0 | AI15: 0 | AJ15: 0 | AK15: 0 | AL15: 0 | AM15: 0 | AN15: 0 | AO15: 1 | AP15: 0
B16: LV Sub Generation NHH | C16: 0 | D16: 0 | E16: 0 | F16: 0 | H16: 0 | I16: 1 | J16: 0 | K16: 0 | L16: 0 | M16: 0 | N16: 0 | O16: 0 | P16: 0 | Q16: 1 | R16: 0 | S16: 0 | T16: 0 | U16: 0 | V16: 0 | W16: 0 | X16: 0 | Y16: 1 | Z16: 0 | AA16: 0 | AB16: 0 | AC16: 0 | AD16: 0 | AE16: 0 | AF16: 0 | AG16: 1 | AH16: 0 | AI16: 0 | AJ16: 0 | AK16: 0 | AL16: 0 | AM16: 0 | AN16: 0 | AO16: 1 | AP16: 0
B17: LV Generation Intermittent | C17: 0 | D17: 0 | E17: 0 | F17: 0 | H17: 0 | I17: 1 | J17: 0 | K17: 0 | L17: 0 | M17: 0 | N17: 0 | O17: 0 | P17: 0 | Q17: 1 | R17: 0 | S17: 0 | T17: 0 | U17: 0 | V17: 0 | W17: 0 | X17: 0 | Y17: 1 | Z17: 0 | AA17: 0 | AB17: 0 | AC17: 0 | AD17: 0 | AE17: 0 | AF17: 0 | AG17: 1 | AH17: 0 | AI17: 0 | AJ17: 0 | AK17: 0 | AL17: 0 | AM17: 0 | AN17: 0 | AO17: 1 | AP17: 0
B18: LV Generation Non-Intermittent | K18: 0 | L18: 0 | M18: 0 | N18: 0 | O18: 0 | P18: 0 | Q18: 0 | R18: 0 | S18: 0 | T18: 0 | U18: 0 | V18: 0 | W18: 0 | X18: 0 | Y18: 0 | Z18: 0 | AA18: 0 | AB18: 0 | AC18: 0 | AD18: 0 | AE18: 0 | AF18: 0 | AG18: 0 | AH18: 0 | AI18: 0 | AJ18: 0 | AK18: 0 | AL18: 0 | AM18: 0 | AN18: 0 | AO18: 0 | AP18: 0
B19: LV Sub Generation Intermittent | K19: 0 | L19: 0 | M19: 0 | N19: 0 | O19: 0 | P19: 0 | Q19: 0 | R19: 0 | S19: 0 | T19: 0 | U19: 0 | V19: 0 | W19: 0 | X19: 0 | Y19: 0 | Z19: 0 | AA19: 0 | AB19: 0 | AC19: 0 | AD19: 0 | AE19: 0 | AF19: 0 | AG19: 0 | AH19: 0 | AI19: 0 | AJ19: 0 | AK19: 0 | AL19: 0 | AM19: 0 | AN19: 0 | AO19: 0 | AP19: 0
B20: LV Sub Generation Non-Intermittent | K20: 0 | L20: 0 | M20: 0 | N20: 0 | O20: 0 | P20: 0 | Q20: 0 | R20: 0 | S20: 0 | T20: 0 | U20: 0 | V20: 0 | W20: 0 | X20: 0 | Y20: 0 | Z20: 0 | AA20: 0 | AB20: 0 | AC20: 0 | AD20: 0 | AE20: 0 | AF20: 0 | AG20: 0 | AH20: 0 | AI20: 0 | AJ20: 0 | AK20: 0 | AL20: 0 | AM20: 0 | AN20: 0 | AO20: 0 | AP20: 0
B22: 1026. Matrix of applicability of LV service models to unmetered tariffs
B24: Source: service models
B25: Proportion of service model involved in connecting load of 1 MWh/year | C25: ='CDCM Forecast Data'!$F$11 -> 2013/14 | K25: ='CDCM Forecast Data'!$G$11 -> 2014/15 | S25: ='CDCM Forecast Data'!$H$11 -> 2015/16 | AA25: ='CDCM Forecast Data'!$I$11 -> 2016/17 | AI25: ='CDCM Forecast Data'!$J$11 -> 2017/18
C26: LV service model 1 | D26: LV service model 2 | E26: LV service model 3 | F26: LV service model 4 | G26: LV service model 5 | H26: LV service model 6 | I26: LV service model 7 | J26: LV service model 8 | K26: LV service model 1 | L26: LV service model 2 | M26: LV service model 3 | N26: LV service model 4 | O26: LV service model 5 | P26: LV service model 6 | Q26: LV service model 7 | R26: LV service model 8 | S26: LV service model 1 | T26: LV service model 2 | U26: LV service model 3 | V26: LV service model 4 | W26: LV service model 5 | X26: LV service model 6 | Y26: LV service model 7 | Z26: LV service model 8 | AA26: LV service model 1 | AB26: LV service model 2 | AC26: LV service model 3 | AD26: LV service model 4 | AE26: LV service model 5 | AF26: LV service model 6 | AG26: LV service model 7 | AH26: LV service model 8 | AI26: LV service model 1 | AJ26: LV service model 2 | AK26: LV service model 3 | AL26: LV service model 4 | AM26: LV service model 5 | AN26: LV service model 6 | AO26: LV service model 7 | AP26: LV service model 8
B27: All LV unmetered tariffs | J27: 0.4877 | R27: 0.4876 | Z27: 0.4876 | AH27: 0.4876 | AP27: 0.4876
B29: 1028. Matrix of applicability of HV service models to tariffs with fixed charges
C30: ='CDCM Forecast Data'!$F$11 -> 2013/14 | H30: =+'CDCM Forecast Data'!G11 -> 2014/15 | M30: =+'CDCM Forecast Data'!H11 -> 2015/16 | R30: =+'CDCM Forecast Data'!I11 -> 2016/17 | W30: =+'CDCM Forecast Data'!J11 -> 2017/18
C31: HV service model 1 | D31: HV service model 2 | E31: HV service model 3 | F31: HV service model 4 | G31: HV service model 5 | H31: HV service model 1 | I31: HV service model 2 | J31: HV service model 3 | K31: HV service model 4 | L31: HV service model 5 | M31: HV service model 1 | N31: HV service model 2 | O31: HV service model 3 | P31: HV service model 4 | Q31: HV service model 5 | R31: HV service model 1 | S31: HV service model 2 | T31: HV service model 3 | U31: HV service model 4 | V31: HV service model 5 | W31: HV service model 1 | X31: HV service model 2 | Y31: HV service model 3 | Z31: HV service model 4 | AA31: HV service model 5
B32: HV Medium Non-Domestic | C32: 1 | H32: =C32 -> 1 | I32: 0 | J32: 0 | K32: 0 | L32: 0 | M32: 1 | N32: 0 | O32: 0 | P32: 0 | Q32: 0 | R32: 1 | S32: 0 | T32: 0 | U32: 0 | V32: 0 | W32: 1 | X32: =S32 -> 0 | Y32: 0 | Z32: 0 | AA32: 0
B33: HV HH Metered | C33: 1 | H33: 1 | I33: 0 | J33: 0 | K33: 0 | L33: 0 | M33: 1 | N33: 0 | O33: 0 | P33: 0 | Q33: 0 | R33: 1 | S33: 0 | T33: 0 | U33: 0 | V33: 0 | W33: 1 | X33: 0 | Y33: 0 | Z33: 0 | AA33: 0
B34: HV Sub HH Metered | C34: 1 | H34: 1 | I34: 0 | J34: 0 | K34: 0 | L34: 0 | M34: 1 | N34: 0 | O34: 0 | P34: 0 | Q34: 0 | R34: 1 | S34: 0 | T34: 0 | U34: 0 | V34: 0 | W34: 1 | X34: 0 | Y34: 0 | Z34: 0 | AA34: 0
B35: HV Generation Intermittent | D35: 1 | H35: 0 | I35: 1 | J35: 0 | K35: 0 | L35: 0 | M35: 0 | N35: 1 | O35: 0 | P35: 0 | Q35: 0 | R35: 0 | S35: 1 | T35: 0 | U35: 0 | V35: 0 | W35: 0 | X35: 1 | Y35: 0 | Z35: 0 | AA35: 0
B36: HV Generation Non-Intermittent | D36: 1 | H36: 0 | I36: 1 | J36: 0 | K36: 0 | L36: 0 | M36: 0 | N36: 1 | O36: 0 | P36: 0 | Q36: 0 | R36: 0 | S36: 1 | T36: 0 | U36: 0 | V36: 0 | W36: 0 | X36: 1 | Y36: 0 | Z36: 0 | AA36: 0
B37: HV Sub Generation Non-Intermittent | D37: 1 | H37: 0 | I37: 1 | J37: 0 | K37: 0 | L37: 0 | M37: 0 | N37: 1 | O37: 0 | P37: 0 | Q37: 0 | R37: 0 | S37: 1 | T37: 0 | U37: 0 | V37: 0 | W37: 0 | X37: 1 | Y37: 0 | Z37: 0 | AA37: 0
B38: HV Sub Generation Intermittent | D38: 1 | H38: 0 | I38: 1 | J38: 0 | K38: 0 | L38: 0 | M38: 0 | N38: 1 | O38: 0 | P38: 0 | Q38: 0 | R38: 0 | S38: 1 | T38: 0 | U38: 0 | V38: 0 | W38: 0 | X38: 1 | Y38: 0 | Z38: 0 | AA38: 0

Sheet CDCM Volume Forecasts
G3: Growth Rates (%)
G4: VOLUME - RED BAND | L4: VOLUME - AMBER BAND | P4: VOLUME - GREEN BAND | T4: CUSTOMER NUMBERS | X4: IMPORT CAPACITY | AB4: REACTIVE POWER
G5: Y | H5: Y + 1 | I5: Y + 2 | J5: Y + 3 | K5: Y + 4 | L5: Y + 1 | M5: Y + 2 | N5: Y + 3 | O5: Y + 4 | P5: Y + 1 | Q5: Y + 2 | R5: Y + 3 | S5: Y + 4 | T5: Y + 1 | U5: Y + 2 | V5: Y + 3 | W5: Y + 4 | X5: Y + 1 | Y5: Y + 2 | Z5: Y + 3 | AA5: Y + 4 | AB5: Y + 1 | AC5: Y + 2 | AD5: Y + 3 | AE5: Y + 4
E6: Customer Category | F6: Description | G6: =+'CDCM Forecast Data'!F11 -> 2013/14 | H6: =+'CDCM Forecast Data'!G11 -> 2014/15 | I6: =+'CDCM Forecast Data'!H11 -> 2015/16 | J6: =+'CDCM Forecast Data'!I11 -> 2016/17 | K6: =+'CDCM Forecast Data'!J11 -> 2017/18 | L6: =+H6 -> 2014/15 | M6: 2015/16 | N6: 2016/17 | O6: 2017/18 | P6: 2014/15 | Q6: 2015/16 | R6: 2016/17 | S6: 2017/18 | T6: 2014/15 | U6: 2015/16 | V6: 2016/17 | W6: 2017/18 | X6: 2014/15 | Y6: 2015/16 | Z6: 2016/17 | AA6: 2017/18 | AB6: 2014/15 | AC6: 2015/16 | AD6: 2016/17 | AE6: 2017/18 | AF6: Assumptions
E7: 1 | F7: NHH Dem | H7: -0.01 | I7: -0.01 | J7: -0.01 | K7: -0.01 | L7: -0.01 | M7: -0.01 | N7: -0.01 | O7: -0.01 | P7: -0.01 | Q7: -0.01 | R7: -0.01 | S7: -0.01 | T7: 0.01 | U7: 0.01 | V7: 0.01 | W7: 0.01 | X7: 0 | Y7: 0 | Z7: 0 | AA7: 0 | AB7: 0 | AC7: 0 | AD7: 0 | AE7: 0
E8: 2 | F8: HH Dem | H8: -0.01 | I8: -0.01 | J8: -0.01 | K8: -0.01 | L8: -0.01 | M8: -0.01 | N8: -0.01 | O8: -0.01 | P8: -0.01 | Q8: -0.01 | R8: -0.01 | S8: -0.01 | T8: 0.01 | U8: 0.01 | V8: 0.01 | W8: 0.01 | X8: 0 | Y8: 0 | Z8: 0 | AA8: 0 | AB8: 0 | AC8: 0 | AD8: 0 | AE8: 0
E9: 3 | F9: NHH Gen | H9: -0.01 | I9: -0.01 | J9: -0.01 | K9: -0.01 | L9: -0.01 | M9: -0.01 | N9: -0.01 | O9: -0.01 | P9: -0.01 | Q9: -0.01 | R9: -0.01 | S9: -0.01 | T9: 0.01 | U9: 0.01 | V9: 0.01 | W9: 0.01 | X9: 0 | Y9: 0 | Z9: 0 | AA9: 0 | AB9: 0 | AC9: 0 | AD9: 0 | AE9: 0
E10: 4 | F10: HH Gen | H10: -0.01 | I10: -0.01 | J10: -0.01 | K10: -0.01 | L10: -0.01 | M10: -0.01 | N10: -0.01 | O10: -0.01 | P10: -0.01 | Q10: -0.01 | R10: -0.01 | S10: -0.01 | T10: 0.01 | U10: 0.01 | V10: 0.01 | W10: 0.01 | X10: 0 | Y10: 0 | Z10: 0 | AA10: 0 | AB10: 0 | AC10: 0 | AD10: 0 | AE10: 0
E11: 5 | F11: DUMMY
E12: 6 | F12: DUMMY
E13: 7 | F13: DUMMY
E14: 8 | F14: DUMMY
E15: 9 | F15: DUMMY
E16: 10 | F16: DUMMY
E18: Summary Data | F18: Year | G18: =G6 -> 2013/14 | H18: =H6 -> 2014/15 | I18: =I6 -> 2015/16 | J18: =J6 -> 2016/17 | K18: =K6 -> 2017/18
F19: Total Volume | G19: =SUM(D28:F121) -> 13213917.11 | H19: =SUM(J28:L121) -> 13081777.94 | I19: =SUM(P28:R121) -> 12950960.16 | J19: =SUM(V28:X121) -> 12821450.56 | K19: =SUM(AB28:AD121) -> 12693236.06
F20: No. of MPANs | G20: =SUM(G28:G121) -> 1558141 | H20: =SUM(M28:M121) -> 1573722.41 | I20: =SUM(S28:S121) -> 1589459.634 | J20: =SUM(Y28:Y121) -> 1605354.23 | K20: =SUM(AE28:AE121) -> 1621407.773
F21: Total Import Capacity | G21: =SUM(H28:H121) -> 1667000 | H21: =SUM(N28:N121) -> 1667000 | I21: =SUM(T28:T121) -> 1667000 | J21: =SUM(Z28:Z121) -> 1667000 | K21: =SUM(AF28:AF121) -> 1667000
F22: Total Reactive | G22: =SUM(I28:I121) -> 376094.9976 | H22: =SUM(O28:O121) -> 376094.9976 | I22: =SUM(U28:U121) -> 376094.9976 | J22: =SUM(AA28:AA121) -> 376094.9976 | K22: =SUM(AG28:AG121) -> 376094.9976
C25: 1053. Volume forecasts for the charging year: | D25: =G6& " - ("&G5&")" -> 2013/14 - (Y) | J25: =H6& " - ("&H5&")" -> 2014/15 - (Y + 1) | P25: =I6& " - ("&I5&")" -> 2015/16 - (Y + 2) | V25: =J6& " - ("&J5&")" -> 2016/17 - (Y + 3) | AB25: =K6& " - ("&K5&")" -> 2017/18 - (Y + 4)
B26: Customer Category | C26: Tariff | D26: Rate 1 units (MWh) | E26: Rate 2 units (MWh) | F26: Rate 3 units (MWh) | G26: MPANs | H26: Import capacity (kVA) | I26: Reactive power units (MVArh) | J26: Rate 1 units (MWh) | K26: Rate 2 units (MWh) | L26: Rate 3 units (MWh) | M26: MPANs | N26: Import capacity (kVA) | O26: Reactive power units (MVArh) | P26: Rate 1 units (MWh) | Q26: Rate 2 units (MWh) | R26: Rate 3 units (MWh) | S26: MPANs | T26: Import capacity (kVA) | U26: Reactive power units (MVArh) | V26: Rate 1 units (MWh) | W26: Rate 2 units (MWh) | X26: Rate 3 units (MWh) | Y26: MPANs | Z26: Import capacity (kVA) | AA26: Reactive power units (MVArh) | AB26: Rate 1 units (MWh) | AC26: Rate 2 units (MWh) | AD26: Rate 3 units (MWh) | AE26: MPANs | AF26: Import capacity (kVA) | AG26: Reactive power units (MVArh)
A27: 1 | C27: > Domestic Unrestricted
A28: =+A27+1 -> 2 | B28: 1 | C28: Domestic Unrestricted | D28: 4243602.102 | G28: 1173205 | J28: =IF(D28,((VLOOKUP($B28,$E$7:$AE$16,4)+1)*D28),) -> 4201166.081 | K28: =IF(E28,((VLOOKUP($B28,$E$7:$AE$16,8)+1)*E28),) -> 0 | L28: =IF(F28,((VLOOKUP($B28,$E$7:$AE$16,12)+1)*F28),) -> 0 | M28: =IF(G28,((VLOOKUP($B28,$E$7:$AE$16,16)+1)*G28),) -> 1184937.05 | N28: =IF(H28,((VLOOKUP($B28,$E$7:$AE$16,20)+1)*H28),) -> 0 | O28: =IF(I28,((VLOOKUP($B28,$E$7:$AE$16,24)+1)*I28),) -> 0 | P28: =IF(D28,((VLOOKUP($B28,$E$7:$AE$16,5)+1)*J28),) -> 4159154.42 | Q28: =IF(E28,((VLOOKUP($B28,$E$7:$AE$16,5+4)+1)*K28),) -> 0 | R28: =IF(F28,((VLOOKUP($B28,$E$7:$AE$16,5+8)+1)*L28),) -> 0 | S28: =IF(G28,((VLOOKUP($B28,$E$7:$AE$16,5+12)+1)*M28),) -> 1196786.421 | T28: =IF(H28,((VLOOKUP($B28,$E$7:$AE$16,5+16)+1)*N28),) -> 0 | U28: =IF(I28,((VLOOKUP($B28,$E$7:$AE$16,5+20)+1)*O28),) -> 0 | V28: =IF(D28,((VLOOKUP($B28,$E$7:$AE$16,6)+1)*P28),) -> 4117562.876 | W28: =IF(E28,((VLOOKUP($B28,$E$7:$AE$16,6+4)+1)*Q28),) -> 0 | X28: =IF(F28,((VLOOKUP($B28,$E$7:$AE$16,6+8)+1)*R28),) -> 0 | Y28: =IF(G28,((VLOOKUP($B28,$E$7:$AE$16,6+12)+1)*S28),) -> 1208754.285 | Z28: =IF(H28,((VLOOKUP($B28,$E$7:$AE$16,6+16)+1)*T28),) -> 0 | AA28: =IF(I28,((VLOOKUP($B28,$E$7:$AE$16,6+20)+1)*U28),) -> 0 | AB28: =IF(D28,((VLOOKUP($B28,$E$7:$AE$16,7)+1)*V28),) -> 4076387.247 | AC28: =IF(E28,((VLOOKUP($B28,$E$7:$AE$16,7+4)+1)*W28),) -> 0 | AD28: =IF(F28,((VLOOKUP($B28,$E$7:$AE$16,7+8)+1)*X28),) -> 0 | AE28: =IF(G28,((VLOOKUP($B28,$E$7:$AE$16,7+12)+1)*Y28),) -> 1220841.828 | AF28: =IF(H28,((VLOOKUP($B28,$E$7:$AE$16,7+16)+1)*Z28),) -> 0 | AG28: =IF(I28,((VLOOKUP($B28,$E$7:$AE$16,7+20)+1)*AA28),) -> 0
A29: =+A28+1 -> 3 | B29: 1 | C29: LDNO LV: Domestic Unrestricted | D29: 2197.88 | G29: 1414 | J29: =IF(D29,((VLOOKUP($B29,$E$7:$AE$16,4)+1)*D29),) -> 2175.9012 | K29: 0 | L29: 0 | M29: 1428.14 | N29: 0 | O29: 0 | P29: =IF(D29,((VLOOKUP($B29,$E$7:$AE$16,5)+1)*J29),) -> 2154.142188 | Q29: 0 | R29: 0 | S29: 1442.4214 | T29: 0 | U29: 0 | V29: 2132.600766 | W29: 0 | X29: 0 | Y29: 1456.845614 | Z29: 0 | AA29: 0 | AB29: 2111.274758 | AC29: 0 | AD29: 0 | AE29: 1471.41407 | AF29: 0 | AG29: 0
A30: 4 | B30: 1 | C30: LDNO HV: Domestic Unrestricted | D30: 3876.121 | G30: 1852 | J30: 3837.35979 | K30: 0 | L30: 0 | M30: 1870.52 | N30: 0 | O30: 0 | P30: 3798.986192 | Q30: 0 | R30: 0 | S30: 1889.2252 | T30: 0 | U30: 0 | V30: 3760.99633 | W30: 0 | X30: 0 | Y30: 1908.117452 | Z30: 0 | AA30: 0 | AB30: 3723.386367 | AC30: 0 | AD30: 0 | AE30: 1927.198627 | AF30: 0 | AG30: 0
A31: 5 | C31: > Domestic Two Rate
A32: 6 | B32: 1 | C32: Domestic Two Rate | D32: 719816.1328 | E32: 749558.5308 | G32: 233105 | J32: =IF(D32,((VLOOKUP($B32,$E$7:$AE$16,4)+1)*D32),) -> 712617.9715 | K32: 742062.9455 | L32: 0 | M32: 235436.05 | N32: 0 | O32: 0 | P32: 705491.7918 | Q32: 734642.3161 | R32: 0 | S32: 237790.4105 | T32: 0 | U32: 0 | V32: 698436.8739 | W32: 727295.8929 | X32: 0 | Y32: 240168.3146 | Z32: 0 | AA32: 0 | AB32: 691452.5051 | AC32: 720022.934 | AD32: 0 | AE32: 242569.9978 | AF32: 0 | AG32: 0
A33: 7 | B33: 1 | C33: LDNO LV: Domestic Two Rate | D33: 180.281 | E33: 178.734 | G33: 53 | J33: 178.47819 | K33: 176.94666 | L33: 0 | M33: 53.53 | N33: 0 | O33: 0 | P33: 176.6934081 | Q33: 175.1771934 | R33: 0 | S33: 54.0653 | T33: 0 | U33: 0 | V33: 174.926474 | W33: 173.4254215 | X33: 0 | Y33: 54.605953 | Z33: 0 | AA33: 0 | AB33: 173.1772093 | AC33: 171.6911673 | AD33: 0 | AE33: 55.15201253 | AF33: 0 | AG33: 0
A34: 8 | B34: 1 | C34: LDNO HV: Domestic Two Rate | D34: 140.249 | E34: 95.397 | G34: 153 | J34: 138.84651 | K34: 94.44303 | L34: 0 | M34: 154.53 | N34: 0 | O34: 0 | P34: 137.4580449 | Q34: 93.4985997 | R34: 0 | S34: 156.0753 | T34: 0 | U34: 0 | V34: 136.0834645 | W34: 92.5636137 | X34: 0 | Y34: 157.636053 | Z34: 0 | AA34: 0 | AB34: 134.7226298 | AC34: 91.63797757 | AD34: 0 | AE34: 159.2124135 | AF34: 0 | AG34: 0
A35: 9 | C35: > Domestic Off Peak (related MPAN)
A36: 10 | B36: 1 | C36: Domestic Off Peak (related MPAN) | D36: 73030.25811 | J36: 72299.95553 | K36: 0 | L36: 0 | M36: 0 | N36: 0 | O36: 0 | P36: 71576.95597 | Q36: 0 | R36: 0 | S36: 0 | T36: 0 | U36: 0 | V36: 70861.18641 | W36: 0 | X36: 0 | Y36: 0 | Z36: 0 | AA36: 0 | AB36: 70152.57455 | AC36: 0 | AD36: 0 | AE36: 0 | AF36: 0 | AG36: 0
A37: 11 | B37: 1 | C37: LDNO LV: Domestic Off Peak (related MPAN) | J37: 0 | K37: 0 | L37: 0 | M37: 0 | N37: 0 | O37: 0 | P37: 0 | Q37: 0 | R37: 0 | S37: 0 | T37: 0 | U37: 0 | V37: 0 | W37: 0 | X37: 0 | Y37: 0 | Z37: 0 | AA37: 0 | AB37: 0 | AC37: 0 | AD37: 0 | AE37: 0 | AF37: 0 | AG37: 0
A38: 12 | B38: 1 | C38: LDNO HV: Domestic Off Peak (related MPAN) | J38: 0 | K38: 0 | L38: 0 | M38: 0 | N38: 0 | O38: 0 | P38: 0 | Q38: 0 | R38: 0 | S38: 0 | T38: 0 | U38: 0 | V38: 0 | W38: 0 | X38: 0 | Y38: 0 | Z38: 0 | AA38: 0 | AB38: 0 | AC38: 0 | AD38: 0 | AE38: 0 | AF38: 0 | AG38: 0
A39: 13 | C39: > Small Non Domestic Unrestricted
A40: 14 | B40: 1 | C40: Small Non Domestic Unrestricted | D40: 1167954.199 | G40: 106596 | J40: 1156274.657 | K40: 0 | L40: 0 | M40: 107661.96 | N40: 0 | O40: 0 | P40: 1144711.911 | Q40: 0 | R40: 0 | S40: 108738.5796 | T40: 0 | U40: 0 | V40: 1133264.792 | W40: 0 | X40: 0 | Y40: 109825.9654 | Z40: 0 | AA40: 0 | AB40: 1121932.144 | AC40: 0 | AD40: 0 | AE40: 110924.225 | AF40: 0 | AG40: 0
A41: 15 | B41: 1 | C41: LDNO LV: Small Non Domestic Unrestricted | D41: 210.339 | G41: 53 | J41: 208.23561 | K41: 0 | L41: 0 | M41: 53.53 | N41: 0 | O41: 0 | P41: 206.1532539 | Q41: 0 | R41: 0 | S41: 54.0653 | T41: 0 | U41: 0 | V41: 204.0917214 | W41: 0 | X41: 0 | Y41: 54.605953 | Z41: 0 | AA41: 0 | AB41: 202.0508041 | AC41: 0 | AD41: 0 | AE41: 55.15201253 | AF41: 0 | AG41: 0
A42: 16 | B42: 1 | C42: LDNO HV: Small Non Domestic Unrestricted | D42: 5712.431 | G42: 127 | J42: 5655.30669 | K42: 0 | L42: 0 | M42: 128.27 | N42: 0 | O42: 0 | P42: 5598.753623 | Q42: 0 | R42: 0 | S42: 129.5527 | T42: 0 | U42: 0 | V42: 5542.766087 | W42: 0 | X42: 0 | Y42: 130.848227 | Z42: 0 | AA42: 0 | AB42: 5487.338426 | AC42: 0 | AD42: 0 | AE42: 132.1567093 | AF42: 0 | AG42: 0
A43: 17 | C43: > Small Non Domestic Two Rate
A44: 18 | B44: 1 | C44: Small Non Domestic Two Rate | D44: 352675.7711 | E44: 173121.5393 | G44: 26498 | J44: 349149.0133 | K44: 171390.3239 | L44: 0 | M44: 26762.98 | N44: 0 | O44: 0 | P44: 345657.5232 | Q44: 169676.4206 | R44: 0 | S44: 27030.6098 | T44: 0 | U44: 0 | V44: 342200.948 | W44: 167979.6564 | X44: 0 | Y44: 27300.9159 | Z44: 0 | AA44: 0 | AB44: 338778.9385 | AC44: 166299.8599 | AD44: 0 | AE44: 27573.92506 | AF44: 0 | AG44: 0
A45: 19 | B45: 1 | C45: LDNO LV: Small Non Domestic Two Rate | D45: 6.688 | E45: 4.552 | J45: 6.62112 | K45: 4.50648 | L45: 0 | M45: 0 | N45: 0 | O45: 0 | P45: 6.5549088 | Q45: 4.4614152 | R45: 0 | S45: 0 | T45: 0 | U45: 0 | V45: 6.489359712 | W45: 4.416801048 | X45: 0 | Y45: 0 | Z45: 0 | AA45: 0 | AB45: 6.424466115 | AC45: 4.372633038 | AD45: 0 | AE45: 0 | AF45: 0 | AG45: 0
A46: 20 | B46: 1 | C46: LDNO HV: Small Non Domestic Two Rate | D46: 371.957 | E46: 99.204 | G46: 8 | J46: 368.23743 | K46: 98.21196 | L46: 0 | M46: 8.08 | N46: 0 | O46: 0 | P46: 364.5550557 | Q46: 97.2298404 | R46: 0 | S46: 8.1608 | T46: 0 | U46: 0 | V46: 360.9095051 | W46: 96.257542 | X46: 0 | Y46: 8.242408 | Z46: 0 | AA46: 0 | AB46: 357.3004101 | AC46: 95.29496658 | AD46: 0 | AE46: 8.32483208 | AF46: 0 | AG46: 0
A47: 21 | C47: > Small Non Domestic Off Peak (related MPAN) | J47: 0 | K47: 0 | L47: 0 | M47: 0 | N47: 0 | O47: 0 | P47: 0 | Q47: 0 | R47: 0 | S47: 0 | T47: 0 | U47: 0 | V47: 0 | W47: 0 | X47: 0 | Y47: 0 | Z47: 0 | AA47: 0 | AB47: 0 | AC47: 0 | AD47: 0 | AE47: 0 | AF47: 0 | AG47: 0
A48: 22 | B48: 1 | C48: Small Non Domestic Off Peak (related MPAN) | D48: 26029.06816 | J48: 25768.77748 | K48: 0 | L48: 0 | M48: 0 | N48: 0 | O48: 0 | P48: 25511.08971 | Q48: 0 | R48: 0 | S48: 0 | T48: 0 | U48: 0 | V48: 25255.97881 | W48: 0 | X48: 0 | Y48: 0 | Z48: 0 | AA48: 0 | AB48: 25003.41902 | AC48: 0 | AD48: 0 | AE48: 0 | AF48: 0 | AG48: 0
A49: 23 | B49: 1 | C49: LDNO LV: Small Non Domestic Off Peak (related MPAN) | J49: 0 | K49: 0 | L49: 0 | M49: 0 | N49: 0 | O49: 0 | P49: 0 | Q49: 0 | R49: 0 | S49: 0 | T49: 0 | U49: 0 | V49: 0 | W49: 0 | X49: 0 | Y49: 0 | Z49: 0 | AA49: 0 | AB49: 0 | AC49: 0 | AD49: 0 | AE49: 0 | AF49: 0 | AG49: 0
A50: 24 | B50: 1 | C50: LDNO HV: Small Non Domestic Off Peak (related MPAN) | J50: 0 | K50: 0 | L50: 0 | M50: 0 | N50: 0 | O50: 0 | P50: 0 | Q50: 0 | R50: 0 | S50: 0 | T50: 0 | U50: 0 | V50: 0 | W50: 0 | X50: 0 | Y50: 0 | Z50: 0 | AA50: 0 | AB50: 0 | AC50: 0 | AD50: 0 | AE50: 0 | AF50: 0 | AG50: 0
A51: 25 | C51: > LV Medium Non-Domestic | J51: 0 | K51: 0 | L51: 0 | M51: 0 | N51: 0 | O51: 0 | P51: 0 | Q51: 0 | R51: 0 | S51: 0 | T51: 0 | U51: 0 | V51: 0 | W51: 0 | X51: 0 | Y51: 0 | Z51: 0 | AA51: 0 | AB51: 0 | AC51: 0 | AD51: 0 | AE51: 0 | AF51: 0 | AG51: 0
A52: 26 | B52: 1 | C52: LV Medium Non-Domestic | D52: 708276.9206 | E52: 174918.5804 | G52: 9143 | J52: 701194.1514 | K52: 173169.3946 | L52: 0 | M52: 9234.43 | N52: 0 | O52: 0 | P52: 694182.2099 | Q52: 171437.7007 | R52: 0 | S52: 9326.7743 | T52: 0 | U52: 0 | V52: 687240.3878 | W52: 169723.3237 | X52: 0 | Y52: 9420.042043 | Z52: 0 | AA52: 0 | AB52: 680367.9839 | AC52: 168026.0904 | AD52: 0 | AE52: 9514.242463 | AF52: 0 | AG52: 0
A53: 27 | B53: 1 | C53: LDNO LV: LV Medium Non-Domestic | J53: 0 | K53: 0 | L53: 0 | M53: 0 | N53: 0 | O53: 0 | P53: 0 | Q53: 0 | R53: 0 | S53: 0 | T53: 0 | U53: 0 | V53: 0 | W53: 0 | X53: 0 | Y53: 0 | Z53: 0 | AA53: 0 | AB53: 0 | AC53: 0 | AD53: 0 | AE53: 0 | AF53: 0 | AG53: 0
A54: 28 | B54: 1 | C54: LDNO HV: LV Medium Non-Domestic | D54: 3767.762 | E54: 635.403 | G54: 16 | J54: 3730.08438 | K54: 629.04897 | L54: 0 | M54: 16.16 | N54: 0 | O54: 0 | P54: 3692.783536 | Q54: 622.7584803 | R54: 0 | S54: 16.3216 | T54: 0 | U54: 0 | V54: 3655.855701 | W54: 616.5308955 | X54: 0 | Y54: 16.484816 | Z54: 0 | AA54: 0 | AB54: 3619.297144 | AC54: 610.3655865 | AD54: 0 | AE54: 16.64966416 | AF54: 0 | AG54: 0
A55: 29 | C55: > LV Sub Medium Non-Domestic | J55: 0 | K55: 0 | L55: 0 | M55: 0 | N55: 0 | O55: 0 | P55: 0 | Q55: 0 | R55: 0 | S55: 0 | T55: 0 | U55: 0 | V55: 0 | W55: 0 | X55: 0 | Y55: 0 | Z55: 0 | AA55: 0 | AB55: 0 | AC55: 0 | AD55: 0 | AE55: 0 | AF55: 0 | AG55: 0
A56: 30 | B56: 1 | C56: LV Sub Medium Non-Domestic | D56: 77314.6231 | E56: 21571.56654 | G56: 749 | J56: 76541.47686 | K56: 21355.85088 | L56: 0 | M56: 756.49 | N56: 0 | O56: 0 | P56: 75776.0621 | Q56: 21142.29237 | R56: 0 | S56: 764.0549 | T56: 0 | U56: 0 | V56: 75018.30147 | W56: 20930.86945 | X56: 0 | Y56: 771.695449 | Z56: 0 | AA56: 0 | AB56: 74268.11846 | AC56: 20721.56075 | AD56: 0 | AE56: 779.4124035 | AF56: 0 | AG56: 0
A57: 31 | C57: > HV Medium Non-Domestic | J57: 0 | K57: 0 | L57: 0 | M57: 0 | N57: 0 | O57: 0 | P57: 0 | Q57: 0 | R57: 0 | S57: 0 | T57: 0 | U57: 0 | V57: 0 | W57: 0 | X57: 0 | Y57: 0 | Z57: 0 | AA57: 0 | AB57: 0 | AC57: 0 | AD57: 0 | AE57: 0 | AF57: 0 | AG57: 0
A58: 32 | B58: 1 | C58: HV Medium Non-Domestic | D58: 2306.275522 | E58: 617.3263696 | G58: 22 | J58: 2283.212767 | K58: 611.1531059 | L58: 0 | M58: 22.22 | N58: 0 | O58: 0 | P58: 2260.380639 | Q58: 605.0415748 | R58: 0 | S58: 22.4422 | T58: 0 | U58: 0 | V58: 2237.776833 | W58: 598.9911591 | X58: 0 | Y58: 22.666622 | Z58: 0 | AA58: 0 | AB58: 2215.399065 | AC58: 593.0012475 | AD58: 0 | AE58: 22.89328822 | AF58: 0 | AG58: 0
A59: 33 | C59: > LV HH Metered | J59: 0 | K59: 0 | L59: 0 | M59: 0 | N59: 0 | O59: 0 | P59: 0 | Q59: 0 | R59: 0 | S59: 0 | T59: 0 | U59: 0 | V59: 0 | W59: 0 | X59: 0 | Y59: 0 | Z59: 0 | AA59: 0 | AB59: 0 | AC59: 0 | AD59: 0 | AE59: 0 | AF59: 0 | AG59: 0
A60: 34 | B60: 2 | C60: LV HH Metered | D60: 53304.1114 | E60: 382801.2915 | F60: 323622.7928 | G60: 2824 | H60: 365000 | I60: 74360 | J60: 52771.07028 | K60: 378973.2786 | L60: 320386.5649 | M60: 2852.24 | N60: 365000 | O60: 74360 | P60: 52243.35958 | Q60: 375183.5458 | R60: 317182.6992 | S60: 2880.7624 | T60: 365000 | U60: 74360 | V60: 51720.92599 | W60: 371431.7104 | X60: 314010.8722 | Y60: 2909.570024 | Z60: 365000 | AA60: 74360 | AB60: 51203.71673 | AC60: 367717.3933 | AD60: 310870.7635 | AE60: 2938.665724 | AF60: 365000 | AG60: 74360
A61: 35 | B61: 2 | C61: LDNO LV: LV HH Metered | D61: 5.145670604 | E61: 36.94952918 | F61: 31.22396021 | J61: 5.094213898 | K61: 36.58003389 | L61: 30.91172061 | M61: 0 | N61: 0 | O61: 0 | P61: 5.043271759 | Q61: 36.21423355 | R61: 30.60260341 | S61: 0 | T61: 0 | U61: 0 | V61: 4.992839041 | W61: 35.85209122 | X61: 30.29657737 | Y61: 0 | Z61: 0 | AA61: 0 | AB61: 4.942910651 | AC61: 35.4935703 | AD61: 29.9936116 | AE61: 0 | AF61: 0 | AG61: 0
A62: 36 | B62: 2 | C62: LDNO HV: LV HH Metered | D62: 1464.77203 | E62: 10524.83413 | F62: 8898.974535 | J62: 1450.12431 | K62: 10419.58579 | L62: 8809.98479 | M62: 0 | N62: 0 | O62: 0 | P62: 1435.623067 | Q62: 10315.38994 | R62: 8721.884942 | S62: 0 | T62: 0 | U62: 0 | V62: 1421.266836 | W62: 10212.23604 | X62: 8634.666093 | Y62: 0 | Z62: 0 | AA62: 0 | AB62: 1407.054167 | AC62: 10110.11368 | AD62: 8548.319432 | AE62: 0 | AF62: 0 | AG62: 0
A63: 37 | C63: > LV Sub HH Metered | J63: 0 | K63: 0 | L63: 0 | M63: 0 | N63: 0 | O63: 0 | P63: 0 | Q63: 0 | R63: 0 | S63: 0 | T63: 0 | U63: 0 | V63: 0 | W63: 0 | X63: 0 | Y63: 0 | Z63: 0 | AA63: 0 | AB63: 0 | AC63: 0 | AD63: 0 | AE63: 0 | AF63: 0 | AG63: 0
A64: 38 | B64: 2 | C64: LV Sub HH Metered | D64: 49580.06772 | E64: 369501.7136 | F64: 333780.5589 | G64: 1318 | H64: 329000 | I64: 80945 | J64: 49084.26704 | K64: 365806.6965 | L64: 330442.7533 | M64: 1331.18 | N64: 329000 | O64: 80945 | P64: 48593.42437 | Q64: 362148.6295 | R64: 327138.3258 | S64: 1344.4918 | T64: 329000 | U64: 80945 | V64: 48107.49013 | W64: 358527.1432 | X64: 323866.9425 | Y64: 1357.936718 | Z64: 329000 | AA64: 80945 | AB64: 47626.41523 | AC64: 354941.8718 | AD64: 320628.2731 | AE64: 1371.516085 | AF64: 329000 | AG64: 80945
A65: 39 | B65: 2 | C65: LDNO HV: LV Sub HH Metered | J65: 0 | K65: 0 | L65: 0 | M65: 0 | N65: 0 | O65: 0 | P65: 0 | Q65: 0 | R65: 0 | S65: 0 | T65: 0 | U65: 0 | V65: 0 | W65: 0 | X65: 0 | Y65: 0 | Z65: 0 | AA65: 0 | AB65: 0 | AC65: 0 | AD65: 0 | AE65: 0 | AF65: 0 | AG65: 0
A66: 40 | C66: > HV HH Metered | J66: 0 | K66: 0 | L66: 0 | M66: 0 | N66: 0 | O66: 0 | P66: 0 | Q66: 0 | R66: 0 | S66: 0 | T66: 0 | U66: 0 | V66: 0 | W66: 0 | X66: 0 | Y66: 0 | Z66: 0 | AA66: 0 | AB66: 0 | AC66: 0 | AD66: 0 | AE66: 0 | AF66: 0 | AG66: 0
A67: 41 | B67: 2 | C67: HV HH Metered | D67: 177242.5067 | E67: 1267227.736 | F67: 1338164.853 | G67: 923 | H67: 973000 | I67: 218608 | J67: 175470.0817 | K67: 1254555.459 | L67: 1324783.205 | M67: 932.23 | N67: 973000 | O67: 218608 | P67: 173715.3808 | Q67: 1242009.904 | R67: 1311535.372 | S67: 941.5523 | T67: 973000 | U67: 218608 | V67: 171978.227 | W67: 1229589.805 | X67: 1298420.019 | Y67: 950.967823 | Z67: 973000 | AA67: 218608 | AB67: 170258.4448 | AC67: 1217293.907 | AD67: 1285435.819 | AE67: 960.4775012 | AF67: 973000 | AG67: 218608
A68: 42 | B68: 2 | C68: LDNO HV: HV HH Metered | D68: 1.714841865 | E68: 12.29787531 | F68: 13.73488282 | J68: 1.697693447 | K68: 12.17489656 | L68: 13.59753399 | M68: 0 | N68: 0 | O68: 0 | P68: 1.680716512 | Q68: 12.0531476 | R68: 13.46155865 | S68: 0 | T68: 0 | U68: 0 | V68: 1.663909347 | W68: 11.93261612 | X68: 13.32694307 | Y68: 0 | Z68: 0 | AA68: 0 | AB68: 1.647270254 | AC68: 11.81328996 | AD68: 13.19367364 | AE68: 0 | AF68: 0 | AG68: 0
A69: 43 | C69: > HV Sub HH Metered | J69: 0 | K69: 0 | L69: 0 | M69: 0 | N69: 0 | O69: 0 | P69: 0 | Q69: 0 | R69: 0 | S69: 0 | T69: 0 | U69: 0 | V69: 0 | W69: 0 | X69: 0 | Y69: 0 | Z69: 0 | AA69: 0 | AB69: 0 | AC69: 0 | AD69: 0 | AE69: 0 | AF69: 0 | AG69: 0
A70: 44 | B70: 2 | C70: HV Sub HH Metered | J70: 0 | K70: 0 | L70: 0 | M70: 0 | N70: 0 | O70: 0 | P70: 0 | Q70: 0 | R70: 0 | S70: 0 | T70: 0 | U70: 0 | V70: 0 | W70: 0 | X70: 0 | Y70: 0 | Z70: 0 | AA70: 0 | AB70: 0 | AC70: 0 | AD70: 0 | AE70: 0 | AF70: 0 | AG70: 0
A71: 45 | C71: > NHH UMS category A | J71: 0 | K71: 0 | L71: 0 | M71: 0 | N71: 0 | O71: 0 | P71: 0 | Q71: 0 | R71: 0 | S71: 0 | T71: 0 | U71: 0 | V71: 0 | W71: 0 | X71: 0 | Y71: 0 | Z71: 0 | AA71: 0 | AB71: 0 | AC71: 0 | AD71: 0 | AE71: 0 | AF71: 0 | AG71: 0
A72: 46 | B72: 1 | C72: NHH UMS category A | D72: 16740.14907 | J72: 16572.74758 | K72: 0 | L72: 0 | M72: 0 | N72: 0 | O72: 0 | P72: 16407.02011 | Q72: 0 | R72: 0 | S72: 0 | T72: 0 | U72: 0 | V72: 16242.9499 | W72: 0 | X72: 0 | Y72: 0 | Z72: 0 | AA72: 0 | AB72: 16080.52041 | AC72: 0 | AD72: 0 | AE72: 0 | AF72: 0 | AG72: 0
A73: 47 | B73: 1 | C73: LDNO LV: NHH UMS category A | D73: 3.2925 | J73: 3.259575 | K73: 0 | L73: 0 | M73: 0 | N73: 0 | O73: 0 | P73: 3.22697925 | Q73: 0 | R73: 0 | S73: 0 | T73: 0 | U73: 0 | V73: 3.194709458 | W73: 0 | X73: 0 | Y73: 0 | Z73: 0 | AA73: 0 | AB73: 3.162762363 | AC73: 0 | AD73: 0 | AE73: 0 | AF73: 0 | AG73: 0
A74: 48 | B74: 1 | C74: LDNO HV: NHH UMS category A | D74: 74.4277449 | J74: 73.68346745 | K74: 0 | L74: 0 | M74: 0 | N74: 0 | O74: 0 | P74: 72.94663278 | Q74: 0 | R74: 0 | S74: 0 | T74: 0 | U74: 0 | V74: 72.21716645 | W74: 0 | X74: 0 | Y74: 0 | Z74: 0 | AA74: 0 | AB74: 71.49499478 | AC74: 0 | AD74: 0 | AE74: 0 | AF74: 0 | AG74: 0
A75: 49 | C75: > NHH UMS category B | J75: 0 | K75: 0 | L75: 0 | M75: 0 | N75: 0 | O75: 0 | P75: 0 | Q75: 0 | R75: 0 | S75: 0 | T75: 0 | U75: 0 | V75: 0 | W75: 0 | X75: 0 | Y75: 0 | Z75: 0 | AA75: 0 | AB75: 0 | AC75: 0 | AD75: 0 | AE75: 0 | AF75: 0 | AG75: 0
A76: 50 | B76: 1 | C76: NHH UMS category B | D76: 5820.180322 | J76: 5761.978519 | K76: 0 | L76: 0 | M76: 0 | N76: 0 | O76: 0 | P76: 5704.358734 | Q76: 0 | R76: 0 | S76: 0 | T76: 0 | U76: 0 | V76: 5647.315146 | W76: 0 | X76: 0 | Y76: 0 | Z76: 0 | AA76: 0 | AB76: 5590.841995 | AC76: 0 | AD76: 0 | AE76: 0 | AF76: 0 | AG76: 0
A77: 51 | B77: 1 | C77: LDNO LV: NHH UMS category B | D77: 1.0975 | J77: 1.086525 | K77: 0 | L77: 0 | M77: 0 | N77: 0 | O77: 0 | P77: 1.07565975 | Q77: 0 | R77: 0 | S77: 0 | T77: 0 | U77: 0 | V77: 1.064903153 | W77: 0 | X77: 0 | Y77: 0 | Z77: 0 | AA77: 0 | AB77: 1.054254121 | AC77: 0 | AD77: 0 | AE77: 0 | AF77: 0 | AG77: 0
A78: 52 | B78: 1 | C78: LDNO HV: NHH UMS category B | D78: 25.87688404 | J78: 25.61811519 | K78: 0 | L78: 0 | M78: 0 | N78: 0 | O78: 0 | P78: 25.36193404 | Q78: 0 | R78: 0 | S78: 0 | T78: 0 | U78: 0 | V78: 25.1083147 | W78: 0 | X78: 0 | Y78: 0 | Z78: 0 | AA78: 0 | AB78: 24.85723156 | AC78: 0 | AD78: 0 | AE78: 0 | AF78: 0 | AG78: 0
A79: 53 | C79: > NHH UMS category C | J79: 0 | K79: 0 | L79: 0 | M79: 0 | N79: 0 | O79: 0 | P79: 0 | Q79: 0 | R79: 0 | S79: 0 | T79: 0 | U79: 0 | V79: 0 | W79: 0 | X79: 0 | Y79: 0 | Z79: 0 | AA79: 0 | AB79: 0 | AC79: 0 | AD79: 0 | AE79: 0 | AF79: 0 | AG79: 0
A80: 54 | B80: 1 | C80: NHH UMS category C | D80: 648.2975051 | J80: 641.81453 | K80: 0 | L80: 0 | M80: 0 | N80: 0 | O80: 0 | P80: 635.3963847 | Q80: 0 | R80: 0 | S80: 0 | T80: 0 | U80: 0 | V80: 629.0424209 | W80: 0 | X80: 0 | Y80: 0 | Z80: 0 | AA80: 0 | AB80: 622.7519967 | AC80: 0 | AD80: 0 | AE80: 0 | AF80: 0 | AG80: 0
A81: 55 | B81: 1 | C81: LDNO LV: NHH UMS category C | D81: 0 | J81: 0 | K81: 0 | L81: 0 | M81: 0 | N81: 0 | O81: 0 | P81: 0 | Q81: 0 | R81: 0 | S81: 0 | T81: 0 | U81: 0 | V81: 0 | W81: 0 | X81: 0 | Y81: 0 | Z81: 0 | AA81: 0 | AB81: 0 | AC81: 0 | AD81: 0 | AE81: 0 | AF81: 0 | AG81: 0
A82: 56 | B82: 1 | C82: LDNO HV: NHH UMS category C | D82: 2.882371066 | J82: 2.853547355 | K82: 0 | L82: 0 | M82: 0 | N82: 0 | O82: 0 | P82: 2.825011882 | Q82: 0 | R82: 0 | S82: 0 | T82: 0 | U82: 0 | V82: 2.796761763 | W82: 0 | X82: 0 | Y82: 0 | Z82: 0 | AA82: 0 | AB82: 2.768794145 | AC82: 0 | AD82: 0 | AE82: 0 | AF82: 0 | AG82: 0
A83: 57 | C83: > NHH UMS category D | J83: =IF(D83,((VLOOKUP($B83,$E$7:$AE$16,4)+1)*D83),) -> 0 | K83: =IF(E83,((VLOOKUP($B83,$E$7:$AE$16,8)+1)*E83),) -> 0 | L83: =IF(F83,((VLOOKUP($B83,$E$7:$AE$16,12)+1)*F83),) -> 0 | M83: =IF(G83,((VLOOKUP($B83,$E$7:$AE$16,16)+1)*G83),) -> 0 | N83: =IF(H83,((VLOOKUP($B83,$E$7:$AE$16,20)+1)*H83),) -> 0 | O83: =IF(I83,((VLOOKUP($B83,$E$7:$AE$16,24)+1)*I83),) -> 0 | P83: =IF(D83,((VLOOKUP($B83,$E$7:$AE$16,5)+1)*J83),) -> 0 | Q83: =IF(E83,((VLOOKUP($B83,$E$7:$AE$16,5+4)+1)*K83),) -> 0 | R83: =IF(F83,((VLOOKUP($B83,$E$7:$AE$16,5+8)+1)*L83),) -> 0 | S83: =IF(G83,((VLOOKUP($B83,$E$7:$AE$16,5+12)+1)*M83),) -> 0 | T83: =IF(H83,((VLOOKUP($B83,$E$7:$AE$16,5+16)+1)*N83),) -> 0 | U83: =IF(I83,((VLOOKUP($B83,$E$7:$AE$16,5+20)+1)*O83),) -> 0 | V83: =IF(D83,((VLOOKUP($B83,$E$7:$AE$16,6)+1)*P83),) -> 0 | W83: =IF(E83,((VLOOKUP($B83,$E$7:$AE$16,6+4)+1)*Q83),) -> 0 | X83: =IF(F83,((VLOOKUP($B83,$E$7:$AE$16,6+8)+1)*R83),) -> 0 | Y83: =IF(G83,((VLOOKUP($B83,$E$7:$AE$16,6+12)+1)*S83),) -> 0 | Z83: =IF(H83,((VLOOKUP($B83,$E$7:$AE$16,6+16)+1)*T83),) -> 0 | AA83: =IF(I83,((VLOOKUP($B83,$E$7:$AE$16,6+20)+1)*U83),) -> 0 | AB83: =IF(D83,((VLOOKUP($B83,$E$7:$AE$16,7)+1)*V83),) -> 0 | AC83: =IF(E83,((VLOOKUP($B83,$E$7:$AE$16,7+4)+1)*W83),) -> 0 | AD83: =IF(F83,((VLOOKUP($B83,$E$7:$AE$16,7+8)+1)*X83),) -> 0 | AE83: =IF(G83,((VLOOKUP($B83,$E$7:$AE$16,7+12)+1)*Y83),) -> 0 | AF83: =IF(H83,((VLOOKUP($B83,$E$7:$AE$16,7+16)+1)*Z83),) -> 0 | AG83: =IF(I83,((VLOOKUP($B83,$E$7:$AE$16,7+20)+1)*AA83),) -> 0
A84: 58 | B84: 1 | C84: NHH UMS category D | D84: 0 | J84: =IF(D84,((VLOOKUP($B84,$E$7:$AE$16,4)+1)*D84),) -> 0 | K84: =IF(E84,((VLOOKUP($B84,$E$7:$AE$16,8)+1)*E84),) -> 0 | L84: =IF(F84,((VLOOKUP($B84,$E$7:$AE$16,12)+1)*F84),) -> 0 | M84: =IF(G84,((VLOOKUP($B84,$E$7:$AE$16,16)+1)*G84),) -> 0 | N84: =IF(H84,((VLOOKUP($B84,$E$7:$AE$16,20)+1)*H84),) -> 0 | O84: =IF(I84,((VLOOKUP($B84,$E$7:$AE$16,24)+1)*I84),) -> 0 | P84: =IF(D84,((VLOOKUP($B84,$E$7:$AE$16,5)+1)*J84),) -> 0 | Q84: =IF(E84,((VLOOKUP($B84,$E$7:$AE$16,5+4)+1)*K84),) -> 0 | R84: =IF(F84,((VLOOKUP($B84,$E$7:$AE$16,5+8)+1)*L84),) -> 0 | S84: =IF(G84,((VLOOKUP($B84,$E$7:$AE$16,5+12)+1)*M84),) -> 0 | T84: =IF(H84,((VLOOKUP($B84,$E$7:$AE$16,5+16)+1)*N84),) -> 0 | U84: =IF(I84,((VLOOKUP($B84,$E$7:$AE$16,5+20)+1)*O84),) -> 0 | V84: =IF(D84,((VLOOKUP($B84,$E$7:$AE$16,6)+1)*P84),) -> 0 | W84: =IF(E84,((VLOOKUP($B84,$E$7:$AE$16,6+4)+1)*Q84),) -> 0 | X84: =IF(F84,((VLOOKUP($B84,$E$7:$AE$16,6+8)+1)*R84),) -> 0 | Y84: =IF(G84,((VLOOKUP($B84,$E$7:$AE$16,6+12)+1)*S84),) -> 0 | Z84: =IF(H84,((VLOOKUP($B84,$E$7:$AE$16,6+16)+1)*T84),) -> 0 | AA84: =IF(I84,((VLOOKUP($B84,$E$7:$AE$16,6+20)+1)*U84),) -> 0 | AB84: =IF(D84,((VLOOKUP($B84,$E$7:$AE$16,7)+1)*V84),) -> 0 | AC84: =IF(E84,((VLOOKUP($B84,$E$7:$AE$16,7+4)+1)*W84),) -> 0 | AD84: =IF(F84,((VLOOKUP($B84,$E$7:$AE$16,7+8)+1)*X84),) -> 0 | AE84: =IF(G84,((VLOOKUP($B84,$E$7:$AE$16,7+12)+1)*Y84),) -> 0 | AF84: =IF(H84,((VLOOKUP($B84,$E$7:$AE$16,7+16)+1)*Z84),) -> 0 | AG84: =IF(I84,((VLOOKUP($B84,$E$7:$AE$16,7+20)+1)*AA84),) -> 0
A85: 59 | B85: 1 | C85: LDNO LV: NHH UMS category D | D85: 0 | J85: =IF(D85,((VLOOKUP($B85,$E$7:$AE$16,4)+1)*D85),) -> 0 | K85: =IF(E85,((VLOOKUP($B85,$E$7:$AE$16,8)+1)*E85),) -> 0 | L85: =IF(F85,((VLOOKUP($B85,$E$7:$AE$16,12)+1)*F85),) -> 0 | M85: =IF(G85,((VLOOKUP($B85,$E$7:$AE$16,16)+1)*G85),) -> 0 | N85: =IF(H85,((VLOOKUP($B85,$E$7:$AE$16,20)+1)*H85),) -> 0 | O85: =IF(I85,((VLOOKUP($B85,$E$7:$AE$16,24)+1)*I85),) -> 0 | P85: =IF(D85,((VLOOKUP($B85,$E$7:$AE$16,5)+1)*J85),) -> 0 | Q85: =IF(E85,((VLOOKUP($B85,$E$7:$AE$16,5+4)+1)*K85),) -> 0 | R85: =IF(F85,((VLOOKUP($B85,$E$7:$AE$16,5+8)+1)*L85),) -> 0 | S85: =IF(G85,((VLOOKUP($B85,$E$7:$AE$16,5+12)+1)*M85),) -> 0 | T85: =IF(H85,((VLOOKUP($B85,$E$7:$AE$16,5+16)+1)*N85),) -> 0 | U85: =IF(I85,((VLOOKUP($B85,$E$7:$AE$16,5+20)+1)*O85),) -> 0 | V85: =IF(D85,((VLOOKUP($B85,$E$7:$AE$16,6)+1)*P85),) -> 0 | W85: =IF(E85,((VLOOKUP($B85,$E$7:$AE$16,6+4)+1)*Q85),) -> 0 | X85: =IF(F85,((VLOOKUP($B85,$E$7:$AE$16,6+8)+1)*R85),) -> 0 | Y85: =IF(G85,((VLOOKUP($B85,$E$7:$AE$16,6+12)+1)*S85),) -> 0 | Z85: =IF(H85,((VLOOKUP($B85,$E$7:$AE$16,6+16)+1)*T85),) -> 0 | AA85: =IF(I85,((VLOOKUP($B85,$E$7:$AE$16,6+20)+1)*U85),) -> 0 | AB85: =IF(D85,((VLOOKUP($B85,$E$7:$AE$16,7)+1)*V85),) -> 0 | AC85: =IF(E85,((VLOOKUP($B85,$E$7:$AE$16,7+4)+1)*W85),) -> 0 | AD85: =IF(F85,((VLOOKUP($B85,$E$7:$AE$16,7+8)+1)*X85),) -> 0 | AE85: =IF(G85,((VLOOKUP($B85,$E$7:$AE$16,7+12)+1)*Y85),) -> 0 | AF85: =IF(H85,((VLOOKUP($B85,$E$7:$AE$16,7+16)+1)*Z85),) -> 0 | AG85: =IF(I85,((VLOOKUP($B85,$E$7:$AE$16,7+20)+1)*AA85),) -> 0
A86: 60 | B86: 1 | C86: LDNO HV: NHH UMS category D | D86: 0 | J86: =IF(D86,((VLOOKUP($B86,$E$7:$AE$16,4)+1)*D86),) -> 0 | K86: =IF(E86,((VLOOKUP($B86,$E$7:$AE$16,8)+1)*E86),) -> 0 | L86: =IF(F86,((VLOOKUP($B86,$E$7:$AE$16,12)+1)*F86),) -> 0 | M86: =IF(G86,((VLOOKUP($B86,$E$7:$AE$16,16)+1)*G86),) -> 0 | N86: =IF(H86,((VLOOKUP($B86,$E$7:$AE$16,20)+1)*H86),) -> 0 | O86: =IF(I86,((VLOOKUP($B86,$E$7:$AE$16,24)+1)*I86),) -> 0 | P86: =IF(D86,((VLOOKUP($B86,$E$7:$AE$16,5)+1)*J86),) -> 0 | Q86: =IF(E86,((VLOOKUP($B86,$E$7:$AE$16,5+4)+1)*K86),) -> 0 | R86: =IF(F86,((VLOOKUP($B86,$E$7:$AE$16,5+8)+1)*L86),) -> 0 | S86: =IF(G86,((VLOOKUP($B86,$E$7:$AE$16,5+12)+1)*M86),) -> 0 | T86: =IF(H86,((VLOOKUP($B86,$E$7:$AE$16,5+16)+1)*N86),) -> 0 | U86: =IF(I86,((VLOOKUP($B86,$E$7:$AE$16,5+20)+1)*O86),) -> 0 | V86: =IF(D86,((VLOOKUP($B86,$E$7:$AE$16,6)+1)*P86),) -> 0 | W86: =IF(E86,((VLOOKUP($B86,$E$7:$AE$16,6+4)+1)*Q86),) -> 0 | X86: =IF(F86,((VLOOKUP($B86,$E$7:$AE$16,6+8)+1)*R86),) -> 0 | Y86: =IF(G86,((VLOOKUP($B86,$E$7:$AE$16,6+12)+1)*S86),) -> 0 | Z86: =IF(H86,((VLOOKUP($B86,$E$7:$AE$16,6+16)+1)*T86),) -> 0 | AA86: =IF(I86,((VLOOKUP($B86,$E$7:$AE$16,6+20)+1)*U86),) -> 0 | AB86: =IF(D86,((VLOOKUP($B86,$E$7:$AE$16,7)+1)*V86),) -> 0 | AC86: =IF(E86,((VLOOKUP($B86,$E$7:$AE$16,7+4)+1)*W86),) -> 0 | AD86: =IF(F86,((VLOOKUP($B86,$E$7:$AE$16,7+8)+1)*X86),) -> 0 | AE86: =IF(G86,((VLOOKUP($B86,$E$7:$AE$16,7+12)+1)*Y86),) -> 0 | AF86: =IF(H86,((VLOOKUP($B86,$E$7:$AE$16,7+16)+1)*Z86),) -> 0 | AG86: =IF(I86,((VLOOKUP($B86,$E$7:$AE$16,7+20)+1)*AA86),) -> 0
A87: 61 | C87: > LV UMS (Pseudo HH Metered) | J87: 0 | K87: 0 | L87: 0 | M87: 0 | N87: 0 | O87: 0 | P87: 0 | Q87: 0 | R87: 0 | S87: 0 | T87: 0 | U87: 0 | V87: 0 | W87: 0 | X87: 0 | Y87: 0 | Z87: 0 | AA87: 0 | AB87: 0 | AC87: 0 | AD87: 0 | AE87: 0 | AF87: 0 | AG87: 0
A88: 62 | B88: 2 | C88: LV UMS (Pseudo HH Metered) | D88: 4342.849586 | E88: 28609.27121 | F88: 105632.3978 | J88: 4299.42109 | K88: 28323.1785 | L88: 104576.0738 | M88: 0 | N88: 0 | O88: 0 | P88: 4256.426879 | Q88: 28039.94671 | R88: 103530.3131 | S88: 0 | T88: 0 | U88: 0 | V88: 4213.86261 | W88: 27759.54725 | X88: 102495.01 | Y88: 0 | Z88: 0 | AA88: 0 | AB88: 4171.723984 | AC88: 27481.95177 | AD88: 101470.0599 | AE88: 0 | AF88: 0 | AG88: 0
A89: 63 | B89: 2 | C89: LDNO LV: LV UMS (Pseudo HH Metered) | J89: 0 | K89: 0 | L89: 0 | M89: 0 | N89: 0 | O89: 0 | P89: 0 | Q89: 0 | R89: 0 | S89: 0 | T89: 0 | U89: 0 | V89: 0 | W89: 0 | X89: 0 | Y89: 0 | Z89: 0 | AA89: 0 | AB89: 0 | AC89: 0 | AD89: 0 | AE89: 0 | AF89: 0 | AG89: 0
A90: 64 | B90: 2 | C90: LDNO HV: LV UMS (Pseudo HH Metered) | J90: 0 | K90: 0 | L90: 0 | M90: 0 | N90: 0 | O90: 0 | P90: 0 | Q90: 0 | R90: 0 | S90: 0 | T90: 0 | U90: 0 | V90: 0 | W90: 0 | X90: 0 | Y90: 0 | Z90: 0 | AA90: 0 | AB90: 0 | AC90: 0 | AD90: 0 | AE90: 0 | AF90: 0 | AG90: 0
A91: 65 | C91: > LV Generation NHH | J91: 0 | K91: 0 | L91: 0 | M91: 0 | N91: 0 | O91: 0 | P91: 0 | Q91: 0 | R91: 0 | S91: 0 | T91: 0 | U91: 0 | V91: 0 | W91: 0 | X91: 0 | Y91: 0 | Z91: 0 | AA91: 0 | AB91: 0 | AC91: 0 | AD91: 0 | AE91: 0 | AF91: 0 | AG91: 0
A92: 66 | B92: 4 | C92: LV Generation NHH | D92: 1252.3 | J92: 1239.777 | K92: =IF(E92,((VLOOKUP($B92,$E$7:$AE$16,8)+1)*E92),) -> 0 | L92: =IF(F92,((VLOOKUP($B92,$E$7:$AE$16,12)+1)*F92),) -> 0 | M92: =IF(G92,((VLOOKUP($B92,$E$7:$AE$16,16)+1)*G92),) -> 0 | N92: =IF(H92,((VLOOKUP($B92,$E$7:$AE$16,20)+1)*H92),) -> 0 | O92: =IF(I92,((VLOOKUP($B92,$E$7:$AE$16,24)+1)*I92),) -> 0 | P92: 1227.37923 | Q92: =IF(E92,((VLOOKUP($B92,$E$7:$AE$16,5+4)+1)*K92),) -> 0 | R92: =IF(F92,((VLOOKUP($B92,$E$7:$AE$16,5+8)+1)*L92),) -> 0 | S92: =IF(G92,((VLOOKUP($B92,$E$7:$AE$16,5+12)+1)*M92),) -> 0 | T92: =IF(H92,((VLOOKUP($B92,$E$7:$AE$16,5+16)+1)*N92),) -> 0 | U92: =IF(I92,((VLOOKUP($B92,$E$7:$AE$16,5+20)+1)*O92),) -> 0 | V92: =IF(D92,((VLOOKUP($B92,$E$7:$AE$16,6)+1)*P92),) -> 1215.105438 | W92: =IF(E92,((VLOOKUP($B92,$E$7:$AE$16,6+4)+1)*Q92),) -> 0 | X92: =IF(F92,((VLOOKUP($B92,$E$7:$AE$16,6+8)+1)*R92),) -> 0 | Y92: =IF(G92,((VLOOKUP($B92,$E$7:$AE$16,6+12)+1)*S92),) -> 0 | Z92: =IF(H92,((VLOOKUP($B92,$E$7:$AE$16,6+16)+1)*T92),) -> 0 | AA92: =IF(I92,((VLOOKUP($B92,$E$7:$AE$16,6+20)+1)*U92),) -> 0 | AB92: =IF(D92,((VLOOKUP($B92,$E$7:$AE$16,7)+1)*V92),) -> 1202.954383 | AC92: =IF(E92,((VLOOKUP($B92,$E$7:$AE$16,7+4)+1)*W92),) -> 0 | AD92: =IF(F92,((VLOOKUP($B92,$E$7:$AE$16,7+8)+1)*X92),) -> 0 | AE92: =IF(G92,((VLOOKUP($B92,$E$7:$AE$16,7+12)+1)*Y92),) -> 0 | AF92: =IF(H92,((VLOOKUP($B92,$E$7:$AE$16,7+16)+1)*Z92),) -> 0 | AG92: =IF(I92,((VLOOKUP($B92,$E$7:$AE$16,7+20)+1)*AA92),) -> 0
A93: =+A92+1 -> 67 | B93: 4 | C93: LDNO LV: LV Generation NHH | D93: 61.98 | J93: =IF(D93,((VLOOKUP($B93,$E$7:$AE$16,4)+1)*D93),) -> 61.3602 | K93: 0 | L93: 0 | M93: 0 | N93: 0 | O93: 0 | P93: =IF(D93,((VLOOKUP($B93,$E$7:$AE$16,5)+1)*J93),) -> 60.746598 | Q93: 0 | R93: 0 | S93: 0 | T93: 0 | U93: 0 | V93: 60.13913202 | W93: 0 | X93: 0 | Y93: 0 | Z93: 0 | AA93: 0 | AB93: 59.5377407 | AC93: 0 | AD93: 0 | AE93: 0 | AF93: 0 | AG93: 0
A94: 68 | B94: 4 | C94: LDNO HV: LV Generation NHH | J94: 0 | K94: 0 | L94: 0 | M94: 0 | N94: 0 | O94: 0 | P94: 0 | Q94: 0 | R94: 0 | S94: 0 | T94: 0 | U94: 0 | V94: 0 | W94: 0 | X94: 0 | Y94: 0 | Z94: 0 | AA94: 0 | AB94: 0 | AC94: 0 | AD94: 0 | AE94: 0 | AF94: 0 | AG94: 0
A95: 69 | C95: > LV Sub Generation NHH | J95: 0 | K95: 0 | L95: 0 | M95: 0 | N95: 0 | O95: 0 | P95: 0 | Q95: 0 | R95: 0 | S95: 0 | T95: 0 | U95: 0 | V95: 0 | W95: 0 | X95: 0 | Y95: 0 | Z95: 0 | AA95: 0 | AB95: 0 | AC95: 0 | AD95: 0 | AE95: 0 | AF95: 0 | AG95: 0
A96: 70 | B96: 4 | C96: LV Sub Generation NHH | J96: 0 | K96: 0 | L96: 0 | M96: 0 | N96: 0 | O96: 0 | P96: 0 | Q96: 0 | R96: 0 | S96: 0 | T96: 0 | U96: 0 | V96: 0 | W96: 0 | X96: 0 | Y96: 0 | Z96: 0 | AA96: 0 | AB96: 0 | AC96: 0 | AD96: 0 | AE96: 0 | AF96: 0 | AG96: 0
A97: 71 | B97: 4 | C97: LDNO HV: LV Sub Generation NHH | J97: 0 | K97: 0 | L97: 0 | M97: 0 | N97: 0 | O97: 0 | P97: 0 | Q97: 0 | R97: 0 | S97: 0 | T97: 0 | U97: 0 | V97: 0 | W97: 0 | X97: 0 | Y97: 0 | Z97: 0 | AA97: 0 | AB97: 0 | AC97: 0 | AD97: 0 | AE97: 0 | AF97: 0 | AG97: 0
A98: 72 | C98: > LV Generation Intermittent | J98: 0 | K98: 0 | L98: 0 | M98: 0 | N98: 0 | O98: 0 | P98: 0 | Q98: 0 | R98: 0 | S98: 0 | T98: 0 | U98: 0 | V98: 0 | W98: 0 | X98: 0 | Y98: 0 | Z98: 0 | AA98: 0 | AB98: 0 | AC98: 0 | AD98: 0 | AE98: 0 | AF98: 0 | AG98: 0
A99: 73 | B99: 4 | C99: LV Generation Intermittent | D99: 11117.548 | I99: 166.0368 | J99: 11006.37252 | K99: 0 | L99: 0 | M99: 0 | N99: 0 | O99: 166.0368 | P99: 10896.30879 | Q99: 0 | R99: 0 | S99: 0 | T99: 0 | U99: 166.0368 | V99: 10787.34571 | W99: 0 | X99: 0 | Y99: 0 | Z99: 0 | AA99: 166.0368 | AB99: 10679.47225 | AC99: 0 | AD99: 0 | AE99: 0 | AF99: 0 | AG99: 166.0368
A100: 74 | B100: 4 | C100: LDNO LV: LV Generation Intermittent | J100: 0 | K100: 0 | L100: 0 | M100: 0 | N100: 0 | O100: 0 | P100: 0 | Q100: 0 | R100: 0 | S100: 0 | T100: 0 | U100: 0 | V100: 0 | W100: 0 | X100: 0 | Y100: 0 | Z100: 0 | AA100: 0 | AB100: 0 | AC100: 0 | AD100: 0 | AE100: 0 | AF100: 0 | AG100: 0
A101: 75 | B101: 4 | C101: LDNO HV: LV Generation Intermittent | J101: 0 | K101: 0 | L101: 0 | M101: 0 | N101: 0 | O101: 0 | P101: 0 | Q101: 0 | R101: 0 | S101: 0 | T101: 0 | U101: 0 | V101: 0 | W101: 0 | X101: 0 | Y101: 0 | Z101: 0 | AA101: 0 | AB101: 0 | AC101: 0 | AD101: 0 | AE101: 0 | AF101: 0 | AG101: 0
A102: 76 | C102: > LV Generation Non-Intermittent | J102: 0 | K102: 0 | L102: 0 | M102: 0 | N102: 0 | O102: 0 | P102: 0 | Q102: 0 | R102: 0 | S102: 0 | T102: 0 | U102: 0 | V102: 0 | W102: 0 | X102: 0 | Y102: 0 | Z102: 0 | AA102: 0 | AB102: 0 | AC102: 0 | AD102: 0 | AE102: 0 | AF102: 0 | AG102: 0
A103: 77 | B103: 4 | C103: LV Generation Non-Intermittent | D103: 39.762 | E103: 76.812 | F103: 149.6622857 | I103: 20.6582 | J103: 39.36438 | K103: 76.04388 | L103: 148.1656629 | M103: 0 | N103: 0 | O103: 20.6582 | P103: 38.9707362 | Q103: 75.2834412 | R103: 146.6840062 | S103: 0 | T103: 0 | U103: 20.6582 | V103: 38.58102884 | W103: 74.53060679 | X103: 145.2171662 | Y103: 0 | Z103: 0 | AA103: 20.6582 | AB103: 38.19521855 | AC103: 73.78530072 | AD103: 143.7649945 | AE103: 0 | AF103: 0 | AG103: 20.6582
A104: 78 | B104: 4 | C104: LDNO LV: LV Generation Non-Intermittent | J104: 0 | K104: 0 | L104: 0 | M104: 0 | N104: 0 | O104: 0 | P104: 0 | Q104: 0 | R104: 0 | S104: 0 | T104: 0 | U104: 0 | V104: 0 | W104: 0 | X104: 0 | Y104: 0 | Z104: 0 | AA104: 0 | AB104: 0 | AC104: 0 | AD104: 0 | AE104: 0 | AF104: 0 | AG104: 0
A105: 79 | B105: 4 | C105: LDNO HV: LV Generation Non-Intermittent | J105: 0 | K105: 0 | L105: 0 | M105: 0 | N105: 0 | O105: 0 | P105: 0 | Q105: 0 | R105: 0 | S105: 0 | T105: 0 | U105: 0 | V105: 0 | W105: 0 | X105: 0 | Y105: 0 | Z105: 0 | AA105: 0 | AB105: 0 | AC105: 0 | AD105: 0 | AE105: 0 | AF105: 0 | AG105: 0
A106: 80 | C106: > LV Sub Generation Intermittent | J106: 0 | K106: 0 | L106: 0 | M106: 0 | N106: 0 | O106: 0 | P106: 0 | Q106: 0 | R106: 0 | S106: 0 | T106: 0 | U106: 0 | V106: 0 | W106: 0 | X106: 0 | Y106: 0 | Z106: 0 | AA106: 0 | AB106: 0 | AC106: 0 | AD106: 0 | AE106: 0 | AF106: 0 | AG106: 0
A107: 81 | B107: 4 | C107: LV Sub Generation Intermittent | D107: 467.837 | I107: 29.2974 | J107: 463.15863 | K107: 0 | L107: 0 | M107: 0 | N107: 0 | O107: 29.2974 | P107: 458.5270437 | Q107: 0 | R107: 0 | S107: 0 | T107: 0 | U107: 29.2974 | V107: 453.9417733 | W107: 0 | X107: 0 | Y107: 0 | Z107: 0 | AA107: 29.2974 | AB107: 449.4023555 | AC107: 0 | AD107: 0 | AE107: 0 | AF107: 0 | AG107: 29.2974
A108: 82 | B108: 4 | C108: LDNO HV: LV Sub Generation Intermittent | J108: 0 | K108: 0 | L108: 0 | M108: 0 | N108: 0 | O108: 0 | P108: 0 | Q108: 0 | R108: 0 | S108: 0 | T108: 0 | U108: 0 | V108: 0 | W108: 0 | X108: 0 | Y108: 0 | Z108: 0 | AA108: 0 | AB108: 0 | AC108: 0 | AD108: 0 | AE108: 0 | AF108: 0 | AG108: 0
A109: 83 | C109: > LV Sub Generation Non-Intermittent | J109: 0 | K109: 0 | L109: 0 | M109: 0 | N109: 0 | O109: 0 | P109: 0 | Q109: 0 | R109: 0 | S109: 0 | T109: 0 | U109: 0 | V109: 0 | W109: 0 | X109: 0 | Y109: 0 | Z109: 0 | AA109: 0 | AB109: 0 | AC109: 0 | AD109: 0 | AE109: 0 | AF109: 0 | AG109: 0
A110: 84 | B110: 4 | C110: LV Sub Generation Non-Intermittent | D110: 79.752 | E110: 360.129 | F110: 792.6185455 | I110: 158.12 | J110: 78.95448 | K110: 356.52771 | L110: 784.69236 | M110: 0 | N110: 0 | O110: 158.12 | P110: 78.1649352 | Q110: 352.9624329 | R110: 776.8454364 | S110: 0 | T110: 0 | U110: 158.12 | V110: 77.38328585 | W110: 349.4328086 | X110: 769.076982 | Y110: 0 | Z110: 0 | AA110: 158.12 | AB110: 76.60945299 | AC110: 345.9384805 | AD110: 761.3862122 | AE110: 0 | AF110: 0 | AG110: 158.12
A111: 85 | B111: 4 | C111: LDNO HV: LV Sub Generation Non-Intermittent | J111: 0 | K111: 0 | L111: 0 | M111: 0 | N111: 0 | O111: 0 | P111: 0 | Q111: 0 | R111: 0 | S111: 0 | T111: 0 | U111: 0 | V111: 0 | W111: 0 | X111: 0 | Y111: 0 | Z111: 0 | AA111: 0 | AB111: 0 | AC111: 0 | AD111: 0 | AE111: 0 | AF111: 0 | AG111: 0
A112: 86 | C112: > HV Generation Intermittent | J112: 0 | K112: 0 | L112: 0 | M112: 0 | N112: 0 | O112: 0 | P112: 0 | Q112: 0 | R112: 0 | S112: 0 | T112: 0 | U112: 0 | V112: 0 | W112: 0 | X112: 0 | Y112: 0 | Z112: 0 | AA112: 0 | AB112: 0 | AC112: 0 | AD112: 0 | AE112: 0 | AF112: 0 | AG112: 0
A113: 87 | B113: 4 | C113: HV Generation Intermittent | D113: 34469.501 | G113: 31 | I113: 1094.707 | J113: 34124.80599 | K113: 0 | L113: 0 | M113: 31.31 | N113: 0 | O113: 1094.707 | P113: 33783.55793 | Q113: 0 | R113: 0 | S113: 31.6231 | T113: 0 | U113: 1094.707 | V113: 33445.72235 | W113: 0 | X113: 0 | Y113: 31.939331 | Z113: 0 | AA113: 1094.707 | AB113: 33111.26513 | AC113: 0 | AD113: 0 | AE113: 32.25872431 | AF113: 0 | AG113: 1094.707
A114: 88 | B114: 4 | C114: LDNO HV: HV Generation Intermittent | J114: 0 | K114: 0 | L114: 0 | M114: 0 | N114: 0 | O114: 0 | P114: 0 | Q114: 0 | R114: 0 | S114: 0 | T114: 0 | U114: 0 | V114: 0 | W114: 0 | X114: 0 | Y114: 0 | Z114: 0 | AA114: 0 | AB114: 0 | AC114: 0 | AD114: 0 | AE114: 0 | AF114: 0 | AG114: 0
A115: 89 | C115: > HV Generation Non-Intermittent | J115: 0 | K115: 0 | L115: 0 | M115: 0 | N115: 0 | O115: 0 | P115: 0 | Q115: 0 | R115: 0 | S115: 0 | T115: 0 | U115: 0 | V115: 0 | W115: 0 | X115: 0 | Y115: 0 | Z115: 0 | AA115: 0 | AB115: 0 | AC115: 0 | AD115: 0 | AE115: 0 | AF115: 0 | AG115: 0
A116: 90 | B116: 4 | C116: HV Generation Non-Intermittent | D116: 11026.647 | E116: 69084.033 | F116: 98552.637 | G116: 47 | I116: 713.1782 | J116: 10916.38053 | K116: 68393.19267 | L116: 97567.11063 | M116: 47.47 | N116: 0 | O116: 713.1782 | P116: 10807.21672 | Q116: 67709.26074 | R116: 96591.43952 | S116: 47.9447 | T116: 0 | U116: 713.1782 | V116: 10699.14456 | W116: 67032.16814 | X116: 95625.52513 | Y116: 48.424147 | Z116: 0 | AA116: 713.1782 | AB116: 10592.15311 | AC116: 66361.84645 | AD116: 94669.26988 | AE116: 48.90838847 | AF116: 0 | AG116: 713.1782
A117: 91 | B117: 4 | C117: LDNO HV: HV Generation Non-Intermittent | J117: 0 | K117: 0 | L117: 0 | M117: 0 | N117: 0 | O117: 0 | P117: 0 | Q117: 0 | R117: 0 | S117: 0 | T117: 0 | U117: 0 | V117: 0 | W117: 0 | X117: 0 | Y117: 0 | Z117: 0 | AA117: 0 | AB117: 0 | AC117: 0 | AD117: 0 | AE117: 0 | AF117: 0 | AG117: 0
A118: 92 | C118: > HV Sub Generation Non-Intermittent | J118: 0 | K118: 0 | L118: 0 | M118: 0 | N118: 0 | O118: 0 | P118: 0 | Q118: 0 | R118: 0 | S118: 0 | T118: 0 | U118: 0 | V118: 0 | W118: 0 | X118: 0 | Y118: 0 | Z118: 0 | AA118: 0 | AB118: 0 | AC118: 0 | AD118: 0 | AE118: 0 | AF118: 0 | AG118: 0
A119: 93 | B119: 4 | C119: HV Sub Generation Non-Intermittent | G119: 2 | J119: 0 | K119: 0 | L119: 0 | M119: 2.02 | N119: 0 | O119: 0 | P119: 0 | Q119: 0 | R119: 0 | S119: 2.0402 | T119: 0 | U119: 0 | V119: 0 | W119: 0 | X119: 0 | Y119: 2.060602 | Z119: 0 | AA119: 0 | AB119: 0 | AC119: 0 | AD119: 0 | AE119: 2.08120802 | AF119: 0 | AG119: 0
A120: 94 | C120: > HV Sub Generation Intermittent | J120: 0 | K120: 0 | L120: 0 | M120: 0 | N120: 0 | O120: 0 | P120: 0 | Q120: 0 | R120: 0 | S120: 0 | T120: 0 | U120: 0 | V120: 0 | W120: 0 | X120: 0 | Y120: 0 | Z120: 0 | AA120: 0 | AB120: 0 | AC120: 0 | AD120: 0 | AE120: 0 | AF120: 0 | AG120: 0
A121: 95 | B121: 4 | C121: HV Sub Generation Intermittent | D121: 0 | G121: 2 | J121: 0 | K121: 0 | L121: 0 | M121: 2.02 | N121: 0 | O121: 0 | P121: 0 | Q121: 0 | R121: 0 | S121: 2.0402 | T121: 0 | U121: 0 | V121: 0 | W121: 0 | X121: 0 | Y121: 2.060602 | Z121: 0 | AA121: 0 | AB121: 0 | AC121: 0 | AD121: 0 | AE121: 2.08120802 | AF121: 0 | AG121: 0

Sheet CDCM Timebands
B2: CDCM Timebands
C4: 2013/14
C5: WD (incl. bank holidays) | D5: WE | E5: 2014/15 | F5: 2015/16 | G5: 2016/17 | H5: 2017/18
B6: Red | C6: 17:00 to 19:00 | E6: No change from 2012/13 | F6: No change from 2012/13 | G6: No change from 2012/13 | H6: No change from 2012/13
B8: Amber | C8: 07:30 to 17:00 | D8: 16:30 to 19:30
C9: 19:00 to 21:30
B11: Green | C11: 00:00 to 07:30 | D11: 00:00 to 16:30
C12: 21:30 to 24:00 | D12: 19:30 to 24:00
C14: 2013/14
C15: WD (incl. bank holidays) Nov to Feb (excluding 22nd Dec to 4th Jan inclusive) | D15: WD (incl. bank holidays) Mar to Oct (plus 22nd Dec to 4th Jan inclusive) | E15: WE | F15: 2014/15 | G15: 2015/16 | H15: 2016/17 | I15: 2017/18
B16: Red | C16: 17:00 to 19:00 | F16: No change from 2012/13 | G16: No change from 2012/13 | H16: No change from 2012/13 | I16: No change from 2012/13
B18: Amber | C18: 07:30 to 17:00 | D18: 07:30 to 21:30 | E18: 16:30 to 19:30
C19: 19:00 to 21:30
B21: Green | C21: 00:00 to 07:30 | D21: 00:00 to 07:30 | E21: 00:00 to 16:30
C22: 21:30 to 24:00 | D22: 21:30 to 24:00 | E22: 19:30 to 24:00

Sheet Vlookup (hidden)
A1: CDCM model 100: Input data | C1: =B8 -> 2 | E1: =C8 -> 3 | G1: =D8 -> 4
A2: This sheet contains all the input data (except LLFCs which can be entered directly into the Tariff sheet).
A5: 1000. Company, charging year, data version
B7: Company | C7: Year | D7: Version
A8: Company, charging year, data version | B8: 2 | C8: 3 | D8: 4
A10: 1010. Financial and general assumptions
A12: Sources: financial assumptions; calendar; network model.
A13: These financial assumptions determine the annuity rate applied to convert the asset values of the network model into an annual charge.
B14: Rate of return | C14: Annualisation period (years) | D14: Annuity proportion for customer-contributed assets | E14: Power factor | F14: Days in the charging period
A15: Financial and general assumptions | B15: 6 | C15: 7 | E15: 8 | F15: 9
A17: 1017. Diversity allowance between top and bottom of network level
A19: Source: operational data analysis and/or network model.
A20: The diversity figure against GSP is the diversity between GSP Group (the whole system) and individual GSPs.
A21: The diversity figure against 132kV is the diversity between GSPs (the top of the 132kV network) and 132kV/EHV bulk supply points (the bottom of the 132kV network).
A22: The diversity figure against EHV is the diversity between 132kV/EHV bulk supply points (the top of the EHV network) and EHV/HV primary substations (the bottom of the EHV network).
A23: The diversity figure against HV is the diversity between EHV/HV primary substations (the top of the HV network) and HV/LV substations (the bottom of the HV network).
B24: Diversity allowance between top and bottom of network level
A25: GSPs | B25: 11
A26: 132kV | B26: 12
A27: 132kV/EHV
A28: EHV | B28: 13
A29: EHV/HV
A30: HV | B30: 14
A31: HV/LV
A32: LV circuits
A34: 1018. Proportion of relevant load going through 132kV/HV direct transformation
B36: 132kV/HV
A37: EHV/HV | B37: 15
A39: 1019. Network model GSP peak demand (MW)
B41: Network model GSP peak demand (MW)
A42: Network model GSP peak demand (MW) | B42: 16
A44: 1020. Gross asset cost by network level (£)
B46: Gross assets £
A47: 132kV | B47: 18
A48: 132kV/EHV | B48: 19
A49: EHV | B49: 20
A50: EHV/HV | B50: 21
A51: 132kV/HV | B51: 22
A52: HV | B52: 23
A53: HV/LV | B53: 24
A54: LV circuits | B54: 25
A56: 1022. LV service model asset cost (£)
B58: LV service model 1 | C58: LV service model 2 | D58: LV service model 3 | E58: LV service model 4 | F58: LV service model 5 | G58: LV service model 6 | H58: LV service model 7 | I58: LV service model 8
A59: LV service model asset cost (£) | B59: 27 | C59: 28 | D59: 29 | E59: 30 | F59: 31 | G59: 32 | H59: 33 | I59: 34
A61: 1023. HV service model asset cost (£)
B63: HV service model 1 | C63: HV service model 2 | D63: HV service model 3 | E63: HV service model 4 | F63: HV service model 5
A64: HV service model asset cost (£) | B64: 36 | C64: 37 | D64: 38 | E64: 39 | F64: 40
A66: 1025. Matrix of applicability of LV service models to tariffs with fixed charges
B68: LV service model 1 | C68: LV service model 2 | D68: LV service model 3 | E68: LV service model 4 | F68: LV service model 5 | G68: LV service model 6 | H68: LV service model 7 | I68: LV service model 8
A69: Domestic Unrestricted | B69: 0.05 | C69: 0 | D69: 0 | E69: 0 | H69: 0 | I69: 0
A70: Domestic Two Rate | B70: 0.05 | C70: 0 | D70: 0 | E70: 0 | H70: 0 | I70: 0
A71: Small Non Domestic Unrestricted | B71: 0 | C71: 1 | D71: 0 | E71: 0 | H71: 0 | I71: 0
A72: Small Non Domestic Two Rate | B72: 0 | C72: 1 | D72: 0 | E72: 0 | H72: 0 | I72: 0
A73: LV Medium Non-Domestic | B73: 0.1 | C73: 0.9 | E73: 0 | H73: 0 | I73: 0
A74: LV Sub Medium Non-Domestic | B74: 0 | E74: 1 | H74: 0 | I74: 0
A75: LV HH Metered | B75: 0 | D75: 1 | E75: 0 | H75: 0 | I75: 0
A76: LV Sub HH Metered | B76: 0 | E76: 1 | H76: 0 | I76: 0
A77: LV Generation NHH | B77: 0 | C77: 0 | D77: 0 | H77: 0 | I77: 0
A78: LV Sub Generation NHH | B78: 0 | C78: 0 | D78: 0 | H78: 0 | I78: 0
A79: LV Generation Intermittent | B79: 0 | C79: 0 | D79: 0 | H79: 0 | I79: 0
A80: LV Generation Non-Intermittent
A81: LV Sub Generation Intermittent
A82: LV Sub Generation Non-Intermittent | B82: 0 | C82: 0 | D82: 0 | E82: 0 | F82: 0 | G82: 0 | H82: 0 | I82: 0
A84: 1026. Matrix of applicability of LV service models to unmetered tariffs
A86: Source: service models
A87: Proportion of service model involved in connecting load of 1 MWh/year
B88: LV service model 1 | C88: LV service model 2 | D88: LV service model 3 | E88: LV service model 4 | F88: LV service model 5 | G88: LV service model 6 | H88: LV service model 7 | I88: LV service model 8
A89: All LV unmetered tariffs | B89: 0 | C89: 0 | D89: 0 | E89: 0 | F89: 3.914 | G89: 0 | H89: 0 | I89: 0
A91: 1028. Matrix of applicability of HV service models to tariffs with fixed charges
B93: HV service model 1 | C93: HV service model 2 | D93: HV service model 3 | E93: HV service model 4 | F93: HV service model 5
A94: HV Medium Non-Domestic | C94: 1 | D94: 0 | E94: 0 | F94: 0
A95: HV HH Metered | C95: 1 | D95: 0 | E95: 0 | F95: 0
A96: HV Sub HH Metered | B96: 1 | D96: 0 | E96: 0 | F96: 0
A97: HV Generation Intermittent | B97: 0 | C97: 0 | D97: 1 | E97: 0 | F97: 0
A98: HV Generation Non-Intermittent | B98: 0 | C98: 0 | D98: 1 | E98: 0 | F98: 0
A99: HV Sub Generation Non-Intermittent | D99: 1
A100: HV Sub Generation Intermittent | D100: 1
A102: 1032. Loss adjustment factors to transmission
A104: Source: losses model or loss adjustment factors at time of system peak.
B105: 132kV | C105: 132kV/EHV | D105: EHV | E105: EHV/HV | F105: HV | G105: HV/LV | H105: LV circuits
A106: Loss adjustment factor | B106: 45 | C106: 46 | D106: 47 | E106: 48 | F106: 49 | G106: 50 | H106: 51
A108: 1037. Embedded network (LDNO) discounts
A110: Source: separate price control disaggregation model.
B111: No discount | C111: LDNO LV: LV user | D111: LDNO HV: LV user | E111: LDNO HV: LV sub user | F111: LDNO HV: HV user
A112: LDNO discount | C112: 53 | D112: 54 | E112: 55 | F112: 56
A114: 1041. Load profile data for demand users
A116: Source: load data analysis.
B117: Coincidence factor | C117: Load factor
A118: Domestic Unrestricted | B118: ='CDCM Forecast Data'!B71 -> 58 | C118: ='CDCM Forecast Data'!B90 -> 77
A119: Domestic Two Rate | B119: ='CDCM Forecast Data'!B72 -> 59 | C119: ='CDCM Forecast Data'!B91 -> 78
A120: Domestic Off Peak (related MPAN) | B120: ='CDCM Forecast Data'!B73 -> 60 | C120: ='CDCM Forecast Data'!B92 -> 79
A121: Small Non Domestic Unrestricted | B121: ='CDCM Forecast Data'!B74 -> 61 | C121: ='CDCM Forecast Data'!B93 -> 80
A122: Small Non Domestic Two Rate | B122: ='CDCM Forecast Data'!B75 -> 62 | C122: ='CDCM Forecast Data'!B94 -> 81
A123: Small Non Domestic Off Peak (related MPAN) | B123: ='CDCM Forecast Data'!B76 -> 63 | C123: ='CDCM Forecast Data'!B95 -> 82
A124: LV Medium Non-Domestic | B124: ='CDCM Forecast Data'!B77 -> 64 | C124: ='CDCM Forecast Data'!B96 -> 83
A125: LV Sub Medium Non-Domestic | B125: ='CDCM Forecast Data'!B78 -> 65 | C125: ='CDCM Forecast Data'!B97 -> 84
A126: HV Medium Non-Domestic | B126: ='CDCM Forecast Data'!B79 -> 66 | C126: ='CDCM Forecast Data'!B98 -> 85
A127: LV HH Metered | B127: ='CDCM Forecast Data'!B80 -> 67 | C127: ='CDCM Forecast Data'!B99 -> 86
A128: LV Sub HH Metered | B128: ='CDCM Forecast Data'!B81 -> 68 | C128: ='CDCM Forecast Data'!B100 -> 87
A129: HV HH Metered | B129: ='CDCM Forecast Data'!B82 -> 69 | C129: ='CDCM Forecast Data'!B101 -> 88
A130: HV Sub HH Metered | B130: ='CDCM Forecast Data'!B83 -> 70 | C130: ='CDCM Forecast Data'!B102 -> 89
A131: NHH UMS category A | B131: ='CDCM Forecast Data'!B84 -> 71 | C131: ='CDCM Forecast Data'!B103 -> 90
A132: NHH UMS category B | B132: ='CDCM Forecast Data'!B85 -> 72 | C132: ='CDCM Forecast Data'!B104 -> 91
A133: NHH UMS category C | B133: ='CDCM Forecast Data'!B86 -> 73 | C133: ='CDCM Forecast Data'!B105 -> 92
A134: NHH UMS category D | B134: ='CDCM Forecast Data'!B87 -> 74 | C134: ='CDCM Forecast Data'!B106 -> 93
A135: LV UMS (Pseudo HH Metered) | B135: ='CDCM Forecast Data'!B88 -> 75 | C135: ='CDCM Forecast Data'!B107 -> 94
A137: 1053. Volume forecasts for the charging year
A139: Source: forecast.
A140: Please include MPAN counts for tariffs with no fixed charge (e.g. off-peak tariffs),
A141: but exclude MPANs on tariffs with a fixed charge that are not subject to a fixed charge due to a site grouping arrangement.
B142: Rate 1 units (MWh) | C142: Rate 2 units (MWh) | D142: Rate 3 units (MWh) | E142: MPANs | F142: Import capacity (kVA) | G142: Reactive power units (MVArh)
A143: > Domestic Unrestricted
A144: Domestic Unrestricted | B144: 2 | E144: 2
A145: LDNO LV: Domestic Unrestricted | B145: 3 | E145: 3
A146: LDNO HV: Domestic Unrestricted | B146: 4 | E146: 4
A147: > Domestic Two Rate
A148: Domestic Two Rate | B148: 6 | C148: 6 | E148: 6
A149: LDNO LV: Domestic Two Rate | B149: 7 | C149: 7 | E149: 7
A150: LDNO HV: Domestic Two Rate | B150: 8 | C150: 8 | E150: 8
A151: > Domestic Off Peak (related MPAN)
A152: Domestic Off Peak (related MPAN) | B152: 10 | E152: 10
A153: LDNO LV: Domestic Off Peak (related MPAN) | B153: 11 | E153: 11
A154: LDNO HV: Domestic Off Peak (related MPAN) | B154: 12 | E154: 12
A155: > Small Non Domestic Unrestricted
A156: Small Non Domestic Unrestricted | B156: 14 | E156: 14
A157: LDNO LV: Small Non Domestic Unrestricted | B157: 15 | E157: 15
A158: LDNO HV: Small Non Domestic Unrestricted | B158: 16 | E158: 16
A159: > Small Non Domestic Two Rate
A160: Small Non Domestic Two Rate | B160: 18 | C160: 18 | E160: 18
A161: LDNO LV: Small Non Domestic Two Rate | B161: 19 | C161: 19 | E161: 19
A162: LDNO HV: Small Non Domestic Two Rate | B162: 20 | C162: 20 | E162: 20
A163: > Small Non Domestic Off Peak (related MPAN)
A164: Small Non Domestic Off Peak (related MPAN) | B164: 22 | E164: 22
A165: LDNO LV: Small Non Domestic Off Peak (related MPAN) | B165: 23 | E165: 23
A166: LDNO HV: Small Non Domestic Off Peak (related MPAN) | B166: 24 | E166: 24
A167: > LV Medium Non-Domestic
A168: LV Medium Non-Domestic | B168: 26 | C168: 26 | E168: 26
A169: LDNO LV: LV Medium Non-Domestic | B169: 27 | C169: 27 | E169: 27
A170: LDNO HV: LV Medium Non-Domestic | B170: 28 | C170: 28 | E170: 28
A171: > LV Sub Medium Non-Domestic
A172: LV Sub Medium Non-Domestic | B172: 30 | C172: 30 | E172: 30
A173: > HV Medium Non-Domestic
A174: HV Medium Non-Domestic | B174: 32 | C174: 32 | E174: 32
A175: > LV HH Metered
A176: LV HH Metered | B176: 34 | C176: 34 | D176: 34 | E176: 34 | F176: 34 | G176: 34
A177: LDNO LV: LV HH Metered | B177: 35 | C177: 35 | D177: 35 | E177: 35 | F177: 35 | G177: 35
A178: LDNO HV: LV HH Metered | B178: 36 | C178: 36 | D178: 36 | E178: 36 | F178: 36 | G178: 36
A179: > LV Sub HH Metered
A180: LV Sub HH Metered | B180: 38 | C180: 38 | D180: 38 | E180: 38 | F180: 38 | G180: 38
A181: LDNO HV: LV Sub HH Metered | B181: 39 | C181: 39 | D181: 39 | E181: 39 | F181: 39 | G181: 39
A182: > HV HH Metered
A183: HV HH Metered | B183: 41 | C183: 41 | D183: 41 | E183: 41 | F183: 41 | G183: 41
A184: LDNO HV: HV HH Metered | B184: 42 | C184: 42 | D184: 42 | E184: 42 | F184: 42 | G184: 42
A185: > HV Sub HH Metered
A186: HV Sub HH Metered | B186: 44 | C186: 44 | D186: 44 | E186: 44 | F186: 44 | G186: 44
A187: > NHH UMS category A
A188: NHH UMS category A | B188: 46 | E188: 46
A189: LDNO LV: NHH UMS category A | B189: 47 | E189: 47
A190: LDNO HV: NHH UMS category A | B190: 48 | E190: 48
A191: > NHH UMS category B
A192: NHH UMS category B | B192: 50 | E192: 50
A193: LDNO LV: NHH UMS category B | B193: 51 | E193: 51
A194: LDNO HV: NHH UMS category B | B194: 52 | E194: 52
A195: > NHH UMS category C
A196: NHH UMS category C | B196: 54 | E196: 54
A197: LDNO LV: NHH UMS category C | B197: 55 | E197: 55
A198: LDNO HV: NHH UMS category C | B198: 56 | E198: 56
A199: > NHH UMS category D
A200: NHH UMS category D | B200: 58 | E200: 58
A201: LDNO LV: NHH UMS category D | B201: 59 | E201: 59
A202: LDNO HV: NHH UMS category D | B202: 60 | E202: 60
A203: > LV UMS (Pseudo HH Metered)
A204: LV UMS (Pseudo HH Metered) | B204: 62 | C204: 62 | D204: 62 | E204: 62
A205: LDNO LV: LV UMS (Pseudo HH Metered) | B205: 63 | C205: 63 | D205: 63 | E205: 63
A206: LDNO HV: LV UMS (Pseudo HH Metered) | B206: 64 | C206: 64 | D206: 64 | E206: 64
A207: > LV Generation NHH
A208: LV Generation NHH | B208: 66 | E208: 66
A209: LDNO LV: LV Generation NHH | B209: 67 | E209: 67
A210: LDNO HV: LV Generation NHH | B210: 68 | E210: 68
A211: > LV Sub Generation NHH
A212: LV Sub Generation NHH | B212: 70 | E212: 70
A213: LDNO HV: LV Sub Generation NHH | B213: 71 | E213: 71
A214: > LV Generation Intermittent
A215: LV Generation Intermittent | B215: 73 | E215: 73 | G215: 73
A216: LDNO LV: LV Generation Intermittent | B216: 74 | E216: 74 | G216: 74
A217: LDNO HV: LV Generation Intermittent | B217: 75 | E217: 75 | G217: 75
A218: > LV Generation Non-Intermittent
A219: LV Generation Non-Intermittent | B219: 77 | C219: 77 | D219: 77 | E219: 77 | G219: 77
A220: LDNO LV: LV Generation Non-Intermittent | B220: 78 | C220: 78 | D220: 78 | E220: 78 | G220: 78
A221: LDNO HV: LV Generation Non-Intermittent | B221: 79 | C221: 79 | D221: 79 | E221: 79 | G221: 79
A222: > LV Sub Generation Intermittent
A223: LV Sub Generation Intermittent | B223: 81 | E223: 81 | G223: 81
A224: LDNO HV: LV Sub Generation Intermittent | B224: 82 | E224: 82 | G224: 82
A225: > LV Sub Generation Non-Intermittent
A226: LV Sub Generation Non-Intermittent | B226: 84 | C226: 84 | D226: 84 | E226: 84 | G226: 84
A227: LDNO HV: LV Sub Generation Non-Intermittent | B227: 85 | C227: 85 | D227: 85 | E227: 85 | G227: 85
A228: > HV Generation Intermittent
A229: HV Generation Intermittent | B229: 87 | E229: 87 | G229: 87
A230: LDNO HV: HV Generation Intermittent | B230: 88 | E230: 88 | G230: 88
A231: > HV Generation Non-Intermittent
... 103 more rows

Sheet (Y)
A5: 1000. Company, charging year, data version
B7: Company | C7: Year | D7: Version
A8: Company, charging year, data version | B8: =VLOOKUP(Vlookup!B8,Forcast_Data,5,FALSE) -> WPD South West | C8: =VLOOKUP(Vlookup!C8,Forcast_Data,5,FALSE) -> April 2013 | D8: =VLOOKUP(Vlookup!D8,Forcast_Data,5,FALSE) -> 0
A10: 1010. Financial and general assumptions
A12: Sources: financial assumptions; calendar; network model.
A13: These financial assumptions determine the annuity rate applied to convert the asset values of the network model into an annual charge.
B14: Rate of return | C14: Annualisation period (years) | D14: Annuity proportion for customer-contributed assets | E14: Power factor | F14: Days in the charging period
A15: Financial and general assumptions | B15: =VLOOKUP(Vlookup!B15,Forcast_Data,5,FALSE) -> 0.056 | C15: =VLOOKUP(Vlookup!C15,Forcast_Data,5,FALSE) -> 40 | E15: =VLOOKUP(Vlookup!E15,Forcast_Data,5,FALSE) -> 0.95 | F15: =VLOOKUP(Vlookup!F15,Forcast_Data,5,FALSE) -> 365
A17: 1017. Diversity allowance between top and bottom of network level
A19: Source: operational data analysis and/or network model.
A20: The diversity figure against GSP is the diversity between GSP Group (the whole system) and individual GSPs.
A21: The diversity figure against 132kV is the diversity between GSPs (the top of the 132kV network) and 132kV/EHV bulk supply points (the bottom of the 132kV network).
A22: The diversity figure against EHV is the diversity between 132kV/EHV bulk supply points (the top of the EHV network) and EHV/HV primary substations (the bottom of the EHV network).
A23: The diversity figure against HV is the diversity between EHV/HV primary substations (the top of the HV network) and HV/LV substations (the bottom of the HV network).
B24: Diversity allowance between top and bottom of network level
A25: GSPs | B25: =VLOOKUP(Vlookup!B25,Forcast_Data,5,FALSE) -> 0.022
A26: 132kV | B26: =VLOOKUP(Vlookup!B26,Forcast_Data,5,FALSE) -> 0.031
A27: 132kV/EHV
A28: EHV | B28: =VLOOKUP(Vlookup!B28,Forcast_Data,5,FALSE) -> 0.075
A29: EHV/HV
A30: HV | B30: =VLOOKUP(Vlookup!B30,Forcast_Data,5,FALSE) -> 0.37
A31: HV/LV
A32: LV circuits
A34: 1018. Proportion of relevant load going through 132kV/HV direct transformation
B36: 132kV/HV
A37: EHV/HV | B37: =VLOOKUP(Vlookup!B37,Forcast_Data,5,FALSE) -> 0
A39: 1019. Network model GSP peak demand (MW)
B41: Network model GSP peak demand (MW)
A42: Network model GSP peak demand (MW) | B42: =VLOOKUP(Vlookup!B42,Forcast_Data,5,FALSE) -> 500
A44: 1020. Gross asset cost by network level (£)
B46: Gross assets £
A47: 132kV | B47: =VLOOKUP(Vlookup!B47,Forcast_Data,5,FALSE) -> 103585529.4
A48: 132kV/EHV | B48: =VLOOKUP(Vlookup!B48,Forcast_Data,5,FALSE) -> 15428415.49
A49: EHV | B49: =VLOOKUP(Vlookup!B49,Forcast_Data,5,FALSE) -> 45522370.03
A50: EHV/HV | B50: =VLOOKUP(Vlookup!B50,Forcast_Data,5,FALSE) -> 36390100.11
A51: 132kV/HV | B51: =VLOOKUP(Vlookup!B51,Forcast_Data,5,FALSE) -> 0
A52: HV | B52: =VLOOKUP(Vlookup!B52,Forcast_Data,5,FALSE) -> 152121207.2
A53: HV/LV | B53: =VLOOKUP(Vlookup!B53,Forcast_Data,5,FALSE) -> 59367391.63
A54: LV circuits | B54: =VLOOKUP(Vlookup!B54,Forcast_Data,5,FALSE) -> 132391580.6
A56: 1022. LV service model asset cost (£)
B58: LV service model 1 | C58: LV service model 2 | D58: LV service model 3 | E58: LV service model 4 | F58: LV service model 5 | G58: LV service model 6 | H58: LV service model 7 | I58: LV service model 8
A59: LV service model asset cost (£) | B59: =VLOOKUP(Vlookup!B59,Forcast_Data,5,FALSE) -> 4553.43 | C59: =VLOOKUP(Vlookup!C59,Forcast_Data,5,FALSE) -> 543.4733333 | D59: =VLOOKUP(Vlookup!D59,Forcast_Data,5,FALSE) -> 618.9708333 | E59: =VLOOKUP(Vlookup!E59,Forcast_Data,5,FALSE) -> 471.8933333 | F59: =VLOOKUP(Vlookup!F59,Forcast_Data,5,FALSE) -> 1214.751333 | G59: =VLOOKUP(Vlookup!G59,Forcast_Data,5,FALSE) -> 877.825 | H59: =VLOOKUP(Vlookup!H59,Forcast_Data,5,FALSE) -> 0 | I59: =VLOOKUP(Vlookup!I59,Forcast_Data,5,FALSE) -> 532
A61: 1023. HV service model asset cost (£)
B63: HV service model 1 | C63: HV service model 2 | D63: HV service model 3 | E63: HV service model 4 | F63: HV service model 5
A64: HV service model asset cost (£) | B64: =VLOOKUP(Vlookup!B64,Forcast_Data,5,FALSE) -> 9790.194 | C64: =VLOOKUP(Vlookup!C64,Forcast_Data,5,FALSE) -> 4208 | D64: =VLOOKUP(Vlookup!D64,Forcast_Data,5,FALSE) -> 0 | E64: =VLOOKUP(Vlookup!E64,Forcast_Data,5,FALSE) -> 0 | F64: =VLOOKUP(Vlookup!F64,Forcast_Data,5,FALSE) -> 0
A66: 1025. Matrix of applicability of LV service models to tariffs with fixed charges
B68: LV service model 1 | C68: LV service model 2 | D68: LV service model 3 | E68: LV service model 4 | F68: LV service model 5 | G68: LV service model 6 | H68: LV service model 7 | I68: LV service model 8
A69: Domestic Unrestricted | B69: ='Mat of App'!C7 -> 0.05 | C69: ='Mat of App'!D7 -> 0 | D69: ='Mat of App'!E7 -> 0 | E69: ='Mat of App'!F7 -> 0 | F69: ='Mat of App'!G7 -> 0 | G69: ='Mat of App'!H7 -> 0 | H69: ='Mat of App'!I7 -> 0 | I69: ='Mat of App'!J7 -> 0
A70: Domestic Two Rate | B70: ='Mat of App'!C8 -> 0.05 | C70: ='Mat of App'!D8 -> 0 | D70: ='Mat of App'!E8 -> 0 | E70: ='Mat of App'!F8 -> 0 | F70: ='Mat of App'!G8 -> 0 | G70: ='Mat of App'!H8 -> 0 | H70: ='Mat of App'!I8 -> 0 | I70: ='Mat of App'!J8 -> 0
A71: Small Non Domestic Unrestricted | B71: ='Mat of App'!C9 -> 0 | C71: ='Mat of App'!D9 -> 1 | D71: ='Mat of App'!E9 -> 0 | E71: ='Mat of App'!F9 -> 0 | F71: ='Mat of App'!G9 -> 0 | G71: ='Mat of App'!H9 -> 0 | H71: ='Mat of App'!I9 -> 0 | I71: ='Mat of App'!J9 -> 0
A72: Small Non Domestic Two Rate | B72: ='Mat of App'!C10 -> 0 | C72: ='Mat of App'!D10 -> 1 | D72: ='Mat of App'!E10 -> 0 | E72: ='Mat of App'!F10 -> 0 | F72: ='Mat of App'!G10 -> 0 | G72: ='Mat of App'!H10 -> 0 | H72: ='Mat of App'!I10 -> 0 | I72: ='Mat of App'!J10 -> 0
A73: LV Medium Non-Domestic | B73: ='Mat of App'!C11 -> 0 | C73: ='Mat of App'!D11 -> 0 | D73: ='Mat of App'!E11 -> 1 | E73: ='Mat of App'!F11 -> 0 | F73: ='Mat of App'!G11 -> 0 | G73: ='Mat of App'!H11 -> 0 | H73: ='Mat of App'!I11 -> 0 | I73: ='Mat of App'!J11 -> 0
A74: LV Sub Medium Non-Domestic | B74: ='Mat of App'!C12 -> 0 | C74: ='Mat of App'!D12 -> 0 | D74: ='Mat of App'!E12 -> 0 | E74: ='Mat of App'!F12 -> 1 | F74: ='Mat of App'!G12 -> 0 | G74: ='Mat of App'!H12 -> 0 | H74: ='Mat of App'!I12 -> 0 | I74: ='Mat of App'!J12 -> 0
A75: LV HH Metered | B75: ='Mat of App'!C13 -> 0 | C75: ='Mat of App'!D13 -> 0 | D75: ='Mat of App'!E13 -> 0 | E75: ='Mat of App'!F13 -> 0 | F75: ='Mat of App'!G13 -> 1 | G75: ='Mat of App'!H13 -> 0 | H75: ='Mat of App'!I13 -> 0 | I75: ='Mat of App'!J13 -> 0
A76: LV Sub HH Metered | B76: ='Mat of App'!C14 -> 0 | C76: ='Mat of App'!D14 -> 0 | D76: ='Mat of App'!E14 -> 0 | E76: ='Mat of App'!F14 -> 0 | F76: ='Mat of App'!G14 -> 0 | G76: ='Mat of App'!H14 -> 1 | H76: ='Mat of App'!I14 -> 0 | I76: ='Mat of App'!J14 -> 0
A77: LV Generation NHH | B77: ='Mat of App'!C15 -> 0 | C77: ='Mat of App'!D15 -> 0 | D77: ='Mat of App'!E15 -> 0 | E77: ='Mat of App'!F15 -> 0 | F77: ='Mat of App'!G15 -> 0 | G77: ='Mat of App'!H15 -> 0 | H77: ='Mat of App'!I15 -> 1 | I77: ='Mat of App'!J15 -> 0
A78: LV Sub Generation NHH | B78: ='Mat of App'!C16 -> 0 | C78: ='Mat of App'!D16 -> 0 | D78: ='Mat of App'!E16 -> 0 | E78: ='Mat of App'!F16 -> 0 | F78: ='Mat of App'!G16 -> 0 | G78: ='Mat of App'!H16 -> 0 | H78: ='Mat of App'!I16 -> 1 | I78: ='Mat of App'!J16 -> 0
A79: LV Generation Intermittent | B79: ='Mat of App'!C17 -> 0 | C79: ='Mat of App'!D17 -> 0 | D79: ='Mat of App'!E17 -> 0 | E79: ='Mat of App'!F17 -> 0 | F79: ='Mat of App'!G17 -> 0 | G79: ='Mat of App'!H17 -> 0 | H79: ='Mat of App'!I17 -> 1 | I79: ='Mat of App'!J17 -> 0
A80: LV Generation Non-Intermittent | B80: ='Mat of App'!C18 -> 0 | C80: ='Mat of App'!D18 -> 0 | D80: ='Mat of App'!E18 -> 0 | E80: ='Mat of App'!F18 -> 0 | F80: ='Mat of App'!G18 -> 0 | G80: ='Mat of App'!H18 -> 0 | H80: ='Mat of App'!I18 -> 0 | I80: ='Mat of App'!J18 -> 0
A81: LV Sub Generation Intermittent | B81: ='Mat of App'!C19 -> 0 | C81: ='Mat of App'!D19 -> 0 | D81: ='Mat of App'!E19 -> 0 | E81: ='Mat of App'!F19 -> 0 | F81: ='Mat of App'!G19 -> 0 | G81: ='Mat of App'!H19 -> 0 | H81: ='Mat of App'!I19 -> 0 | I81: ='Mat of App'!J19 -> 0
A82: LV Sub Generation Non-Intermittent | B82: ='Mat of App'!C20 -> 0 | C82: ='Mat of App'!D20 -> 0 | D82: ='Mat of App'!E20 -> 0 | E82: ='Mat of App'!F20 -> 0 | F82: ='Mat of App'!G20 -> 0 | G82: ='Mat of App'!H20 -> 0 | H82: ='Mat of App'!I20 -> 0 | I82: ='Mat of App'!J20 -> 0
A84: 1026. Matrix of applicability of LV service models to unmetered tariffs
A86: Source: service models
A87: Proportion of service model involved in connecting load of 1 MWh/year
B88: LV service model 1 | C88: LV service model 2 | D88: LV service model 3 | E88: LV service model 4 | F88: LV service model 5 | G88: LV service model 6 | H88: LV service model 7 | I88: LV service model 8
A89: All LV unmetered tariffs | B89: ='Mat of App'!C27 -> 0 | C89: ='Mat of App'!D27 -> 0 | D89: ='Mat of App'!E27 -> 0 | E89: ='Mat of App'!F27 -> 0 | F89: ='Mat of App'!G27 -> 0 | G89: ='Mat of App'!H27 -> 0 | H89: ='Mat of App'!I27 -> 0 | I89: ='Mat of App'!J27 -> 0.4877
A91: 1028. Matrix of applicability of HV service models to tariffs with fixed charges
B93: HV service model 1 | C93: HV service model 2 | D93: HV service model 3 | E93: HV service model 4 | F93: HV service model 5
A94: HV Medium Non-Domestic | B94: ='Mat of App'!C32 -> 1 | C94: ='Mat of App'!D32 -> 0 | D94: ='Mat of App'!E32 -> 0 | E94: ='Mat of App'!F32 -> 0 | F94: ='Mat of App'!G32 -> 0
A95: HV HH Metered | B95: ='Mat of App'!C33 -> 1 | C95: ='Mat of App'!D33 -> 0 | D95: ='Mat of App'!E33 -> 0 | E95: ='Mat of App'!F33 -> 0 | F95: ='Mat of App'!G33 -> 0
A96: HV Sub HH Metered | B96: ='Mat of App'!C34 -> 1 | C96: ='Mat of App'!D34 -> 0 | D96: ='Mat of App'!E34 -> 0 | E96: ='Mat of App'!F34 -> 0 | F96: ='Mat of App'!G34 -> 0
A97: HV Generation Intermittent | B97: ='Mat of App'!C35 -> 0 | C97: ='Mat of App'!D35 -> 1 | D97: ='Mat of App'!E35 -> 0 | E97: ='Mat of App'!F35 -> 0 | F97: ='Mat of App'!G35 -> 0
A98: HV Generation Non-Intermittent | B98: ='Mat of App'!C36 -> 0 | C98: ='Mat of App'!D36 -> 1 | D98: ='Mat of App'!E36 -> 0 | E98: ='Mat of App'!F36 -> 0 | F98: ='Mat of App'!G36 -> 0
A99: HV Sub Generation Non-Intermittent | B99: ='Mat of App'!C37 -> 0 | C99: ='Mat of App'!D37 -> 1 | D99: ='Mat of App'!E37 -> 0 | E99: ='Mat of App'!F37 -> 0 | F99: ='Mat of App'!G37 -> 0
A100: HV Sub Generation Intermittent | B100: ='Mat of App'!C38 -> 0 | C100: ='Mat of App'!D38 -> 1 | D100: ='Mat of App'!E38 -> 0 | E100: ='Mat of App'!F38 -> 0 | F100: ='Mat of App'!G38 -> 0
A102: 1032. Loss adjustment factors to transmission
A104: Source: losses model or loss adjustment factors at time of system peak.
B105: 132kV | C105: 132kV/EHV | D105: EHV | E105: EHV/HV | F105: HV | G105: HV/LV | H105: LV circuits
A106: Loss adjustment factor | B106: =VLOOKUP(Vlookup!B106,Forcast_Data,5,FALSE) -> 1.013 | C106: =VLOOKUP(Vlookup!C106,Forcast_Data,5,FALSE) -> 1.017 | D106: =VLOOKUP(Vlookup!D106,Forcast_Data,5,FALSE) -> 1.032 | E106: =VLOOKUP(Vlookup!E106,Forcast_Data,5,FALSE) -> 1.042 | F106: =VLOOKUP(Vlookup!F106,Forcast_Data,5,FALSE) -> 1.065 | G106: =VLOOKUP(Vlookup!G106,Forcast_Data,5,FALSE) -> 1.078 | H106: =VLOOKUP(Vlookup!H106,Forcast_Data,5,FALSE) -> 1.087
A108: 1037. Embedded network (LDNO) discounts
A110: Source: separate price control disaggregation model.
B111: No discount | C111: LDNO LV: LV user | D111: LDNO HV: LV user | E111: LDNO HV: LV sub user | F111: LDNO HV: HV user
A112: LDNO discount | C112: =VLOOKUP(Vlookup!C112,Forcast_Data,5,FALSE) -> 0.3580021725 | D112: =VLOOKUP(Vlookup!D112,Forcast_Data,5,FALSE) -> 0.6121303874 | E112: =VLOOKUP(Vlookup!E112,Forcast_Data,5,FALSE) -> 0.3773090501 | F112: =VLOOKUP(Vlookup!F112,Forcast_Data,5,FALSE) -> 0.2678469175
A114: 1041. Load profile data for demand users
A116: Source: load data analysis.
B117: Coincidence factor | C117: Load factor
A118: Domestic Unrestricted | B118: =VLOOKUP(Vlookup!B118,Forcast_Data,5,FALSE) -> 0.9110931172 | C118: =VLOOKUP(Vlookup!C118,Forcast_Data,5,FALSE) -> 0.3992113024
A119: Domestic Two Rate | B119: =VLOOKUP(Vlookup!B119,Forcast_Data,5,FALSE) -> 0.3144256013 | C119: =VLOOKUP(Vlookup!C119,Forcast_Data,5,FALSE) -> 0.2187041838
A120: Domestic Off Peak (related MPAN) | C120: =VLOOKUP(Vlookup!C120,Forcast_Data,5,FALSE) -> 0.1367858009
A121: Small Non Domestic Unrestricted | B121: =VLOOKUP(Vlookup!B121,Forcast_Data,5,FALSE) -> 0.6277145101 | C121: =VLOOKUP(Vlookup!C121,Forcast_Data,5,FALSE) -> 0.3620931243
A122: Small Non Domestic Two Rate | B122: =VLOOKUP(Vlookup!B122,Forcast_Data,5,FALSE) -> 0.5306730516 | C122: =VLOOKUP(Vlookup!C122,Forcast_Data,5,FALSE) -> 0.3950566623
A123: Small Non Domestic Off Peak (related MPAN) | C123: =VLOOKUP(Vlookup!C123,Forcast_Data,5,FALSE) -> 0.2258067728
A124: LV Medium Non-Domestic | B124: =VLOOKUP(Vlookup!B124,Forcast_Data,5,FALSE) -> 0.8006161179 | C124: =VLOOKUP(Vlookup!C124,Forcast_Data,5,FALSE) -> 0.5594720869
A125: LV Sub Medium Non-Domestic | B125: =VLOOKUP(Vlookup!B125,Forcast_Data,5,FALSE) -> 0.7829460721 | C125: =VLOOKUP(Vlookup!C125,Forcast_Data,5,FALSE) -> 0.5684359804
A126: HV Medium Non-Domestic | B126: =VLOOKUP(Vlookup!B126,Forcast_Data,5,FALSE) -> 0.7512811282 | C126: =VLOOKUP(Vlookup!C126,Forcast_Data,5,FALSE) -> 0.409929049
A127: LV HH Metered | B127: =VLOOKUP(Vlookup!B127,Forcast_Data,5,FALSE) -> 0.8145064582 | C127: =VLOOKUP(Vlookup!C127,Forcast_Data,5,FALSE) -> 0.580821256
A128: LV Sub HH Metered | B128: =VLOOKUP(Vlookup!B128,Forcast_Data,5,FALSE) -> 0.782726117 | C128: =VLOOKUP(Vlookup!C128,Forcast_Data,5,FALSE) -> 0.6075756983
A129: HV HH Metered | B129: =VLOOKUP(Vlookup!B129,Forcast_Data,5,FALSE) -> 0.8113670182 | C129: =VLOOKUP(Vlookup!C129,Forcast_Data,5,FALSE) -> 0.7201136334
A130: HV Sub HH Metered | B130: =VLOOKUP(Vlookup!B130,Forcast_Data,5,FALSE) -> 0.4992999836 | C130: =VLOOKUP(Vlookup!C130,Forcast_Data,5,FALSE) -> 0.5610911178
A131: NHH UMS category A | B131: =VLOOKUP(Vlookup!B131,Forcast_Data,5,FALSE) -> 1 | C131: =VLOOKUP(Vlookup!C131,Forcast_Data,5,FALSE) -> 1
A132: NHH UMS category B | B132: =VLOOKUP(Vlookup!B132,Forcast_Data,5,FALSE) -> 1 | C132: =VLOOKUP(Vlookup!C132,Forcast_Data,5,FALSE) -> 0.4743289155
A133: NHH UMS category C | B133: =VLOOKUP(Vlookup!B133,Forcast_Data,5,FALSE) -> 1 | C133: =VLOOKUP(Vlookup!C133,Forcast_Data,5,FALSE) -> 0.2537152397
A134: NHH UMS category D | B134: =VLOOKUP(Vlookup!B134,Forcast_Data,5,FALSE) -> 0.02906666667 | C134: =VLOOKUP(Vlookup!C134,Forcast_Data,5,FALSE) -> 0.553
A135: LV UMS (Pseudo HH Metered) | B135: =VLOOKUP(Vlookup!B135,Forcast_Data,5,FALSE) -> 0.9230565392 | C135: =VLOOKUP(Vlookup!C135,Forcast_Data,5,FALSE) -> 0.4774652203
A137: 1053. Volume forecasts for the charging year
B138: 4 | C138: 5 | D138: 6 | E138: 7 | F138: 8 | G138: 9
A139: Source: forecast.
A140: Please include MPAN counts for tariffs with no fixed charge (e.g. off-peak tariffs),
A141: but exclude MPANs on tariffs with a fixed charge that are not subject to a fixed charge due to a site grouping arrangement.
B142: Rate 1 units (MWh) | C142: Rate 2 units (MWh) | D142: Rate 3 units (MWh) | E142: MPANs | F142: Import capacity (kVA) | G142: Reactive power units (MVArh)
A143: > Domestic Unrestricted
A144: Domestic Unrestricted | B144: =VLOOKUP(Vlookup!B144,Volume_Forecast_Data,B$138,FALSE) -> 4243602.102 | E144: =VLOOKUP(Vlookup!E144,Volume_Forecast_Data,E$138,FALSE) -> 1173205
A145: LDNO LV: Domestic Unrestricted | B145: =VLOOKUP(Vlookup!B145,Volume_Forecast_Data,B$138,FALSE) -> 2197.88 | E145: =VLOOKUP(Vlookup!E145,Volume_Forecast_Data,E$138,FALSE) -> 1414
A146: LDNO HV: Domestic Unrestricted | B146: =VLOOKUP(Vlookup!B146,Volume_Forecast_Data,B$138,FALSE) -> 3876.121 | E146: =VLOOKUP(Vlookup!E146,Volume_Forecast_Data,E$138,FALSE) -> 1852
A147: > Domestic Two Rate
A148: Domestic Two Rate | B148: =VLOOKUP(Vlookup!B148,Volume_Forecast_Data,B$138,FALSE) -> 719816.1328 | C148: =VLOOKUP(Vlookup!C148,Volume_Forecast_Data,C$138,FALSE) -> 749558.5308 | E148: =VLOOKUP(Vlookup!E148,Volume_Forecast_Data,E$138,FALSE) -> 233105
A149: LDNO LV: Domestic Two Rate | B149: =VLOOKUP(Vlookup!B149,Volume_Forecast_Data,B$138,FALSE) -> 180.281 | C149: =VLOOKUP(Vlookup!C149,Volume_Forecast_Data,C$138,FALSE) -> 178.734 | E149: =VLOOKUP(Vlookup!E149,Volume_Forecast_Data,E$138,FALSE) -> 53
A150: LDNO HV: Domestic Two Rate | B150: =VLOOKUP(Vlookup!B150,Volume_Forecast_Data,B$138,FALSE) -> 140.249 | C150: =VLOOKUP(Vlookup!C150,Volume_Forecast_Data,C$138,FALSE) -> 95.397 | E150: =VLOOKUP(Vlookup!E150,Volume_Forecast_Data,E$138,FALSE) -> 153
A151: > Domestic Off Peak (related MPAN)
A152: Domestic Off Peak (related MPAN) | B152: =VLOOKUP(Vlookup!B152,Volume_Forecast_Data,B$138,FALSE) -> 73030.25811 | E152: =VLOOKUP(Vlookup!E152,Volume_Forecast_Data,E$138,FALSE) -> 0
A153: LDNO LV: Domestic Off Peak (related MPAN) | B153: =VLOOKUP(Vlookup!B153,Volume_Forecast_Data,B$138,FALSE) -> 0 | E153: =VLOOKUP(Vlookup!E153,Volume_Forecast_Data,E$138,FALSE) -> 0
A154: LDNO HV: Domestic Off Peak (related MPAN) | B154: =VLOOKUP(Vlookup!B154,Volume_Forecast_Data,B$138,FALSE) -> 0 | E154: =VLOOKUP(Vlookup!E154,Volume_Forecast_Data,E$138,FALSE) -> 0
A155: > Small Non Domestic Unrestricted
A156: Small Non Domestic Unrestricted | B156: =VLOOKUP(Vlookup!B156,Volume_Forecast_Data,B$138,FALSE) -> 1167954.199 | E156: =VLOOKUP(Vlookup!E156,Volume_Forecast_Data,E$138,FALSE) -> 106596
A157: LDNO LV: Small Non Domestic Unrestricted | B157: =VLOOKUP(Vlookup!B157,Volume_Forecast_Data,B$138,FALSE) -> 210.339 | E157: =VLOOKUP(Vlookup!E157,Volume_Forecast_Data,E$138,FALSE) -> 53
A158: LDNO HV: Small Non Domestic Unrestricted | B158: =VLOOKUP(Vlookup!B158,Volume_Forecast_Data,B$138,FALSE) -> 5712.431 | E158: =VLOOKUP(Vlookup!E158,Volume_Forecast_Data,E$138,FALSE) -> 127
A159: > Small Non Domestic Two Rate
A160: Small Non Domestic Two Rate | B160: =VLOOKUP(Vlookup!B160,Volume_Forecast_Data,B$138,FALSE) -> 352675.7711 | C160: =VLOOKUP(Vlookup!C160,Volume_Forecast_Data,C$138,FALSE) -> 173121.5393 | E160: =VLOOKUP(Vlookup!E160,Volume_Forecast_Data,E$138,FALSE) -> 26498
A161: LDNO LV: Small Non Domestic Two Rate | B161: =VLOOKUP(Vlookup!B161,Volume_Forecast_Data,B$138,FALSE) -> 6.688 | C161: =VLOOKUP(Vlookup!C161,Volume_Forecast_Data,C$138,FALSE) -> 4.552 | E161: =VLOOKUP(Vlookup!E161,Volume_Forecast_Data,E$138,FALSE) -> 0
A162: LDNO HV: Small Non Domestic Two Rate | B162: =VLOOKUP(Vlookup!B162,Volume_Forecast_Data,B$138,FALSE) -> 371.957 | C162: =VLOOKUP(Vlookup!C162,Volume_Forecast_Data,C$138,FALSE) -> 99.204 | E162: =VLOOKUP(Vlookup!E162,Volume_Forecast_Data,E$138,FALSE) -> 8
A163: > Small Non Domestic Off Peak (related MPAN)
A164: Small Non Domestic Off Peak (related MPAN) | B164: =VLOOKUP(Vlookup!B164,Volume_Forecast_Data,B$138,FALSE) -> 26029.06816 | E164: =VLOOKUP(Vlookup!E164,Volume_Forecast_Data,E$138,FALSE) -> 0
A165: LDNO LV: Small Non Domestic Off Peak (related MPAN) | B165: =VLOOKUP(Vlookup!B165,Volume_Forecast_Data,B$138,FALSE) -> 0 | E165: =VLOOKUP(Vlookup!E165,Volume_Forecast_Data,E$138,FALSE) -> 0
A166: LDNO HV: Small Non Domestic Off Peak (related MPAN) | B166: =VLOOKUP(Vlookup!B166,Volume_Forecast_Data,B$138,FALSE) -> 0 | E166: =VLOOKUP(Vlookup!E166,Volume_Forecast_Data,E$138,FALSE) -> 0
A167: > LV Medium Non-Domestic
A168: LV Medium Non-Domestic | B168: =VLOOKUP(Vlookup!B168,Volume_Forecast_Data,B$138,FALSE) -> 708276.9206 | C168: =VLOOKUP(Vlookup!C168,Volume_Forecast_Data,C$138,FALSE) -> 174918.5804 | E168: =VLOOKUP(Vlookup!E168,Volume_Forecast_Data,E$138,FALSE) -> 9143
A169: LDNO LV: LV Medium Non-Domestic | B169: =VLOOKUP(Vlookup!B169,Volume_Forecast_Data,B$138,FALSE) -> 0 | C169: =VLOOKUP(Vlookup!C169,Volume_Forecast_Data,C$138,FALSE) -> 0 | E169: =VLOOKUP(Vlookup!E169,Volume_Forecast_Data,E$138,FALSE) -> 0
A170: LDNO HV: LV Medium Non-Domestic | B170: =VLOOKUP(Vlookup!B170,Volume_Forecast_Data,B$138,FALSE) -> 3767.762 | C170: =VLOOKUP(Vlookup!C170,Volume_Forecast_Data,C$138,FALSE) -> 635.403 | E170: =VLOOKUP(Vlookup!E170,Volume_Forecast_Data,E$138,FALSE) -> 16
A171: > LV Sub Medium Non-Domestic
A172: LV Sub Medium Non-Domestic | B172: =VLOOKUP(Vlookup!B172,Volume_Forecast_Data,B$138,FALSE) -> 77314.6231 | C172: =VLOOKUP(Vlookup!C172,Volume_Forecast_Data,C$138,FALSE) -> 21571.56654 | E172: =VLOOKUP(Vlookup!E172,Volume_Forecast_Data,E$138,FALSE) -> 749
A173: > HV Medium Non-Domestic
A174: HV Medium Non-Domestic | B174: =VLOOKUP(Vlookup!B174,Volume_Forecast_Data,B$138,FALSE) -> 2306.275522 | C174: =VLOOKUP(Vlookup!C174,Volume_Forecast_Data,C$138,FALSE) -> 617.3263696 | E174: =VLOOKUP(Vlookup!E174,Volume_Forecast_Data,E$138,FALSE) -> 22
A175: > LV HH Metered
A176: LV HH Metered | B176: =VLOOKUP(Vlookup!B176,Volume_Forecast_Data,B$138,FALSE) -> 53304.1114 | C176: =VLOOKUP(Vlookup!C176,Volume_Forecast_Data,C$138,FALSE) -> 382801.2915 | D176: =VLOOKUP(Vlookup!D176,Volume_Forecast_Data,D$138,FALSE) -> 323622.7928 | E176: =VLOOKUP(Vlookup!E176,Volume_Forecast_Data,E$138,FALSE) -> 2824 | F176: =VLOOKUP(Vlookup!F176,Volume_Forecast_Data,F$138,FALSE) -> 365000 | G176: =VLOOKUP(Vlookup!G176,Volume_Forecast_Data,G$138,FALSE) -> 74360
A177: LDNO LV: LV HH Metered | B177: =VLOOKUP(Vlookup!B177,Volume_Forecast_Data,B$138,FALSE) -> 5.145670604 | C177: =VLOOKUP(Vlookup!C177,Volume_Forecast_Data,C$138,FALSE) -> 36.94952918 | D177: =VLOOKUP(Vlookup!D177,Volume_Forecast_Data,D$138,FALSE) -> 31.22396021 | E177: =VLOOKUP(Vlookup!E177,Volume_Forecast_Data,E$138,FALSE) -> 0 | F177: =VLOOKUP(Vlookup!F177,Volume_Forecast_Data,F$138,FALSE) -> 0 | G177: =VLOOKUP(Vlookup!G177,Volume_Forecast_Data,G$138,FALSE) -> 0
A178: LDNO HV: LV HH Metered | B178: =VLOOKUP(Vlookup!B178,Volume_Forecast_Data,B$138,FALSE) -> 1464.77203 | C178: =VLOOKUP(Vlookup!C178,Volume_Forecast_Data,C$138,FALSE) -> 10524.83413 | D178: =VLOOKUP(Vlookup!D178,Volume_Forecast_Data,D$138,FALSE) -> 8898.974535 | E178: =VLOOKUP(Vlookup!E178,Volume_Forecast_Data,E$138,FALSE) -> 0 | F178: =VLOOKUP(Vlookup!F178,Volume_Forecast_Data,F$138,FALSE) -> 0 | G178: =VLOOKUP(Vlookup!G178,Volume_Forecast_Data,G$138,FALSE) -> 0
A179: > LV Sub HH Metered
A180: LV Sub HH Metered | B180: =VLOOKUP(Vlookup!B180,Volume_Forecast_Data,B$138,FALSE) -> 49580.06772 | C180: =VLOOKUP(Vlookup!C180,Volume_Forecast_Data,C$138,FALSE) -> 369501.7136 | D180: =VLOOKUP(Vlookup!D180,Volume_Forecast_Data,D$138,FALSE) -> 333780.5589 | E180: =VLOOKUP(Vlookup!E180,Volume_Forecast_Data,E$138,FALSE) -> 1318 | F180: =VLOOKUP(Vlookup!F180,Volume_Forecast_Data,F$138,FALSE) -> 329000 | G180: =VLOOKUP(Vlookup!G180,Volume_Forecast_Data,G$138,FALSE) -> 80945
A181: LDNO HV: LV Sub HH Metered | B181: =VLOOKUP(Vlookup!B181,Volume_Forecast_Data,B$138,FALSE) -> 0 | C181: =VLOOKUP(Vlookup!C181,Volume_Forecast_Data,C$138,FALSE) -> 0 | D181: =VLOOKUP(Vlookup!D181,Volume_Forecast_Data,D$138,FALSE) -> 0 | E181: =VLOOKUP(Vlookup!E181,Volume_Forecast_Data,E$138,FALSE) -> 0 | F181: =VLOOKUP(Vlookup!F181,Volume_Forecast_Data,F$138,FALSE) -> 0 | G181: =VLOOKUP(Vlookup!G181,Volume_Forecast_Data,G$138,FALSE) -> 0
A182: > HV HH Metered
A183: HV HH Metered | B183: =VLOOKUP(Vlookup!B183,Volume_Forecast_Data,B$138,FALSE) -> 177242.5067 | C183: =VLOOKUP(Vlookup!C183,Volume_Forecast_Data,C$138,FALSE) -> 1267227.736 | D183: =VLOOKUP(Vlookup!D183,Volume_Forecast_Data,D$138,FALSE) -> 1338164.853 | E183: =VLOOKUP(Vlookup!E183,Volume_Forecast_Data,E$138,FALSE) -> 923 | F183: =VLOOKUP(Vlookup!F183,Volume_Forecast_Data,F$138,FALSE) -> 973000 | G183: =VLOOKUP(Vlookup!G183,Volume_Forecast_Data,G$138,FALSE) -> 218608
A184: LDNO HV: HV HH Metered | B184: =VLOOKUP(Vlookup!B184,Volume_Forecast_Data,B$138,FALSE) -> 1.714841865 | C184: =VLOOKUP(Vlookup!C184,Volume_Forecast_Data,C$138,FALSE) -> 12.29787531 | D184: =VLOOKUP(Vlookup!D184,Volume_Forecast_Data,D$138,FALSE) -> 13.73488282 | E184: =VLOOKUP(Vlookup!E184,Volume_Forecast_Data,E$138,FALSE) -> 0 | F184: =VLOOKUP(Vlookup!F184,Volume_Forecast_Data,F$138,FALSE) -> 0 | G184: =VLOOKUP(Vlookup!G184,Volume_Forecast_Data,G$138,FALSE) -> 0
A185: > HV Sub HH Metered
A186: HV Sub HH Metered | B186: =VLOOKUP(Vlookup!B186,Volume_Forecast_Data,B$138,FALSE) -> 0 | C186: =VLOOKUP(Vlookup!C186,Volume_Forecast_Data,C$138,FALSE) -> 0 | D186: =VLOOKUP(Vlookup!D186,Volume_Forecast_Data,D$138,FALSE) -> 0 | E186: =VLOOKUP(Vlookup!E186,Volume_Forecast_Data,E$138,FALSE) -> 0 | F186: =VLOOKUP(Vlookup!F186,Volume_Forecast_Data,F$138,FALSE) -> 0 | G186: =VLOOKUP(Vlookup!G186,Volume_Forecast_Data,G$138,FALSE) -> 0
A187: > NHH UMS category A
A188: NHH UMS category A | B188: =VLOOKUP(Vlookup!B188,Volume_Forecast_Data,B$138,FALSE) -> 16740.14907 | E188: =VLOOKUP(Vlookup!E188,Volume_Forecast_Data,E$138,FALSE) -> 0
A189: LDNO LV: NHH UMS category A | B189: =VLOOKUP(Vlookup!B189,Volume_Forecast_Data,B$138,FALSE) -> 3.2925 | E189: =VLOOKUP(Vlookup!E189,Volume_Forecast_Data,E$138,FALSE) -> 0
A190: LDNO HV: NHH UMS category A | B190: =VLOOKUP(Vlookup!B190,Volume_Forecast_Data,B$138,FALSE) -> 74.4277449 | E190: =VLOOKUP(Vlookup!E190,Volume_Forecast_Data,E$138,FALSE) -> 0
A191: > NHH UMS category B
A192: NHH UMS category B | B192: =VLOOKUP(Vlookup!B192,Volume_Forecast_Data,B$138,FALSE) -> 5820.180322 | E192: =VLOOKUP(Vlookup!E192,Volume_Forecast_Data,E$138,FALSE) -> 0
A193: LDNO LV: NHH UMS category B | B193: =VLOOKUP(Vlookup!B193,Volume_Forecast_Data,B$138,FALSE) -> 1.0975 | E193: =VLOOKUP(Vlookup!E193,Volume_Forecast_Data,E$138,FALSE) -> 0
A194: LDNO HV: NHH UMS category B | B194: =VLOOKUP(Vlookup!B194,Volume_Forecast_Data,B$138,FALSE) -> 25.87688404 | E194: =VLOOKUP(Vlookup!E194,Volume_Forecast_Data,E$138,FALSE) -> 0
A195: > NHH UMS category C
A196: NHH UMS category C | B196: =VLOOKUP(Vlookup!B196,Volume_Forecast_Data,B$138,FALSE) -> 648.2975051 | E196: =VLOOKUP(Vlookup!E196,Volume_Forecast_Data,E$138,FALSE) -> 0
A197: LDNO LV: NHH UMS category C | B197: =VLOOKUP(Vlookup!B197,Volume_Forecast_Data,B$138,FALSE) -> 0 | E197: =VLOOKUP(Vlookup!E197,Volume_Forecast_Data,E$138,FALSE) -> 0
A198: LDNO HV: NHH UMS category C | B198: =VLOOKUP(Vlookup!B198,Volume_Forecast_Data,B$138,FALSE) -> 2.882371066 | E198: =VLOOKUP(Vlookup!E198,Volume_Forecast_Data,E$138,FALSE) -> 0
A199: > NHH UMS category D
A200: NHH UMS category D | B200: =VLOOKUP(Vlookup!B200,Volume_Forecast_Data,B$138,FALSE) -> 0 | E200: =VLOOKUP(Vlookup!E200,Volume_Forecast_Data,E$138,FALSE) -> 0
A201: LDNO LV: NHH UMS category D | B201: =VLOOKUP(Vlookup!B201,Volume_Forecast_Data,B$138,FALSE) -> 0 | E201: =VLOOKUP(Vlookup!E201,Volume_Forecast_Data,E$138,FALSE) -> 0
A202: LDNO HV: NHH UMS category D | B202: =VLOOKUP(Vlookup!B202,Volume_Forecast_Data,B$138,FALSE) -> 0 | E202: =VLOOKUP(Vlookup!E202,Volume_Forecast_Data,E$138,FALSE) -> 0
A203: > LV UMS (Pseudo HH Metered)
A204: LV UMS (Pseudo HH Metered) | B204: =VLOOKUP(Vlookup!B204,Volume_Forecast_Data,B$138,FALSE) -> 4342.849586 | C204: =VLOOKUP(Vlookup!C204,Volume_Forecast_Data,C$138,FALSE) -> 28609.27121 | D204: =VLOOKUP(Vlookup!D204,Volume_Forecast_Data,D$138,FALSE) -> 105632.3978 | E204: =VLOOKUP(Vlookup!E204,Volume_Forecast_Data,E$138,FALSE) -> 0
A205: LDNO LV: LV UMS (Pseudo HH Metered) | B205: =VLOOKUP(Vlookup!B205,Volume_Forecast_Data,B$138,FALSE) -> 0 | C205: =VLOOKUP(Vlookup!C205,Volume_Forecast_Data,C$138,FALSE) -> 0 | D205: =VLOOKUP(Vlookup!D205,Volume_Forecast_Data,D$138,FALSE) -> 0 | E205: =VLOOKUP(Vlookup!E205,Volume_Forecast_Data,E$138,FALSE) -> 0
A206: LDNO HV: LV UMS (Pseudo HH Metered) | B206: =VLOOKUP(Vlookup!B206,Volume_Forecast_Data,B$138,FALSE) -> 0 | C206: =VLOOKUP(Vlookup!C206,Volume_Forecast_Data,C$138,FALSE) -> 0 | D206: =VLOOKUP(Vlookup!D206,Volume_Forecast_Data,D$138,FALSE) -> 0 | E206: =VLOOKUP(Vlookup!E206,Volume_Forecast_Data,E$138,FALSE) -> 0
A207: > LV Generation NHH
A208: LV Generation NHH | B208: =VLOOKUP(Vlookup!B208,Volume_Forecast_Data,B$138,FALSE) -> 1252.3 | E208: =VLOOKUP(Vlookup!E208,Volume_Forecast_Data,E$138,FALSE) -> 0
A209: LDNO LV: LV Generation NHH | B209: =VLOOKUP(Vlookup!B209,Volume_Forecast_Data,B$138,FALSE) -> 61.98 | E209: =VLOOKUP(Vlookup!E209,Volume_Forecast_Data,E$138,FALSE) -> 0
A210: LDNO HV: LV Generation NHH | B210: =VLOOKUP(Vlookup!B210,Volume_Forecast_Data,B$138,FALSE) -> 0 | E210: =VLOOKUP(Vlookup!E210,Volume_Forecast_Data,E$138,FALSE) -> 0
A211: > LV Sub Generation NHH
A212: LV Sub Generation NHH | B212: =VLOOKUP(Vlookup!B212,Volume_Forecast_Data,B$138,FALSE) -> 0 | E212: =VLOOKUP(Vlookup!E212,Volume_Forecast_Data,E$138,FALSE) -> 0
A213: LDNO HV: LV Sub Generation NHH | B213: =VLOOKUP(Vlookup!B213,Volume_Forecast_Data,B$138,FALSE) -> 0 | E213: =VLOOKUP(Vlookup!E213,Volume_Forecast_Data,E$138,FALSE) -> 0
A214: > LV Generation Intermittent
A215: LV Generation Intermittent | B215: =VLOOKUP(Vlookup!B215,Volume_Forecast_Data,B$138,FALSE) -> 11117.548 | E215: =VLOOKUP(Vlookup!E215,Volume_Forecast_Data,E$138,FALSE) -> 0 | G215: =VLOOKUP(Vlookup!G215,Volume_Forecast_Data,G$138,FALSE) -> 166.0368
A216: LDNO LV: LV Generation Intermittent | B216: =VLOOKUP(Vlookup!B216,Volume_Forecast_Data,B$138,FALSE) -> 0 | E216: =VLOOKUP(Vlookup!E216,Volume_Forecast_Data,E$138,FALSE) -> 0 | G216: =VLOOKUP(Vlookup!G216,Volume_Forecast_Data,G$138,FALSE) -> 0
A217: LDNO HV: LV Generation Intermittent | B217: =VLOOKUP(Vlookup!B217,Volume_Forecast_Data,B$138,FALSE) -> 0 | E217: =VLOOKUP(Vlookup!E217,Volume_Forecast_Data,E$138,FALSE) -> 0 | G217: =VLOOKUP(Vlookup!G217,Volume_Forecast_Data,G$138,FALSE) -> 0
A218: > LV Generation Non-Intermittent
A219: LV Generation Non-Intermittent | B219: =VLOOKUP(Vlookup!B219,Volume_Forecast_Data,B$138,FALSE) -> 39.762 | C219: =VLOOKUP(Vlookup!C219,Volume_Forecast_Data,C$138,FALSE) -> 76.812 | D219: =VLOOKUP(Vlookup!D219,Volume_Forecast_Data,D$138,FALSE) -> 149.6622857 | E219: =VLOOKUP(Vlookup!E219,Volume_Forecast_Data,E$138,FALSE) -> 0 | G219: =VLOOKUP(Vlookup!G219,Volume_Forecast_Data,G$138,FALSE) -> 20.6582
A220: LDNO LV: LV Generation Non-Intermittent | B220: =VLOOKUP(Vlookup!B220,Volume_Forecast_Data,B$138,FALSE) -> 0 | C220: =VLOOKUP(Vlookup!C220,Volume_Forecast_Data,C$138,FALSE) -> 0 | D220: =VLOOKUP(Vlookup!D220,Volume_Forecast_Data,D$138,FALSE) -> 0 | E220: =VLOOKUP(Vlookup!E220,Volume_Forecast_Data,E$138,FALSE) -> 0 | G220: =VLOOKUP(Vlookup!G220,Volume_Forecast_Data,G$138,FALSE) -> 0
A221: LDNO HV: LV Generation Non-Intermittent | B221: =VLOOKUP(Vlookup!B221,Volume_Forecast_Data,B$138,FALSE) -> 0 | C221: =VLOOKUP(Vlookup!C221,Volume_Forecast_Data,C$138,FALSE) -> 0 | D221: =VLOOKUP(Vlookup!D221,Volume_Forecast_Data,D$138,FALSE) -> 0 | E221: =VLOOKUP(Vlookup!E221,Volume_Forecast_Data,E$138,FALSE) -> 0 | G221: =VLOOKUP(Vlookup!G221,Volume_Forecast_Data,G$138,FALSE) -> 0
A222: > LV Sub Generation Intermittent
A223: LV Sub Generation Intermittent | B223: =VLOOKUP(Vlookup!B223,Volume_Forecast_Data,B$138,FALSE) -> 467.837 | E223: =VLOOKUP(Vlookup!E223,Volume_Forecast_Data,E$138,FALSE) -> 0 | G223: =VLOOKUP(Vlookup!G223,Volume_Forecast_Data,G$138,FALSE) -> 29.2974
A224: LDNO HV: LV Sub Generation Intermittent | B224: =VLOOKUP(Vlookup!B224,Volume_Forecast_Data,B$138,FALSE) -> 0 | E224: =VLOOKUP(Vlookup!E224,Volume_Forecast_Data,E$138,FALSE) -> 0 | G224: =VLOOKUP(Vlookup!G224,Volume_Forecast_Data,G$138,FALSE) -> 0
A225: > LV Sub Generation Non-Intermittent
A226: LV Sub Generation Non-Intermittent | B226: =VLOOKUP(Vlookup!B226,Volume_Forecast_Data,B$138,FALSE) -> 79.752 | C226: =VLOOKUP(Vlookup!C226,Volume_Forecast_Data,C$138,FALSE) -> 360.129 | D226: =VLOOKUP(Vlookup!D226,Volume_Forecast_Data,D$138,FALSE) -> 792.6185455 | E226: =VLOOKUP(Vlookup!E226,Volume_Forecast_Data,E$138,FALSE) -> 0 | G226: =VLOOKUP(Vlookup!G226,Volume_Forecast_Data,G$138,FALSE) -> 158.12
A227: LDNO HV: LV Sub Generation Non-Intermittent | B227: =VLOOKUP(Vlookup!B227,Volume_Forecast_Data,B$138,FALSE) -> 0 | C227: =VLOOKUP(Vlookup!C227,Volume_Forecast_Data,C$138,FALSE) -> 0 | D227: =VLOOKUP(Vlookup!D227,Volume_Forecast_Data,D$138,FALSE) -> 0 | E227: =VLOOKUP(Vlookup!E227,Volume_Forecast_Data,E$138,FALSE) -> 0 | G227: =VLOOKUP(Vlookup!G227,Volume_Forecast_Data,G$138,FALSE) -> 0
A228: > HV Generation Intermittent
A229: HV Generation Intermittent | B229: =VLOOKUP(Vlookup!B229,Volume_Forecast_Data,B$138,FALSE) -> 34469.501 | E229: =VLOOKUP(Vlookup!E229,Volume_Forecast_Data,E$138,FALSE) -> 31 | G229: =VLOOKUP(Vlookup!G229,Volume_Forecast_Data,G$138,FALSE) -> 1094.707
A230: LDNO HV: HV Generation Intermittent | B230: =VLOOKUP(Vlookup!B230,Volume_Forecast_Data,B$138,FALSE) -> 0 | E230: =VLOOKUP(Vlookup!E230,Volume_Forecast_Data,E$138,FALSE) -> 0 | G230: =VLOOKUP(Vlookup!G230,Volume_Forecast_Data,G$138,FALSE) -> 0
A231: > HV Generation Non-Intermittent
A232: HV Generation Non-Intermittent | B232: =VLOOKUP(Vlookup!B232,Volume_Forecast_Data,B$138,FALSE) -> 11026.647 | C232: =VLOOKUP(Vlookup!C232,Volume_Forecast_Data,C$138,FALSE) -> 69084.033 | D232: =VLOOKUP(Vlookup!D232,Volume_Forecast_Data,D$138,FALSE) -> 98552.637 | E232: =VLOOKUP(Vlookup!E232,Volume_Forecast_Data,E$138,FALSE) -> 47 | G232: =VLOOKUP(Vlookup!G232,Volume_Forecast_Data,G$138,FALSE) -> 713.1782
... 94 more rows

Sheet (Y+1)
A5: 1000. Company, charging year, data version
B7: Company | C7: Year | D7: Version
A8: Company, charging year, data version | B8: =VLOOKUP(Vlookup!B8,Forcast_Data,6,FALSE) -> WPD South West | C8: =VLOOKUP(Vlookup!C8,Forcast_Data,6,FALSE) -> April 2014 | D8: =VLOOKUP(Vlookup!D8,Forcast_Data,6,FALSE) -> 0
A10: 1010. Financial and general assumptions
A12: Sources: financial assumptions; calendar; network model.
A13: These financial assumptions determine the annuity rate applied to convert the asset values of the network model into an annual charge.
B14: Rate of return | C14: Annualisation period (years) | D14: Annuity proportion for customer-contributed assets | E14: Power factor | F14: Days in the charging period
A15: Financial and general assumptions | B15: =VLOOKUP(Vlookup!B15,Forcast_Data,6,FALSE) -> 0.056 | C15: =VLOOKUP(Vlookup!C15,Forcast_Data,6,FALSE) -> 40 | E15: =VLOOKUP(Vlookup!E15,Forcast_Data,6,FALSE) -> 0.95 | F15: =VLOOKUP(Vlookup!F15,Forcast_Data,6,FALSE) -> 365
A17: 1017. Diversity allowance between top and bottom of network level
A19: Source: operational data analysis and/or network model.
A20: The diversity figure against GSP is the diversity between GSP Group (the whole system) and individual GSPs.
A21: The diversity figure against 132kV is the diversity between GSPs (the top of the 132kV network) and 132kV/EHV bulk supply points (the bottom of the 132kV network).
A22: The diversity figure against EHV is the diversity between 132kV/EHV bulk supply points (the top of the EHV network) and EHV/HV primary substations (the bottom of the EHV network).
A23: The diversity figure against HV is the diversity between EHV/HV primary substations (the top of the HV network) and HV/LV substations (the bottom of the HV network).
B24: Diversity allowance between top and bottom of network level
A25: GSPs | B25: =VLOOKUP(Vlookup!B25,Forcast_Data,6,FALSE) -> 0.022
A26: 132kV | B26: =VLOOKUP(Vlookup!B26,Forcast_Data,6,FALSE) -> 0.031
A27: 132kV/EHV
A28: EHV | B28: =VLOOKUP(Vlookup!B28,Forcast_Data,6,FALSE) -> 0.075
A29: EHV/HV
A30: HV | B30: =VLOOKUP(Vlookup!B30,Forcast_Data,6,FALSE) -> 0.37
A31: HV/LV
A32: LV circuits
A34: 1018. Proportion of relevant load going through 132kV/HV direct transformation
B36: 132kV/HV
A37: EHV/HV | B37: =VLOOKUP(Vlookup!B37,Forcast_Data,6,FALSE) -> 0
A39: 1019. Network model GSP peak demand (MW)
B41: Network model GSP peak demand (MW)
A42: Network model GSP peak demand (MW) | B42: =VLOOKUP(Vlookup!B42,Forcast_Data,6,FALSE) -> 500
A44: 1020. Gross asset cost by network level (£)
B46: Gross assets £
A47: 132kV | B47: =VLOOKUP(Vlookup!B47,Forcast_Data,6,FALSE) -> 105833335.4
A48: 132kV/EHV | B48: =VLOOKUP(Vlookup!B48,Forcast_Data,6,FALSE) -> 15763212.11
A49: EHV | B49: =VLOOKUP(Vlookup!B49,Forcast_Data,6,FALSE) -> 46510205.46
A50: EHV/HV | B50: =VLOOKUP(Vlookup!B50,Forcast_Data,6,FALSE) -> 37179765.28
A51: 132kV/HV | B51: =VLOOKUP(Vlookup!B51,Forcast_Data,6,FALSE) -> 0
A52: HV | B52: =VLOOKUP(Vlookup!B52,Forcast_Data,6,FALSE) -> 155422237.4
A53: HV/LV | B53: =VLOOKUP(Vlookup!B53,Forcast_Data,6,FALSE) -> 60655664.03
A54: LV circuits | B54: =VLOOKUP(Vlookup!B54,Forcast_Data,6,FALSE) -> 135264477.9
A56: 1022. LV service model asset cost (£)
B58: LV service model 1 | C58: LV service model 2 | D58: LV service model 3 | E58: LV service model 4 | F58: LV service model 5 | G58: LV service model 6 | H58: LV service model 7 | I58: LV service model 8
A59: LV service model asset cost (£) | B59: =VLOOKUP(Vlookup!B59,Forcast_Data,6,FALSE) -> 4689.776689 | C59: =VLOOKUP(Vlookup!C59,Forcast_Data,6,FALSE) -> 578.9437507 | D59: =VLOOKUP(Vlookup!D59,Forcast_Data,6,FALSE) -> 683.874895 | E59: =VLOOKUP(Vlookup!E59,Forcast_Data,6,FALSE) -> 509.4741107 | F59: =VLOOKUP(Vlookup!F59,Forcast_Data,6,FALSE) -> 1169.036632 | G59: =VLOOKUP(Vlookup!G59,Forcast_Data,6,FALSE) -> 858.6034748 | H59: =VLOOKUP(Vlookup!H59,Forcast_Data,6,FALSE) -> 0 | I59: =VLOOKUP(Vlookup!I59,Forcast_Data,6,FALSE) -> 450.314275
A61: 1023. HV service model asset cost (£)
B63: HV service model 1 | C63: HV service model 2 | D63: HV service model 3 | E63: HV service model 4 | F63: HV service model 5
A64: HV service model asset cost (£) | B64: =VLOOKUP(Vlookup!B64,Forcast_Data,6,FALSE) -> 8748.377769 | C64: =VLOOKUP(Vlookup!C64,Forcast_Data,6,FALSE) -> 4299.3136 | D64: =VLOOKUP(Vlookup!D64,Forcast_Data,6,FALSE) -> - | E64: =VLOOKUP(Vlookup!E64,Forcast_Data,6,FALSE) -> - | F64: =VLOOKUP(Vlookup!F64,Forcast_Data,6,FALSE) -> -
A66: 1025. Matrix of applicability of LV service models to tariffs with fixed charges
B67: 10 | C67: =B67+1 -> 11 | D67: =C67+1 -> 12 | E67: 13 | F67: 14 | G67: 15 | H67: 16 | I67: 17
B68: LV service model 1 | C68: LV service model 2 | D68: LV service model 3 | E68: LV service model 4 | F68: LV service model 5 | G68: LV service model 6 | H68: LV service model 7 | I68: LV service model 8
A69: Domestic Unrestricted | B69: =VLOOKUP($A69,'Mat of App'!$B$7:$AP$38,B$67,FALSE) -> 0.05 | C69: =VLOOKUP($A69,'Mat of App'!$B$7:$AP$38,C$67,FALSE) -> 0 | D69: =VLOOKUP($A69,'Mat of App'!$B$7:$AP$38,D$67,FALSE) -> 0 | E69: =VLOOKUP($A69,'Mat of App'!$B$7:$AP$38,E$67,FALSE) -> 0 | F69: =VLOOKUP($A69,'Mat of App'!$B$7:$AP$38,F$67,FALSE) -> 0 | G69: =VLOOKUP($A69,'Mat of App'!$B$7:$AP$38,G$67,FALSE) -> 0 | H69: =VLOOKUP($A69,'Mat of App'!$B$7:$AP$38,H$67,FALSE) -> 0 | I69: =VLOOKUP($A69,'Mat of App'!$B$7:$AP$38,I$67,FALSE) -> 0
A70: Domestic Two Rate | B70: =VLOOKUP($A70,'Mat of App'!$B$7:$AP$38,B$67,FALSE) -> 0.05 | C70: =VLOOKUP($A70,'Mat of App'!$B$7:$AP$38,C$67,FALSE) -> 0 | D70: =VLOOKUP($A70,'Mat of App'!$B$7:$AP$38,D$67,FALSE) -> 0 | E70: =VLOOKUP($A70,'Mat of App'!$B$7:$AP$38,E$67,FALSE) -> 0 | F70: =VLOOKUP($A70,'Mat of App'!$B$7:$AP$38,F$67,FALSE) -> 0 | G70: =VLOOKUP($A70,'Mat of App'!$B$7:$AP$38,G$67,FALSE) -> 0 | H70: =VLOOKUP($A70,'Mat of App'!$B$7:$AP$38,H$67,FALSE) -> 0 | I70: =VLOOKUP($A70,'Mat of App'!$B$7:$AP$38,I$67,FALSE) -> 0
A71: Small Non Domestic Unrestricted | B71: =VLOOKUP($A71,'Mat of App'!$B$7:$AP$38,B$67,FALSE) -> 0 | C71: =VLOOKUP($A71,'Mat of App'!$B$7:$AP$38,C$67,FALSE) -> 1 | D71: =VLOOKUP($A71,'Mat of App'!$B$7:$AP$38,D$67,FALSE) -> 0 | E71: =VLOOKUP($A71,'Mat of App'!$B$7:$AP$38,E$67,FALSE) -> 0 | F71: =VLOOKUP($A71,'Mat of App'!$B$7:$AP$38,F$67,FALSE) -> 0 | G71: =VLOOKUP($A71,'Mat of App'!$B$7:$AP$38,G$67,FALSE) -> 0 | H71: =VLOOKUP($A71,'Mat of App'!$B$7:$AP$38,H$67,FALSE) -> 0 | I71: =VLOOKUP($A71,'Mat of App'!$B$7:$AP$38,I$67,FALSE) -> 0
A72: Small Non Domestic Two Rate | B72: =VLOOKUP($A72,'Mat of App'!$B$7:$AP$38,B$67,FALSE) -> 0 | C72: =VLOOKUP($A72,'Mat of App'!$B$7:$AP$38,C$67,FALSE) -> 1 | D72: =VLOOKUP($A72,'Mat of App'!$B$7:$AP$38,D$67,FALSE) -> 0 | E72: =VLOOKUP($A72,'Mat of App'!$B$7:$AP$38,E$67,FALSE) -> 0 | F72: =VLOOKUP($A72,'Mat of App'!$B$7:$AP$38,F$67,FALSE) -> 0 | G72: =VLOOKUP($A72,'Mat of App'!$B$7:$AP$38,G$67,FALSE) -> 0 | H72: =VLOOKUP($A72,'Mat of App'!$B$7:$AP$38,H$67,FALSE) -> 0 | I72: =VLOOKUP($A72,'Mat of App'!$B$7:$AP$38,I$67,FALSE) -> 0
A73: LV Medium Non-Domestic | B73: =VLOOKUP($A73,'Mat of App'!$B$7:$AP$38,B$67,FALSE) -> 0 | C73: =VLOOKUP($A73,'Mat of App'!$B$7:$AP$38,C$67,FALSE) -> 0 | D73: =VLOOKUP($A73,'Mat of App'!$B$7:$AP$38,D$67,FALSE) -> 1 | E73: =VLOOKUP($A73,'Mat of App'!$B$7:$AP$38,E$67,FALSE) -> 0 | F73: =VLOOKUP($A73,'Mat of App'!$B$7:$AP$38,F$67,FALSE) -> 0 | G73: =VLOOKUP($A73,'Mat of App'!$B$7:$AP$38,G$67,FALSE) -> 0 | H73: =VLOOKUP($A73,'Mat of App'!$B$7:$AP$38,H$67,FALSE) -> 0 | I73: =VLOOKUP($A73,'Mat of App'!$B$7:$AP$38,I$67,FALSE) -> 0
A74: LV Sub Medium Non-Domestic | B74: =VLOOKUP($A74,'Mat of App'!$B$7:$AP$38,B$67,FALSE) -> 0 | C74: =VLOOKUP($A74,'Mat of App'!$B$7:$AP$38,C$67,FALSE) -> 0 | D74: =VLOOKUP($A74,'Mat of App'!$B$7:$AP$38,D$67,FALSE) -> 0 | E74: =VLOOKUP($A74,'Mat of App'!$B$7:$AP$38,E$67,FALSE) -> 1 | F74: =VLOOKUP($A74,'Mat of App'!$B$7:$AP$38,F$67,FALSE) -> 0 | G74: =VLOOKUP($A74,'Mat of App'!$B$7:$AP$38,G$67,FALSE) -> 0 | H74: =VLOOKUP($A74,'Mat of App'!$B$7:$AP$38,H$67,FALSE) -> 0 | I74: =VLOOKUP($A74,'Mat of App'!$B$7:$AP$38,I$67,FALSE) -> 0
A75: LV HH Metered | B75: =VLOOKUP($A75,'Mat of App'!$B$7:$AP$38,B$67,FALSE) -> 0 | C75: =VLOOKUP($A75,'Mat of App'!$B$7:$AP$38,C$67,FALSE) -> 0 | D75: =VLOOKUP($A75,'Mat of App'!$B$7:$AP$38,D$67,FALSE) -> 0 | E75: =VLOOKUP($A75,'Mat of App'!$B$7:$AP$38,E$67,FALSE) -> 0 | F75: =VLOOKUP($A75,'Mat of App'!$B$7:$AP$38,F$67,FALSE) -> 1 | G75: =VLOOKUP($A75,'Mat of App'!$B$7:$AP$38,G$67,FALSE) -> 0 | H75: =VLOOKUP($A75,'Mat of App'!$B$7:$AP$38,H$67,FALSE) -> 0 | I75: =VLOOKUP($A75,'Mat of App'!$B$7:$AP$38,I$67,FALSE) -> 0
A76: LV Sub HH Metered | B76: =VLOOKUP($A76,'Mat of App'!$B$7:$AP$38,B$67,FALSE) -> 0 | C76: =VLOOKUP($A76,'Mat of App'!$B$7:$AP$38,C$67,FALSE) -> 0 | D76: =VLOOKUP($A76,'Mat of App'!$B$7:$AP$38,D$67,FALSE) -> 0 | E76: =VLOOKUP($A76,'Mat of App'!$B$7:$AP$38,E$67,FALSE) -> 0 | F76: =VLOOKUP($A76,'Mat of App'!$B$7:$AP$38,F$67,FALSE) -> 0 | G76: =VLOOKUP($A76,'Mat of App'!$B$7:$AP$38,G$67,FALSE) -> 1 | H76: =VLOOKUP($A76,'Mat of App'!$B$7:$AP$38,H$67,FALSE) -> 0 | I76: =VLOOKUP($A76,'Mat of App'!$B$7:$AP$38,I$67,FALSE) -> 0
A77: LV Generation NHH | B77: =VLOOKUP($A77,'Mat of App'!$B$7:$AP$38,B$67,FALSE) -> 0 | C77: =VLOOKUP($A77,'Mat of App'!$B$7:$AP$38,C$67,FALSE) -> 0 | D77: =VLOOKUP($A77,'Mat of App'!$B$7:$AP$38,D$67,FALSE) -> 0 | E77: =VLOOKUP($A77,'Mat of App'!$B$7:$AP$38,E$67,FALSE) -> 0 | F77: =VLOOKUP($A77,'Mat of App'!$B$7:$AP$38,F$67,FALSE) -> 0 | G77: =VLOOKUP($A77,'Mat of App'!$B$7:$AP$38,G$67,FALSE) -> 0 | H77: =VLOOKUP($A77,'Mat of App'!$B$7:$AP$38,H$67,FALSE) -> 1 | I77: =VLOOKUP($A77,'Mat of App'!$B$7:$AP$38,I$67,FALSE) -> 0
A78: LV Sub Generation NHH | B78: =VLOOKUP($A78,'Mat of App'!$B$7:$AP$38,B$67,FALSE) -> 0 | C78: =VLOOKUP($A78,'Mat of App'!$B$7:$AP$38,C$67,FALSE) -> 0 | D78: =VLOOKUP($A78,'Mat of App'!$B$7:$AP$38,D$67,FALSE) -> 0 | E78: =VLOOKUP($A78,'Mat of App'!$B$7:$AP$38,E$67,FALSE) -> 0 | F78: =VLOOKUP($A78,'Mat of App'!$B$7:$AP$38,F$67,FALSE) -> 0 | G78: =VLOOKUP($A78,'Mat of App'!$B$7:$AP$38,G$67,FALSE) -> 0 | H78: =VLOOKUP($A78,'Mat of App'!$B$7:$AP$38,H$67,FALSE) -> 1 | I78: =VLOOKUP($A78,'Mat of App'!$B$7:$AP$38,I$67,FALSE) -> 0
A79: LV Generation Intermittent | B79: =VLOOKUP($A79,'Mat of App'!$B$7:$AP$38,B$67,FALSE) -> 0 | C79: =VLOOKUP($A79,'Mat of App'!$B$7:$AP$38,C$67,FALSE) -> 0 | D79: =VLOOKUP($A79,'Mat of App'!$B$7:$AP$38,D$67,FALSE) -> 0 | E79: =VLOOKUP($A79,'Mat of App'!$B$7:$AP$38,E$67,FALSE) -> 0 | F79: =VLOOKUP($A79,'Mat of App'!$B$7:$AP$38,F$67,FALSE) -> 0 | G79: =VLOOKUP($A79,'Mat of App'!$B$7:$AP$38,G$67,FALSE) -> 0 | H79: =VLOOKUP($A79,'Mat of App'!$B$7:$AP$38,H$67,FALSE) -> 1 | I79: =VLOOKUP($A79,'Mat of App'!$B$7:$AP$38,I$67,FALSE) -> 0
A80: LV Generation Non-Intermittent | B80: =VLOOKUP($A80,'Mat of App'!$B$7:$AP$38,B$67,FALSE) -> 0 | C80: =VLOOKUP($A80,'Mat of App'!$B$7:$AP$38,C$67,FALSE) -> 0 | D80: =VLOOKUP($A80,'Mat of App'!$B$7:$AP$38,D$67,FALSE) -> 0 | E80: =VLOOKUP($A80,'Mat of App'!$B$7:$AP$38,E$67,FALSE) -> 0 | F80: =VLOOKUP($A80,'Mat of App'!$B$7:$AP$38,F$67,FALSE) -> 0 | G80: =VLOOKUP($A80,'Mat of App'!$B$7:$AP$38,G$67,FALSE) -> 0 | H80: =VLOOKUP($A80,'Mat of App'!$B$7:$AP$38,H$67,FALSE) -> 0 | I80: =VLOOKUP($A80,'Mat of App'!$B$7:$AP$38,I$67,FALSE) -> 0
A81: LV Sub Generation Intermittent | B81: =VLOOKUP($A81,'Mat of App'!$B$7:$AP$38,B$67,FALSE) -> 0 | C81: =VLOOKUP($A81,'Mat of App'!$B$7:$AP$38,C$67,FALSE) -> 0 | D81: =VLOOKUP($A81,'Mat of App'!$B$7:$AP$38,D$67,FALSE) -> 0 | E81: =VLOOKUP($A81,'Mat of App'!$B$7:$AP$38,E$67,FALSE) -> 0 | F81: =VLOOKUP($A81,'Mat of App'!$B$7:$AP$38,F$67,FALSE) -> 0 | G81: =VLOOKUP($A81,'Mat of App'!$B$7:$AP$38,G$67,FALSE) -> 0 | H81: =VLOOKUP($A81,'Mat of App'!$B$7:$AP$38,H$67,FALSE) -> 0 | I81: =VLOOKUP($A81,'Mat of App'!$B$7:$AP$38,I$67,FALSE) -> 0
A82: LV Sub Generation Non-Intermittent | B82: =VLOOKUP($A82,'Mat of App'!$B$7:$AP$38,B$67,FALSE) -> 0 | C82: =VLOOKUP($A82,'Mat of App'!$B$7:$AP$38,C$67,FALSE) -> 0 | D82: =VLOOKUP($A82,'Mat of App'!$B$7:$AP$38,D$67,FALSE) -> 0 | E82: =VLOOKUP($A82,'Mat of App'!$B$7:$AP$38,E$67,FALSE) -> 0 | F82: =VLOOKUP($A82,'Mat of App'!$B$7:$AP$38,F$67,FALSE) -> 0 | G82: =VLOOKUP($A82,'Mat of App'!$B$7:$AP$38,G$67,FALSE) -> 0 | H82: =VLOOKUP($A82,'Mat of App'!$B$7:$AP$38,H$67,FALSE) -> 0 | I82: =VLOOKUP($A82,'Mat of App'!$B$7:$AP$38,I$67,FALSE) -> 0
A84: 1026. Matrix of applicability of LV service models to unmetered tariffs
A86: Source: service models
A87: Proportion of service model involved in connecting load of 1 MWh/year
B88: LV service model 1 | C88: LV service model 2 | D88: LV service model 3 | E88: LV service model 4 | F88: LV service model 5 | G88: LV service model 6 | H88: LV service model 7 | I88: LV service model 8
A89: All LV unmetered tariffs | B89: =VLOOKUP($A89,'Mat of App'!$B$7:$AP$38,B$67,FALSE) -> 0 | C89: =VLOOKUP($A89,'Mat of App'!$B$7:$AP$38,C$67,FALSE) -> 0 | D89: =VLOOKUP($A89,'Mat of App'!$B$7:$AP$38,D$67,FALSE) -> 0 | E89: =VLOOKUP($A89,'Mat of App'!$B$7:$AP$38,E$67,FALSE) -> 0 | F89: =VLOOKUP($A89,'Mat of App'!$B$7:$AP$38,F$67,FALSE) -> 0 | G89: =VLOOKUP($A89,'Mat of App'!$B$7:$AP$38,G$67,FALSE) -> 0 | H89: =VLOOKUP($A89,'Mat of App'!$B$7:$AP$38,H$67,FALSE) -> 0 | I89: =VLOOKUP($A89,'Mat of App'!$B$7:$AP$38,I$67,FALSE) -> 0.4876
A91: 1028. Matrix of applicability of HV service models to tariffs with fixed charges
B92: 7 | C92: =B92+1 -> 8 | D92: =C92+1 -> 9 | E92: 10 | F92: 11
B93: HV service model 1 | C93: HV service model 2 | D93: HV service model 3 | E93: HV service model 4 | F93: HV service model 5
A94: HV Medium Non-Domestic | B94: =VLOOKUP($A94,'Mat of App'!$B$7:$AP$38,B$92,FALSE) -> 1 | C94: =VLOOKUP($A94,'Mat of App'!$B$7:$AP$38,C$92,FALSE) -> 0 | D94: =VLOOKUP($A94,'Mat of App'!$B$7:$AP$38,D$92,FALSE) -> 0 | E94: =VLOOKUP($A94,'Mat of App'!$B$7:$AP$38,E$92,FALSE) -> 0 | F94: =VLOOKUP($A94,'Mat of App'!$B$7:$AP$38,F$92,FALSE) -> 0
A95: HV HH Metered | B95: =VLOOKUP($A95,'Mat of App'!$B$7:$AP$38,B$92,FALSE) -> 1 | C95: =VLOOKUP($A95,'Mat of App'!$B$7:$AP$38,C$92,FALSE) -> 0 | D95: =VLOOKUP($A95,'Mat of App'!$B$7:$AP$38,D$92,FALSE) -> 0 | E95: =VLOOKUP($A95,'Mat of App'!$B$7:$AP$38,E$92,FALSE) -> 0 | F95: =VLOOKUP($A95,'Mat of App'!$B$7:$AP$38,F$92,FALSE) -> 0
A96: HV Sub HH Metered | B96: =VLOOKUP($A96,'Mat of App'!$B$7:$AP$38,B$92,FALSE) -> 1 | C96: =VLOOKUP($A96,'Mat of App'!$B$7:$AP$38,C$92,FALSE) -> 0 | D96: =VLOOKUP($A96,'Mat of App'!$B$7:$AP$38,D$92,FALSE) -> 0 | E96: =VLOOKUP($A96,'Mat of App'!$B$7:$AP$38,E$92,FALSE) -> 0 | F96: =VLOOKUP($A96,'Mat of App'!$B$7:$AP$38,F$92,FALSE) -> 0
A97: HV Generation Intermittent | B97: =VLOOKUP($A97,'Mat of App'!$B$7:$AP$38,B$92,FALSE) -> 0 | C97: =VLOOKUP($A97,'Mat of App'!$B$7:$AP$38,C$92,FALSE) -> 1 | D97: =VLOOKUP($A97,'Mat of App'!$B$7:$AP$38,D$92,FALSE) -> 0 | E97: =VLOOKUP($A97,'Mat of App'!$B$7:$AP$38,E$92,FALSE) -> 0 | F97: =VLOOKUP($A97,'Mat of App'!$B$7:$AP$38,F$92,FALSE) -> 0
A98: HV Generation Non-Intermittent | B98: =VLOOKUP($A98,'Mat of App'!$B$7:$AP$38,B$92,FALSE) -> 0 | C98: =VLOOKUP($A98,'Mat of App'!$B$7:$AP$38,C$92,FALSE) -> 1 | D98: =VLOOKUP($A98,'Mat of App'!$B$7:$AP$38,D$92,FALSE) -> 0 | E98: =VLOOKUP($A98,'Mat of App'!$B$7:$AP$38,E$92,FALSE) -> 0 | F98: =VLOOKUP($A98,'Mat of App'!$B$7:$AP$38,F$92,FALSE) -> 0
A99: HV Sub Generation Non-Intermittent | B99: =VLOOKUP($A99,'Mat of App'!$B$7:$AP$38,B$92,FALSE) -> 0 | C99: =VLOOKUP($A99,'Mat of App'!$B$7:$AP$38,C$92,FALSE) -> 1 | D99: =VLOOKUP($A99,'Mat of App'!$B$7:$AP$38,D$92,FALSE) -> 0 | E99: =VLOOKUP($A99,'Mat of App'!$B$7:$AP$38,E$92,FALSE) -> 0 | F99: =VLOOKUP($A99,'Mat of App'!$B$7:$AP$38,F$92,FALSE) -> 0
A100: HV Sub Generation Intermittent | B100: =VLOOKUP($A100,'Mat of App'!$B$7:$AP$38,B$92,FALSE) -> 0 | C100: =VLOOKUP($A100,'Mat of App'!$B$7:$AP$38,C$92,FALSE) -> 1 | D100: =VLOOKUP($A100,'Mat of App'!$B$7:$AP$38,D$92,FALSE) -> 0 | E100: =VLOOKUP($A100,'Mat of App'!$B$7:$AP$38,E$92,FALSE) -> 0 | F100: =VLOOKUP($A100,'Mat of App'!$B$7:$AP$38,F$92,FALSE) -> 0
A102: 1032. Loss adjustment factors to transmission
A104: Source: losses model or loss adjustment factors at time of system peak.
B105: 132kV | C105: 132kV/EHV | D105: EHV | E105: EHV/HV | F105: HV | G105: HV/LV | H105: LV circuits
A106: Loss adjustment factor | B106: =VLOOKUP(Vlookup!B106,Forcast_Data,6,FALSE) -> 1.013 | C106: =VLOOKUP(Vlookup!C106,Forcast_Data,6,FALSE) -> 1.017 | D106: =VLOOKUP(Vlookup!D106,Forcast_Data,6,FALSE) -> 1.032 | E106: =VLOOKUP(Vlookup!E106,Forcast_Data,6,FALSE) -> 1.042 | F106: =VLOOKUP(Vlookup!F106,Forcast_Data,6,FALSE) -> 1.065 | G106: =VLOOKUP(Vlookup!G106,Forcast_Data,6,FALSE) -> 1.078 | H106: =VLOOKUP(Vlookup!H106,Forcast_Data,6,FALSE) -> 1.087
A108: 1037. Embedded network (LDNO) discounts
A110: Source: separate price control disaggregation model.
B111: No discount | C111: LDNO LV: LV user | D111: LDNO HV: LV user | E111: LDNO HV: LV sub user | F111: LDNO HV: HV user
A112: LDNO discount | C112: =VLOOKUP(Vlookup!C112,Forcast_Data,6,FALSE) -> 0.3580021725 | D112: =VLOOKUP(Vlookup!D112,Forcast_Data,6,FALSE) -> 0.6121303874 | E112: =VLOOKUP(Vlookup!E112,Forcast_Data,6,FALSE) -> 0.3773090501 | F112: =VLOOKUP(Vlookup!F112,Forcast_Data,6,FALSE) -> 0.2678469175
A114: 1041. Load profile data for demand users
A116: Source: load data analysis.
B117: Coincidence factor | C117: Load factor
A118: Domestic Unrestricted | B118: =VLOOKUP(Vlookup!B118,Forcast_Data,6,FALSE) -> 0.9110931172 | C118: =VLOOKUP(Vlookup!C118,Forcast_Data,6,FALSE) -> 0.3992113024
A119: Domestic Two Rate | B119: =VLOOKUP(Vlookup!B119,Forcast_Data,6,FALSE) -> 0.3144256013 | C119: =VLOOKUP(Vlookup!C119,Forcast_Data,6,FALSE) -> 0.2187041838
A120: Domestic Off Peak (related MPAN) | C120: =VLOOKUP(Vlookup!C120,Forcast_Data,6,FALSE) -> 0.1367858009
A121: Small Non Domestic Unrestricted | B121: =VLOOKUP(Vlookup!B121,Forcast_Data,6,FALSE) -> 0.6277145101 | C121: =VLOOKUP(Vlookup!C121,Forcast_Data,6,FALSE) -> 0.3620931243
A122: Small Non Domestic Two Rate | B122: =VLOOKUP(Vlookup!B122,Forcast_Data,6,FALSE) -> 0.5306730516 | C122: =VLOOKUP(Vlookup!C122,Forcast_Data,6,FALSE) -> 0.3950566623
A123: Small Non Domestic Off Peak (related MPAN) | C123: =VLOOKUP(Vlookup!C123,Forcast_Data,6,FALSE) -> 0.2258067728
A124: LV Medium Non-Domestic | B124: =VLOOKUP(Vlookup!B124,Forcast_Data,6,FALSE) -> 0.8006161179 | C124: =VLOOKUP(Vlookup!C124,Forcast_Data,6,FALSE) -> 0.5594720869
A125: LV Sub Medium Non-Domestic | B125: =VLOOKUP(Vlookup!B125,Forcast_Data,6,FALSE) -> 0.7829460721 | C125: =VLOOKUP(Vlookup!C125,Forcast_Data,6,FALSE) -> 0.5684359804
A126: HV Medium Non-Domestic | B126: =VLOOKUP(Vlookup!B126,Forcast_Data,6,FALSE) -> 0.7512811282 | C126: =VLOOKUP(Vlookup!C126,Forcast_Data,6,FALSE) -> 0.409929049
A127: LV HH Metered | B127: =VLOOKUP(Vlookup!B127,Forcast_Data,6,FALSE) -> 0.8145064582 | C127: =VLOOKUP(Vlookup!C127,Forcast_Data,6,FALSE) -> 0.580821256
A128: LV Sub HH Metered | B128: =VLOOKUP(Vlookup!B128,Forcast_Data,6,FALSE) -> 0.782726117 | C128: =VLOOKUP(Vlookup!C128,Forcast_Data,6,FALSE) -> 0.6075756983
A129: HV HH Metered | B129: =VLOOKUP(Vlookup!B129,Forcast_Data,6,FALSE) -> 0.8113670182 | C129: =VLOOKUP(Vlookup!C129,Forcast_Data,6,FALSE) -> 0.7201136334
A130: HV Sub HH Metered | B130: =VLOOKUP(Vlookup!B130,Forcast_Data,6,FALSE) -> 0.4992999836 | C130: =VLOOKUP(Vlookup!C130,Forcast_Data,6,FALSE) -> 0.5610911178
A131: NHH UMS category A | B131: =VLOOKUP(Vlookup!B131,Forcast_Data,6,FALSE) -> 1 | C131: =VLOOKUP(Vlookup!C131,Forcast_Data,6,FALSE) -> 1
A132: NHH UMS category B | B132: =VLOOKUP(Vlookup!B132,Forcast_Data,6,FALSE) -> 1 | C132: =VLOOKUP(Vlookup!C132,Forcast_Data,6,FALSE) -> 0.4743289155
A133: NHH UMS category C | B133: =VLOOKUP(Vlookup!B133,Forcast_Data,6,FALSE) -> 1 | C133: =VLOOKUP(Vlookup!C133,Forcast_Data,6,FALSE) -> 0.2537152397
A134: NHH UMS category D | B134: =VLOOKUP(Vlookup!B134,Forcast_Data,6,FALSE) -> 0.02906666667 | C134: =VLOOKUP(Vlookup!C134,Forcast_Data,6,FALSE) -> 0.553
A135: LV UMS (Pseudo HH Metered) | B135: =VLOOKUP(Vlookup!B135,Forcast_Data,6,FALSE) -> 0.9230565392 | C135: =VLOOKUP(Vlookup!C135,Forcast_Data,6,FALSE) -> 0.4774652203
A137: 1053. Volume forecasts for the charging year
B138: 10 | C138: 11 | D138: 12 | E138: 13 | F138: 14 | G138: 15
A139: Source: forecast.
A140: Please include MPAN counts for tariffs with no fixed charge (e.g. off-peak tariffs),
A141: but exclude MPANs on tariffs with a fixed charge that are not subject to a fixed charge due to a site grouping arrangement.
B142: Rate 1 units (MWh) | C142: Rate 2 units (MWh) | D142: Rate 3 units (MWh) | E142: MPANs | F142: Import capacity (kVA) | G142: Reactive power units (MVArh)
A143: > Domestic Unrestricted
A144: Domestic Unrestricted | B144: =VLOOKUP(Vlookup!B144,Volume_Forecast_Data,B$138,FALSE) -> 4201166.081 | E144: =VLOOKUP(Vlookup!E144,Volume_Forecast_Data,E$138,FALSE) -> 1184937.05
A145: LDNO LV: Domestic Unrestricted | B145: =VLOOKUP(Vlookup!B145,Volume_Forecast_Data,B$138,FALSE) -> 2175.9012 | E145: =VLOOKUP(Vlookup!E145,Volume_Forecast_Data,E$138,FALSE) -> 1428.14
A146: LDNO HV: Domestic Unrestricted | B146: =VLOOKUP(Vlookup!B146,Volume_Forecast_Data,B$138,FALSE) -> 3837.35979 | E146: =VLOOKUP(Vlookup!E146,Volume_Forecast_Data,E$138,FALSE) -> 1870.52
A147: > Domestic Two Rate
A148: Domestic Two Rate | B148: =VLOOKUP(Vlookup!B148,Volume_Forecast_Data,B$138,FALSE) -> 712617.9715 | C148: =VLOOKUP(Vlookup!C148,Volume_Forecast_Data,C$138,FALSE) -> 742062.9455 | E148: =VLOOKUP(Vlookup!E148,Volume_Forecast_Data,E$138,FALSE) -> 235436.05
A149: LDNO LV: Domestic Two Rate | B149: =VLOOKUP(Vlookup!B149,Volume_Forecast_Data,B$138,FALSE) -> 178.47819 | C149: =VLOOKUP(Vlookup!C149,Volume_Forecast_Data,C$138,FALSE) -> 176.94666 | E149: =VLOOKUP(Vlookup!E149,Volume_Forecast_Data,E$138,FALSE) -> 53.53
A150: LDNO HV: Domestic Two Rate | B150: =VLOOKUP(Vlookup!B150,Volume_Forecast_Data,B$138,FALSE) -> 138.84651 | C150: =VLOOKUP(Vlookup!C150,Volume_Forecast_Data,C$138,FALSE) -> 94.44303 | E150: =VLOOKUP(Vlookup!E150,Volume_Forecast_Data,E$138,FALSE) -> 154.53
A151: > Domestic Off Peak (related MPAN)
A152: Domestic Off Peak (related MPAN) | B152: =VLOOKUP(Vlookup!B152,Volume_Forecast_Data,B$138,FALSE) -> 72299.95553 | E152: =VLOOKUP(Vlookup!E152,Volume_Forecast_Data,E$138,FALSE) -> 0
A153: LDNO LV: Domestic Off Peak (related MPAN) | B153: =VLOOKUP(Vlookup!B153,Volume_Forecast_Data,B$138,FALSE) -> 0 | E153: =VLOOKUP(Vlookup!E153,Volume_Forecast_Data,E$138,FALSE) -> 0
A154: LDNO HV: Domestic Off Peak (related MPAN) | B154: =VLOOKUP(Vlookup!B154,Volume_Forecast_Data,B$138,FALSE) -> 0 | E154: =VLOOKUP(Vlookup!E154,Volume_Forecast_Data,E$138,FALSE) -> 0
A155: > Small Non Domestic Unrestricted
A156: Small Non Domestic Unrestricted | B156: =VLOOKUP(Vlookup!B156,Volume_Forecast_Data,B$138,FALSE) -> 1156274.657 | E156: =VLOOKUP(Vlookup!E156,Volume_Forecast_Data,E$138,FALSE) -> 107661.96
A157: LDNO LV: Small Non Domestic Unrestricted | B157: =VLOOKUP(Vlookup!B157,Volume_Forecast_Data,B$138,FALSE) -> 208.23561 | E157: =VLOOKUP(Vlookup!E157,Volume_Forecast_Data,E$138,FALSE) -> 53.53
A158: LDNO HV: Small Non Domestic Unrestricted | B158: =VLOOKUP(Vlookup!B158,Volume_Forecast_Data,B$138,FALSE) -> 5655.30669 | E158: =VLOOKUP(Vlookup!E158,Volume_Forecast_Data,E$138,FALSE) -> 128.27
A159: > Small Non Domestic Two Rate
A160: Small Non Domestic Two Rate | B160: =VLOOKUP(Vlookup!B160,Volume_Forecast_Data,B$138,FALSE) -> 349149.0133 | C160: =VLOOKUP(Vlookup!C160,Volume_Forecast_Data,C$138,FALSE) -> 171390.3239 | E160: =VLOOKUP(Vlookup!E160,Volume_Forecast_Data,E$138,FALSE) -> 26762.98
A161: LDNO LV: Small Non Domestic Two Rate | B161: =VLOOKUP(Vlookup!B161,Volume_Forecast_Data,B$138,FALSE) -> 6.62112 | C161: =VLOOKUP(Vlookup!C161,Volume_Forecast_Data,C$138,FALSE) -> 4.50648 | E161: =VLOOKUP(Vlookup!E161,Volume_Forecast_Data,E$138,FALSE) -> 0
A162: LDNO HV: Small Non Domestic Two Rate | B162: =VLOOKUP(Vlookup!B162,Volume_Forecast_Data,B$138,FALSE) -> 368.23743 | C162: =VLOOKUP(Vlookup!C162,Volume_Forecast_Data,C$138,FALSE) -> 98.21196 | E162: =VLOOKUP(Vlookup!E162,Volume_Forecast_Data,E$138,FALSE) -> 8.08
A163: > Small Non Domestic Off Peak (related MPAN)
A164: Small Non Domestic Off Peak (related MPAN) | B164: =VLOOKUP(Vlookup!B164,Volume_Forecast_Data,B$138,FALSE) -> 25768.77748 | E164: =VLOOKUP(Vlookup!E164,Volume_Forecast_Data,E$138,FALSE) -> 0
A165: LDNO LV: Small Non Domestic Off Peak (related MPAN) | B165: =VLOOKUP(Vlookup!B165,Volume_Forecast_Data,B$138,FALSE) -> 0 | E165: =VLOOKUP(Vlookup!E165,Volume_Forecast_Data,E$138,FALSE) -> 0
A166: LDNO HV: Small Non Domestic Off Peak (related MPAN) | B166: =VLOOKUP(Vlookup!B166,Volume_Forecast_Data,B$138,FALSE) -> 0 | E166: =VLOOKUP(Vlookup!E166,Volume_Forecast_Data,E$138,FALSE) -> 0
A167: > LV Medium Non-Domestic
A168: LV Medium Non-Domestic | B168: =VLOOKUP(Vlookup!B168,Volume_Forecast_Data,B$138,FALSE) -> 701194.1514 | C168: =VLOOKUP(Vlookup!C168,Volume_Forecast_Data,C$138,FALSE) -> 173169.3946 | E168: =VLOOKUP(Vlookup!E168,Volume_Forecast_Data,E$138,FALSE) -> 9234.43
A169: LDNO LV: LV Medium Non-Domestic | B169: =VLOOKUP(Vlookup!B169,Volume_Forecast_Data,B$138,FALSE) -> 0 | C169: =VLOOKUP(Vlookup!C169,Volume_Forecast_Data,C$138,FALSE) -> 0 | E169: =VLOOKUP(Vlookup!E169,Volume_Forecast_Data,E$138,FALSE) -> 0
A170: LDNO HV: LV Medium Non-Domestic | B170: =VLOOKUP(Vlookup!B170,Volume_Forecast_Data,B$138,FALSE) -> 3730.08438 | C170: =VLOOKUP(Vlookup!C170,Volume_Forecast_Data,C$138,FALSE) -> 629.04897 | E170: =VLOOKUP(Vlookup!E170,Volume_Forecast_Data,E$138,FALSE) -> 16.16
A171: > LV Sub Medium Non-Domestic
A172: LV Sub Medium Non-Domestic | B172: =VLOOKUP(Vlookup!B172,Volume_Forecast_Data,B$138,FALSE) -> 76541.47686 | C172: =VLOOKUP(Vlookup!C172,Volume_Forecast_Data,C$138,FALSE) -> 21355.85088 | E172: =VLOOKUP(Vlookup!E172,Volume_Forecast_Data,E$138,FALSE) -> 756.49
A173: > HV Medium Non-Domestic
A174: HV Medium Non-Domestic | B174: =VLOOKUP(Vlookup!B174,Volume_Forecast_Data,B$138,FALSE) -> 2283.212767 | C174: =VLOOKUP(Vlookup!C174,Volume_Forecast_Data,C$138,FALSE) -> 611.1531059 | E174: =VLOOKUP(Vlookup!E174,Volume_Forecast_Data,E$138,FALSE) -> 22.22
A175: > LV HH Metered
A176: LV HH Metered | B176: =VLOOKUP(Vlookup!B176,Volume_Forecast_Data,B$138,FALSE) -> 52771.07028 | C176: =VLOOKUP(Vlookup!C176,Volume_Forecast_Data,C$138,FALSE) -> 378973.2786 | D176: =VLOOKUP(Vlookup!D176,Volume_Forecast_Data,D$138,FALSE) -> 320386.5649 | E176: =VLOOKUP(Vlookup!E176,Volume_Forecast_Data,E$138,FALSE) -> 2852.24 | F176: =VLOOKUP(Vlookup!F176,Volume_Forecast_Data,F$138,FALSE) -> 365000 | G176: =VLOOKUP(Vlookup!G176,Volume_Forecast_Data,G$138,FALSE) -> 74360
A177: LDNO LV: LV HH Metered | B177: =VLOOKUP(Vlookup!B177,Volume_Forecast_Data,B$138,FALSE) -> 5.094213898 | C177: =VLOOKUP(Vlookup!C177,Volume_Forecast_Data,C$138,FALSE) -> 36.58003389 | D177: =VLOOKUP(Vlookup!D177,Volume_Forecast_Data,D$138,FALSE) -> 30.91172061 | E177: =VLOOKUP(Vlookup!E177,Volume_Forecast_Data,E$138,FALSE) -> 0 | F177: =VLOOKUP(Vlookup!F177,Volume_Forecast_Data,F$138,FALSE) -> 0 | G177: =VLOOKUP(Vlookup!G177,Volume_Forecast_Data,G$138,FALSE) -> 0
A178: LDNO HV: LV HH Metered | B178: =VLOOKUP(Vlookup!B178,Volume_Forecast_Data,B$138,FALSE) -> 1450.12431 | C178: =VLOOKUP(Vlookup!C178,Volume_Forecast_Data,C$138,FALSE) -> 10419.58579 | D178: =VLOOKUP(Vlookup!D178,Volume_Forecast_Data,D$138,FALSE) -> 8809.98479 | E178: =VLOOKUP(Vlookup!E178,Volume_Forecast_Data,E$138,FALSE) -> 0 | F178: =VLOOKUP(Vlookup!F178,Volume_Forecast_Data,F$138,FALSE) -> 0 | G178: =VLOOKUP(Vlookup!G178,Volume_Forecast_Data,G$138,FALSE) -> 0
A179: > LV Sub HH Metered
A180: LV Sub HH Metered | B180: =VLOOKUP(Vlookup!B180,Volume_Forecast_Data,B$138,FALSE) -> 49084.26704 | C180: =VLOOKUP(Vlookup!C180,Volume_Forecast_Data,C$138,FALSE) -> 365806.6965 | D180: =VLOOKUP(Vlookup!D180,Volume_Forecast_Data,D$138,FALSE) -> 330442.7533 | E180: =VLOOKUP(Vlookup!E180,Volume_Forecast_Data,E$138,FALSE) -> 1331.18 | F180: =VLOOKUP(Vlookup!F180,Volume_Forecast_Data,F$138,FALSE) -> 329000 | G180: =VLOOKUP(Vlookup!G180,Volume_Forecast_Data,G$138,FALSE) -> 80945
A181: LDNO HV: LV Sub HH Metered | B181: =VLOOKUP(Vlookup!B181,Volume_Forecast_Data,B$138,FALSE) -> 0 | C181: =VLOOKUP(Vlookup!C181,Volume_Forecast_Data,C$138,FALSE) -> 0 | D181: =VLOOKUP(Vlookup!D181,Volume_Forecast_Data,D$138,FALSE) -> 0 | E181: =VLOOKUP(Vlookup!E181,Volume_Forecast_Data,E$138,FALSE) -> 0 | F181: =VLOOKUP(Vlookup!F181,Volume_Forecast_Data,F$138,FALSE) -> 0 | G181: =VLOOKUP(Vlookup!G181,Volume_Forecast_Data,G$138,FALSE) -> 0
A182: > HV HH Metered
A183: HV HH Metered | B183: =VLOOKUP(Vlookup!B183,Volume_Forecast_Data,B$138,FALSE) -> 175470.0817 | C183: =VLOOKUP(Vlookup!C183,Volume_Forecast_Data,C$138,FALSE) -> 1254555.459 | D183: =VLOOKUP(Vlookup!D183,Volume_Forecast_Data,D$138,FALSE) -> 1324783.205 | E183: =VLOOKUP(Vlookup!E183,Volume_Forecast_Data,E$138,FALSE) -> 932.23 | F183: =VLOOKUP(Vlookup!F183,Volume_Forecast_Data,F$138,FALSE) -> 973000 | G183: =VLOOKUP(Vlookup!G183,Volume_Forecast_Data,G$138,FALSE) -> 218608
A184: LDNO HV: HV HH Metered | B184: =VLOOKUP(Vlookup!B184,Volume_Forecast_Data,B$138,FALSE) -> 1.697693447 | C184: =VLOOKUP(Vlookup!C184,Volume_Forecast_Data,C$138,FALSE) -> 12.17489656 | D184: =VLOOKUP(Vlookup!D184,Volume_Forecast_Data,D$138,FALSE) -> 13.59753399 | E184: =VLOOKUP(Vlookup!E184,Volume_Forecast_Data,E$138,FALSE) -> 0 | F184: =VLOOKUP(Vlookup!F184,Volume_Forecast_Data,F$138,FALSE) -> 0 | G184: =VLOOKUP(Vlookup!G184,Volume_Forecast_Data,G$138,FALSE) -> 0
A185: > HV Sub HH Metered
A186: HV Sub HH Metered | B186: =VLOOKUP(Vlookup!B186,Volume_Forecast_Data,B$138,FALSE) -> 0 | C186: =VLOOKUP(Vlookup!C186,Volume_Forecast_Data,C$138,FALSE) -> 0 | D186: =VLOOKUP(Vlookup!D186,Volume_Forecast_Data,D$138,FALSE) -> 0 | E186: =VLOOKUP(Vlookup!E186,Volume_Forecast_Data,E$138,FALSE) -> 0 | F186: =VLOOKUP(Vlookup!F186,Volume_Forecast_Data,F$138,FALSE) -> 0 | G186: =VLOOKUP(Vlookup!G186,Volume_Forecast_Data,G$138,FALSE) -> 0
A187: > NHH UMS category A
A188: NHH UMS category A | B188: =VLOOKUP(Vlookup!B188,Volume_Forecast_Data,B$138,FALSE) -> 16572.74758 | E188: =VLOOKUP(Vlookup!E188,Volume_Forecast_Data,E$138,FALSE) -> 0
A189: LDNO LV: NHH UMS category A | B189: =VLOOKUP(Vlookup!B189,Volume_Forecast_Data,B$138,FALSE) -> 3.259575 | E189: =VLOOKUP(Vlookup!E189,Volume_Forecast_Data,E$138,FALSE) -> 0
A190: LDNO HV: NHH UMS category A | B190: =VLOOKUP(Vlookup!B190,Volume_Forecast_Data,B$138,FALSE) -> 73.68346745 | E190: =VLOOKUP(Vlookup!E190,Volume_Forecast_Data,E$138,FALSE) -> 0
A191: > NHH UMS category B
A192: NHH UMS category B | B192: =VLOOKUP(Vlookup!B192,Volume_Forecast_Data,B$138,FALSE) -> 5761.978519 | E192: =VLOOKUP(Vlookup!E192,Volume_Forecast_Data,E$138,FALSE) -> 0
A193: LDNO LV: NHH UMS category B | B193: =VLOOKUP(Vlookup!B193,Volume_Forecast_Data,B$138,FALSE) -> 1.086525 | E193: =VLOOKUP(Vlookup!E193,Volume_Forecast_Data,E$138,FALSE) -> 0
A194: LDNO HV: NHH UMS category B | B194: =VLOOKUP(Vlookup!B194,Volume_Forecast_Data,B$138,FALSE) -> 25.61811519 | E194: =VLOOKUP(Vlookup!E194,Volume_Forecast_Data,E$138,FALSE) -> 0
A195: > NHH UMS category C
A196: NHH UMS category C | B196: =VLOOKUP(Vlookup!B196,Volume_Forecast_Data,B$138,FALSE) -> 641.81453 | E196: =VLOOKUP(Vlookup!E196,Volume_Forecast_Data,E$138,FALSE) -> 0
A197: LDNO LV: NHH UMS category C | B197: =VLOOKUP(Vlookup!B197,Volume_Forecast_Data,B$138,FALSE) -> 0 | E197: =VLOOKUP(Vlookup!E197,Volume_Forecast_Data,E$138,FALSE) -> 0
A198: LDNO HV: NHH UMS category C | B198: =VLOOKUP(Vlookup!B198,Volume_Forecast_Data,B$138,FALSE) -> 2.853547355 | E198: =VLOOKUP(Vlookup!E198,Volume_Forecast_Data,E$138,FALSE) -> 0
A199: > NHH UMS category D
A200: NHH UMS category D | B200: =VLOOKUP(Vlookup!B200,Volume_Forecast_Data,B$138,FALSE) -> 0 | E200: =VLOOKUP(Vlookup!E200,Volume_Forecast_Data,E$138,FALSE) -> 0
A201: LDNO LV: NHH UMS category D | B201: =VLOOKUP(Vlookup!B201,Volume_Forecast_Data,B$138,FALSE) -> 0 | E201: =VLOOKUP(Vlookup!E201,Volume_Forecast_Data,E$138,FALSE) -> 0
A202: LDNO HV: NHH UMS category D | B202: =VLOOKUP(Vlookup!B202,Volume_Forecast_Data,B$138,FALSE) -> 0 | E202: =VLOOKUP(Vlookup!E202,Volume_Forecast_Data,E$138,FALSE) -> 0
A203: > LV UMS (Pseudo HH Metered)
A204: LV UMS (Pseudo HH Metered) | B204: =VLOOKUP(Vlookup!B204,Volume_Forecast_Data,B$138,FALSE) -> 4299.42109 | C204: =VLOOKUP(Vlookup!C204,Volume_Forecast_Data,C$138,FALSE) -> 28323.1785 | D204: =VLOOKUP(Vlookup!D204,Volume_Forecast_Data,D$138,FALSE) -> 104576.0738 | E204: =VLOOKUP(Vlookup!E204,Volume_Forecast_Data,E$138,FALSE) -> 0
A205: LDNO LV: LV UMS (Pseudo HH Metered) | B205: =VLOOKUP(Vlookup!B205,Volume_Forecast_Data,B$138,FALSE) -> 0 | C205: =VLOOKUP(Vlookup!C205,Volume_Forecast_Data,C$138,FALSE) -> 0 | D205: =VLOOKUP(Vlookup!D205,Volume_Forecast_Data,D$138,FALSE) -> 0 | E205: =VLOOKUP(Vlookup!E205,Volume_Forecast_Data,E$138,FALSE) -> 0
A206: LDNO HV: LV UMS (Pseudo HH Metered) | B206: =VLOOKUP(Vlookup!B206,Volume_Forecast_Data,B$138,FALSE) -> 0 | C206: =VLOOKUP(Vlookup!C206,Volume_Forecast_Data,C$138,FALSE) -> 0 | D206: =VLOOKUP(Vlookup!D206,Volume_Forecast_Data,D$138,FALSE) -> 0 | E206: =VLOOKUP(Vlookup!E206,Volume_Forecast_Data,E$138,FALSE) -> 0
A207: > LV Generation NHH
A208: LV Generation NHH | B208: =VLOOKUP(Vlookup!B208,Volume_Forecast_Data,B$138,FALSE) -> 1239.777 | E208: =VLOOKUP(Vlookup!E208,Volume_Forecast_Data,E$138,FALSE) -> 0
A209: LDNO LV: LV Generation NHH | B209: =VLOOKUP(Vlookup!B209,Volume_Forecast_Data,B$138,FALSE) -> 61.3602 | E209: =VLOOKUP(Vlookup!E209,Volume_Forecast_Data,E$138,FALSE) -> 0
A210: LDNO HV: LV Generation NHH | B210: =VLOOKUP(Vlookup!B210,Volume_Forecast_Data,B$138,FALSE) -> 0 | E210: =VLOOKUP(Vlookup!E210,Volume_Forecast_Data,E$138,FALSE) -> 0
A211: > LV Sub Generation NHH
A212: LV Sub Generation NHH | B212: =VLOOKUP(Vlookup!B212,Volume_Forecast_Data,B$138,FALSE) -> 0 | E212: =VLOOKUP(Vlookup!E212,Volume_Forecast_Data,E$138,FALSE) -> 0
A213: LDNO HV: LV Sub Generation NHH | B213: =VLOOKUP(Vlookup!B213,Volume_Forecast_Data,B$138,FALSE) -> 0 | E213: =VLOOKUP(Vlookup!E213,Volume_Forecast_Data,E$138,FALSE) -> 0
A214: > LV Generation Intermittent
A215: LV Generation Intermittent | B215: =VLOOKUP(Vlookup!B215,Volume_Forecast_Data,B$138,FALSE) -> 11006.37252 | E215: =VLOOKUP(Vlookup!E215,Volume_Forecast_Data,E$138,FALSE) -> 0 | G215: =VLOOKUP(Vlookup!G215,Volume_Forecast_Data,G$138,FALSE) -> 166.0368
A216: LDNO LV: LV Generation Intermittent | B216: =VLOOKUP(Vlookup!B216,Volume_Forecast_Data,B$138,FALSE) -> 0 | E216: =VLOOKUP(Vlookup!E216,Volume_Forecast_Data,E$138,FALSE) -> 0 | G216: =VLOOKUP(Vlookup!G216,Volume_Forecast_Data,G$138,FALSE) -> 0
A217: LDNO HV: LV Generation Intermittent | B217: =VLOOKUP(Vlookup!B217,Volume_Forecast_Data,B$138,FALSE) -> 0 | E217: =VLOOKUP(Vlookup!E217,Volume_Forecast_Data,E$138,FALSE) -> 0 | G217: =VLOOKUP(Vlookup!G217,Volume_Forecast_Data,G$138,FALSE) -> 0
A218: > LV Generation Non-Intermittent
A219: LV Generation Non-Intermittent | B219: =VLOOKUP(Vlookup!B219,Volume_Forecast_Data,B$138,FALSE) -> 39.36438 | C219: =VLOOKUP(Vlookup!C219,Volume_Forecast_Data,C$138,FALSE) -> 76.04388 | D219: =VLOOKUP(Vlookup!D219,Volume_Forecast_Data,D$138,FALSE) -> 148.1656629 | E219: =VLOOKUP(Vlookup!E219,Volume_Forecast_Data,E$138,FALSE) -> 0 | G219: =VLOOKUP(Vlookup!G219,Volume_Forecast_Data,G$138,FALSE) -> 20.6582
A220: LDNO LV: LV Generation Non-Intermittent | B220: =VLOOKUP(Vlookup!B220,Volume_Forecast_Data,B$138,FALSE) -> 0 | C220: =VLOOKUP(Vlookup!C220,Volume_Forecast_Data,C$138,FALSE) -> 0 | D220: =VLOOKUP(Vlookup!D220,Volume_Forecast_Data,D$138,FALSE) -> 0 | E220: =VLOOKUP(Vlookup!E220,Volume_Forecast_Data,E$138,FALSE) -> 0 | G220: =VLOOKUP(Vlookup!G220,Volume_Forecast_Data,G$138,FALSE) -> 0
A221: LDNO HV: LV Generation Non-Intermittent | B221: =VLOOKUP(Vlookup!B221,Volume_Forecast_Data,B$138,FALSE) -> 0 | C221: =VLOOKUP(Vlookup!C221,Volume_Forecast_Data,C$138,FALSE) -> 0 | D221: =VLOOKUP(Vlookup!D221,Volume_Forecast_Data,D$138,FALSE) -> 0 | E221: =VLOOKUP(Vlookup!E221,Volume_Forecast_Data,E$138,FALSE) -> 0 | G221: =VLOOKUP(Vlookup!G221,Volume_Forecast_Data,G$138,FALSE) -> 0
A222: > LV Sub Generation Intermittent
A223: LV Sub Generation Intermittent | B223: =VLOOKUP(Vlookup!B223,Volume_Forecast_Data,B$138,FALSE) -> 463.15863 | E223: =VLOOKUP(Vlookup!E223,Volume_Forecast_Data,E$138,FALSE) -> 0 | G223: =VLOOKUP(Vlookup!G223,Volume_Forecast_Data,G$138,FALSE) -> 29.2974
A224: LDNO HV: LV Sub Generation Intermittent | B224: =VLOOKUP(Vlookup!B224,Volume_Forecast_Data,B$138,FALSE) -> 0 | E224: =VLOOKUP(Vlookup!E224,Volume_Forecast_Data,E$138,FALSE) -> 0 | G224: =VLOOKUP(Vlookup!G224,Volume_Forecast_Data,G$138,FALSE) -> 0
A225: > LV Sub Generation Non-Intermittent
A226: LV Sub Generation Non-Intermittent | B226: =VLOOKUP(Vlookup!B226,Volume_Forecast_Data,B$138,FALSE) -> 78.95448 | C226: =VLOOKUP(Vlookup!C226,Volume_Forecast_Data,C$138,FALSE) -> 356.52771 | D226: =VLOOKUP(Vlookup!D226,Volume_Forecast_Data,D$138,FALSE) -> 784.69236 | E226: =VLOOKUP(Vlookup!E226,Volume_Forecast_Data,E$138,FALSE) -> 0 | G226: =VLOOKUP(Vlookup!G226,Volume_Forecast_Data,G$138,FALSE) -> 158.12
A227: LDNO HV: LV Sub Generation Non-Intermittent | B227: =VLOOKUP(Vlookup!B227,Volume_Forecast_Data,B$138,FALSE) -> 0 | C227: =VLOOKUP(Vlookup!C227,Volume_Forecast_Data,C$138,FALSE) -> 0 | D227: =VLOOKUP(Vlookup!D227,Volume_Forecast_Data,D$138,FALSE) -> 0 | E227: =VLOOKUP(Vlookup!E227,Volume_Forecast_Data,E$138,FALSE) -> 0 | G227: =VLOOKUP(Vlookup!G227,Volume_Forecast_Data,G$138,FALSE) -> 0
A228: > HV Generation Intermittent
A229: HV Generation Intermittent | B229: =VLOOKUP(Vlookup!B229,Volume_Forecast_Data,B$138,FALSE) -> 34124.80599 | E229: =VLOOKUP(Vlookup!E229,Volume_Forecast_Data,E$138,FALSE) -> 31.31 | G229: =VLOOKUP(Vlookup!G229,Volume_Forecast_Data,G$138,FALSE) -> 1094.707
A230: LDNO HV: HV Generation Intermittent | B230: =VLOOKUP(Vlookup!B230,Volume_Forecast_Data,B$138,FALSE) -> 0 | E230: =VLOOKUP(Vlookup!E230,Volume_Forecast_Data,E$138,FALSE) -> 0 | G230: =VLOOKUP(Vlookup!G230,Volume_Forecast_Data,G$138,FALSE) -> 0
... 96 more rows

Sheet (Y+2)
A5: 1000. Company, charging year, data version
B7: Company | C7: Year | D7: Version
A8: Company, charging year, data version | B8: =VLOOKUP(Vlookup!B8,Forcast_Data,7,FALSE) -> WPD South West | C8: =VLOOKUP(Vlookup!C8,Forcast_Data,7,FALSE) -> April 2015 | D8: =VLOOKUP(Vlookup!D8,Forcast_Data,7,FALSE) -> 0
A10: 1010. Financial and general assumptions
A12: Sources: financial assumptions; calendar; network model.
A13: These financial assumptions determine the annuity rate applied to convert the asset values of the network model into an annual charge.
B14: Rate of return | C14: Annualisation period (years) | D14: Annuity proportion for customer-contributed assets | E14: Power factor | F14: Days in the charging period
A15: Financial and general assumptions | B15: =VLOOKUP(Vlookup!B15,Forcast_Data,7,FALSE) -> 0.056 | C15: =VLOOKUP(Vlookup!C15,Forcast_Data,7,FALSE) -> 40 | E15: =VLOOKUP(Vlookup!E15,Forcast_Data,7,FALSE) -> 0.95 | F15: =VLOOKUP(Vlookup!F15,Forcast_Data,7,FALSE) -> 366
A17: 1017. Diversity allowance between top and bottom of network level
A19: Source: operational data analysis and/or network model.
A20: The diversity figure against GSP is the diversity between GSP Group (the whole system) and individual GSPs.
A21: The diversity figure against 132kV is the diversity between GSPs (the top of the 132kV network) and 132kV/EHV bulk supply points (the bottom of the 132kV network).
A22: The diversity figure against EHV is the diversity between 132kV/EHV bulk supply points (the top of the EHV network) and EHV/HV primary substations (the bottom of the EHV network).
A23: The diversity figure against HV is the diversity between EHV/HV primary substations (the top of the HV network) and HV/LV substations (the bottom of the HV network).
B24: Diversity allowance between top and bottom of network level
A25: GSPs | B25: =VLOOKUP(Vlookup!B25,Forcast_Data,7,FALSE) -> 0.022
A26: 132kV | B26: =VLOOKUP(Vlookup!B26,Forcast_Data,7,FALSE) -> 0.031
A27: 132kV/EHV
A28: EHV | B28: =VLOOKUP(Vlookup!B28,Forcast_Data,7,FALSE) -> 0.075
A29: EHV/HV
A30: HV | B30: =VLOOKUP(Vlookup!B30,Forcast_Data,7,FALSE) -> 0.37
A31: HV/LV
A32: LV circuits
A34: 1018. Proportion of relevant load going through 132kV/HV direct transformation
B36: 132kV/HV
A37: EHV/HV | B37: =VLOOKUP(Vlookup!B37,Forcast_Data,7,FALSE) -> 0
A39: 1019. Network model GSP peak demand (MW)
B41: Network model GSP peak demand (MW)
A42: Network model GSP peak demand (MW) | B42: =VLOOKUP(Vlookup!B42,Forcast_Data,7,FALSE) -> 500
A44: 1020. Gross asset cost by network level (£)
B46: Gross assets £
A47: 132kV | B47: =VLOOKUP(Vlookup!B47,Forcast_Data,7,FALSE) -> 107950002.1
A48: 132kV/EHV | B48: =VLOOKUP(Vlookup!B48,Forcast_Data,7,FALSE) -> 16078476.35
A49: EHV | B49: =VLOOKUP(Vlookup!B49,Forcast_Data,7,FALSE) -> 47440409.57
A50: EHV/HV | B50: =VLOOKUP(Vlookup!B50,Forcast_Data,7,FALSE) -> 37923360.59
A51: 132kV/HV | B51: =VLOOKUP(Vlookup!B51,Forcast_Data,7,FALSE) -> 0
A52: HV | B52: =VLOOKUP(Vlookup!B52,Forcast_Data,7,FALSE) -> 158530682.1
A53: HV/LV | B53: =VLOOKUP(Vlookup!B53,Forcast_Data,7,FALSE) -> 61868777.31
A54: LV circuits | B54: =VLOOKUP(Vlookup!B54,Forcast_Data,7,FALSE) -> 137969767.5
A56: 1022. LV service model asset cost (£)
B58: LV service model 1 | C58: LV service model 2 | D58: LV service model 3 | E58: LV service model 4 | F58: LV service model 5 | G58: LV service model 6 | H58: LV service model 7 | I58: LV service model 8
A59: LV service model asset cost (£) | B59: =VLOOKUP(Vlookup!B59,Forcast_Data,7,FALSE) -> 4783.572223 | C59: =VLOOKUP(Vlookup!C59,Forcast_Data,7,FALSE) -> 590.5226258 | D59: =VLOOKUP(Vlookup!D59,Forcast_Data,7,FALSE) -> 697.5523929 | E59: =VLOOKUP(Vlookup!E59,Forcast_Data,7,FALSE) -> 519.6635929 | F59: =VLOOKUP(Vlookup!F59,Forcast_Data,7,FALSE) -> 1192.417365 | G59: =VLOOKUP(Vlookup!G59,Forcast_Data,7,FALSE) -> 875.7755442 | H59: =VLOOKUP(Vlookup!H59,Forcast_Data,7,FALSE) -> - | I59: =VLOOKUP(Vlookup!I59,Forcast_Data,7,FALSE) -> 459.3205605
A61: 1023. HV service model asset cost (£)
B63: HV service model 1 | C63: HV service model 2 | D63: HV service model 3 | E63: HV service model 4 | F63: HV service model 5
A64: HV service model asset cost (£) | B64: =VLOOKUP(Vlookup!B64,Forcast_Data,7,FALSE) -> 8923.345324 | C64: =VLOOKUP(Vlookup!C64,Forcast_Data,7,FALSE) -> 4385.299872 | D64: =VLOOKUP(Vlookup!D64,Forcast_Data,7,FALSE) -> - | E64: =VLOOKUP(Vlookup!E64,Forcast_Data,7,FALSE) -> - | F64: =VLOOKUP(Vlookup!F64,Forcast_Data,7,FALSE) -> -
A66: 1025. Matrix of applicability of LV service models to tariffs with fixed charges
B67: 18 | C67: =B67+1 -> 19 | D67: =C67+1 -> 20 | E67: 21 | F67: 22 | G67: 23 | H67: 24 | I67: 25
B68: LV service model 1 | C68: LV service model 2 | D68: LV service model 3 | E68: LV service model 4 | F68: LV service model 5 | G68: LV service model 6 | H68: LV service model 7 | I68: LV service model 8
A69: Domestic Unrestricted | B69: =VLOOKUP($A69,'Mat of App'!$B$7:$AP$38,B$67,FALSE) -> 0.05 | C69: =VLOOKUP($A69,'Mat of App'!$B$7:$AP$38,C$67,FALSE) -> 0 | D69: =VLOOKUP($A69,'Mat of App'!$B$7:$AP$38,D$67,FALSE) -> 0 | E69: =VLOOKUP($A69,'Mat of App'!$B$7:$AP$38,E$67,FALSE) -> 0 | F69: =VLOOKUP($A69,'Mat of App'!$B$7:$AP$38,F$67,FALSE) -> 0 | G69: =VLOOKUP($A69,'Mat of App'!$B$7:$AP$38,G$67,FALSE) -> 0 | H69: =VLOOKUP($A69,'Mat of App'!$B$7:$AP$38,H$67,FALSE) -> 0 | I69: =VLOOKUP($A69,'Mat of App'!$B$7:$AP$38,I$67,FALSE) -> 0
A70: Domestic Two Rate | B70: =VLOOKUP($A70,'Mat of App'!$B$7:$AP$38,B$67,FALSE) -> 0.05 | C70: =VLOOKUP($A70,'Mat of App'!$B$7:$AP$38,C$67,FALSE) -> 0 | D70: =VLOOKUP($A70,'Mat of App'!$B$7:$AP$38,D$67,FALSE) -> 0 | E70: =VLOOKUP($A70,'Mat of App'!$B$7:$AP$38,E$67,FALSE) -> 0 | F70: =VLOOKUP($A70,'Mat of App'!$B$7:$AP$38,F$67,FALSE) -> 0 | G70: =VLOOKUP($A70,'Mat of App'!$B$7:$AP$38,G$67,FALSE) -> 0 | H70: =VLOOKUP($A70,'Mat of App'!$B$7:$AP$38,H$67,FALSE) -> 0 | I70: =VLOOKUP($A70,'Mat of App'!$B$7:$AP$38,I$67,FALSE) -> 0
A71: Small Non Domestic Unrestricted | B71: =VLOOKUP($A71,'Mat of App'!$B$7:$AP$38,B$67,FALSE) -> 0 | C71: =VLOOKUP($A71,'Mat of App'!$B$7:$AP$38,C$67,FALSE) -> 1 | D71: =VLOOKUP($A71,'Mat of App'!$B$7:$AP$38,D$67,FALSE) -> 0 | E71: =VLOOKUP($A71,'Mat of App'!$B$7:$AP$38,E$67,FALSE) -> 0 | F71: =VLOOKUP($A71,'Mat of App'!$B$7:$AP$38,F$67,FALSE) -> 0 | G71: =VLOOKUP($A71,'Mat of App'!$B$7:$AP$38,G$67,FALSE) -> 0 | H71: =VLOOKUP($A71,'Mat of App'!$B$7:$AP$38,H$67,FALSE) -> 0 | I71: =VLOOKUP($A71,'Mat of App'!$B$7:$AP$38,I$67,FALSE) -> 0
A72: Small Non Domestic Two Rate | B72: =VLOOKUP($A72,'Mat of App'!$B$7:$AP$38,B$67,FALSE) -> 0 | C72: =VLOOKUP($A72,'Mat of App'!$B$7:$AP$38,C$67,FALSE) -> 1 | D72: =VLOOKUP($A72,'Mat of App'!$B$7:$AP$38,D$67,FALSE) -> 0 | E72: =VLOOKUP($A72,'Mat of App'!$B$7:$AP$38,E$67,FALSE) -> 0 | F72: =VLOOKUP($A72,'Mat of App'!$B$7:$AP$38,F$67,FALSE) -> 0 | G72: =VLOOKUP($A72,'Mat of App'!$B$7:$AP$38,G$67,FALSE) -> 0 | H72: =VLOOKUP($A72,'Mat of App'!$B$7:$AP$38,H$67,FALSE) -> 0 | I72: =VLOOKUP($A72,'Mat of App'!$B$7:$AP$38,I$67,FALSE) -> 0
A73: LV Medium Non-Domestic | B73: =VLOOKUP($A73,'Mat of App'!$B$7:$AP$38,B$67,FALSE) -> 0 | C73: =VLOOKUP($A73,'Mat of App'!$B$7:$AP$38,C$67,FALSE) -> 0 | D73: =VLOOKUP($A73,'Mat of App'!$B$7:$AP$38,D$67,FALSE) -> 1 | E73: =VLOOKUP($A73,'Mat of App'!$B$7:$AP$38,E$67,FALSE) -> 0 | F73: =VLOOKUP($A73,'Mat of App'!$B$7:$AP$38,F$67,FALSE) -> 0 | G73: =VLOOKUP($A73,'Mat of App'!$B$7:$AP$38,G$67,FALSE) -> 0 | H73: =VLOOKUP($A73,'Mat of App'!$B$7:$AP$38,H$67,FALSE) -> 0 | I73: =VLOOKUP($A73,'Mat of App'!$B$7:$AP$38,I$67,FALSE) -> 0
A74: LV Sub Medium Non-Domestic | B74: =VLOOKUP($A74,'Mat of App'!$B$7:$AP$38,B$67,FALSE) -> 0 | C74: =VLOOKUP($A74,'Mat of App'!$B$7:$AP$38,C$67,FALSE) -> 0 | D74: =VLOOKUP($A74,'Mat of App'!$B$7:$AP$38,D$67,FALSE) -> 0 | E74: =VLOOKUP($A74,'Mat of App'!$B$7:$AP$38,E$67,FALSE) -> 1 | F74: =VLOOKUP($A74,'Mat of App'!$B$7:$AP$38,F$67,FALSE) -> 0 | G74: =VLOOKUP($A74,'Mat of App'!$B$7:$AP$38,G$67,FALSE) -> 0 | H74: =VLOOKUP($A74,'Mat of App'!$B$7:$AP$38,H$67,FALSE) -> 0 | I74: =VLOOKUP($A74,'Mat of App'!$B$7:$AP$38,I$67,FALSE) -> 0
A75: LV HH Metered | B75: =VLOOKUP($A75,'Mat of App'!$B$7:$AP$38,B$67,FALSE) -> 0 | C75: =VLOOKUP($A75,'Mat of App'!$B$7:$AP$38,C$67,FALSE) -> 0 | D75: =VLOOKUP($A75,'Mat of App'!$B$7:$AP$38,D$67,FALSE) -> 0 | E75: =VLOOKUP($A75,'Mat of App'!$B$7:$AP$38,E$67,FALSE) -> 0 | F75: =VLOOKUP($A75,'Mat of App'!$B$7:$AP$38,F$67,FALSE) -> 1 | G75: =VLOOKUP($A75,'Mat of App'!$B$7:$AP$38,G$67,FALSE) -> 0 | H75: =VLOOKUP($A75,'Mat of App'!$B$7:$AP$38,H$67,FALSE) -> 0 | I75: =VLOOKUP($A75,'Mat of App'!$B$7:$AP$38,I$67,FALSE) -> 0
A76: LV Sub HH Metered | B76: =VLOOKUP($A76,'Mat of App'!$B$7:$AP$38,B$67,FALSE) -> 0 | C76: =VLOOKUP($A76,'Mat of App'!$B$7:$AP$38,C$67,FALSE) -> 0 | D76: =VLOOKUP($A76,'Mat of App'!$B$7:$AP$38,D$67,FALSE) -> 0 | E76: =VLOOKUP($A76,'Mat of App'!$B$7:$AP$38,E$67,FALSE) -> 0 | F76: =VLOOKUP($A76,'Mat of App'!$B$7:$AP$38,F$67,FALSE) -> 0 | G76: =VLOOKUP($A76,'Mat of App'!$B$7:$AP$38,G$67,FALSE) -> 1 | H76: =VLOOKUP($A76,'Mat of App'!$B$7:$AP$38,H$67,FALSE) -> 0 | I76: =VLOOKUP($A76,'Mat of App'!$B$7:$AP$38,I$67,FALSE) -> 0
A77: LV Generation NHH | B77: =VLOOKUP($A77,'Mat of App'!$B$7:$AP$38,B$67,FALSE) -> 0 | C77: =VLOOKUP($A77,'Mat of App'!$B$7:$AP$38,C$67,FALSE) -> 0 | D77: =VLOOKUP($A77,'Mat of App'!$B$7:$AP$38,D$67,FALSE) -> 0 | E77: =VLOOKUP($A77,'Mat of App'!$B$7:$AP$38,E$67,FALSE) -> 0 | F77: =VLOOKUP($A77,'Mat of App'!$B$7:$AP$38,F$67,FALSE) -> 0 | G77: =VLOOKUP($A77,'Mat of App'!$B$7:$AP$38,G$67,FALSE) -> 0 | H77: =VLOOKUP($A77,'Mat of App'!$B$7:$AP$38,H$67,FALSE) -> 1 | I77: =VLOOKUP($A77,'Mat of App'!$B$7:$AP$38,I$67,FALSE) -> 0
A78: LV Sub Generation NHH | B78: =VLOOKUP($A78,'Mat of App'!$B$7:$AP$38,B$67,FALSE) -> 0 | C78: =VLOOKUP($A78,'Mat of App'!$B$7:$AP$38,C$67,FALSE) -> 0 | D78: =VLOOKUP($A78,'Mat of App'!$B$7:$AP$38,D$67,FALSE) -> 0 | E78: =VLOOKUP($A78,'Mat of App'!$B$7:$AP$38,E$67,FALSE) -> 0 | F78: =VLOOKUP($A78,'Mat of App'!$B$7:$AP$38,F$67,FALSE) -> 0 | G78: =VLOOKUP($A78,'Mat of App'!$B$7:$AP$38,G$67,FALSE) -> 0 | H78: =VLOOKUP($A78,'Mat of App'!$B$7:$AP$38,H$67,FALSE) -> 1 | I78: =VLOOKUP($A78,'Mat of App'!$B$7:$AP$38,I$67,FALSE) -> 0
A79: LV Generation Intermittent | B79: =VLOOKUP($A79,'Mat of App'!$B$7:$AP$38,B$67,FALSE) -> 0 | C79: =VLOOKUP($A79,'Mat of App'!$B$7:$AP$38,C$67,FALSE) -> 0 | D79: =VLOOKUP($A79,'Mat of App'!$B$7:$AP$38,D$67,FALSE) -> 0 | E79: =VLOOKUP($A79,'Mat of App'!$B$7:$AP$38,E$67,FALSE) -> 0 | F79: =VLOOKUP($A79,'Mat of App'!$B$7:$AP$38,F$67,FALSE) -> 0 | G79: =VLOOKUP($A79,'Mat of App'!$B$7:$AP$38,G$67,FALSE) -> 0 | H79: =VLOOKUP($A79,'Mat of App'!$B$7:$AP$38,H$67,FALSE) -> 1 | I79: =VLOOKUP($A79,'Mat of App'!$B$7:$AP$38,I$67,FALSE) -> 0
A80: LV Generation Non-Intermittent | B80: =VLOOKUP($A80,'Mat of App'!$B$7:$AP$38,B$67,FALSE) -> 0 | C80: =VLOOKUP($A80,'Mat of App'!$B$7:$AP$38,C$67,FALSE) -> 0 | D80: =VLOOKUP($A80,'Mat of App'!$B$7:$AP$38,D$67,FALSE) -> 0 | E80: =VLOOKUP($A80,'Mat of App'!$B$7:$AP$38,E$67,FALSE) -> 0 | F80: =VLOOKUP($A80,'Mat of App'!$B$7:$AP$38,F$67,FALSE) -> 0 | G80: =VLOOKUP($A80,'Mat of App'!$B$7:$AP$38,G$67,FALSE) -> 0 | H80: =VLOOKUP($A80,'Mat of App'!$B$7:$AP$38,H$67,FALSE) -> 0 | I80: =VLOOKUP($A80,'Mat of App'!$B$7:$AP$38,I$67,FALSE) -> 0
A81: LV Sub Generation Intermittent | B81: =VLOOKUP($A81,'Mat of App'!$B$7:$AP$38,B$67,FALSE) -> 0 | C81: =VLOOKUP($A81,'Mat of App'!$B$7:$AP$38,C$67,FALSE) -> 0 | D81: =VLOOKUP($A81,'Mat of App'!$B$7:$AP$38,D$67,FALSE) -> 0 | E81: =VLOOKUP($A81,'Mat of App'!$B$7:$AP$38,E$67,FALSE) -> 0 | F81: =VLOOKUP($A81,'Mat of App'!$B$7:$AP$38,F$67,FALSE) -> 0 | G81: =VLOOKUP($A81,'Mat of App'!$B$7:$AP$38,G$67,FALSE) -> 0 | H81: =VLOOKUP($A81,'Mat of App'!$B$7:$AP$38,H$67,FALSE) -> 0 | I81: =VLOOKUP($A81,'Mat of App'!$B$7:$AP$38,I$67,FALSE) -> 0
A82: LV Sub Generation Non-Intermittent | B82: =VLOOKUP($A82,'Mat of App'!$B$7:$AP$38,B$67,FALSE) -> 0 | C82: =VLOOKUP($A82,'Mat of App'!$B$7:$AP$38,C$67,FALSE) -> 0 | D82: =VLOOKUP($A82,'Mat of App'!$B$7:$AP$38,D$67,FALSE) -> 0 | E82: =VLOOKUP($A82,'Mat of App'!$B$7:$AP$38,E$67,FALSE) -> 0 | F82: =VLOOKUP($A82,'Mat of App'!$B$7:$AP$38,F$67,FALSE) -> 0 | G82: =VLOOKUP($A82,'Mat of App'!$B$7:$AP$38,G$67,FALSE) -> 0 | H82: =VLOOKUP($A82,'Mat of App'!$B$7:$AP$38,H$67,FALSE) -> 0 | I82: =VLOOKUP($A82,'Mat of App'!$B$7:$AP$38,I$67,FALSE) -> 0
A84: 1026. Matrix of applicability of LV service models to unmetered tariffs
A86: Source: service models
A87: Proportion of service model involved in connecting load of 1 MWh/year
B88: LV service model 1 | C88: LV service model 2 | D88: LV service model 3 | E88: LV service model 4 | F88: LV service model 5 | G88: LV service model 6 | H88: LV service model 7 | I88: LV service model 8
A89: All LV unmetered tariffs | B89: =VLOOKUP($A89,'Mat of App'!$B$7:$AP$38,B$67,FALSE) -> 0 | C89: =VLOOKUP($A89,'Mat of App'!$B$7:$AP$38,C$67,FALSE) -> 0 | D89: =VLOOKUP($A89,'Mat of App'!$B$7:$AP$38,D$67,FALSE) -> 0 | E89: =VLOOKUP($A89,'Mat of App'!$B$7:$AP$38,E$67,FALSE) -> 0 | F89: =VLOOKUP($A89,'Mat of App'!$B$7:$AP$38,F$67,FALSE) -> 0 | G89: =VLOOKUP($A89,'Mat of App'!$B$7:$AP$38,G$67,FALSE) -> 0 | H89: =VLOOKUP($A89,'Mat of App'!$B$7:$AP$38,H$67,FALSE) -> 0 | I89: =VLOOKUP($A89,'Mat of App'!$B$7:$AP$38,I$67,FALSE) -> 0.4876
A91: 1028. Matrix of applicability of HV service models to tariffs with fixed charges
B92: 12 | C92: =B92+1 -> 13 | D92: =C92+1 -> 14 | E92: 15 | F92: 16
B93: HV service model 1 | C93: HV service model 2 | D93: HV service model 3 | E93: HV service model 4 | F93: HV service model 5
A94: HV Medium Non-Domestic | B94: =VLOOKUP($A94,'Mat of App'!$B$7:$AP$38,B$92,FALSE) -> 1 | C94: =VLOOKUP($A94,'Mat of App'!$B$7:$AP$38,C$92,FALSE) -> 0 | D94: =VLOOKUP($A94,'Mat of App'!$B$7:$AP$38,D$92,FALSE) -> 0 | E94: =VLOOKUP($A94,'Mat of App'!$B$7:$AP$38,E$92,FALSE) -> 0 | F94: =VLOOKUP($A94,'Mat of App'!$B$7:$AP$38,F$92,FALSE) -> 0
A95: HV HH Metered | B95: =VLOOKUP($A95,'Mat of App'!$B$7:$AP$38,B$92,FALSE) -> 1 | C95: =VLOOKUP($A95,'Mat of App'!$B$7:$AP$38,C$92,FALSE) -> 0 | D95: =VLOOKUP($A95,'Mat of App'!$B$7:$AP$38,D$92,FALSE) -> 0 | E95: =VLOOKUP($A95,'Mat of App'!$B$7:$AP$38,E$92,FALSE) -> 0 | F95: =VLOOKUP($A95,'Mat of App'!$B$7:$AP$38,F$92,FALSE) -> 0
A96: HV Sub HH Metered | B96: =VLOOKUP($A96,'Mat of App'!$B$7:$AP$38,B$92,FALSE) -> 1 | C96: =VLOOKUP($A96,'Mat of App'!$B$7:$AP$38,C$92,FALSE) -> 0 | D96: =VLOOKUP($A96,'Mat of App'!$B$7:$AP$38,D$92,FALSE) -> 0 | E96: =VLOOKUP($A96,'Mat of App'!$B$7:$AP$38,E$92,FALSE) -> 0 | F96: =VLOOKUP($A96,'Mat of App'!$B$7:$AP$38,F$92,FALSE) -> 0
A97: HV Generation Intermittent | B97: =VLOOKUP($A97,'Mat of App'!$B$7:$AP$38,B$92,FALSE) -> 0 | C97: =VLOOKUP($A97,'Mat of App'!$B$7:$AP$38,C$92,FALSE) -> 1 | D97: =VLOOKUP($A97,'Mat of App'!$B$7:$AP$38,D$92,FALSE) -> 0 | E97: =VLOOKUP($A97,'Mat of App'!$B$7:$AP$38,E$92,FALSE) -> 0 | F97: =VLOOKUP($A97,'Mat of App'!$B$7:$AP$38,F$92,FALSE) -> 0
A98: HV Generation Non-Intermittent | B98: =VLOOKUP($A98,'Mat of App'!$B$7:$AP$38,B$92,FALSE) -> 0 | C98: =VLOOKUP($A98,'Mat of App'!$B$7:$AP$38,C$92,FALSE) -> 1 | D98: =VLOOKUP($A98,'Mat of App'!$B$7:$AP$38,D$92,FALSE) -> 0 | E98: =VLOOKUP($A98,'Mat of App'!$B$7:$AP$38,E$92,FALSE) -> 0 | F98: =VLOOKUP($A98,'Mat of App'!$B$7:$AP$38,F$92,FALSE) -> 0
A99: HV Sub Generation Non-Intermittent | B99: =VLOOKUP($A99,'Mat of App'!$B$7:$AP$38,B$92,FALSE) -> 0 | C99: =VLOOKUP($A99,'Mat of App'!$B$7:$AP$38,C$92,FALSE) -> 1 | D99: =VLOOKUP($A99,'Mat of App'!$B$7:$AP$38,D$92,FALSE) -> 0 | E99: =VLOOKUP($A99,'Mat of App'!$B$7:$AP$38,E$92,FALSE) -> 0 | F99: =VLOOKUP($A99,'Mat of App'!$B$7:$AP$38,F$92,FALSE) -> 0
A100: HV Sub Generation Intermittent | B100: =VLOOKUP($A100,'Mat of App'!$B$7:$AP$38,B$92,FALSE) -> 0 | C100: =VLOOKUP($A100,'Mat of App'!$B$7:$AP$38,C$92,FALSE) -> 1 | D100: =VLOOKUP($A100,'Mat of App'!$B$7:$AP$38,D$92,FALSE) -> 0 | E100: =VLOOKUP($A100,'Mat of App'!$B$7:$AP$38,E$92,FALSE) -> 0 | F100: =VLOOKUP($A100,'Mat of App'!$B$7:$AP$38,F$92,FALSE) -> 0
A102: 1032. Loss adjustment factors to transmission
A104: Source: losses model or loss adjustment factors at time of system peak.
B105: 132kV | C105: 132kV/EHV | D105: EHV | E105: EHV/HV | F105: HV | G105: HV/LV | H105: LV circuits
A106: Loss adjustment factor | B106: =VLOOKUP(Vlookup!B106,Forcast_Data,7,FALSE) -> 1.013 | C106: =VLOOKUP(Vlookup!C106,Forcast_Data,7,FALSE) -> 1.017 | D106: =VLOOKUP(Vlookup!D106,Forcast_Data,7,FALSE) -> 1.032 | E106: =VLOOKUP(Vlookup!E106,Forcast_Data,7,FALSE) -> 1.042 | F106: =VLOOKUP(Vlookup!F106,Forcast_Data,7,FALSE) -> 1.065 | G106: =VLOOKUP(Vlookup!G106,Forcast_Data,7,FALSE) -> 1.078 | H106: =VLOOKUP(Vlookup!H106,Forcast_Data,7,FALSE) -> 1.087
A108: 1037. Embedded network (LDNO) discounts
A110: Source: separate price control disaggregation model.
B111: No discount | C111: LDNO LV: LV user | D111: LDNO HV: LV user | E111: LDNO HV: LV sub user | F111: LDNO HV: HV user
A112: LDNO discount | C112: =VLOOKUP(Vlookup!C112,Forcast_Data,7,FALSE) -> 0.3580021725 | D112: =VLOOKUP(Vlookup!D112,Forcast_Data,7,FALSE) -> 0.6121303874 | E112: =VLOOKUP(Vlookup!E112,Forcast_Data,7,FALSE) -> 0.3773090501 | F112: =VLOOKUP(Vlookup!F112,Forcast_Data,7,FALSE) -> 0.2678469175
A114: 1041. Load profile data for demand users
A116: Source: load data analysis.
B117: Coincidence factor | C117: Load factor
A118: Domestic Unrestricted | B118: =VLOOKUP(Vlookup!B118,Forcast_Data,7,FALSE) -> 0.9110931172 | C118: =VLOOKUP(Vlookup!C118,Forcast_Data,7,FALSE) -> 0.3992113024
A119: Domestic Two Rate | B119: =VLOOKUP(Vlookup!B119,Forcast_Data,7,FALSE) -> 0.3144256013 | C119: =VLOOKUP(Vlookup!C119,Forcast_Data,7,FALSE) -> 0.2187041838
A120: Domestic Off Peak (related MPAN) | C120: =VLOOKUP(Vlookup!C120,Forcast_Data,7,FALSE) -> 0.1367858009
A121: Small Non Domestic Unrestricted | B121: =VLOOKUP(Vlookup!B121,Forcast_Data,7,FALSE) -> 0.6277145101 | C121: =VLOOKUP(Vlookup!C121,Forcast_Data,7,FALSE) -> 0.3620931243
A122: Small Non Domestic Two Rate | B122: =VLOOKUP(Vlookup!B122,Forcast_Data,7,FALSE) -> 0.5306730516 | C122: =VLOOKUP(Vlookup!C122,Forcast_Data,7,FALSE) -> 0.3950566623
A123: Small Non Domestic Off Peak (related MPAN) | C123: =VLOOKUP(Vlookup!C123,Forcast_Data,7,FALSE) -> 0.2258067728
A124: LV Medium Non-Domestic | B124: =VLOOKUP(Vlookup!B124,Forcast_Data,7,FALSE) -> 0.8006161179 | C124: =VLOOKUP(Vlookup!C124,Forcast_Data,7,FALSE) -> 0.5594720869
A125: LV Sub Medium Non-Domestic | B125: =VLOOKUP(Vlookup!B125,Forcast_Data,7,FALSE) -> 0.7829460721 | C125: =VLOOKUP(Vlookup!C125,Forcast_Data,7,FALSE) -> 0.5684359804
A126: HV Medium Non-Domestic | B126: =VLOOKUP(Vlookup!B126,Forcast_Data,7,FALSE) -> 0.7512811282 | C126: =VLOOKUP(Vlookup!C126,Forcast_Data,7,FALSE) -> 0.409929049
A127: LV HH Metered | B127: =VLOOKUP(Vlookup!B127,Forcast_Data,7,FALSE) -> 0.8145064582 | C127: =VLOOKUP(Vlookup!C127,Forcast_Data,7,FALSE) -> 0.580821256
A128: LV Sub HH Metered | B128: =VLOOKUP(Vlookup!B128,Forcast_Data,7,FALSE) -> 0.782726117 | C128: =VLOOKUP(Vlookup!C128,Forcast_Data,7,FALSE) -> 0.6075756983
A129: HV HH Metered | B129: =VLOOKUP(Vlookup!B129,Forcast_Data,7,FALSE) -> 0.8113670182 | C129: =VLOOKUP(Vlookup!C129,Forcast_Data,7,FALSE) -> 0.7201136334
A130: HV Sub HH Metered | B130: =VLOOKUP(Vlookup!B130,Forcast_Data,7,FALSE) -> 0.4992999836 | C130: =VLOOKUP(Vlookup!C130,Forcast_Data,7,FALSE) -> 0.5610911178
A131: NHH UMS category A | B131: =VLOOKUP(Vlookup!B131,Forcast_Data,7,FALSE) -> 1 | C131: =VLOOKUP(Vlookup!C131,Forcast_Data,7,FALSE) -> 1
A132: NHH UMS category B | B132: =VLOOKUP(Vlookup!B132,Forcast_Data,7,FALSE) -> 1 | C132: =VLOOKUP(Vlookup!C132,Forcast_Data,7,FALSE) -> 0.4743289155
A133: NHH UMS category C | B133: =VLOOKUP(Vlookup!B133,Forcast_Data,7,FALSE) -> 1 | C133: =VLOOKUP(Vlookup!C133,Forcast_Data,7,FALSE) -> 0.2537152397
A134: NHH UMS category D | B134: =VLOOKUP(Vlookup!B134,Forcast_Data,7,FALSE) -> 0.02906666667 | C134: =VLOOKUP(Vlookup!C134,Forcast_Data,7,FALSE) -> 0.553
A135: LV UMS (Pseudo HH Metered) | B135: =VLOOKUP(Vlookup!B135,Forcast_Data,7,FALSE) -> 0.9230565392 | C135: =VLOOKUP(Vlookup!C135,Forcast_Data,7,FALSE) -> 0.4774652203
A137: 1053. Volume forecasts for the charging year
B138: 16 | C138: 17 | D138: 18 | E138: 19 | F138: 20 | G138: 21
A139: Source: forecast.
A140: Please include MPAN counts for tariffs with no fixed charge (e.g. off-peak tariffs),
A141: but exclude MPANs on tariffs with a fixed charge that are not subject to a fixed charge due to a site grouping arrangement.
B142: Rate 1 units (MWh) | C142: Rate 2 units (MWh) | D142: Rate 3 units (MWh) | E142: MPANs | F142: Import capacity (kVA) | G142: Reactive power units (MVArh)
A143: > Domestic Unrestricted
A144: Domestic Unrestricted | B144: =VLOOKUP(Vlookup!B144,Volume_Forecast_Data,B$138,FALSE) -> 4159154.42 | E144: =VLOOKUP(Vlookup!E144,Volume_Forecast_Data,E$138,FALSE) -> 1196786.421
A145: LDNO LV: Domestic Unrestricted | B145: =VLOOKUP(Vlookup!B145,Volume_Forecast_Data,B$138,FALSE) -> 2154.142188 | E145: =VLOOKUP(Vlookup!E145,Volume_Forecast_Data,E$138,FALSE) -> 1442.4214
A146: LDNO HV: Domestic Unrestricted | B146: =VLOOKUP(Vlookup!B146,Volume_Forecast_Data,B$138,FALSE) -> 3798.986192 | E146: =VLOOKUP(Vlookup!E146,Volume_Forecast_Data,E$138,FALSE) -> 1889.2252
A147: > Domestic Two Rate
A148: Domestic Two Rate | B148: =VLOOKUP(Vlookup!B148,Volume_Forecast_Data,B$138,FALSE) -> 705491.7918 | C148: =VLOOKUP(Vlookup!C148,Volume_Forecast_Data,C$138,FALSE) -> 734642.3161 | E148: =VLOOKUP(Vlookup!E148,Volume_Forecast_Data,E$138,FALSE) -> 237790.4105
A149: LDNO LV: Domestic Two Rate | B149: =VLOOKUP(Vlookup!B149,Volume_Forecast_Data,B$138,FALSE) -> 176.6934081 | C149: =VLOOKUP(Vlookup!C149,Volume_Forecast_Data,C$138,FALSE) -> 175.1771934 | E149: =VLOOKUP(Vlookup!E149,Volume_Forecast_Data,E$138,FALSE) -> 54.0653
A150: LDNO HV: Domestic Two Rate | B150: =VLOOKUP(Vlookup!B150,Volume_Forecast_Data,B$138,FALSE) -> 137.4580449 | C150: =VLOOKUP(Vlookup!C150,Volume_Forecast_Data,C$138,FALSE) -> 93.4985997 | E150: =VLOOKUP(Vlookup!E150,Volume_Forecast_Data,E$138,FALSE) -> 156.0753
A151: > Domestic Off Peak (related MPAN)
A152: Domestic Off Peak (related MPAN) | B152: =VLOOKUP(Vlookup!B152,Volume_Forecast_Data,B$138,FALSE) -> 71576.95597 | E152: =VLOOKUP(Vlookup!E152,Volume_Forecast_Data,E$138,FALSE) -> 0
A153: LDNO LV: Domestic Off Peak (related MPAN) | B153: =VLOOKUP(Vlookup!B153,Volume_Forecast_Data,B$138,FALSE) -> 0 | E153: =VLOOKUP(Vlookup!E153,Volume_Forecast_Data,E$138,FALSE) -> 0
A154: LDNO HV: Domestic Off Peak (related MPAN) | B154: =VLOOKUP(Vlookup!B154,Volume_Forecast_Data,B$138,FALSE) -> 0 | E154: =VLOOKUP(Vlookup!E154,Volume_Forecast_Data,E$138,FALSE) -> 0
A155: > Small Non Domestic Unrestricted
A156: Small Non Domestic Unrestricted | B156: =VLOOKUP(Vlookup!B156,Volume_Forecast_Data,B$138,FALSE) -> 1144711.911 | E156: =VLOOKUP(Vlookup!E156,Volume_Forecast_Data,E$138,FALSE) -> 108738.5796
A157: LDNO LV: Small Non Domestic Unrestricted | B157: =VLOOKUP(Vlookup!B157,Volume_Forecast_Data,B$138,FALSE) -> 206.1532539 | E157: =VLOOKUP(Vlookup!E157,Volume_Forecast_Data,E$138,FALSE) -> 54.0653
A158: LDNO HV: Small Non Domestic Unrestricted | B158: =VLOOKUP(Vlookup!B158,Volume_Forecast_Data,B$138,FALSE) -> 5598.753623 | E158: =VLOOKUP(Vlookup!E158,Volume_Forecast_Data,E$138,FALSE) -> 129.5527
A159: > Small Non Domestic Two Rate
A160: Small Non Domestic Two Rate | B160: =VLOOKUP(Vlookup!B160,Volume_Forecast_Data,B$138,FALSE) -> 345657.5232 | C160: =VLOOKUP(Vlookup!C160,Volume_Forecast_Data,C$138,FALSE) -> 169676.4206 | E160: =VLOOKUP(Vlookup!E160,Volume_Forecast_Data,E$138,FALSE) -> 27030.6098
A161: LDNO LV: Small Non Domestic Two Rate | B161: =VLOOKUP(Vlookup!B161,Volume_Forecast_Data,B$138,FALSE) -> 6.5549088 | C161: =VLOOKUP(Vlookup!C161,Volume_Forecast_Data,C$138,FALSE) -> 4.4614152 | E161: =VLOOKUP(Vlookup!E161,Volume_Forecast_Data,E$138,FALSE) -> 0
A162: LDNO HV: Small Non Domestic Two Rate | B162: =VLOOKUP(Vlookup!B162,Volume_Forecast_Data,B$138,FALSE) -> 364.5550557 | C162: =VLOOKUP(Vlookup!C162,Volume_Forecast_Data,C$138,FALSE) -> 97.2298404 | E162: =VLOOKUP(Vlookup!E162,Volume_Forecast_Data,E$138,FALSE) -> 8.1608
A163: > Small Non Domestic Off Peak (related MPAN)
A164: Small Non Domestic Off Peak (related MPAN) | B164: =VLOOKUP(Vlookup!B164,Volume_Forecast_Data,B$138,FALSE) -> 25511.08971 | E164: =VLOOKUP(Vlookup!E164,Volume_Forecast_Data,E$138,FALSE) -> 0
A165: LDNO LV: Small Non Domestic Off Peak (related MPAN) | B165: =VLOOKUP(Vlookup!B165,Volume_Forecast_Data,B$138,FALSE) -> 0 | E165: =VLOOKUP(Vlookup!E165,Volume_Forecast_Data,E$138,FALSE) -> 0
A166: LDNO HV: Small Non Domestic Off Peak (related MPAN) | B166: =VLOOKUP(Vlookup!B166,Volume_Forecast_Data,B$138,FALSE) -> 0 | E166: =VLOOKUP(Vlookup!E166,Volume_Forecast_Data,E$138,FALSE) -> 0
A167: > LV Medium Non-Domestic
A168: LV Medium Non-Domestic | B168: =VLOOKUP(Vlookup!B168,Volume_Forecast_Data,B$138,FALSE) -> 694182.2099 | C168: =VLOOKUP(Vlookup!C168,Volume_Forecast_Data,C$138,FALSE) -> 171437.7007 | E168: =VLOOKUP(Vlookup!E168,Volume_Forecast_Data,E$138,FALSE) -> 9326.7743
A169: LDNO LV: LV Medium Non-Domestic | B169: =VLOOKUP(Vlookup!B169,Volume_Forecast_Data,B$138,FALSE) -> 0 | C169: =VLOOKUP(Vlookup!C169,Volume_Forecast_Data,C$138,FALSE) -> 0 | E169: =VLOOKUP(Vlookup!E169,Volume_Forecast_Data,E$138,FALSE) -> 0
A170: LDNO HV: LV Medium Non-Domestic | B170: =VLOOKUP(Vlookup!B170,Volume_Forecast_Data,B$138,FALSE) -> 3692.783536 | C170: =VLOOKUP(Vlookup!C170,Volume_Forecast_Data,C$138,FALSE) -> 622.7584803 | E170: =VLOOKUP(Vlookup!E170,Volume_Forecast_Data,E$138,FALSE) -> 16.3216
A171: > LV Sub Medium Non-Domestic
A172: LV Sub Medium Non-Domestic | B172: =VLOOKUP(Vlookup!B172,Volume_Forecast_Data,B$138,FALSE) -> 75776.0621 | C172: =VLOOKUP(Vlookup!C172,Volume_Forecast_Data,C$138,FALSE) -> 21142.29237 | E172: =VLOOKUP(Vlookup!E172,Volume_Forecast_Data,E$138,FALSE) -> 764.0549
A173: > HV Medium Non-Domestic
A174: HV Medium Non-Domestic | B174: =VLOOKUP(Vlookup!B174,Volume_Forecast_Data,B$138,FALSE) -> 2260.380639 | C174: =VLOOKUP(Vlookup!C174,Volume_Forecast_Data,C$138,FALSE) -> 605.0415748 | E174: =VLOOKUP(Vlookup!E174,Volume_Forecast_Data,E$138,FALSE) -> 22.4422
A175: > LV HH Metered
A176: LV HH Metered | B176: =VLOOKUP(Vlookup!B176,Volume_Forecast_Data,B$138,FALSE) -> 52243.35958 | C176: =VLOOKUP(Vlookup!C176,Volume_Forecast_Data,C$138,FALSE) -> 375183.5458 | D176: =VLOOKUP(Vlookup!D176,Volume_Forecast_Data,D$138,FALSE) -> 317182.6992 | E176: =VLOOKUP(Vlookup!E176,Volume_Forecast_Data,E$138,FALSE) -> 2880.7624 | F176: =VLOOKUP(Vlookup!F176,Volume_Forecast_Data,F$138,FALSE) -> 365000 | G176: =VLOOKUP(Vlookup!G176,Volume_Forecast_Data,G$138,FALSE) -> 74360
A177: LDNO LV: LV HH Metered | B177: =VLOOKUP(Vlookup!B177,Volume_Forecast_Data,B$138,FALSE) -> 5.043271759 | C177: =VLOOKUP(Vlookup!C177,Volume_Forecast_Data,C$138,FALSE) -> 36.21423355 | D177: =VLOOKUP(Vlookup!D177,Volume_Forecast_Data,D$138,FALSE) -> 30.60260341 | E177: =VLOOKUP(Vlookup!E177,Volume_Forecast_Data,E$138,FALSE) -> 0 | F177: =VLOOKUP(Vlookup!F177,Volume_Forecast_Data,F$138,FALSE) -> 0 | G177: =VLOOKUP(Vlookup!G177,Volume_Forecast_Data,G$138,FALSE) -> 0
A178: LDNO HV: LV HH Metered | B178: =VLOOKUP(Vlookup!B178,Volume_Forecast_Data,B$138,FALSE) -> 1435.623067 | C178: =VLOOKUP(Vlookup!C178,Volume_Forecast_Data,C$138,FALSE) -> 10315.38994 | D178: =VLOOKUP(Vlookup!D178,Volume_Forecast_Data,D$138,FALSE) -> 8721.884942 | E178: =VLOOKUP(Vlookup!E178,Volume_Forecast_Data,E$138,FALSE) -> 0 | F178: =VLOOKUP(Vlookup!F178,Volume_Forecast_Data,F$138,FALSE) -> 0 | G178: =VLOOKUP(Vlookup!G178,Volume_Forecast_Data,G$138,FALSE) -> 0
A179: > LV Sub HH Metered
A180: LV Sub HH Metered | B180: =VLOOKUP(Vlookup!B180,Volume_Forecast_Data,B$138,FALSE) -> 48593.42437 | C180: =VLOOKUP(Vlookup!C180,Volume_Forecast_Data,C$138,FALSE) -> 362148.6295 | D180: =VLOOKUP(Vlookup!D180,Volume_Forecast_Data,D$138,FALSE) -> 327138.3258 | E180: =VLOOKUP(Vlookup!E180,Volume_Forecast_Data,E$138,FALSE) -> 1344.4918 | F180: =VLOOKUP(Vlookup!F180,Volume_Forecast_Data,F$138,FALSE) -> 329000 | G180: =VLOOKUP(Vlookup!G180,Volume_Forecast_Data,G$138,FALSE) -> 80945
A181: LDNO HV: LV Sub HH Metered | B181: =VLOOKUP(Vlookup!B181,Volume_Forecast_Data,B$138,FALSE) -> 0 | C181: =VLOOKUP(Vlookup!C181,Volume_Forecast_Data,C$138,FALSE) -> 0 | D181: =VLOOKUP(Vlookup!D181,Volume_Forecast_Data,D$138,FALSE) -> 0 | E181: =VLOOKUP(Vlookup!E181,Volume_Forecast_Data,E$138,FALSE) -> 0 | F181: =VLOOKUP(Vlookup!F181,Volume_Forecast_Data,F$138,FALSE) -> 0 | G181: =VLOOKUP(Vlookup!G181,Volume_Forecast_Data,G$138,FALSE) -> 0
A182: > HV HH Metered
A183: HV HH Metered | B183: =VLOOKUP(Vlookup!B183,Volume_Forecast_Data,B$138,FALSE) -> 173715.3808 | C183: =VLOOKUP(Vlookup!C183,Volume_Forecast_Data,C$138,FALSE) -> 1242009.904 | D183: =VLOOKUP(Vlookup!D183,Volume_Forecast_Data,D$138,FALSE) -> 1311535.372 | E183: =VLOOKUP(Vlookup!E183,Volume_Forecast_Data,E$138,FALSE) -> 941.5523 | F183: =VLOOKUP(Vlookup!F183,Volume_Forecast_Data,F$138,FALSE) -> 973000 | G183: =VLOOKUP(Vlookup!G183,Volume_Forecast_Data,G$138,FALSE) -> 218608
A184: LDNO HV: HV HH Metered | B184: =VLOOKUP(Vlookup!B184,Volume_Forecast_Data,B$138,FALSE) -> 1.680716512 | C184: =VLOOKUP(Vlookup!C184,Volume_Forecast_Data,C$138,FALSE) -> 12.0531476 | D184: =VLOOKUP(Vlookup!D184,Volume_Forecast_Data,D$138,FALSE) -> 13.46155865 | E184: =VLOOKUP(Vlookup!E184,Volume_Forecast_Data,E$138,FALSE) -> 0 | F184: =VLOOKUP(Vlookup!F184,Volume_Forecast_Data,F$138,FALSE) -> 0 | G184: =VLOOKUP(Vlookup!G184,Volume_Forecast_Data,G$138,FALSE) -> 0
A185: > HV Sub HH Metered
A186: HV Sub HH Metered | B186: =VLOOKUP(Vlookup!B186,Volume_Forecast_Data,B$138,FALSE) -> 0 | C186: =VLOOKUP(Vlookup!C186,Volume_Forecast_Data,C$138,FALSE) -> 0 | D186: =VLOOKUP(Vlookup!D186,Volume_Forecast_Data,D$138,FALSE) -> 0 | E186: =VLOOKUP(Vlookup!E186,Volume_Forecast_Data,E$138,FALSE) -> 0 | F186: =VLOOKUP(Vlookup!F186,Volume_Forecast_Data,F$138,FALSE) -> 0 | G186: =VLOOKUP(Vlookup!G186,Volume_Forecast_Data,G$138,FALSE) -> 0
A187: > NHH UMS category A
A188: NHH UMS category A | B188: =VLOOKUP(Vlookup!B188,Volume_Forecast_Data,B$138,FALSE) -> 16407.02011 | E188: =VLOOKUP(Vlookup!E188,Volume_Forecast_Data,E$138,FALSE) -> 0
A189: LDNO LV: NHH UMS category A | B189: =VLOOKUP(Vlookup!B189,Volume_Forecast_Data,B$138,FALSE) -> 3.22697925 | E189: =VLOOKUP(Vlookup!E189,Volume_Forecast_Data,E$138,FALSE) -> 0
A190: LDNO HV: NHH UMS category A | B190: =VLOOKUP(Vlookup!B190,Volume_Forecast_Data,B$138,FALSE) -> 72.94663278 | E190: =VLOOKUP(Vlookup!E190,Volume_Forecast_Data,E$138,FALSE) -> 0
A191: > NHH UMS category B
A192: NHH UMS category B | B192: =VLOOKUP(Vlookup!B192,Volume_Forecast_Data,B$138,FALSE) -> 5704.358734 | E192: =VLOOKUP(Vlookup!E192,Volume_Forecast_Data,E$138,FALSE) -> 0
A193: LDNO LV: NHH UMS category B | B193: =VLOOKUP(Vlookup!B193,Volume_Forecast_Data,B$138,FALSE) -> 1.07565975 | E193: =VLOOKUP(Vlookup!E193,Volume_Forecast_Data,E$138,FALSE) -> 0
A194: LDNO HV: NHH UMS category B | B194: =VLOOKUP(Vlookup!B194,Volume_Forecast_Data,B$138,FALSE) -> 25.36193404 | E194: =VLOOKUP(Vlookup!E194,Volume_Forecast_Data,E$138,FALSE) -> 0
A195: > NHH UMS category C
A196: NHH UMS category C | B196: =VLOOKUP(Vlookup!B196,Volume_Forecast_Data,B$138,FALSE) -> 635.3963847 | E196: =VLOOKUP(Vlookup!E196,Volume_Forecast_Data,E$138,FALSE) -> 0
A197: LDNO LV: NHH UMS category C | B197: =VLOOKUP(Vlookup!B197,Volume_Forecast_Data,B$138,FALSE) -> 0 | E197: =VLOOKUP(Vlookup!E197,Volume_Forecast_Data,E$138,FALSE) -> 0
A198: LDNO HV: NHH UMS category C | B198: =VLOOKUP(Vlookup!B198,Volume_Forecast_Data,B$138,FALSE) -> 2.825011882 | E198: =VLOOKUP(Vlookup!E198,Volume_Forecast_Data,E$138,FALSE) -> 0
A199: > NHH UMS category D
A200: NHH UMS category D | B200: =VLOOKUP(Vlookup!B200,Volume_Forecast_Data,B$138,FALSE) -> 0 | E200: =VLOOKUP(Vlookup!E200,Volume_Forecast_Data,E$138,FALSE) -> 0
A201: LDNO LV: NHH UMS category D | B201: =VLOOKUP(Vlookup!B201,Volume_Forecast_Data,B$138,FALSE) -> 0 | E201: =VLOOKUP(Vlookup!E201,Volume_Forecast_Data,E$138,FALSE) -> 0
A202: LDNO HV: NHH UMS category D | B202: =VLOOKUP(Vlookup!B202,Volume_Forecast_Data,B$138,FALSE) -> 0 | E202: =VLOOKUP(Vlookup!E202,Volume_Forecast_Data,E$138,FALSE) -> 0
A203: > LV UMS (Pseudo HH Metered)
A204: LV UMS (Pseudo HH Metered) | B204: =VLOOKUP(Vlookup!B204,Volume_Forecast_Data,B$138,FALSE) -> 4256.426879 | C204: =VLOOKUP(Vlookup!C204,Volume_Forecast_Data,C$138,FALSE) -> 28039.94671 | D204: =VLOOKUP(Vlookup!D204,Volume_Forecast_Data,D$138,FALSE) -> 103530.3131 | E204: =VLOOKUP(Vlookup!E204,Volume_Forecast_Data,E$138,FALSE) -> 0
A205: LDNO LV: LV UMS (Pseudo HH Metered) | B205: =VLOOKUP(Vlookup!B205,Volume_Forecast_Data,B$138,FALSE) -> 0 | C205: =VLOOKUP(Vlookup!C205,Volume_Forecast_Data,C$138,FALSE) -> 0 | D205: =VLOOKUP(Vlookup!D205,Volume_Forecast_Data,D$138,FALSE) -> 0 | E205: =VLOOKUP(Vlookup!E205,Volume_Forecast_Data,E$138,FALSE) -> 0
A206: LDNO HV: LV UMS (Pseudo HH Metered) | B206: =VLOOKUP(Vlookup!B206,Volume_Forecast_Data,B$138,FALSE) -> 0 | C206: =VLOOKUP(Vlookup!C206,Volume_Forecast_Data,C$138,FALSE) -> 0 | D206: =VLOOKUP(Vlookup!D206,Volume_Forecast_Data,D$138,FALSE) -> 0 | E206: =VLOOKUP(Vlookup!E206,Volume_Forecast_Data,E$138,FALSE) -> 0
A207: > LV Generation NHH
A208: LV Generation NHH | B208: =VLOOKUP(Vlookup!B208,Volume_Forecast_Data,B$138,FALSE) -> 1227.37923 | E208: =VLOOKUP(Vlookup!E208,Volume_Forecast_Data,E$138,FALSE) -> 0
A209: LDNO LV: LV Generation NHH | B209: =VLOOKUP(Vlookup!B209,Volume_Forecast_Data,B$138,FALSE) -> 60.746598 | E209: =VLOOKUP(Vlookup!E209,Volume_Forecast_Data,E$138,FALSE) -> 0
A210: LDNO HV: LV Generation NHH | B210: =VLOOKUP(Vlookup!B210,Volume_Forecast_Data,B$138,FALSE) -> 0 | E210: =VLOOKUP(Vlookup!E210,Volume_Forecast_Data,E$138,FALSE) -> 0
A211: > LV Sub Generation NHH
A212: LV Sub Generation NHH | B212: =VLOOKUP(Vlookup!B212,Volume_Forecast_Data,B$138,FALSE) -> 0 | E212: =VLOOKUP(Vlookup!E212,Volume_Forecast_Data,E$138,FALSE) -> 0
A213: LDNO HV: LV Sub Generation NHH | B213: =VLOOKUP(Vlookup!B213,Volume_Forecast_Data,B$138,FALSE) -> 0 | E213: =VLOOKUP(Vlookup!E213,Volume_Forecast_Data,E$138,FALSE) -> 0
A214: > LV Generation Intermittent
A215: LV Generation Intermittent | B215: =VLOOKUP(Vlookup!B215,Volume_Forecast_Data,B$138,FALSE) -> 10896.30879 | E215: =VLOOKUP(Vlookup!E215,Volume_Forecast_Data,E$138,FALSE) -> 0 | G215: =VLOOKUP(Vlookup!G215,Volume_Forecast_Data,G$138,FALSE) -> 166.0368
A216: LDNO LV: LV Generation Intermittent | B216: =VLOOKUP(Vlookup!B216,Volume_Forecast_Data,B$138,FALSE) -> 0 | E216: =VLOOKUP(Vlookup!E216,Volume_Forecast_Data,E$138,FALSE) -> 0 | G216: =VLOOKUP(Vlookup!G216,Volume_Forecast_Data,G$138,FALSE) -> 0
A217: LDNO HV: LV Generation Intermittent | B217: =VLOOKUP(Vlookup!B217,Volume_Forecast_Data,B$138,FALSE) -> 0 | E217: =VLOOKUP(Vlookup!E217,Volume_Forecast_Data,E$138,FALSE) -> 0 | G217: =VLOOKUP(Vlookup!G217,Volume_Forecast_Data,G$138,FALSE) -> 0
A218: > LV Generation Non-Intermittent
A219: LV Generation Non-Intermittent | B219: =VLOOKUP(Vlookup!B219,Volume_Forecast_Data,B$138,FALSE) -> 38.9707362 | C219: =VLOOKUP(Vlookup!C219,Volume_Forecast_Data,C$138,FALSE) -> 75.2834412 | D219: =VLOOKUP(Vlookup!D219,Volume_Forecast_Data,D$138,FALSE) -> 146.6840062 | E219: =VLOOKUP(Vlookup!E219,Volume_Forecast_Data,E$138,FALSE) -> 0 | G219: =VLOOKUP(Vlookup!G219,Volume_Forecast_Data,G$138,FALSE) -> 20.6582
A220: LDNO LV: LV Generation Non-Intermittent | B220: =VLOOKUP(Vlookup!B220,Volume_Forecast_Data,B$138,FALSE) -> 0 | C220: =VLOOKUP(Vlookup!C220,Volume_Forecast_Data,C$138,FALSE) -> 0 | D220: =VLOOKUP(Vlookup!D220,Volume_Forecast_Data,D$138,FALSE) -> 0 | E220: =VLOOKUP(Vlookup!E220,Volume_Forecast_Data,E$138,FALSE) -> 0 | G220: =VLOOKUP(Vlookup!G220,Volume_Forecast_Data,G$138,FALSE) -> 0
A221: LDNO HV: LV Generation Non-Intermittent | B221: =VLOOKUP(Vlookup!B221,Volume_Forecast_Data,B$138,FALSE) -> 0 | C221: =VLOOKUP(Vlookup!C221,Volume_Forecast_Data,C$138,FALSE) -> 0 | D221: =VLOOKUP(Vlookup!D221,Volume_Forecast_Data,D$138,FALSE) -> 0 | E221: =VLOOKUP(Vlookup!E221,Volume_Forecast_Data,E$138,FALSE) -> 0 | G221: =VLOOKUP(Vlookup!G221,Volume_Forecast_Data,G$138,FALSE) -> 0
A222: > LV Sub Generation Intermittent
A223: LV Sub Generation Intermittent | B223: =VLOOKUP(Vlookup!B223,Volume_Forecast_Data,B$138,FALSE) -> 458.5270437 | E223: =VLOOKUP(Vlookup!E223,Volume_Forecast_Data,E$138,FALSE) -> 0 | G223: =VLOOKUP(Vlookup!G223,Volume_Forecast_Data,G$138,FALSE) -> 29.2974
A224: LDNO HV: LV Sub Generation Intermittent | B224: =VLOOKUP(Vlookup!B224,Volume_Forecast_Data,B$138,FALSE) -> 0 | E224: =VLOOKUP(Vlookup!E224,Volume_Forecast_Data,E$138,FALSE) -> 0 | G224: =VLOOKUP(Vlookup!G224,Volume_Forecast_Data,G$138,FALSE) -> 0
A225: > LV Sub Generation Non-Intermittent
A226: LV Sub Generation Non-Intermittent | B226: =VLOOKUP(Vlookup!B226,Volume_Forecast_Data,B$138,FALSE) -> 78.1649352 | C226: =VLOOKUP(Vlookup!C226,Volume_Forecast_Data,C$138,FALSE) -> 352.9624329 | D226: =VLOOKUP(Vlookup!D226,Volume_Forecast_Data,D$138,FALSE) -> 776.8454364 | E226: =VLOOKUP(Vlookup!E226,Volume_Forecast_Data,E$138,FALSE) -> 0 | G226: =VLOOKUP(Vlookup!G226,Volume_Forecast_Data,G$138,FALSE) -> 158.12
A227: LDNO HV: LV Sub Generation Non-Intermittent | B227: =VLOOKUP(Vlookup!B227,Volume_Forecast_Data,B$138,FALSE) -> 0 | C227: =VLOOKUP(Vlookup!C227,Volume_Forecast_Data,C$138,FALSE) -> 0 | D227: =VLOOKUP(Vlookup!D227,Volume_Forecast_Data,D$138,FALSE) -> 0 | E227: =VLOOKUP(Vlookup!E227,Volume_Forecast_Data,E$138,FALSE) -> 0 | G227: =VLOOKUP(Vlookup!G227,Volume_Forecast_Data,G$138,FALSE) -> 0
A228: > HV Generation Intermittent
A229: HV Generation Intermittent | B229: =VLOOKUP(Vlookup!B229,Volume_Forecast_Data,B$138,FALSE) -> 33783.55793 | E229: =VLOOKUP(Vlookup!E229,Volume_Forecast_Data,E$138,FALSE) -> 31.6231 | G229: =VLOOKUP(Vlookup!G229,Volume_Forecast_Data,G$138,FALSE) -> 1094.707
A230: LDNO HV: HV Generation Intermittent | B230: =VLOOKUP(Vlookup!B230,Volume_Forecast_Data,B$138,FALSE) -> 0 | E230: =VLOOKUP(Vlookup!E230,Volume_Forecast_Data,E$138,FALSE) -> 0 | G230: =VLOOKUP(Vlookup!G230,Volume_Forecast_Data,G$138,FALSE) -> 0
... 96 more rows

Sheet (Y+3)
A5: 1000. Company, charging year, data version
B7: Company | C7: Year | D7: Version
A8: Company, charging year, data version | B8: =VLOOKUP(Vlookup!B8,Forcast_Data,8,FALSE) -> WPD South West | C8: =VLOOKUP(Vlookup!C8,Forcast_Data,8,FALSE) -> April 2016 | D8: =VLOOKUP(Vlookup!D8,Forcast_Data,8,FALSE) -> 0
A10: 1010. Financial and general assumptions
A12: Sources: financial assumptions; calendar; network model.
A13: These financial assumptions determine the annuity rate applied to convert the asset values of the network model into an annual charge.
B14: Rate of return | C14: Annualisation period (years) | D14: Annuity proportion for customer-contributed assets | E14: Power factor | F14: Days in the charging period
A15: Financial and general assumptions | B15: =VLOOKUP(Vlookup!B15,Forcast_Data,8,FALSE) -> 0.056 | C15: =VLOOKUP(Vlookup!C15,Forcast_Data,8,FALSE) -> 40 | E15: =VLOOKUP(Vlookup!E15,Forcast_Data,8,FALSE) -> 0.95 | F15: =VLOOKUP(Vlookup!F15,Forcast_Data,8,FALSE) -> 365
A17: 1017. Diversity allowance between top and bottom of network level
A19: Source: operational data analysis and/or network model.
A20: The diversity figure against GSP is the diversity between GSP Group (the whole system) and individual GSPs.
A21: The diversity figure against 132kV is the diversity between GSPs (the top of the 132kV network) and 132kV/EHV bulk supply points (the bottom of the 132kV network).
A22: The diversity figure against EHV is the diversity between 132kV/EHV bulk supply points (the top of the EHV network) and EHV/HV primary substations (the bottom of the EHV network).
A23: The diversity figure against HV is the diversity between EHV/HV primary substations (the top of the HV network) and HV/LV substations (the bottom of the HV network).
B24: Diversity allowance between top and bottom of network level
A25: GSPs | B25: =VLOOKUP(Vlookup!B25,Forcast_Data,8,FALSE) -> 0.022
A26: 132kV | B26: =VLOOKUP(Vlookup!B26,Forcast_Data,8,FALSE) -> 0.031
A27: 132kV/EHV
A28: EHV | B28: =VLOOKUP(Vlookup!B28,Forcast_Data,8,FALSE) -> 0.075
A29: EHV/HV
A30: HV | B30: =VLOOKUP(Vlookup!B30,Forcast_Data,8,FALSE) -> 0.37
A31: HV/LV
A32: LV circuits
A34: 1018. Proportion of relevant load going through 132kV/HV direct transformation
B36: 132kV/HV
A37: EHV/HV | B37: =VLOOKUP(Vlookup!B37,Forcast_Data,8,FALSE) -> 0
A39: 1019. Network model GSP peak demand (MW)
B41: Network model GSP peak demand (MW)
A42: Network model GSP peak demand (MW) | B42: =VLOOKUP(Vlookup!B42,Forcast_Data,8,FALSE) -> 500
A44: 1020. Gross asset cost by network level (£)
B46: Gross assets £
A47: 132kV | B47: =VLOOKUP(Vlookup!B47,Forcast_Data,8,FALSE) -> 110109002.1
A48: 132kV/EHV | B48: =VLOOKUP(Vlookup!B48,Forcast_Data,8,FALSE) -> 16400045.88
A49: EHV | B49: =VLOOKUP(Vlookup!B49,Forcast_Data,8,FALSE) -> 48389217.76
A50: EHV/HV | B50: =VLOOKUP(Vlookup!B50,Forcast_Data,8,FALSE) -> 38681827.8
A51: 132kV/HV | B51: =VLOOKUP(Vlookup!B51,Forcast_Data,8,FALSE) -> 0
A52: HV | B52: =VLOOKUP(Vlookup!B52,Forcast_Data,8,FALSE) -> 161701295.8
A53: HV/LV | B53: =VLOOKUP(Vlookup!B53,Forcast_Data,8,FALSE) -> 63106152.86
A54: LV circuits | B54: =VLOOKUP(Vlookup!B54,Forcast_Data,8,FALSE) -> 140729162.8
A56: 1022. LV service model asset cost (£)
B58: LV service model 1 | C58: LV service model 2 | D58: LV service model 3 | E58: LV service model 4 | F58: LV service model 5 | G58: LV service model 6 | H58: LV service model 7 | I58: LV service model 8
A59: LV service model asset cost (£) | B59: =VLOOKUP(Vlookup!B59,Forcast_Data,8,FALSE) -> 4879.243667 | C59: =VLOOKUP(Vlookup!C59,Forcast_Data,8,FALSE) -> 602.3330783 | D59: =VLOOKUP(Vlookup!D59,Forcast_Data,8,FALSE) -> 711.5034408 | E59: =VLOOKUP(Vlookup!E59,Forcast_Data,8,FALSE) -> 530.0568647 | F59: =VLOOKUP(Vlookup!F59,Forcast_Data,8,FALSE) -> 1216.265712 | G59: =VLOOKUP(Vlookup!G59,Forcast_Data,8,FALSE) -> 893.2910551 | H59: =VLOOKUP(Vlookup!H59,Forcast_Data,8,FALSE) -> - | I59: =VLOOKUP(Vlookup!I59,Forcast_Data,8,FALSE) -> 468.5069717
A61: 1023. HV service model asset cost (£)
B63: HV service model 1 | C63: HV service model 2 | D63: HV service model 3 | E63: HV service model 4 | F63: HV service model 5
A64: HV service model asset cost (£) | B64: =VLOOKUP(Vlookup!B64,Forcast_Data,8,FALSE) -> 9101.812231 | C64: =VLOOKUP(Vlookup!C64,Forcast_Data,8,FALSE) -> 4473.005869 | D64: =VLOOKUP(Vlookup!D64,Forcast_Data,8,FALSE) -> - | E64: =VLOOKUP(Vlookup!E64,Forcast_Data,8,FALSE) -> - | F64: =VLOOKUP(Vlookup!F64,Forcast_Data,8,FALSE) -> -
A66: 1025. Matrix of applicability of LV service models to tariffs with fixed charges
B67: 26 | C67: =B67+1 -> 27 | D67: =C67+1 -> 28 | E67: 29 | F67: 30 | G67: 31 | H67: 32 | I67: 33
B68: LV service model 1 | C68: LV service model 2 | D68: LV service model 3 | E68: LV service model 4 | F68: LV service model 5 | G68: LV service model 6 | H68: LV service model 7 | I68: LV service model 8
A69: Domestic Unrestricted | B69: =VLOOKUP($A69,'Mat of App'!$B$7:$AP$38,B$67,FALSE) -> 0.05 | C69: =VLOOKUP($A69,'Mat of App'!$B$7:$AP$38,C$67,FALSE) -> 0 | D69: =VLOOKUP($A69,'Mat of App'!$B$7:$AP$38,D$67,FALSE) -> 0 | E69: =VLOOKUP($A69,'Mat of App'!$B$7:$AP$38,E$67,FALSE) -> 0 | F69: =VLOOKUP($A69,'Mat of App'!$B$7:$AP$38,F$67,FALSE) -> 0 | G69: =VLOOKUP($A69,'Mat of App'!$B$7:$AP$38,G$67,FALSE) -> 0 | H69: =VLOOKUP($A69,'Mat of App'!$B$7:$AP$38,H$67,FALSE) -> 0 | I69: =VLOOKUP($A69,'Mat of App'!$B$7:$AP$38,I$67,FALSE) -> 0
A70: Domestic Two Rate | B70: =VLOOKUP($A70,'Mat of App'!$B$7:$AP$38,B$67,FALSE) -> 0.05 | C70: =VLOOKUP($A70,'Mat of App'!$B$7:$AP$38,C$67,FALSE) -> 0 | D70: =VLOOKUP($A70,'Mat of App'!$B$7:$AP$38,D$67,FALSE) -> 0 | E70: =VLOOKUP($A70,'Mat of App'!$B$7:$AP$38,E$67,FALSE) -> 0 | F70: =VLOOKUP($A70,'Mat of App'!$B$7:$AP$38,F$67,FALSE) -> 0 | G70: =VLOOKUP($A70,'Mat of App'!$B$7:$AP$38,G$67,FALSE) -> 0 | H70: =VLOOKUP($A70,'Mat of App'!$B$7:$AP$38,H$67,FALSE) -> 0 | I70: =VLOOKUP($A70,'Mat of App'!$B$7:$AP$38,I$67,FALSE) -> 0
A71: Small Non Domestic Unrestricted | B71: =VLOOKUP($A71,'Mat of App'!$B$7:$AP$38,B$67,FALSE) -> 0 | C71: =VLOOKUP($A71,'Mat of App'!$B$7:$AP$38,C$67,FALSE) -> 1 | D71: =VLOOKUP($A71,'Mat of App'!$B$7:$AP$38,D$67,FALSE) -> 0 | E71: =VLOOKUP($A71,'Mat of App'!$B$7:$AP$38,E$67,FALSE) -> 0 | F71: =VLOOKUP($A71,'Mat of App'!$B$7:$AP$38,F$67,FALSE) -> 0 | G71: =VLOOKUP($A71,'Mat of App'!$B$7:$AP$38,G$67,FALSE) -> 0 | H71: =VLOOKUP($A71,'Mat of App'!$B$7:$AP$38,H$67,FALSE) -> 0 | I71: =VLOOKUP($A71,'Mat of App'!$B$7:$AP$38,I$67,FALSE) -> 0
A72: Small Non Domestic Two Rate | B72: =VLOOKUP($A72,'Mat of App'!$B$7:$AP$38,B$67,FALSE) -> 0 | C72: =VLOOKUP($A72,'Mat of App'!$B$7:$AP$38,C$67,FALSE) -> 1 | D72: =VLOOKUP($A72,'Mat of App'!$B$7:$AP$38,D$67,FALSE) -> 0 | E72: =VLOOKUP($A72,'Mat of App'!$B$7:$AP$38,E$67,FALSE) -> 0 | F72: =VLOOKUP($A72,'Mat of App'!$B$7:$AP$38,F$67,FALSE) -> 0 | G72: =VLOOKUP($A72,'Mat of App'!$B$7:$AP$38,G$67,FALSE) -> 0 | H72: =VLOOKUP($A72,'Mat of App'!$B$7:$AP$38,H$67,FALSE) -> 0 | I72: =VLOOKUP($A72,'Mat of App'!$B$7:$AP$38,I$67,FALSE) -> 0
A73: LV Medium Non-Domestic | B73: =VLOOKUP($A73,'Mat of App'!$B$7:$AP$38,B$67,FALSE) -> 0 | C73: =VLOOKUP($A73,'Mat of App'!$B$7:$AP$38,C$67,FALSE) -> 0 | D73: =VLOOKUP($A73,'Mat of App'!$B$7:$AP$38,D$67,FALSE) -> 1 | E73: =VLOOKUP($A73,'Mat of App'!$B$7:$AP$38,E$67,FALSE) -> 0 | F73: =VLOOKUP($A73,'Mat of App'!$B$7:$AP$38,F$67,FALSE) -> 0 | G73: =VLOOKUP($A73,'Mat of App'!$B$7:$AP$38,G$67,FALSE) -> 0 | H73: =VLOOKUP($A73,'Mat of App'!$B$7:$AP$38,H$67,FALSE) -> 0 | I73: =VLOOKUP($A73,'Mat of App'!$B$7:$AP$38,I$67,FALSE) -> 0
A74: LV Sub Medium Non-Domestic | B74: =VLOOKUP($A74,'Mat of App'!$B$7:$AP$38,B$67,FALSE) -> 0 | C74: =VLOOKUP($A74,'Mat of App'!$B$7:$AP$38,C$67,FALSE) -> 0 | D74: =VLOOKUP($A74,'Mat of App'!$B$7:$AP$38,D$67,FALSE) -> 0 | E74: =VLOOKUP($A74,'Mat of App'!$B$7:$AP$38,E$67,FALSE) -> 1 | F74: =VLOOKUP($A74,'Mat of App'!$B$7:$AP$38,F$67,FALSE) -> 0 | G74: =VLOOKUP($A74,'Mat of App'!$B$7:$AP$38,G$67,FALSE) -> 0 | H74: =VLOOKUP($A74,'Mat of App'!$B$7:$AP$38,H$67,FALSE) -> 0 | I74: =VLOOKUP($A74,'Mat of App'!$B$7:$AP$38,I$67,FALSE) -> 0
A75: LV HH Metered | B75: =VLOOKUP($A75,'Mat of App'!$B$7:$AP$38,B$67,FALSE) -> 0 | C75: =VLOOKUP($A75,'Mat of App'!$B$7:$AP$38,C$67,FALSE) -> 0 | D75: =VLOOKUP($A75,'Mat of App'!$B$7:$AP$38,D$67,FALSE) -> 0 | E75: =VLOOKUP($A75,'Mat of App'!$B$7:$AP$38,E$67,FALSE) -> 0 | F75: =VLOOKUP($A75,'Mat of App'!$B$7:$AP$38,F$67,FALSE) -> 1 | G75: =VLOOKUP($A75,'Mat of App'!$B$7:$AP$38,G$67,FALSE) -> 0 | H75: =VLOOKUP($A75,'Mat of App'!$B$7:$AP$38,H$67,FALSE) -> 0 | I75: =VLOOKUP($A75,'Mat of App'!$B$7:$AP$38,I$67,FALSE) -> 0
A76: LV Sub HH Metered | B76: =VLOOKUP($A76,'Mat of App'!$B$7:$AP$38,B$67,FALSE) -> 0 | C76: =VLOOKUP($A76,'Mat of App'!$B$7:$AP$38,C$67,FALSE) -> 0 | D76: =VLOOKUP($A76,'Mat of App'!$B$7:$AP$38,D$67,FALSE) -> 0 | E76: =VLOOKUP($A76,'Mat of App'!$B$7:$AP$38,E$67,FALSE) -> 0 | F76: =VLOOKUP($A76,'Mat of App'!$B$7:$AP$38,F$67,FALSE) -> 0 | G76: =VLOOKUP($A76,'Mat of App'!$B$7:$AP$38,G$67,FALSE) -> 1 | H76: =VLOOKUP($A76,'Mat of App'!$B$7:$AP$38,H$67,FALSE) -> 0 | I76: =VLOOKUP($A76,'Mat of App'!$B$7:$AP$38,I$67,FALSE) -> 0
A77: LV Generation NHH | B77: =VLOOKUP($A77,'Mat of App'!$B$7:$AP$38,B$67,FALSE) -> 0 | C77: =VLOOKUP($A77,'Mat of App'!$B$7:$AP$38,C$67,FALSE) -> 0 | D77: =VLOOKUP($A77,'Mat of App'!$B$7:$AP$38,D$67,FALSE) -> 0 | E77: =VLOOKUP($A77,'Mat of App'!$B$7:$AP$38,E$67,FALSE) -> 0 | F77: =VLOOKUP($A77,'Mat of App'!$B$7:$AP$38,F$67,FALSE) -> 0 | G77: =VLOOKUP($A77,'Mat of App'!$B$7:$AP$38,G$67,FALSE) -> 0 | H77: =VLOOKUP($A77,'Mat of App'!$B$7:$AP$38,H$67,FALSE) -> 1 | I77: =VLOOKUP($A77,'Mat of App'!$B$7:$AP$38,I$67,FALSE) -> 0
A78: LV Sub Generation NHH | B78: =VLOOKUP($A78,'Mat of App'!$B$7:$AP$38,B$67,FALSE) -> 0 | C78: =VLOOKUP($A78,'Mat of App'!$B$7:$AP$38,C$67,FALSE) -> 0 | D78: =VLOOKUP($A78,'Mat of App'!$B$7:$AP$38,D$67,FALSE) -> 0 | E78: =VLOOKUP($A78,'Mat of App'!$B$7:$AP$38,E$67,FALSE) -> 0 | F78: =VLOOKUP($A78,'Mat of App'!$B$7:$AP$38,F$67,FALSE) -> 0 | G78: =VLOOKUP($A78,'Mat of App'!$B$7:$AP$38,G$67,FALSE) -> 0 | H78: =VLOOKUP($A78,'Mat of App'!$B$7:$AP$38,H$67,FALSE) -> 1 | I78: =VLOOKUP($A78,'Mat of App'!$B$7:$AP$38,I$67,FALSE) -> 0
A79: LV Generation Intermittent | B79: =VLOOKUP($A79,'Mat of App'!$B$7:$AP$38,B$67,FALSE) -> 0 | C79: =VLOOKUP($A79,'Mat of App'!$B$7:$AP$38,C$67,FALSE) -> 0 | D79: =VLOOKUP($A79,'Mat of App'!$B$7:$AP$38,D$67,FALSE) -> 0 | E79: =VLOOKUP($A79,'Mat of App'!$B$7:$AP$38,E$67,FALSE) -> 0 | F79: =VLOOKUP($A79,'Mat of App'!$B$7:$AP$38,F$67,FALSE) -> 0 | G79: =VLOOKUP($A79,'Mat of App'!$B$7:$AP$38,G$67,FALSE) -> 0 | H79: =VLOOKUP($A79,'Mat of App'!$B$7:$AP$38,H$67,FALSE) -> 1 | I79: =VLOOKUP($A79,'Mat of App'!$B$7:$AP$38,I$67,FALSE) -> 0
A80: LV Generation Non-Intermittent | B80: =VLOOKUP($A80,'Mat of App'!$B$7:$AP$38,B$67,FALSE) -> 0 | C80: =VLOOKUP($A80,'Mat of App'!$B$7:$AP$38,C$67,FALSE) -> 0 | D80: =VLOOKUP($A80,'Mat of App'!$B$7:$AP$38,D$67,FALSE) -> 0 | E80: =VLOOKUP($A80,'Mat of App'!$B$7:$AP$38,E$67,FALSE) -> 0 | F80: =VLOOKUP($A80,'Mat of App'!$B$7:$AP$38,F$67,FALSE) -> 0 | G80: =VLOOKUP($A80,'Mat of App'!$B$7:$AP$38,G$67,FALSE) -> 0 | H80: =VLOOKUP($A80,'Mat of App'!$B$7:$AP$38,H$67,FALSE) -> 0 | I80: =VLOOKUP($A80,'Mat of App'!$B$7:$AP$38,I$67,FALSE) -> 0
A81: LV Sub Generation Intermittent | B81: =VLOOKUP($A81,'Mat of App'!$B$7:$AP$38,B$67,FALSE) -> 0 | C81: =VLOOKUP($A81,'Mat of App'!$B$7:$AP$38,C$67,FALSE) -> 0 | D81: =VLOOKUP($A81,'Mat of App'!$B$7:$AP$38,D$67,FALSE) -> 0 | E81: =VLOOKUP($A81,'Mat of App'!$B$7:$AP$38,E$67,FALSE) -> 0 | F81: =VLOOKUP($A81,'Mat of App'!$B$7:$AP$38,F$67,FALSE) -> 0 | G81: =VLOOKUP($A81,'Mat of App'!$B$7:$AP$38,G$67,FALSE) -> 0 | H81: =VLOOKUP($A81,'Mat of App'!$B$7:$AP$38,H$67,FALSE) -> 0 | I81: =VLOOKUP($A81,'Mat of App'!$B$7:$AP$38,I$67,FALSE) -> 0
A82: LV Sub Generation Non-Intermittent | B82: =VLOOKUP($A82,'Mat of App'!$B$7:$AP$38,B$67,FALSE) -> 0 | C82: =VLOOKUP($A82,'Mat of App'!$B$7:$AP$38,C$67,FALSE) -> 0 | D82: =VLOOKUP($A82,'Mat of App'!$B$7:$AP$38,D$67,FALSE) -> 0 | E82: =VLOOKUP($A82,'Mat of App'!$B$7:$AP$38,E$67,FALSE) -> 0 | F82: =VLOOKUP($A82,'Mat of App'!$B$7:$AP$38,F$67,FALSE) -> 0 | G82: =VLOOKUP($A82,'Mat of App'!$B$7:$AP$38,G$67,FALSE) -> 0 | H82: =VLOOKUP($A82,'Mat of App'!$B$7:$AP$38,H$67,FALSE) -> 0 | I82: =VLOOKUP($A82,'Mat of App'!$B$7:$AP$38,I$67,FALSE) -> 0
A84: 1026. Matrix of applicability of LV service models to unmetered tariffs
A86: Source: service models
A87: Proportion of service model involved in connecting load of 1 MWh/year
B88: LV service model 1 | C88: LV service model 2 | D88: LV service model 3 | E88: LV service model 4 | F88: LV service model 5 | G88: LV service model 6 | H88: LV service model 7 | I88: LV service model 8
A89: All LV unmetered tariffs | B89: =VLOOKUP($A89,'Mat of App'!$B$7:$AP$38,B$67,FALSE) -> 0 | C89: =VLOOKUP($A89,'Mat of App'!$B$7:$AP$38,C$67,FALSE) -> 0 | D89: =VLOOKUP($A89,'Mat of App'!$B$7:$AP$38,D$67,FALSE) -> 0 | E89: =VLOOKUP($A89,'Mat of App'!$B$7:$AP$38,E$67,FALSE) -> 0 | F89: =VLOOKUP($A89,'Mat of App'!$B$7:$AP$38,F$67,FALSE) -> 0 | G89: =VLOOKUP($A89,'Mat of App'!$B$7:$AP$38,G$67,FALSE) -> 0 | H89: =VLOOKUP($A89,'Mat of App'!$B$7:$AP$38,H$67,FALSE) -> 0 | I89: =VLOOKUP($A89,'Mat of App'!$B$7:$AP$38,I$67,FALSE) -> 0.4876
A91: 1028. Matrix of applicability of HV service models to tariffs with fixed charges
B92: 17 | C92: =B92+1 -> 18 | D92: =C92+1 -> 19 | E92: 20 | F92: 21
B93: HV service model 1 | C93: HV service model 2 | D93: HV service model 3 | E93: HV service model 4 | F93: HV service model 5
A94: HV Medium Non-Domestic | B94: =VLOOKUP($A94,'Mat of App'!$B$7:$AP$38,B$92,FALSE) -> 1 | C94: =VLOOKUP($A94,'Mat of App'!$B$7:$AP$38,C$92,FALSE) -> 0 | D94: =VLOOKUP($A94,'Mat of App'!$B$7:$AP$38,D$92,FALSE) -> 0 | E94: =VLOOKUP($A94,'Mat of App'!$B$7:$AP$38,E$92,FALSE) -> 0 | F94: =VLOOKUP($A94,'Mat of App'!$B$7:$AP$38,F$92,FALSE) -> 0
A95: HV HH Metered | B95: =VLOOKUP($A95,'Mat of App'!$B$7:$AP$38,B$92,FALSE) -> 1 | C95: =VLOOKUP($A95,'Mat of App'!$B$7:$AP$38,C$92,FALSE) -> 0 | D95: =VLOOKUP($A95,'Mat of App'!$B$7:$AP$38,D$92,FALSE) -> 0 | E95: =VLOOKUP($A95,'Mat of App'!$B$7:$AP$38,E$92,FALSE) -> 0 | F95: =VLOOKUP($A95,'Mat of App'!$B$7:$AP$38,F$92,FALSE) -> 0
A96: HV Sub HH Metered | B96: =VLOOKUP($A96,'Mat of App'!$B$7:$AP$38,B$92,FALSE) -> 1 | C96: =VLOOKUP($A96,'Mat of App'!$B$7:$AP$38,C$92,FALSE) -> 0 | D96: =VLOOKUP($A96,'Mat of App'!$B$7:$AP$38,D$92,FALSE) -> 0 | E96: =VLOOKUP($A96,'Mat of App'!$B$7:$AP$38,E$92,FALSE) -> 0 | F96: =VLOOKUP($A96,'Mat of App'!$B$7:$AP$38,F$92,FALSE) -> 0
A97: HV Generation Intermittent | B97: =VLOOKUP($A97,'Mat of App'!$B$7:$AP$38,B$92,FALSE) -> 0 | C97: =VLOOKUP($A97,'Mat of App'!$B$7:$AP$38,C$92,FALSE) -> 1 | D97: =VLOOKUP($A97,'Mat of App'!$B$7:$AP$38,D$92,FALSE) -> 0 | E97: =VLOOKUP($A97,'Mat of App'!$B$7:$AP$38,E$92,FALSE) -> 0 | F97: =VLOOKUP($A97,'Mat of App'!$B$7:$AP$38,F$92,FALSE) -> 0
A98: HV Generation Non-Intermittent | B98: =VLOOKUP($A98,'Mat of App'!$B$7:$AP$38,B$92,FALSE) -> 0 | C98: =VLOOKUP($A98,'Mat of App'!$B$7:$AP$38,C$92,FALSE) -> 1 | D98: =VLOOKUP($A98,'Mat of App'!$B$7:$AP$38,D$92,FALSE) -> 0 | E98: =VLOOKUP($A98,'Mat of App'!$B$7:$AP$38,E$92,FALSE) -> 0 | F98: =VLOOKUP($A98,'Mat of App'!$B$7:$AP$38,F$92,FALSE) -> 0
A99: HV Sub Generation Non-Intermittent | B99: =VLOOKUP($A99,'Mat of App'!$B$7:$AP$38,B$92,FALSE) -> 0 | C99: =VLOOKUP($A99,'Mat of App'!$B$7:$AP$38,C$92,FALSE) -> 1 | D99: =VLOOKUP($A99,'Mat of App'!$B$7:$AP$38,D$92,FALSE) -> 0 | E99: =VLOOKUP($A99,'Mat of App'!$B$7:$AP$38,E$92,FALSE) -> 0 | F99: =VLOOKUP($A99,'Mat of App'!$B$7:$AP$38,F$92,FALSE) -> 0
A100: HV Sub Generation Intermittent | B100: =VLOOKUP($A100,'Mat of App'!$B$7:$AP$38,B$92,FALSE) -> 0 | C100: =VLOOKUP($A100,'Mat of App'!$B$7:$AP$38,C$92,FALSE) -> 1 | D100: =VLOOKUP($A100,'Mat of App'!$B$7:$AP$38,D$92,FALSE) -> 0 | E100: =VLOOKUP($A100,'Mat of App'!$B$7:$AP$38,E$92,FALSE) -> 0 | F100: =VLOOKUP($A100,'Mat of App'!$B$7:$AP$38,F$92,FALSE) -> 0
A102: 1032. Loss adjustment factors to transmission
A104: Source: losses model or loss adjustment factors at time of system peak.
B105: 132kV | C105: 132kV/EHV | D105: EHV | E105: EHV/HV | F105: HV | G105: HV/LV | H105: LV circuits
A106: Loss adjustment factor | B106: =VLOOKUP(Vlookup!B106,Forcast_Data,8,FALSE) -> 1.013 | C106: =VLOOKUP(Vlookup!C106,Forcast_Data,8,FALSE) -> 1.017 | D106: =VLOOKUP(Vlookup!D106,Forcast_Data,8,FALSE) -> 1.032 | E106: =VLOOKUP(Vlookup!E106,Forcast_Data,8,FALSE) -> 1.042 | F106: =VLOOKUP(Vlookup!F106,Forcast_Data,8,FALSE) -> 1.065 | G106: =VLOOKUP(Vlookup!G106,Forcast_Data,8,FALSE) -> 1.078 | H106: =VLOOKUP(Vlookup!H106,Forcast_Data,8,FALSE) -> 1.087
A108: 1037. Embedded network (LDNO) discounts
A110: Source: separate price control disaggregation model.
B111: No discount | C111: LDNO LV: LV user | D111: LDNO HV: LV user | E111: LDNO HV: LV sub user | F111: LDNO HV: HV user
A112: LDNO discount | C112: =VLOOKUP(Vlookup!C112,Forcast_Data,8,FALSE) -> 0.3580021725 | D112: =VLOOKUP(Vlookup!D112,Forcast_Data,8,FALSE) -> 0.6121303874 | E112: =VLOOKUP(Vlookup!E112,Forcast_Data,8,FALSE) -> 0.3773090501 | F112: =VLOOKUP(Vlookup!F112,Forcast_Data,8,FALSE) -> 0.2678469175
A114: 1041. Load profile data for demand users
A116: Source: load data analysis.
B117: Coincidence factor | C117: Load factor
A118: Domestic Unrestricted | B118: =VLOOKUP(Vlookup!B118,Forcast_Data,8,FALSE) -> 0.9110931172 | C118: =VLOOKUP(Vlookup!C118,Forcast_Data,8,FALSE) -> 0.3992113024
A119: Domestic Two Rate | B119: =VLOOKUP(Vlookup!B119,Forcast_Data,8,FALSE) -> 0.3144256013 | C119: =VLOOKUP(Vlookup!C119,Forcast_Data,8,FALSE) -> 0.2187041838
A120: Domestic Off Peak (related MPAN) | C120: =VLOOKUP(Vlookup!C120,Forcast_Data,8,FALSE) -> 0.1367858009
A121: Small Non Domestic Unrestricted | B121: =VLOOKUP(Vlookup!B121,Forcast_Data,8,FALSE) -> 0.6277145101 | C121: =VLOOKUP(Vlookup!C121,Forcast_Data,8,FALSE) -> 0.3620931243
A122: Small Non Domestic Two Rate | B122: =VLOOKUP(Vlookup!B122,Forcast_Data,8,FALSE) -> 0.5306730516 | C122: =VLOOKUP(Vlookup!C122,Forcast_Data,8,FALSE) -> 0.3950566623
A123: Small Non Domestic Off Peak (related MPAN) | C123: =VLOOKUP(Vlookup!C123,Forcast_Data,8,FALSE) -> 0.2258067728
A124: LV Medium Non-Domestic | B124: =VLOOKUP(Vlookup!B124,Forcast_Data,8,FALSE) -> 0.8006161179 | C124: =VLOOKUP(Vlookup!C124,Forcast_Data,8,FALSE) -> 0.5594720869
A125: LV Sub Medium Non-Domestic | B125: =VLOOKUP(Vlookup!B125,Forcast_Data,8,FALSE) -> 0.7829460721 | C125: =VLOOKUP(Vlookup!C125,Forcast_Data,8,FALSE) -> 0.5684359804
A126: HV Medium Non-Domestic | B126: =VLOOKUP(Vlookup!B126,Forcast_Data,8,FALSE) -> 0.7512811282 | C126: =VLOOKUP(Vlookup!C126,Forcast_Data,8,FALSE) -> 0.409929049
A127: LV HH Metered | B127: =VLOOKUP(Vlookup!B127,Forcast_Data,8,FALSE) -> 0.8145064582 | C127: =VLOOKUP(Vlookup!C127,Forcast_Data,8,FALSE) -> 0.580821256
A128: LV Sub HH Metered | B128: =VLOOKUP(Vlookup!B128,Forcast_Data,8,FALSE) -> 0.782726117 | C128: =VLOOKUP(Vlookup!C128,Forcast_Data,8,FALSE) -> 0.6075756983
A129: HV HH Metered | B129: =VLOOKUP(Vlookup!B129,Forcast_Data,8,FALSE) -> 0.8113670182 | C129: =VLOOKUP(Vlookup!C129,Forcast_Data,8,FALSE) -> 0.7201136334
A130: HV Sub HH Metered | B130: =VLOOKUP(Vlookup!B130,Forcast_Data,8,FALSE) -> 0.4992999836 | C130: =VLOOKUP(Vlookup!C130,Forcast_Data,8,FALSE) -> 0.5610911178
A131: NHH UMS category A | B131: =VLOOKUP(Vlookup!B131,Forcast_Data,8,FALSE) -> 1 | C131: =VLOOKUP(Vlookup!C131,Forcast_Data,8,FALSE) -> 1
A132: NHH UMS category B | B132: =VLOOKUP(Vlookup!B132,Forcast_Data,8,FALSE) -> 1 | C132: =VLOOKUP(Vlookup!C132,Forcast_Data,8,FALSE) -> 0.4743289155
A133: NHH UMS category C | B133: =VLOOKUP(Vlookup!B133,Forcast_Data,8,FALSE) -> 1 | C133: =VLOOKUP(Vlookup!C133,Forcast_Data,8,FALSE) -> 0.2537152397
A134: NHH UMS category D | B134: =VLOOKUP(Vlookup!B134,Forcast_Data,8,FALSE) -> 0.02906666667 | C134: =VLOOKUP(Vlookup!C134,Forcast_Data,8,FALSE) -> 0.553
A135: LV UMS (Pseudo HH Metered) | B135: =VLOOKUP(Vlookup!B135,Forcast_Data,8,FALSE) -> 0.9230565392 | C135: =VLOOKUP(Vlookup!C135,Forcast_Data,8,FALSE) -> 0.4774652203
A137: 1053. Volume forecasts for the charging year
B138: 22 | C138: 23 | D138: 24 | E138: 25 | F138: 26 | G138: 27
A139: Source: forecast.
A140: Please include MPAN counts for tariffs with no fixed charge (e.g. off-peak tariffs),
A141: but exclude MPANs on tariffs with a fixed charge that are not subject to a fixed charge due to a site grouping arrangement.
B142: Rate 1 units (MWh) | C142: Rate 2 units (MWh) | D142: Rate 3 units (MWh) | E142: MPANs | F142: Import capacity (kVA) | G142: Reactive power units (MVArh)
A143: > Domestic Unrestricted
A144: Domestic Unrestricted | B144: =VLOOKUP(Vlookup!B144,Volume_Forecast_Data,B$138,FALSE) -> 4117562.876 | E144: =VLOOKUP(Vlookup!E144,Volume_Forecast_Data,E$138,FALSE) -> 1208754.285
A145: LDNO LV: Domestic Unrestricted | B145: =VLOOKUP(Vlookup!B145,Volume_Forecast_Data,B$138,FALSE) -> 2132.600766 | E145: =VLOOKUP(Vlookup!E145,Volume_Forecast_Data,E$138,FALSE) -> 1456.845614
A146: LDNO HV: Domestic Unrestricted | B146: =VLOOKUP(Vlookup!B146,Volume_Forecast_Data,B$138,FALSE) -> 3760.99633 | E146: =VLOOKUP(Vlookup!E146,Volume_Forecast_Data,E$138,FALSE) -> 1908.117452
A147: > Domestic Two Rate
A148: Domestic Two Rate | B148: =VLOOKUP(Vlookup!B148,Volume_Forecast_Data,B$138,FALSE) -> 698436.8739 | C148: =VLOOKUP(Vlookup!C148,Volume_Forecast_Data,C$138,FALSE) -> 727295.8929 | E148: =VLOOKUP(Vlookup!E148,Volume_Forecast_Data,E$138,FALSE) -> 240168.3146
A149: LDNO LV: Domestic Two Rate | B149: =VLOOKUP(Vlookup!B149,Volume_Forecast_Data,B$138,FALSE) -> 174.926474 | C149: =VLOOKUP(Vlookup!C149,Volume_Forecast_Data,C$138,FALSE) -> 173.4254215 | E149: =VLOOKUP(Vlookup!E149,Volume_Forecast_Data,E$138,FALSE) -> 54.605953
A150: LDNO HV: Domestic Two Rate | B150: =VLOOKUP(Vlookup!B150,Volume_Forecast_Data,B$138,FALSE) -> 136.0834645 | C150: =VLOOKUP(Vlookup!C150,Volume_Forecast_Data,C$138,FALSE) -> 92.5636137 | E150: =VLOOKUP(Vlookup!E150,Volume_Forecast_Data,E$138,FALSE) -> 157.636053
A151: > Domestic Off Peak (related MPAN)
A152: Domestic Off Peak (related MPAN) | B152: =VLOOKUP(Vlookup!B152,Volume_Forecast_Data,B$138,FALSE) -> 70861.18641 | E152: =VLOOKUP(Vlookup!E152,Volume_Forecast_Data,E$138,FALSE) -> 0
A153: LDNO LV: Domestic Off Peak (related MPAN) | B153: =VLOOKUP(Vlookup!B153,Volume_Forecast_Data,B$138,FALSE) -> 0 | E153: =VLOOKUP(Vlookup!E153,Volume_Forecast_Data,E$138,FALSE) -> 0
A154: LDNO HV: Domestic Off Peak (related MPAN) | B154: =VLOOKUP(Vlookup!B154,Volume_Forecast_Data,B$138,FALSE) -> 0 | E154: =VLOOKUP(Vlookup!E154,Volume_Forecast_Data,E$138,FALSE) -> 0
A155: > Small Non Domestic Unrestricted
A156: Small Non Domestic Unrestricted | B156: =VLOOKUP(Vlookup!B156,Volume_Forecast_Data,B$138,FALSE) -> 1133264.792 | E156: =VLOOKUP(Vlookup!E156,Volume_Forecast_Data,E$138,FALSE) -> 109825.9654
A157: LDNO LV: Small Non Domestic Unrestricted | B157: =VLOOKUP(Vlookup!B157,Volume_Forecast_Data,B$138,FALSE) -> 204.0917214 | E157: =VLOOKUP(Vlookup!E157,Volume_Forecast_Data,E$138,FALSE) -> 54.605953
A158: LDNO HV: Small Non Domestic Unrestricted | B158: =VLOOKUP(Vlookup!B158,Volume_Forecast_Data,B$138,FALSE) -> 5542.766087 | E158: =VLOOKUP(Vlookup!E158,Volume_Forecast_Data,E$138,FALSE) -> 130.848227
A159: > Small Non Domestic Two Rate
A160: Small Non Domestic Two Rate | B160: =VLOOKUP(Vlookup!B160,Volume_Forecast_Data,B$138,FALSE) -> 342200.948 | C160: =VLOOKUP(Vlookup!C160,Volume_Forecast_Data,C$138,FALSE) -> 167979.6564 | E160: =VLOOKUP(Vlookup!E160,Volume_Forecast_Data,E$138,FALSE) -> 27300.9159
A161: LDNO LV: Small Non Domestic Two Rate | B161: =VLOOKUP(Vlookup!B161,Volume_Forecast_Data,B$138,FALSE) -> 6.489359712 | C161: =VLOOKUP(Vlookup!C161,Volume_Forecast_Data,C$138,FALSE) -> 4.416801048 | E161: =VLOOKUP(Vlookup!E161,Volume_Forecast_Data,E$138,FALSE) -> 0
A162: LDNO HV: Small Non Domestic Two Rate | B162: =VLOOKUP(Vlookup!B162,Volume_Forecast_Data,B$138,FALSE) -> 360.9095051 | C162: =VLOOKUP(Vlookup!C162,Volume_Forecast_Data,C$138,FALSE) -> 96.257542 | E162: =VLOOKUP(Vlookup!E162,Volume_Forecast_Data,E$138,FALSE) -> 8.242408
A163: > Small Non Domestic Off Peak (related MPAN)
A164: Small Non Domestic Off Peak (related MPAN) | B164: =VLOOKUP(Vlookup!B164,Volume_Forecast_Data,B$138,FALSE) -> 25255.97881 | E164: =VLOOKUP(Vlookup!E164,Volume_Forecast_Data,E$138,FALSE) -> 0
A165: LDNO LV: Small Non Domestic Off Peak (related MPAN) | B165: =VLOOKUP(Vlookup!B165,Volume_Forecast_Data,B$138,FALSE) -> 0 | E165: =VLOOKUP(Vlookup!E165,Volume_Forecast_Data,E$138,FALSE) -> 0
A166: LDNO HV: Small Non Domestic Off Peak (related MPAN) | B166: =VLOOKUP(Vlookup!B166,Volume_Forecast_Data,B$138,FALSE) -> 0 | E166: =VLOOKUP(Vlookup!E166,Volume_Forecast_Data,E$138,FALSE) -> 0
A167: > LV Medium Non-Domestic
A168: LV Medium Non-Domestic | B168: =VLOOKUP(Vlookup!B168,Volume_Forecast_Data,B$138,FALSE) -> 687240.3878 | C168: =VLOOKUP(Vlookup!C168,Volume_Forecast_Data,C$138,FALSE) -> 169723.3237 | E168: =VLOOKUP(Vlookup!E168,Volume_Forecast_Data,E$138,FALSE) -> 9420.042043
A169: LDNO LV: LV Medium Non-Domestic | B169: =VLOOKUP(Vlookup!B169,Volume_Forecast_Data,B$138,FALSE) -> 0 | C169: =VLOOKUP(Vlookup!C169,Volume_Forecast_Data,C$138,FALSE) -> 0 | E169: =VLOOKUP(Vlookup!E169,Volume_Forecast_Data,E$138,FALSE) -> 0
A170: LDNO HV: LV Medium Non-Domestic | B170: =VLOOKUP(Vlookup!B170,Volume_Forecast_Data,B$138,FALSE) -> 3655.855701 | C170: =VLOOKUP(Vlookup!C170,Volume_Forecast_Data,C$138,FALSE) -> 616.5308955 | E170: =VLOOKUP(Vlookup!E170,Volume_Forecast_Data,E$138,FALSE) -> 16.484816
A171: > LV Sub Medium Non-Domestic
A172: LV Sub Medium Non-Domestic | B172: =VLOOKUP(Vlookup!B172,Volume_Forecast_Data,B$138,FALSE) -> 75018.30147 | C172: =VLOOKUP(Vlookup!C172,Volume_Forecast_Data,C$138,FALSE) -> 20930.86945 | E172: =VLOOKUP(Vlookup!E172,Volume_Forecast_Data,E$138,FALSE) -> 771.695449
A173: > HV Medium Non-Domestic
A174: HV Medium Non-Domestic | B174: =VLOOKUP(Vlookup!B174,Volume_Forecast_Data,B$138,FALSE) -> 2237.776833 | C174: =VLOOKUP(Vlookup!C174,Volume_Forecast_Data,C$138,FALSE) -> 598.9911591 | E174: =VLOOKUP(Vlookup!E174,Volume_Forecast_Data,E$138,FALSE) -> 22.666622
A175: > LV HH Metered
A176: LV HH Metered | B176: =VLOOKUP(Vlookup!B176,Volume_Forecast_Data,B$138,FALSE) -> 51720.92599 | C176: =VLOOKUP(Vlookup!C176,Volume_Forecast_Data,C$138,FALSE) -> 371431.7104 | D176: =VLOOKUP(Vlookup!D176,Volume_Forecast_Data,D$138,FALSE) -> 314010.8722 | E176: =VLOOKUP(Vlookup!E176,Volume_Forecast_Data,E$138,FALSE) -> 2909.570024 | F176: =VLOOKUP(Vlookup!F176,Volume_Forecast_Data,F$138,FALSE) -> 365000 | G176: =VLOOKUP(Vlookup!G176,Volume_Forecast_Data,G$138,FALSE) -> 74360
A177: LDNO LV: LV HH Metered | B177: =VLOOKUP(Vlookup!B177,Volume_Forecast_Data,B$138,FALSE) -> 4.992839041 | C177: =VLOOKUP(Vlookup!C177,Volume_Forecast_Data,C$138,FALSE) -> 35.85209122 | D177: =VLOOKUP(Vlookup!D177,Volume_Forecast_Data,D$138,FALSE) -> 30.29657737 | E177: =VLOOKUP(Vlookup!E177,Volume_Forecast_Data,E$138,FALSE) -> 0 | F177: =VLOOKUP(Vlookup!F177,Volume_Forecast_Data,F$138,FALSE) -> 0 | G177: =VLOOKUP(Vlookup!G177,Volume_Forecast_Data,G$138,FALSE) -> 0
A178: LDNO HV: LV HH Metered | B178: =VLOOKUP(Vlookup!B178,Volume_Forecast_Data,B$138,FALSE) -> 1421.266836 | C178: =VLOOKUP(Vlookup!C178,Volume_Forecast_Data,C$138,FALSE) -> 10212.23604 | D178: =VLOOKUP(Vlookup!D178,Volume_Forecast_Data,D$138,FALSE) -> 8634.666093 | E178: =VLOOKUP(Vlookup!E178,Volume_Forecast_Data,E$138,FALSE) -> 0 | F178: =VLOOKUP(Vlookup!F178,Volume_Forecast_Data,F$138,FALSE) -> 0 | G178: =VLOOKUP(Vlookup!G178,Volume_Forecast_Data,G$138,FALSE) -> 0
A179: > LV Sub HH Metered
A180: LV Sub HH Metered | B180: =VLOOKUP(Vlookup!B180,Volume_Forecast_Data,B$138,FALSE) -> 48107.49013 | C180: =VLOOKUP(Vlookup!C180,Volume_Forecast_Data,C$138,FALSE) -> 358527.1432 | D180: =VLOOKUP(Vlookup!D180,Volume_Forecast_Data,D$138,FALSE) -> 323866.9425 | E180: =VLOOKUP(Vlookup!E180,Volume_Forecast_Data,E$138,FALSE) -> 1357.936718 | F180: =VLOOKUP(Vlookup!F180,Volume_Forecast_Data,F$138,FALSE) -> 329000 | G180: =VLOOKUP(Vlookup!G180,Volume_Forecast_Data,G$138,FALSE) -> 80945
A181: LDNO HV: LV Sub HH Metered | B181: =VLOOKUP(Vlookup!B181,Volume_Forecast_Data,B$138,FALSE) -> 0 | C181: =VLOOKUP(Vlookup!C181,Volume_Forecast_Data,C$138,FALSE) -> 0 | D181: =VLOOKUP(Vlookup!D181,Volume_Forecast_Data,D$138,FALSE) -> 0 | E181: =VLOOKUP(Vlookup!E181,Volume_Forecast_Data,E$138,FALSE) -> 0 | F181: =VLOOKUP(Vlookup!F181,Volume_Forecast_Data,F$138,FALSE) -> 0 | G181: =VLOOKUP(Vlookup!G181,Volume_Forecast_Data,G$138,FALSE) -> 0
A182: > HV HH Metered
A183: HV HH Metered | B183: =VLOOKUP(Vlookup!B183,Volume_Forecast_Data,B$138,FALSE) -> 171978.227 | C183: =VLOOKUP(Vlookup!C183,Volume_Forecast_Data,C$138,FALSE) -> 1229589.805 | D183: =VLOOKUP(Vlookup!D183,Volume_Forecast_Data,D$138,FALSE) -> 1298420.019 | E183: =VLOOKUP(Vlookup!E183,Volume_Forecast_Data,E$138,FALSE) -> 950.967823 | F183: =VLOOKUP(Vlookup!F183,Volume_Forecast_Data,F$138,FALSE) -> 973000 | G183: =VLOOKUP(Vlookup!G183,Volume_Forecast_Data,G$138,FALSE) -> 218608
A184: LDNO HV: HV HH Metered | B184: =VLOOKUP(Vlookup!B184,Volume_Forecast_Data,B$138,FALSE) -> 1.663909347 | C184: =VLOOKUP(Vlookup!C184,Volume_Forecast_Data,C$138,FALSE) -> 11.93261612 | D184: =VLOOKUP(Vlookup!D184,Volume_Forecast_Data,D$138,FALSE) -> 13.32694307 | E184: =VLOOKUP(Vlookup!E184,Volume_Forecast_Data,E$138,FALSE) -> 0 | F184: =VLOOKUP(Vlookup!F184,Volume_Forecast_Data,F$138,FALSE) -> 0 | G184: =VLOOKUP(Vlookup!G184,Volume_Forecast_Data,G$138,FALSE) -> 0
A185: > HV Sub HH Metered
A186: HV Sub HH Metered | B186: =VLOOKUP(Vlookup!B186,Volume_Forecast_Data,B$138,FALSE) -> 0 | C186: =VLOOKUP(Vlookup!C186,Volume_Forecast_Data,C$138,FALSE) -> 0 | D186: =VLOOKUP(Vlookup!D186,Volume_Forecast_Data,D$138,FALSE) -> 0 | E186: =VLOOKUP(Vlookup!E186,Volume_Forecast_Data,E$138,FALSE) -> 0 | F186: =VLOOKUP(Vlookup!F186,Volume_Forecast_Data,F$138,FALSE) -> 0 | G186: =VLOOKUP(Vlookup!G186,Volume_Forecast_Data,G$138,FALSE) -> 0
A187: > NHH UMS category A
A188: NHH UMS category A | B188: =VLOOKUP(Vlookup!B188,Volume_Forecast_Data,B$138,FALSE) -> 16242.9499 | E188: =VLOOKUP(Vlookup!E188,Volume_Forecast_Data,E$138,FALSE) -> 0
A189: LDNO LV: NHH UMS category A | B189: =VLOOKUP(Vlookup!B189,Volume_Forecast_Data,B$138,FALSE) -> 3.194709458 | E189: =VLOOKUP(Vlookup!E189,Volume_Forecast_Data,E$138,FALSE) -> 0
A190: LDNO HV: NHH UMS category A | B190: =VLOOKUP(Vlookup!B190,Volume_Forecast_Data,B$138,FALSE) -> 72.21716645 | E190: =VLOOKUP(Vlookup!E190,Volume_Forecast_Data,E$138,FALSE) -> 0
A191: > NHH UMS category B
A192: NHH UMS category B | B192: =VLOOKUP(Vlookup!B192,Volume_Forecast_Data,B$138,FALSE) -> 5647.315146 | E192: =VLOOKUP(Vlookup!E192,Volume_Forecast_Data,E$138,FALSE) -> 0
A193: LDNO LV: NHH UMS category B | B193: =VLOOKUP(Vlookup!B193,Volume_Forecast_Data,B$138,FALSE) -> 1.064903153 | E193: =VLOOKUP(Vlookup!E193,Volume_Forecast_Data,E$138,FALSE) -> 0
A194: LDNO HV: NHH UMS category B | B194: =VLOOKUP(Vlookup!B194,Volume_Forecast_Data,B$138,FALSE) -> 25.1083147 | E194: =VLOOKUP(Vlookup!E194,Volume_Forecast_Data,E$138,FALSE) -> 0
A195: > NHH UMS category C
A196: NHH UMS category C | B196: =VLOOKUP(Vlookup!B196,Volume_Forecast_Data,B$138,FALSE) -> 629.0424209 | E196: =VLOOKUP(Vlookup!E196,Volume_Forecast_Data,E$138,FALSE) -> 0
A197: LDNO LV: NHH UMS category C | B197: =VLOOKUP(Vlookup!B197,Volume_Forecast_Data,B$138,FALSE) -> 0 | E197: =VLOOKUP(Vlookup!E197,Volume_Forecast_Data,E$138,FALSE) -> 0
A198: LDNO HV: NHH UMS category C | B198: =VLOOKUP(Vlookup!B198,Volume_Forecast_Data,B$138,FALSE) -> 2.796761763 | E198: =VLOOKUP(Vlookup!E198,Volume_Forecast_Data,E$138,FALSE) -> 0
A199: > NHH UMS category D
A200: NHH UMS category D | B200: =VLOOKUP(Vlookup!B200,Volume_Forecast_Data,B$138,FALSE) -> 0 | E200: =VLOOKUP(Vlookup!E200,Volume_Forecast_Data,E$138,FALSE) -> 0
A201: LDNO LV: NHH UMS category D | B201: =VLOOKUP(Vlookup!B201,Volume_Forecast_Data,B$138,FALSE) -> 0 | E201: =VLOOKUP(Vlookup!E201,Volume_Forecast_Data,E$138,FALSE) -> 0
A202: LDNO HV: NHH UMS category D | B202: =VLOOKUP(Vlookup!B202,Volume_Forecast_Data,B$138,FALSE) -> 0 | E202: =VLOOKUP(Vlookup!E202,Volume_Forecast_Data,E$138,FALSE) -> 0
A203: > LV UMS (Pseudo HH Metered)
A204: LV UMS (Pseudo HH Metered) | B204: =VLOOKUP(Vlookup!B204,Volume_Forecast_Data,B$138,FALSE) -> 4213.86261 | C204: =VLOOKUP(Vlookup!C204,Volume_Forecast_Data,C$138,FALSE) -> 27759.54725 | D204: =VLOOKUP(Vlookup!D204,Volume_Forecast_Data,D$138,FALSE) -> 102495.01 | E204: =VLOOKUP(Vlookup!E204,Volume_Forecast_Data,E$138,FALSE) -> 0
A205: LDNO LV: LV UMS (Pseudo HH Metered) | B205: =VLOOKUP(Vlookup!B205,Volume_Forecast_Data,B$138,FALSE) -> 0 | C205: =VLOOKUP(Vlookup!C205,Volume_Forecast_Data,C$138,FALSE) -> 0 | D205: =VLOOKUP(Vlookup!D205,Volume_Forecast_Data,D$138,FALSE) -> 0 | E205: =VLOOKUP(Vlookup!E205,Volume_Forecast_Data,E$138,FALSE) -> 0
A206: LDNO HV: LV UMS (Pseudo HH Metered) | B206: =VLOOKUP(Vlookup!B206,Volume_Forecast_Data,B$138,FALSE) -> 0 | C206: =VLOOKUP(Vlookup!C206,Volume_Forecast_Data,C$138,FALSE) -> 0 | D206: =VLOOKUP(Vlookup!D206,Volume_Forecast_Data,D$138,FALSE) -> 0 | E206: =VLOOKUP(Vlookup!E206,Volume_Forecast_Data,E$138,FALSE) -> 0
A207: > LV Generation NHH
A208: LV Generation NHH | B208: =VLOOKUP(Vlookup!B208,Volume_Forecast_Data,B$138,FALSE) -> 1215.105438 | E208: =VLOOKUP(Vlookup!E208,Volume_Forecast_Data,E$138,FALSE) -> 0
A209: LDNO LV: LV Generation NHH | B209: =VLOOKUP(Vlookup!B209,Volume_Forecast_Data,B$138,FALSE) -> 60.13913202 | E209: =VLOOKUP(Vlookup!E209,Volume_Forecast_Data,E$138,FALSE) -> 0
A210: LDNO HV: LV Generation NHH | B210: =VLOOKUP(Vlookup!B210,Volume_Forecast_Data,B$138,FALSE) -> 0 | E210: =VLOOKUP(Vlookup!E210,Volume_Forecast_Data,E$138,FALSE) -> 0
A211: > LV Sub Generation NHH
A212: LV Sub Generation NHH | B212: =VLOOKUP(Vlookup!B212,Volume_Forecast_Data,B$138,FALSE) -> 0 | E212: =VLOOKUP(Vlookup!E212,Volume_Forecast_Data,E$138,FALSE) -> 0
A213: LDNO HV: LV Sub Generation NHH | B213: =VLOOKUP(Vlookup!B213,Volume_Forecast_Data,B$138,FALSE) -> 0 | E213: =VLOOKUP(Vlookup!E213,Volume_Forecast_Data,E$138,FALSE) -> 0
A214: > LV Generation Intermittent
A215: LV Generation Intermittent | B215: =VLOOKUP(Vlookup!B215,Volume_Forecast_Data,B$138,FALSE) -> 10787.34571 | E215: =VLOOKUP(Vlookup!E215,Volume_Forecast_Data,E$138,FALSE) -> 0 | G215: =VLOOKUP(Vlookup!G215,Volume_Forecast_Data,G$138,FALSE) -> 166.0368
A216: LDNO LV: LV Generation Intermittent | B216: =VLOOKUP(Vlookup!B216,Volume_Forecast_Data,B$138,FALSE) -> 0 | E216: =VLOOKUP(Vlookup!E216,Volume_Forecast_Data,E$138,FALSE) -> 0 | G216: =VLOOKUP(Vlookup!G216,Volume_Forecast_Data,G$138,FALSE) -> 0
A217: LDNO HV: LV Generation Intermittent | B217: =VLOOKUP(Vlookup!B217,Volume_Forecast_Data,B$138,FALSE) -> 0 | E217: =VLOOKUP(Vlookup!E217,Volume_Forecast_Data,E$138,FALSE) -> 0 | G217: =VLOOKUP(Vlookup!G217,Volume_Forecast_Data,G$138,FALSE) -> 0
A218: > LV Generation Non-Intermittent
A219: LV Generation Non-Intermittent | B219: =VLOOKUP(Vlookup!B219,Volume_Forecast_Data,B$138,FALSE) -> 38.58102884 | C219: =VLOOKUP(Vlookup!C219,Volume_Forecast_Data,C$138,FALSE) -> 74.53060679 | D219: =VLOOKUP(Vlookup!D219,Volume_Forecast_Data,D$138,FALSE) -> 145.2171662 | E219: =VLOOKUP(Vlookup!E219,Volume_Forecast_Data,E$138,FALSE) -> 0 | G219: =VLOOKUP(Vlookup!G219,Volume_Forecast_Data,G$138,FALSE) -> 20.6582
A220: LDNO LV: LV Generation Non-Intermittent | B220: =VLOOKUP(Vlookup!B220,Volume_Forecast_Data,B$138,FALSE) -> 0 | C220: =VLOOKUP(Vlookup!C220,Volume_Forecast_Data,C$138,FALSE) -> 0 | D220: =VLOOKUP(Vlookup!D220,Volume_Forecast_Data,D$138,FALSE) -> 0 | E220: =VLOOKUP(Vlookup!E220,Volume_Forecast_Data,E$138,FALSE) -> 0 | G220: =VLOOKUP(Vlookup!G220,Volume_Forecast_Data,G$138,FALSE) -> 0
A221: LDNO HV: LV Generation Non-Intermittent | B221: =VLOOKUP(Vlookup!B221,Volume_Forecast_Data,B$138,FALSE) -> 0 | C221: =VLOOKUP(Vlookup!C221,Volume_Forecast_Data,C$138,FALSE) -> 0 | D221: =VLOOKUP(Vlookup!D221,Volume_Forecast_Data,D$138,FALSE) -> 0 | E221: =VLOOKUP(Vlookup!E221,Volume_Forecast_Data,E$138,FALSE) -> 0 | G221: =VLOOKUP(Vlookup!G221,Volume_Forecast_Data,G$138,FALSE) -> 0
A222: > LV Sub Generation Intermittent
A223: LV Sub Generation Intermittent | B223: =VLOOKUP(Vlookup!B223,Volume_Forecast_Data,B$138,FALSE) -> 453.9417733 | E223: =VLOOKUP(Vlookup!E223,Volume_Forecast_Data,E$138,FALSE) -> 0 | G223: =VLOOKUP(Vlookup!G223,Volume_Forecast_Data,G$138,FALSE) -> 29.2974
A224: LDNO HV: LV Sub Generation Intermittent | B224: =VLOOKUP(Vlookup!B224,Volume_Forecast_Data,B$138,FALSE) -> 0 | E224: =VLOOKUP(Vlookup!E224,Volume_Forecast_Data,E$138,FALSE) -> 0 | G224: =VLOOKUP(Vlookup!G224,Volume_Forecast_Data,G$138,FALSE) -> 0
A225: > LV Sub Generation Non-Intermittent
A226: LV Sub Generation Non-Intermittent | B226: =VLOOKUP(Vlookup!B226,Volume_Forecast_Data,B$138,FALSE) -> 77.38328585 | C226: =VLOOKUP(Vlookup!C226,Volume_Forecast_Data,C$138,FALSE) -> 349.4328086 | D226: =VLOOKUP(Vlookup!D226,Volume_Forecast_Data,D$138,FALSE) -> 769.076982 | E226: =VLOOKUP(Vlookup!E226,Volume_Forecast_Data,E$138,FALSE) -> 0 | G226: =VLOOKUP(Vlookup!G226,Volume_Forecast_Data,G$138,FALSE) -> 158.12
A227: LDNO HV: LV Sub Generation Non-Intermittent | B227: =VLOOKUP(Vlookup!B227,Volume_Forecast_Data,B$138,FALSE) -> 0 | C227: =VLOOKUP(Vlookup!C227,Volume_Forecast_Data,C$138,FALSE) -> 0 | D227: =VLOOKUP(Vlookup!D227,Volume_Forecast_Data,D$138,FALSE) -> 0 | E227: =VLOOKUP(Vlookup!E227,Volume_Forecast_Data,E$138,FALSE) -> 0 | G227: =VLOOKUP(Vlookup!G227,Volume_Forecast_Data,G$138,FALSE) -> 0
A228: > HV Generation Intermittent
A229: HV Generation Intermittent | B229: =VLOOKUP(Vlookup!B229,Volume_Forecast_Data,B$138,FALSE) -> 33445.72235 | E229: =VLOOKUP(Vlookup!E229,Volume_Forecast_Data,E$138,FALSE) -> 31.939331 | G229: =VLOOKUP(Vlookup!G229,Volume_Forecast_Data,G$138,FALSE) -> 1094.707
A230: LDNO HV: HV Generation Intermittent | B230: =VLOOKUP(Vlookup!B230,Volume_Forecast_Data,B$138,FALSE) -> 0 | E230: =VLOOKUP(Vlookup!E230,Volume_Forecast_Data,E$138,FALSE) -> 0 | G230: =VLOOKUP(Vlookup!G230,Volume_Forecast_Data,G$138,FALSE) -> 0
... 96 more rows

Sheet (Y+4)
A5: 1000. Company, charging year, data version
B7: Company | C7: Year | D7: Version
A8: Company, charging year, data version | B8: =VLOOKUP(Vlookup!B8,Forcast_Data,9,FALSE) -> WPD South West | C8: =VLOOKUP(Vlookup!C8,Forcast_Data,9,FALSE) -> April 2017 | D8: =VLOOKUP(Vlookup!D8,Forcast_Data,9,FALSE) -> 0
A10: 1010. Financial and general assumptions
A12: Sources: financial assumptions; calendar; network model.
A13: These financial assumptions determine the annuity rate applied to convert the asset values of the network model into an annual charge.
B14: Rate of return | C14: Annualisation period (years) | D14: Annuity proportion for customer-contributed assets | E14: Power factor | F14: Days in the charging period
A15: Financial and general assumptions | B15: =VLOOKUP(Vlookup!B15,Forcast_Data,9,FALSE) -> 0.056 | C15: =VLOOKUP(Vlookup!C15,Forcast_Data,9,FALSE) -> 40 | E15: =VLOOKUP(Vlookup!E15,Forcast_Data,9,FALSE) -> 0.95 | F15: =VLOOKUP(Vlookup!F15,Forcast_Data,9,FALSE) -> 365
A17: 1017. Diversity allowance between top and bottom of network level
A19: Source: operational data analysis and/or network model.
A20: The diversity figure against GSP is the diversity between GSP Group (the whole system) and individual GSPs.
A21: The diversity figure against 132kV is the diversity between GSPs (the top of the 132kV network) and 132kV/EHV bulk supply points (the bottom of the 132kV network).
A22: The diversity figure against EHV is the diversity between 132kV/EHV bulk supply points (the top of the EHV network) and EHV/HV primary substations (the bottom of the EHV network).
A23: The diversity figure against HV is the diversity between EHV/HV primary substations (the top of the HV network) and HV/LV substations (the bottom of the HV network).
B24: Diversity allowance between top and bottom of network level
A25: GSPs | B25: =VLOOKUP(Vlookup!B25,Forcast_Data,9,FALSE) -> 0.022
A26: 132kV | B26: =VLOOKUP(Vlookup!B26,Forcast_Data,9,FALSE) -> 0.031
A27: 132kV/EHV
A28: EHV | B28: =VLOOKUP(Vlookup!B28,Forcast_Data,9,FALSE) -> 0.075
A29: EHV/HV
A30: HV | B30: =VLOOKUP(Vlookup!B30,Forcast_Data,9,FALSE) -> 0.37
A31: HV/LV
A32: LV circuits
A34: 1018. Proportion of relevant load going through 132kV/HV direct transformation
B36: 132kV/HV
A37: EHV/HV | B37: =VLOOKUP(Vlookup!B37,Forcast_Data,9,FALSE) -> 0
A39: 1019. Network model GSP peak demand (MW)
B41: Network model GSP peak demand (MW)
A42: Network model GSP peak demand (MW) | B42: =VLOOKUP(Vlookup!B42,Forcast_Data,9,FALSE) -> 500
A44: 1020. Gross asset cost by network level (£)
B46: Gross assets £
A47: 132kV | B47: =VLOOKUP(Vlookup!B47,Forcast_Data,9,FALSE) -> 112311182.2
A48: 132kV/EHV | B48: =VLOOKUP(Vlookup!B48,Forcast_Data,9,FALSE) -> 16728046.79
A49: EHV | B49: =VLOOKUP(Vlookup!B49,Forcast_Data,9,FALSE) -> 49357002.12
A50: EHV/HV | B50: =VLOOKUP(Vlookup!B50,Forcast_Data,9,FALSE) -> 39455464.36
A51: 132kV/HV | B51: =VLOOKUP(Vlookup!B51,Forcast_Data,9,FALSE) -> 0
A52: HV | B52: =VLOOKUP(Vlookup!B52,Forcast_Data,9,FALSE) -> 164935321.7
A53: HV/LV | B53: =VLOOKUP(Vlookup!B53,Forcast_Data,9,FALSE) -> 64368275.91
A54: LV circuits | B54: =VLOOKUP(Vlookup!B54,Forcast_Data,9,FALSE) -> 143543746.1
A56: 1022. LV service model asset cost (£)
B58: LV service model 1 | C58: LV service model 2 | D58: LV service model 3 | E58: LV service model 4 | F58: LV service model 5 | G58: LV service model 6 | H58: LV service model 7 | I58: LV service model 8
A59: LV service model asset cost (£) | B59: =VLOOKUP(Vlookup!B59,Forcast_Data,9,FALSE) -> 4976.828541 | C59: =VLOOKUP(Vlookup!C59,Forcast_Data,9,FALSE) -> 614.3797398 | D59: =VLOOKUP(Vlookup!D59,Forcast_Data,9,FALSE) -> 725.7335096 | E59: =VLOOKUP(Vlookup!E59,Forcast_Data,9,FALSE) -> 540.658002 | F59: =VLOOKUP(Vlookup!F59,Forcast_Data,9,FALSE) -> 1240.591027 | G59: =VLOOKUP(Vlookup!G59,Forcast_Data,9,FALSE) -> 911.1568762 | H59: =VLOOKUP(Vlookup!H59,Forcast_Data,9,FALSE) -> - | I59: =VLOOKUP(Vlookup!I59,Forcast_Data,9,FALSE) -> 477.8771111
A61: 1023. HV service model asset cost (£)
B63: HV service model 1 | C63: HV service model 2 | D63: HV service model 3 | E63: HV service model 4 | F63: HV service model 5
A64: HV service model asset cost (£) | B64: =VLOOKUP(Vlookup!B64,Forcast_Data,9,FALSE) -> 9283.848475 | C64: =VLOOKUP(Vlookup!C64,Forcast_Data,9,FALSE) -> 4562.465987 | D64: =VLOOKUP(Vlookup!D64,Forcast_Data,9,FALSE) -> - | E64: =VLOOKUP(Vlookup!E64,Forcast_Data,9,FALSE) -> - | F64: =VLOOKUP(Vlookup!F64,Forcast_Data,9,FALSE) -> -
A66: 1025. Matrix of applicability of LV service models to tariffs with fixed charges
B67: 34 | C67: =B67+1 -> 35 | D67: =C67+1 -> 36 | E67: 37 | F67: 38 | G67: 39 | H67: 40 | I67: 41
B68: LV service model 1 | C68: LV service model 2 | D68: LV service model 3 | E68: LV service model 4 | F68: LV service model 5 | G68: LV service model 6 | H68: LV service model 7 | I68: LV service model 8
A69: Domestic Unrestricted | B69: =VLOOKUP($A69,'Mat of App'!$B$7:$AP$38,B$67,FALSE) -> 0.05 | C69: =VLOOKUP($A69,'Mat of App'!$B$7:$AP$38,C$67,FALSE) -> 0 | D69: =VLOOKUP($A69,'Mat of App'!$B$7:$AP$38,D$67,FALSE) -> 0 | E69: =VLOOKUP($A69,'Mat of App'!$B$7:$AP$38,E$67,FALSE) -> 0 | F69: =VLOOKUP($A69,'Mat of App'!$B$7:$AP$38,F$67,FALSE) -> 0 | G69: =VLOOKUP($A69,'Mat of App'!$B$7:$AP$38,G$67,FALSE) -> 0 | H69: =VLOOKUP($A69,'Mat of App'!$B$7:$AP$38,H$67,FALSE) -> 0 | I69: =VLOOKUP($A69,'Mat of App'!$B$7:$AP$38,I$67,FALSE) -> 0
A70: Domestic Two Rate | B70: =VLOOKUP($A70,'Mat of App'!$B$7:$AP$38,B$67,FALSE) -> 0.05 | C70: =VLOOKUP($A70,'Mat of App'!$B$7:$AP$38,C$67,FALSE) -> 0 | D70: =VLOOKUP($A70,'Mat of App'!$B$7:$AP$38,D$67,FALSE) -> 0 | E70: =VLOOKUP($A70,'Mat of App'!$B$7:$AP$38,E$67,FALSE) -> 0 | F70: =VLOOKUP($A70,'Mat of App'!$B$7:$AP$38,F$67,FALSE) -> 0 | G70: =VLOOKUP($A70,'Mat of App'!$B$7:$AP$38,G$67,FALSE) -> 0 | H70: =VLOOKUP($A70,'Mat of App'!$B$7:$AP$38,H$67,FALSE) -> 0 | I70: =VLOOKUP($A70,'Mat of App'!$B$7:$AP$38,I$67,FALSE) -> 0
A71: Small Non Domestic Unrestricted | B71: =VLOOKUP($A71,'Mat of App'!$B$7:$AP$38,B$67,FALSE) -> 0 | C71: =VLOOKUP($A71,'Mat of App'!$B$7:$AP$38,C$67,FALSE) -> 1 | D71: =VLOOKUP($A71,'Mat of App'!$B$7:$AP$38,D$67,FALSE) -> 0 | E71: =VLOOKUP($A71,'Mat of App'!$B$7:$AP$38,E$67,FALSE) -> 0 | F71: =VLOOKUP($A71,'Mat of App'!$B$7:$AP$38,F$67,FALSE) -> 0 | G71: =VLOOKUP($A71,'Mat of App'!$B$7:$AP$38,G$67,FALSE) -> 0 | H71: =VLOOKUP($A71,'Mat of App'!$B$7:$AP$38,H$67,FALSE) -> 0 | I71: =VLOOKUP($A71,'Mat of App'!$B$7:$AP$38,I$67,FALSE) -> 0
A72: Small Non Domestic Two Rate | B72: =VLOOKUP($A72,'Mat of App'!$B$7:$AP$38,B$67,FALSE) -> 0 | C72: =VLOOKUP($A72,'Mat of App'!$B$7:$AP$38,C$67,FALSE) -> 1 | D72: =VLOOKUP($A72,'Mat of App'!$B$7:$AP$38,D$67,FALSE) -> 0 | E72: =VLOOKUP($A72,'Mat of App'!$B$7:$AP$38,E$67,FALSE) -> 0 | F72: =VLOOKUP($A72,'Mat of App'!$B$7:$AP$38,F$67,FALSE) -> 0 | G72: =VLOOKUP($A72,'Mat of App'!$B$7:$AP$38,G$67,FALSE) -> 0 | H72: =VLOOKUP($A72,'Mat of App'!$B$7:$AP$38,H$67,FALSE) -> 0 | I72: =VLOOKUP($A72,'Mat of App'!$B$7:$AP$38,I$67,FALSE) -> 0
A73: LV Medium Non-Domestic | B73: =VLOOKUP($A73,'Mat of App'!$B$7:$AP$38,B$67,FALSE) -> 0 | C73: =VLOOKUP($A73,'Mat of App'!$B$7:$AP$38,C$67,FALSE) -> 0 | D73: =VLOOKUP($A73,'Mat of App'!$B$7:$AP$38,D$67,FALSE) -> 1 | E73: =VLOOKUP($A73,'Mat of App'!$B$7:$AP$38,E$67,FALSE) -> 0 | F73: =VLOOKUP($A73,'Mat of App'!$B$7:$AP$38,F$67,FALSE) -> 0 | G73: =VLOOKUP($A73,'Mat of App'!$B$7:$AP$38,G$67,FALSE) -> 0 | H73: =VLOOKUP($A73,'Mat of App'!$B$7:$AP$38,H$67,FALSE) -> 0 | I73: =VLOOKUP($A73,'Mat of App'!$B$7:$AP$38,I$67,FALSE) -> 0
A74: LV Sub Medium Non-Domestic | B74: =VLOOKUP($A74,'Mat of App'!$B$7:$AP$38,B$67,FALSE) -> 0 | C74: =VLOOKUP($A74,'Mat of App'!$B$7:$AP$38,C$67,FALSE) -> 0 | D74: =VLOOKUP($A74,'Mat of App'!$B$7:$AP$38,D$67,FALSE) -> 0 | E74: =VLOOKUP($A74,'Mat of App'!$B$7:$AP$38,E$67,FALSE) -> 1 | F74: =VLOOKUP($A74,'Mat of App'!$B$7:$AP$38,F$67,FALSE) -> 0 | G74: =VLOOKUP($A74,'Mat of App'!$B$7:$AP$38,G$67,FALSE) -> 0 | H74: =VLOOKUP($A74,'Mat of App'!$B$7:$AP$38,H$67,FALSE) -> 0 | I74: =VLOOKUP($A74,'Mat of App'!$B$7:$AP$38,I$67,FALSE) -> 0
A75: LV HH Metered | B75: =VLOOKUP($A75,'Mat of App'!$B$7:$AP$38,B$67,FALSE) -> 0 | C75: =VLOOKUP($A75,'Mat of App'!$B$7:$AP$38,C$67,FALSE) -> 0 | D75: =VLOOKUP($A75,'Mat of App'!$B$7:$AP$38,D$67,FALSE) -> 0 | E75: =VLOOKUP($A75,'Mat of App'!$B$7:$AP$38,E$67,FALSE) -> 0 | F75: =VLOOKUP($A75,'Mat of App'!$B$7:$AP$38,F$67,FALSE) -> 1 | G75: =VLOOKUP($A75,'Mat of App'!$B$7:$AP$38,G$67,FALSE) -> 0 | H75: =VLOOKUP($A75,'Mat of App'!$B$7:$AP$38,H$67,FALSE) -> 0 | I75: =VLOOKUP($A75,'Mat of App'!$B$7:$AP$38,I$67,FALSE) -> 0
A76: LV Sub HH Metered | B76: =VLOOKUP($A76,'Mat of App'!$B$7:$AP$38,B$67,FALSE) -> 0 | C76: =VLOOKUP($A76,'Mat of App'!$B$7:$AP$38,C$67,FALSE) -> 0 | D76: =VLOOKUP($A76,'Mat of App'!$B$7:$AP$38,D$67,FALSE) -> 0 | E76: =VLOOKUP($A76,'Mat of App'!$B$7:$AP$38,E$67,FALSE) -> 0 | F76: =VLOOKUP($A76,'Mat of App'!$B$7:$AP$38,F$67,FALSE) -> 0 | G76: =VLOOKUP($A76,'Mat of App'!$B$7:$AP$38,G$67,FALSE) -> 1 | H76: =VLOOKUP($A76,'Mat of App'!$B$7:$AP$38,H$67,FALSE) -> 0 | I76: =VLOOKUP($A76,'Mat of App'!$B$7:$AP$38,I$67,FALSE) -> 0
A77: LV Generation NHH | B77: =VLOOKUP($A77,'Mat of App'!$B$7:$AP$38,B$67,FALSE) -> 0 | C77: =VLOOKUP($A77,'Mat of App'!$B$7:$AP$38,C$67,FALSE) -> 0 | D77: =VLOOKUP($A77,'Mat of App'!$B$7:$AP$38,D$67,FALSE) -> 0 | E77: =VLOOKUP($A77,'Mat of App'!$B$7:$AP$38,E$67,FALSE) -> 0 | F77: =VLOOKUP($A77,'Mat of App'!$B$7:$AP$38,F$67,FALSE) -> 0 | G77: =VLOOKUP($A77,'Mat of App'!$B$7:$AP$38,G$67,FALSE) -> 0 | H77: =VLOOKUP($A77,'Mat of App'!$B$7:$AP$38,H$67,FALSE) -> 1 | I77: =VLOOKUP($A77,'Mat of App'!$B$7:$AP$38,I$67,FALSE) -> 0
A78: LV Sub Generation NHH | B78: =VLOOKUP($A78,'Mat of App'!$B$7:$AP$38,B$67,FALSE) -> 0 | C78: =VLOOKUP($A78,'Mat of App'!$B$7:$AP$38,C$67,FALSE) -> 0 | D78: =VLOOKUP($A78,'Mat of App'!$B$7:$AP$38,D$67,FALSE) -> 0 | E78: =VLOOKUP($A78,'Mat of App'!$B$7:$AP$38,E$67,FALSE) -> 0 | F78: =VLOOKUP($A78,'Mat of App'!$B$7:$AP$38,F$67,FALSE) -> 0 | G78: =VLOOKUP($A78,'Mat of App'!$B$7:$AP$38,G$67,FALSE) -> 0 | H78: =VLOOKUP($A78,'Mat of App'!$B$7:$AP$38,H$67,FALSE) -> 1 | I78: =VLOOKUP($A78,'Mat of App'!$B$7:$AP$38,I$67,FALSE) -> 0
A79: LV Generation Intermittent | B79: =VLOOKUP($A79,'Mat of App'!$B$7:$AP$38,B$67,FALSE) -> 0 | C79: =VLOOKUP($A79,'Mat of App'!$B$7:$AP$38,C$67,FALSE) -> 0 | D79: =VLOOKUP($A79,'Mat of App'!$B$7:$AP$38,D$67,FALSE) -> 0 | E79: =VLOOKUP($A79,'Mat of App'!$B$7:$AP$38,E$67,FALSE) -> 0 | F79: =VLOOKUP($A79,'Mat of App'!$B$7:$AP$38,F$67,FALSE) -> 0 | G79: =VLOOKUP($A79,'Mat of App'!$B$7:$AP$38,G$67,FALSE) -> 0 | H79: =VLOOKUP($A79,'Mat of App'!$B$7:$AP$38,H$67,FALSE) -> 1 | I79: =VLOOKUP($A79,'Mat of App'!$B$7:$AP$38,I$67,FALSE) -> 0
A80: LV Generation Non-Intermittent | B80: =VLOOKUP($A80,'Mat of App'!$B$7:$AP$38,B$67,FALSE) -> 0 | C80: =VLOOKUP($A80,'Mat of App'!$B$7:$AP$38,C$67,FALSE) -> 0 | D80: =VLOOKUP($A80,'Mat of App'!$B$7:$AP$38,D$67,FALSE) -> 0 | E80: =VLOOKUP($A80,'Mat of App'!$B$7:$AP$38,E$67,FALSE) -> 0 | F80: =VLOOKUP($A80,'Mat of App'!$B$7:$AP$38,F$67,FALSE) -> 0 | G80: =VLOOKUP($A80,'Mat of App'!$B$7:$AP$38,G$67,FALSE) -> 0 | H80: =VLOOKUP($A80,'Mat of App'!$B$7:$AP$38,H$67,FALSE) -> 0 | I80: =VLOOKUP($A80,'Mat of App'!$B$7:$AP$38,I$67,FALSE) -> 0
A81: LV Sub Generation Intermittent | B81: =VLOOKUP($A81,'Mat of App'!$B$7:$AP$38,B$67,FALSE) -> 0 | C81: =VLOOKUP($A81,'Mat of App'!$B$7:$AP$38,C$67,FALSE) -> 0 | D81: =VLOOKUP($A81,'Mat of App'!$B$7:$AP$38,D$67,FALSE) -> 0 | E81: =VLOOKUP($A81,'Mat of App'!$B$7:$AP$38,E$67,FALSE) -> 0 | F81: =VLOOKUP($A81,'Mat of App'!$B$7:$AP$38,F$67,FALSE) -> 0 | G81: =VLOOKUP($A81,'Mat of App'!$B$7:$AP$38,G$67,FALSE) -> 0 | H81: =VLOOKUP($A81,'Mat of App'!$B$7:$AP$38,H$67,FALSE) -> 0 | I81: =VLOOKUP($A81,'Mat of App'!$B$7:$AP$38,I$67,FALSE) -> 0
A82: LV Sub Generation Non-Intermittent | B82: =VLOOKUP($A82,'Mat of App'!$B$7:$AP$38,B$67,FALSE) -> 0 | C82: =VLOOKUP($A82,'Mat of App'!$B$7:$AP$38,C$67,FALSE) -> 0 | D82: =VLOOKUP($A82,'Mat of App'!$B$7:$AP$38,D$67,FALSE) -> 0 | E82: =VLOOKUP($A82,'Mat of App'!$B$7:$AP$38,E$67,FALSE) -> 0 | F82: =VLOOKUP($A82,'Mat of App'!$B$7:$AP$38,F$67,FALSE) -> 0 | G82: =VLOOKUP($A82,'Mat of App'!$B$7:$AP$38,G$67,FALSE) -> 0 | H82: =VLOOKUP($A82,'Mat of App'!$B$7:$AP$38,H$67,FALSE) -> 0 | I82: =VLOOKUP($A82,'Mat of App'!$B$7:$AP$38,I$67,FALSE) -> 0
A84: 1026. Matrix of applicability of LV service models to unmetered tariffs
A86: Source: service models
A87: Proportion of service model involved in connecting load of 1 MWh/year
B88: LV service model 1 | C88: LV service model 2 | D88: LV service model 3 | E88: LV service model 4 | F88: LV service model 5 | G88: LV service model 6 | H88: LV service model 7 | I88: LV service model 8
A89: All LV unmetered tariffs | B89: =VLOOKUP($A89,'Mat of App'!$B$7:$AP$38,B$67,FALSE) -> 0 | C89: =VLOOKUP($A89,'Mat of App'!$B$7:$AP$38,C$67,FALSE) -> 0 | D89: =VLOOKUP($A89,'Mat of App'!$B$7:$AP$38,D$67,FALSE) -> 0 | E89: =VLOOKUP($A89,'Mat of App'!$B$7:$AP$38,E$67,FALSE) -> 0 | F89: =VLOOKUP($A89,'Mat of App'!$B$7:$AP$38,F$67,FALSE) -> 0 | G89: =VLOOKUP($A89,'Mat of App'!$B$7:$AP$38,G$67,FALSE) -> 0 | H89: =VLOOKUP($A89,'Mat of App'!$B$7:$AP$38,H$67,FALSE) -> 0 | I89: =VLOOKUP($A89,'Mat of App'!$B$7:$AP$38,I$67,FALSE) -> 0.4876
A91: 1028. Matrix of applicability of HV service models to tariffs with fixed charges
B92: 22 | C92: =B92+1 -> 23 | D92: =C92+1 -> 24 | E92: 25 | F92: 26
B93: HV service model 1 | C93: HV service model 2 | D93: HV service model 3 | E93: HV service model 4 | F93: HV service model 5
A94: HV Medium Non-Domestic | B94: =VLOOKUP($A94,'Mat of App'!$B$7:$AP$38,B$92,FALSE) -> 1 | C94: =VLOOKUP($A94,'Mat of App'!$B$7:$AP$38,C$92,FALSE) -> 0 | D94: =VLOOKUP($A94,'Mat of App'!$B$7:$AP$38,D$92,FALSE) -> 0 | E94: =VLOOKUP($A94,'Mat of App'!$B$7:$AP$38,E$92,FALSE) -> 0 | F94: =VLOOKUP($A94,'Mat of App'!$B$7:$AP$38,F$92,FALSE) -> 0
A95: HV HH Metered | B95: =VLOOKUP($A95,'Mat of App'!$B$7:$AP$38,B$92,FALSE) -> 1 | C95: =VLOOKUP($A95,'Mat of App'!$B$7:$AP$38,C$92,FALSE) -> 0 | D95: =VLOOKUP($A95,'Mat of App'!$B$7:$AP$38,D$92,FALSE) -> 0 | E95: =VLOOKUP($A95,'Mat of App'!$B$7:$AP$38,E$92,FALSE) -> 0 | F95: =VLOOKUP($A95,'Mat of App'!$B$7:$AP$38,F$92,FALSE) -> 0
A96: HV Sub HH Metered | B96: =VLOOKUP($A96,'Mat of App'!$B$7:$AP$38,B$92,FALSE) -> 1 | C96: =VLOOKUP($A96,'Mat of App'!$B$7:$AP$38,C$92,FALSE) -> 0 | D96: =VLOOKUP($A96,'Mat of App'!$B$7:$AP$38,D$92,FALSE) -> 0 | E96: =VLOOKUP($A96,'Mat of App'!$B$7:$AP$38,E$92,FALSE) -> 0 | F96: =VLOOKUP($A96,'Mat of App'!$B$7:$AP$38,F$92,FALSE) -> 0
A97: HV Generation Intermittent | B97: =VLOOKUP($A97,'Mat of App'!$B$7:$AP$38,B$92,FALSE) -> 0 | C97: =VLOOKUP($A97,'Mat of App'!$B$7:$AP$38,C$92,FALSE) -> 1 | D97: =VLOOKUP($A97,'Mat of App'!$B$7:$AP$38,D$92,FALSE) -> 0 | E97: =VLOOKUP($A97,'Mat of App'!$B$7:$AP$38,E$92,FALSE) -> 0 | F97: =VLOOKUP($A97,'Mat of App'!$B$7:$AP$38,F$92,FALSE) -> 0
A98: HV Generation Non-Intermittent | B98: =VLOOKUP($A98,'Mat of App'!$B$7:$AP$38,B$92,FALSE) -> 0 | C98: =VLOOKUP($A98,'Mat of App'!$B$7:$AP$38,C$92,FALSE) -> 1 | D98: =VLOOKUP($A98,'Mat of App'!$B$7:$AP$38,D$92,FALSE) -> 0 | E98: =VLOOKUP($A98,'Mat of App'!$B$7:$AP$38,E$92,FALSE) -> 0 | F98: =VLOOKUP($A98,'Mat of App'!$B$7:$AP$38,F$92,FALSE) -> 0
A99: HV Sub Generation Non-Intermittent | B99: =VLOOKUP($A99,'Mat of App'!$B$7:$AP$38,B$92,FALSE) -> 0 | C99: =VLOOKUP($A99,'Mat of App'!$B$7:$AP$38,C$92,FALSE) -> 1 | D99: =VLOOKUP($A99,'Mat of App'!$B$7:$AP$38,D$92,FALSE) -> 0 | E99: =VLOOKUP($A99,'Mat of App'!$B$7:$AP$38,E$92,FALSE) -> 0 | F99: =VLOOKUP($A99,'Mat of App'!$B$7:$AP$38,F$92,FALSE) -> 0
A100: HV Sub Generation Intermittent | B100: =VLOOKUP($A100,'Mat of App'!$B$7:$AP$38,B$92,FALSE) -> 0 | C100: =VLOOKUP($A100,'Mat of App'!$B$7:$AP$38,C$92,FALSE) -> 1 | D100: =VLOOKUP($A100,'Mat of App'!$B$7:$AP$38,D$92,FALSE) -> 0 | E100: =VLOOKUP($A100,'Mat of App'!$B$7:$AP$38,E$92,FALSE) -> 0 | F100: =VLOOKUP($A100,'Mat of App'!$B$7:$AP$38,F$92,FALSE) -> 0
A102: 1032. Loss adjustment factors to transmission
A104: Source: losses model or loss adjustment factors at time of system peak.
B105: 132kV | C105: 132kV/EHV | D105: EHV | E105: EHV/HV | F105: HV | G105: HV/LV | H105: LV circuits
A106: Loss adjustment factor | B106: =VLOOKUP(Vlookup!B106,Forcast_Data,9,FALSE) -> 1.013 | C106: =VLOOKUP(Vlookup!C106,Forcast_Data,9,FALSE) -> 1.017 | D106: =VLOOKUP(Vlookup!D106,Forcast_Data,9,FALSE) -> 1.032 | E106: =VLOOKUP(Vlookup!E106,Forcast_Data,9,FALSE) -> 1.042 | F106: =VLOOKUP(Vlookup!F106,Forcast_Data,9,FALSE) -> 1.065 | G106: =VLOOKUP(Vlookup!G106,Forcast_Data,9,FALSE) -> 1.078 | H106: =VLOOKUP(Vlookup!H106,Forcast_Data,9,FALSE) -> 1.087
A108: 1037. Embedded network (LDNO) discounts
A110: Source: separate price control disaggregation model.
B111: No discount | C111: LDNO LV: LV user | D111: LDNO HV: LV user | E111: LDNO HV: LV sub user | F111: LDNO HV: HV user
A112: LDNO discount | C112: =VLOOKUP(Vlookup!C112,Forcast_Data,9,FALSE) -> 0.3580021725 | D112: =VLOOKUP(Vlookup!D112,Forcast_Data,9,FALSE) -> 0.6121303874 | E112: =VLOOKUP(Vlookup!E112,Forcast_Data,9,FALSE) -> 0.3773090501 | F112: =VLOOKUP(Vlookup!F112,Forcast_Data,9,FALSE) -> 0.2678469175
A114: 1041. Load profile data for demand users
A116: Source: load data analysis.
B117: Coincidence factor | C117: Load factor
A118: Domestic Unrestricted | B118: =VLOOKUP(Vlookup!B118,Forcast_Data,9,FALSE) -> 0.9110931172 | C118: =VLOOKUP(Vlookup!C118,Forcast_Data,9,FALSE) -> 0.3992113024
A119: Domestic Two Rate | B119: =VLOOKUP(Vlookup!B119,Forcast_Data,9,FALSE) -> 0.3144256013 | C119: =VLOOKUP(Vlookup!C119,Forcast_Data,9,FALSE) -> 0.2187041838
A120: Domestic Off Peak (related MPAN) | C120: =VLOOKUP(Vlookup!C120,Forcast_Data,9,FALSE) -> 0.1367858009
A121: Small Non Domestic Unrestricted | B121: =VLOOKUP(Vlookup!B121,Forcast_Data,9,FALSE) -> 0.6277145101 | C121: =VLOOKUP(Vlookup!C121,Forcast_Data,9,FALSE) -> 0.3620931243
A122: Small Non Domestic Two Rate | B122: =VLOOKUP(Vlookup!B122,Forcast_Data,9,FALSE) -> 0.5306730516 | C122: =VLOOKUP(Vlookup!C122,Forcast_Data,9,FALSE) -> 0.3950566623
A123: Small Non Domestic Off Peak (related MPAN) | C123: =VLOOKUP(Vlookup!C123,Forcast_Data,9,FALSE) -> 0.2258067728
A124: LV Medium Non-Domestic | B124: =VLOOKUP(Vlookup!B124,Forcast_Data,9,FALSE) -> 0.8006161179 | C124: =VLOOKUP(Vlookup!C124,Forcast_Data,9,FALSE) -> 0.5594720869
A125: LV Sub Medium Non-Domestic | B125: =VLOOKUP(Vlookup!B125,Forcast_Data,9,FALSE) -> 0.7829460721 | C125: =VLOOKUP(Vlookup!C125,Forcast_Data,9,FALSE) -> 0.5684359804
A126: HV Medium Non-Domestic | B126: =VLOOKUP(Vlookup!B126,Forcast_Data,9,FALSE) -> 0.7512811282 | C126: =VLOOKUP(Vlookup!C126,Forcast_Data,9,FALSE) -> 0.409929049
A127: LV HH Metered | B127: =VLOOKUP(Vlookup!B127,Forcast_Data,9,FALSE) -> 0.8145064582 | C127: =VLOOKUP(Vlookup!C127,Forcast_Data,9,FALSE) -> 0.580821256
A128: LV Sub HH Metered | B128: =VLOOKUP(Vlookup!B128,Forcast_Data,9,FALSE) -> 0.782726117 | C128: =VLOOKUP(Vlookup!C128,Forcast_Data,9,FALSE) -> 0.6075756983
A129: HV HH Metered | B129: =VLOOKUP(Vlookup!B129,Forcast_Data,9,FALSE) -> 0.8113670182 | C129: =VLOOKUP(Vlookup!C129,Forcast_Data,9,FALSE) -> 0.7201136334
A130: HV Sub HH Metered | B130: =VLOOKUP(Vlookup!B130,Forcast_Data,9,FALSE) -> 0.4992999836 | C130: =VLOOKUP(Vlookup!C130,Forcast_Data,9,FALSE) -> 0.5610911178
A131: NHH UMS category A | B131: =VLOOKUP(Vlookup!B131,Forcast_Data,9,FALSE) -> 1 | C131: =VLOOKUP(Vlookup!C131,Forcast_Data,9,FALSE) -> 1
A132: NHH UMS category B | B132: =VLOOKUP(Vlookup!B132,Forcast_Data,9,FALSE) -> 1 | C132: =VLOOKUP(Vlookup!C132,Forcast_Data,9,FALSE) -> 0.4743289155
A133: NHH UMS category C | B133: =VLOOKUP(Vlookup!B133,Forcast_Data,9,FALSE) -> 1 | C133: =VLOOKUP(Vlookup!C133,Forcast_Data,9,FALSE) -> 0.2537152397
A134: NHH UMS category D | B134: =VLOOKUP(Vlookup!B134,Forcast_Data,9,FALSE) -> 0.02906666667 | C134: =VLOOKUP(Vlookup!C134,Forcast_Data,9,FALSE) -> 0.553
A135: LV UMS (Pseudo HH Metered) | B135: =VLOOKUP(Vlookup!B135,Forcast_Data,9,FALSE) -> 0.9230565392 | C135: =VLOOKUP(Vlookup!C135,Forcast_Data,9,FALSE) -> 0.4774652203
A137: 1053. Volume forecasts for the charging year
B138: 28 | C138: 29 | D138: 30 | E138: 31 | F138: 32 | G138: 33
A139: Source: forecast.
A140: Please include MPAN counts for tariffs with no fixed charge (e.g. off-peak tariffs),
A141: but exclude MPANs on tariffs with a fixed charge that are not subject to a fixed charge due to a site grouping arrangement.
B142: Rate 1 units (MWh) | C142: Rate 2 units (MWh) | D142: Rate 3 units (MWh) | E142: MPANs | F142: Import capacity (kVA) | G142: Reactive power units (MVArh)
A143: > Domestic Unrestricted
A144: Domestic Unrestricted | B144: =VLOOKUP(Vlookup!B144,Volume_Forecast_Data,B$138,FALSE) -> 4076387.247 | E144: =VLOOKUP(Vlookup!E144,Volume_Forecast_Data,E$138,FALSE) -> 1220841.828
A145: LDNO LV: Domestic Unrestricted | B145: =VLOOKUP(Vlookup!B145,Volume_Forecast_Data,B$138,FALSE) -> 2111.274758 | E145: =VLOOKUP(Vlookup!E145,Volume_Forecast_Data,E$138,FALSE) -> 1471.41407
A146: LDNO HV: Domestic Unrestricted | B146: =VLOOKUP(Vlookup!B146,Volume_Forecast_Data,B$138,FALSE) -> 3723.386367 | E146: =VLOOKUP(Vlookup!E146,Volume_Forecast_Data,E$138,FALSE) -> 1927.198627
A147: > Domestic Two Rate
A148: Domestic Two Rate | B148: =VLOOKUP(Vlookup!B148,Volume_Forecast_Data,B$138,FALSE) -> 691452.5051 | C148: =VLOOKUP(Vlookup!C148,Volume_Forecast_Data,C$138,FALSE) -> 720022.934 | E148: =VLOOKUP(Vlookup!E148,Volume_Forecast_Data,E$138,FALSE) -> 242569.9978
A149: LDNO LV: Domestic Two Rate | B149: =VLOOKUP(Vlookup!B149,Volume_Forecast_Data,B$138,FALSE) -> 173.1772093 | C149: =VLOOKUP(Vlookup!C149,Volume_Forecast_Data,C$138,FALSE) -> 171.6911673 | E149: =VLOOKUP(Vlookup!E149,Volume_Forecast_Data,E$138,FALSE) -> 55.15201253
A150: LDNO HV: Domestic Two Rate | B150: =VLOOKUP(Vlookup!B150,Volume_Forecast_Data,B$138,FALSE) -> 134.7226298 | C150: =VLOOKUP(Vlookup!C150,Volume_Forecast_Data,C$138,FALSE) -> 91.63797757 | E150: =VLOOKUP(Vlookup!E150,Volume_Forecast_Data,E$138,FALSE) -> 159.2124135
A151: > Domestic Off Peak (related MPAN)
A152: Domestic Off Peak (related MPAN) | B152: =VLOOKUP(Vlookup!B152,Volume_Forecast_Data,B$138,FALSE) -> 70152.57455 | E152: =VLOOKUP(Vlookup!E152,Volume_Forecast_Data,E$138,FALSE) -> 0
A153: LDNO LV: Domestic Off Peak (related MPAN) | B153: =VLOOKUP(Vlookup!B153,Volume_Forecast_Data,B$138,FALSE) -> 0 | E153: =VLOOKUP(Vlookup!E153,Volume_Forecast_Data,E$138,FALSE) -> 0
A154: LDNO HV: Domestic Off Peak (related MPAN) | B154: =VLOOKUP(Vlookup!B154,Volume_Forecast_Data,B$138,FALSE) -> 0 | E154: =VLOOKUP(Vlookup!E154,Volume_Forecast_Data,E$138,FALSE) -> 0
A155: > Small Non Domestic Unrestricted
A156: Small Non Domestic Unrestricted | B156: =VLOOKUP(Vlookup!B156,Volume_Forecast_Data,B$138,FALSE) -> 1121932.144 | E156: =VLOOKUP(Vlookup!E156,Volume_Forecast_Data,E$138,FALSE) -> 110924.225
A157: LDNO LV: Small Non Domestic Unrestricted | B157: =VLOOKUP(Vlookup!B157,Volume_Forecast_Data,B$138,FALSE) -> 202.0508041 | E157: =VLOOKUP(Vlookup!E157,Volume_Forecast_Data,E$138,FALSE) -> 55.15201253
A158: LDNO HV: Small Non Domestic Unrestricted | B158: =VLOOKUP(Vlookup!B158,Volume_Forecast_Data,B$138,FALSE) -> 5487.338426 | E158: =VLOOKUP(Vlookup!E158,Volume_Forecast_Data,E$138,FALSE) -> 132.1567093
A159: > Small Non Domestic Two Rate
A160: Small Non Domestic Two Rate | B160: =VLOOKUP(Vlookup!B160,Volume_Forecast_Data,B$138,FALSE) -> 338778.9385 | C160: =VLOOKUP(Vlookup!C160,Volume_Forecast_Data,C$138,FALSE) -> 166299.8599 | E160: =VLOOKUP(Vlookup!E160,Volume_Forecast_Data,E$138,FALSE) -> 27573.92506
A161: LDNO LV: Small Non Domestic Two Rate | B161: =VLOOKUP(Vlookup!B161,Volume_Forecast_Data,B$138,FALSE) -> 6.424466115 | C161: =VLOOKUP(Vlookup!C161,Volume_Forecast_Data,C$138,FALSE) -> 4.372633038 | E161: =VLOOKUP(Vlookup!E161,Volume_Forecast_Data,E$138,FALSE) -> 0
A162: LDNO HV: Small Non Domestic Two Rate | B162: =VLOOKUP(Vlookup!B162,Volume_Forecast_Data,B$138,FALSE) -> 357.3004101 | C162: =VLOOKUP(Vlookup!C162,Volume_Forecast_Data,C$138,FALSE) -> 95.29496658 | E162: =VLOOKUP(Vlookup!E162,Volume_Forecast_Data,E$138,FALSE) -> 8.32483208
A163: > Small Non Domestic Off Peak (related MPAN)
A164: Small Non Domestic Off Peak (related MPAN) | B164: =VLOOKUP(Vlookup!B164,Volume_Forecast_Data,B$138,FALSE) -> 25003.41902 | E164: =VLOOKUP(Vlookup!E164,Volume_Forecast_Data,E$138,FALSE) -> 0
A165: LDNO LV: Small Non Domestic Off Peak (related MPAN) | B165: =VLOOKUP(Vlookup!B165,Volume_Forecast_Data,B$138,FALSE) -> 0 | E165: =VLOOKUP(Vlookup!E165,Volume_Forecast_Data,E$138,FALSE) -> 0
A166: LDNO HV: Small Non Domestic Off Peak (related MPAN) | B166: =VLOOKUP(Vlookup!B166,Volume_Forecast_Data,B$138,FALSE) -> 0 | E166: =VLOOKUP(Vlookup!E166,Volume_Forecast_Data,E$138,FALSE) -> 0
A167: > LV Medium Non-Domestic
A168: LV Medium Non-Domestic | B168: =VLOOKUP(Vlookup!B168,Volume_Forecast_Data,B$138,FALSE) -> 680367.9839 | C168: =VLOOKUP(Vlookup!C168,Volume_Forecast_Data,C$138,FALSE) -> 168026.0904 | E168: =VLOOKUP(Vlookup!E168,Volume_Forecast_Data,E$138,FALSE) -> 9514.242463
A169: LDNO LV: LV Medium Non-Domestic | B169: =VLOOKUP(Vlookup!B169,Volume_Forecast_Data,B$138,FALSE) -> 0 | C169: =VLOOKUP(Vlookup!C169,Volume_Forecast_Data,C$138,FALSE) -> 0 | E169: =VLOOKUP(Vlookup!E169,Volume_Forecast_Data,E$138,FALSE) -> 0
A170: LDNO HV: LV Medium Non-Domestic | B170: =VLOOKUP(Vlookup!B170,Volume_Forecast_Data,B$138,FALSE) -> 3619.297144 | C170: =VLOOKUP(Vlookup!C170,Volume_Forecast_Data,C$138,FALSE) -> 610.3655865 | E170: =VLOOKUP(Vlookup!E170,Volume_Forecast_Data,E$138,FALSE) -> 16.64966416
A171: > LV Sub Medium Non-Domestic
A172: LV Sub Medium Non-Domestic | B172: =VLOOKUP(Vlookup!B172,Volume_Forecast_Data,B$138,FALSE) -> 74268.11846 | C172: =VLOOKUP(Vlookup!C172,Volume_Forecast_Data,C$138,FALSE) -> 20721.56075 | E172: =VLOOKUP(Vlookup!E172,Volume_Forecast_Data,E$138,FALSE) -> 779.4124035
A173: > HV Medium Non-Domestic
A174: HV Medium Non-Domestic | B174: =VLOOKUP(Vlookup!B174,Volume_Forecast_Data,B$138,FALSE) -> 2215.399065 | C174: =VLOOKUP(Vlookup!C174,Volume_Forecast_Data,C$138,FALSE) -> 593.0012475 | E174: =VLOOKUP(Vlookup!E174,Volume_Forecast_Data,E$138,FALSE) -> 22.89328822
A175: > LV HH Metered
A176: LV HH Metered | B176: =VLOOKUP(Vlookup!B176,Volume_Forecast_Data,B$138,FALSE) -> 51203.71673 | C176: =VLOOKUP(Vlookup!C176,Volume_Forecast_Data,C$138,FALSE) -> 367717.3933 | D176: =VLOOKUP(Vlookup!D176,Volume_Forecast_Data,D$138,FALSE) -> 310870.7635 | E176: =VLOOKUP(Vlookup!E176,Volume_Forecast_Data,E$138,FALSE) -> 2938.665724 | F176: =VLOOKUP(Vlookup!F176,Volume_Forecast_Data,F$138,FALSE) -> 365000 | G176: =VLOOKUP(Vlookup!G176,Volume_Forecast_Data,G$138,FALSE) -> 74360
A177: LDNO LV: LV HH Metered | B177: =VLOOKUP(Vlookup!B177,Volume_Forecast_Data,B$138,FALSE) -> 4.942910651 | C177: =VLOOKUP(Vlookup!C177,Volume_Forecast_Data,C$138,FALSE) -> 35.4935703 | D177: =VLOOKUP(Vlookup!D177,Volume_Forecast_Data,D$138,FALSE) -> 29.9936116 | E177: =VLOOKUP(Vlookup!E177,Volume_Forecast_Data,E$138,FALSE) -> 0 | F177: =VLOOKUP(Vlookup!F177,Volume_Forecast_Data,F$138,FALSE) -> 0 | G177: =VLOOKUP(Vlookup!G177,Volume_Forecast_Data,G$138,FALSE) -> 0
A178: LDNO HV: LV HH Metered | B178: =VLOOKUP(Vlookup!B178,Volume_Forecast_Data,B$138,FALSE) -> 1407.054167 | C178: =VLOOKUP(Vlookup!C178,Volume_Forecast_Data,C$138,FALSE) -> 10110.11368 | D178: =VLOOKUP(Vlookup!D178,Volume_Forecast_Data,D$138,FALSE) -> 8548.319432 | E178: =VLOOKUP(Vlookup!E178,Volume_Forecast_Data,E$138,FALSE) -> 0 | F178: =VLOOKUP(Vlookup!F178,Volume_Forecast_Data,F$138,FALSE) -> 0 | G178: =VLOOKUP(Vlookup!G178,Volume_Forecast_Data,G$138,FALSE) -> 0
A179: > LV Sub HH Metered
A180: LV Sub HH Metered | B180: =VLOOKUP(Vlookup!B180,Volume_Forecast_Data,B$138,FALSE) -> 47626.41523 | C180: =VLOOKUP(Vlookup!C180,Volume_Forecast_Data,C$138,FALSE) -> 354941.8718 | D180: =VLOOKUP(Vlookup!D180,Volume_Forecast_Data,D$138,FALSE) -> 320628.2731 | E180: =VLOOKUP(Vlookup!E180,Volume_Forecast_Data,E$138,FALSE) -> 1371.516085 | F180: =VLOOKUP(Vlookup!F180,Volume_Forecast_Data,F$138,FALSE) -> 329000 | G180: =VLOOKUP(Vlookup!G180,Volume_Forecast_Data,G$138,FALSE) -> 80945
A181: LDNO HV: LV Sub HH Metered | B181: =VLOOKUP(Vlookup!B181,Volume_Forecast_Data,B$138,FALSE) -> 0 | C181: =VLOOKUP(Vlookup!C181,Volume_Forecast_Data,C$138,FALSE) -> 0 | D181: =VLOOKUP(Vlookup!D181,Volume_Forecast_Data,D$138,FALSE) -> 0 | E181: =VLOOKUP(Vlookup!E181,Volume_Forecast_Data,E$138,FALSE) -> 0 | F181: =VLOOKUP(Vlookup!F181,Volume_Forecast_Data,F$138,FALSE) -> 0 | G181: =VLOOKUP(Vlookup!G181,Volume_Forecast_Data,G$138,FALSE) -> 0
A182: > HV HH Metered
A183: HV HH Metered | B183: =VLOOKUP(Vlookup!B183,Volume_Forecast_Data,B$138,FALSE) -> 170258.4448 | C183: =VLOOKUP(Vlookup!C183,Volume_Forecast_Data,C$138,FALSE) -> 1217293.907 | D183: =VLOOKUP(Vlookup!D183,Volume_Forecast_Data,D$138,FALSE) -> 1285435.819 | E183: =VLOOKUP(Vlookup!E183,Volume_Forecast_Data,E$138,FALSE) -> 960.4775012 | F183: =VLOOKUP(Vlookup!F183,Volume_Forecast_Data,F$138,FALSE) -> 973000 | G183: =VLOOKUP(Vlookup!G183,Volume_Forecast_Data,G$138,FALSE) -> 218608
A184: LDNO HV: HV HH Metered | B184: =VLOOKUP(Vlookup!B184,Volume_Forecast_Data,B$138,FALSE) -> 1.647270254 | C184: =VLOOKUP(Vlookup!C184,Volume_Forecast_Data,C$138,FALSE) -> 11.81328996 | D184: =VLOOKUP(Vlookup!D184,Volume_Forecast_Data,D$138,FALSE) -> 13.19367364 | E184: =VLOOKUP(Vlookup!E184,Volume_Forecast_Data,E$138,FALSE) -> 0 | F184: =VLOOKUP(Vlookup!F184,Volume_Forecast_Data,F$138,FALSE) -> 0 | G184: =VLOOKUP(Vlookup!G184,Volume_Forecast_Data,G$138,FALSE) -> 0
A185: > HV Sub HH Metered
A186: HV Sub HH Metered | B186: =VLOOKUP(Vlookup!B186,Volume_Forecast_Data,B$138,FALSE) -> 0 | C186: =VLOOKUP(Vlookup!C186,Volume_Forecast_Data,C$138,FALSE) -> 0 | D186: =VLOOKUP(Vlookup!D186,Volume_Forecast_Data,D$138,FALSE) -> 0 | E186: =VLOOKUP(Vlookup!E186,Volume_Forecast_Data,E$138,FALSE) -> 0 | F186: =VLOOKUP(Vlookup!F186,Volume_Forecast_Data,F$138,FALSE) -> 0 | G186: =VLOOKUP(Vlookup!G186,Volume_Forecast_Data,G$138,FALSE) -> 0
A187: > NHH UMS category A
A188: NHH UMS category A | B188: =VLOOKUP(Vlookup!B188,Volume_Forecast_Data,B$138,FALSE) -> 16080.52041 | E188: =VLOOKUP(Vlookup!E188,Volume_Forecast_Data,E$138,FALSE) -> 0
A189: LDNO LV: NHH UMS category A | B189: =VLOOKUP(Vlookup!B189,Volume_Forecast_Data,B$138,FALSE) -> 3.162762363 | E189: =VLOOKUP(Vlookup!E189,Volume_Forecast_Data,E$138,FALSE) -> 0
A190: LDNO HV: NHH UMS category A | B190: =VLOOKUP(Vlookup!B190,Volume_Forecast_Data,B$138,FALSE) -> 71.49499478 | E190: =VLOOKUP(Vlookup!E190,Volume_Forecast_Data,E$138,FALSE) -> 0
A191: > NHH UMS category B
A192: NHH UMS category B | B192: =VLOOKUP(Vlookup!B192,Volume_Forecast_Data,B$138,FALSE) -> 5590.841995 | E192: =VLOOKUP(Vlookup!E192,Volume_Forecast_Data,E$138,FALSE) -> 0
A193: LDNO LV: NHH UMS category B | B193: =VLOOKUP(Vlookup!B193,Volume_Forecast_Data,B$138,FALSE) -> 1.054254121 | E193: =VLOOKUP(Vlookup!E193,Volume_Forecast_Data,E$138,FALSE) -> 0
A194: LDNO HV: NHH UMS category B | B194: =VLOOKUP(Vlookup!B194,Volume_Forecast_Data,B$138,FALSE) -> 24.85723156 | E194: =VLOOKUP(Vlookup!E194,Volume_Forecast_Data,E$138,FALSE) -> 0
A195: > NHH UMS category C
A196: NHH UMS category C | B196: =VLOOKUP(Vlookup!B196,Volume_Forecast_Data,B$138,FALSE) -> 622.7519967 | E196: =VLOOKUP(Vlookup!E196,Volume_Forecast_Data,E$138,FALSE) -> 0
A197: LDNO LV: NHH UMS category C | B197: =VLOOKUP(Vlookup!B197,Volume_Forecast_Data,B$138,FALSE) -> 0 | E197: =VLOOKUP(Vlookup!E197,Volume_Forecast_Data,E$138,FALSE) -> 0
A198: LDNO HV: NHH UMS category C | B198: =VLOOKUP(Vlookup!B198,Volume_Forecast_Data,B$138,FALSE) -> 2.768794145 | E198: =VLOOKUP(Vlookup!E198,Volume_Forecast_Data,E$138,FALSE) -> 0
A199: > NHH UMS category D
A200: NHH UMS category D | B200: =VLOOKUP(Vlookup!B200,Volume_Forecast_Data,B$138,FALSE) -> 0 | E200: =VLOOKUP(Vlookup!E200,Volume_Forecast_Data,E$138,FALSE) -> 0
A201: LDNO LV: NHH UMS category D | B201: =VLOOKUP(Vlookup!B201,Volume_Forecast_Data,B$138,FALSE) -> 0 | E201: =VLOOKUP(Vlookup!E201,Volume_Forecast_Data,E$138,FALSE) -> 0
A202: LDNO HV: NHH UMS category D | B202: =VLOOKUP(Vlookup!B202,Volume_Forecast_Data,B$138,FALSE) -> 0 | E202: =VLOOKUP(Vlookup!E202,Volume_Forecast_Data,E$138,FALSE) -> 0
A203: > LV UMS (Pseudo HH Metered)
A204: LV UMS (Pseudo HH Metered) | B204: =VLOOKUP(Vlookup!B204,Volume_Forecast_Data,B$138,FALSE) -> 4171.723984 | C204: =VLOOKUP(Vlookup!C204,Volume_Forecast_Data,C$138,FALSE) -> 27481.95177 | D204: =VLOOKUP(Vlookup!D204,Volume_Forecast_Data,D$138,FALSE) -> 101470.0599 | E204: =VLOOKUP(Vlookup!E204,Volume_Forecast_Data,E$138,FALSE) -> 0
A205: LDNO LV: LV UMS (Pseudo HH Metered) | B205: =VLOOKUP(Vlookup!B205,Volume_Forecast_Data,B$138,FALSE) -> 0 | C205: =VLOOKUP(Vlookup!C205,Volume_Forecast_Data,C$138,FALSE) -> 0 | D205: =VLOOKUP(Vlookup!D205,Volume_Forecast_Data,D$138,FALSE) -> 0 | E205: =VLOOKUP(Vlookup!E205,Volume_Forecast_Data,E$138,FALSE) -> 0
A206: LDNO HV: LV UMS (Pseudo HH Metered) | B206: =VLOOKUP(Vlookup!B206,Volume_Forecast_Data,B$138,FALSE) -> 0 | C206: =VLOOKUP(Vlookup!C206,Volume_Forecast_Data,C$138,FALSE) -> 0 | D206: =VLOOKUP(Vlookup!D206,Volume_Forecast_Data,D$138,FALSE) -> 0 | E206: =VLOOKUP(Vlookup!E206,Volume_Forecast_Data,E$138,FALSE) -> 0
A207: > LV Generation NHH
A208: LV Generation NHH | B208: =VLOOKUP(Vlookup!B208,Volume_Forecast_Data,B$138,FALSE) -> 1202.954383 | E208: =VLOOKUP(Vlookup!E208,Volume_Forecast_Data,E$138,FALSE) -> 0
A209: LDNO LV: LV Generation NHH | B209: =VLOOKUP(Vlookup!B209,Volume_Forecast_Data,B$138,FALSE) -> 59.5377407 | E209: =VLOOKUP(Vlookup!E209,Volume_Forecast_Data,E$138,FALSE) -> 0
A210: LDNO HV: LV Generation NHH | B210: =VLOOKUP(Vlookup!B210,Volume_Forecast_Data,B$138,FALSE) -> 0 | E210: =VLOOKUP(Vlookup!E210,Volume_Forecast_Data,E$138,FALSE) -> 0
A211: > LV Sub Generation NHH
A212: LV Sub Generation NHH | B212: =VLOOKUP(Vlookup!B212,Volume_Forecast_Data,B$138,FALSE) -> 0 | E212: =VLOOKUP(Vlookup!E212,Volume_Forecast_Data,E$138,FALSE) -> 0
A213: LDNO HV: LV Sub Generation NHH | B213: =VLOOKUP(Vlookup!B213,Volume_Forecast_Data,B$138,FALSE) -> 0 | E213: =VLOOKUP(Vlookup!E213,Volume_Forecast_Data,E$138,FALSE) -> 0
A214: > LV Generation Intermittent
A215: LV Generation Intermittent | B215: =VLOOKUP(Vlookup!B215,Volume_Forecast_Data,B$138,FALSE) -> 10679.47225 | E215: =VLOOKUP(Vlookup!E215,Volume_Forecast_Data,E$138,FALSE) -> 0 | G215: =VLOOKUP(Vlookup!G215,Volume_Forecast_Data,G$138,FALSE) -> 166.0368
A216: LDNO LV: LV Generation Intermittent | B216: =VLOOKUP(Vlookup!B216,Volume_Forecast_Data,B$138,FALSE) -> 0 | E216: =VLOOKUP(Vlookup!E216,Volume_Forecast_Data,E$138,FALSE) -> 0 | G216: =VLOOKUP(Vlookup!G216,Volume_Forecast_Data,G$138,FALSE) -> 0
A217: LDNO HV: LV Generation Intermittent | B217: =VLOOKUP(Vlookup!B217,Volume_Forecast_Data,B$138,FALSE) -> 0 | E217: =VLOOKUP(Vlookup!E217,Volume_Forecast_Data,E$138,FALSE) -> 0 | G217: =VLOOKUP(Vlookup!G217,Volume_Forecast_Data,G$138,FALSE) -> 0
A218: > LV Generation Non-Intermittent
A219: LV Generation Non-Intermittent | B219: =VLOOKUP(Vlookup!B219,Volume_Forecast_Data,B$138,FALSE) -> 38.19521855 | C219: =VLOOKUP(Vlookup!C219,Volume_Forecast_Data,C$138,FALSE) -> 73.78530072 | D219: =VLOOKUP(Vlookup!D219,Volume_Forecast_Data,D$138,FALSE) -> 143.7649945 | E219: =VLOOKUP(Vlookup!E219,Volume_Forecast_Data,E$138,FALSE) -> 0 | G219: =VLOOKUP(Vlookup!G219,Volume_Forecast_Data,G$138,FALSE) -> 20.6582
A220: LDNO LV: LV Generation Non-Intermittent | B220: =VLOOKUP(Vlookup!B220,Volume_Forecast_Data,B$138,FALSE) -> 0 | C220: =VLOOKUP(Vlookup!C220,Volume_Forecast_Data,C$138,FALSE) -> 0 | D220: =VLOOKUP(Vlookup!D220,Volume_Forecast_Data,D$138,FALSE) -> 0 | E220: =VLOOKUP(Vlookup!E220,Volume_Forecast_Data,E$138,FALSE) -> 0 | G220: =VLOOKUP(Vlookup!G220,Volume_Forecast_Data,G$138,FALSE) -> 0
A221: LDNO HV: LV Generation Non-Intermittent | B221: =VLOOKUP(Vlookup!B221,Volume_Forecast_Data,B$138,FALSE) -> 0 | C221: =VLOOKUP(Vlookup!C221,Volume_Forecast_Data,C$138,FALSE) -> 0 | D221: =VLOOKUP(Vlookup!D221,Volume_Forecast_Data,D$138,FALSE) -> 0 | E221: =VLOOKUP(Vlookup!E221,Volume_Forecast_Data,E$138,FALSE) -> 0 | G221: =VLOOKUP(Vlookup!G221,Volume_Forecast_Data,G$138,FALSE) -> 0
A222: > LV Sub Generation Intermittent
A223: LV Sub Generation Intermittent | B223: =VLOOKUP(Vlookup!B223,Volume_Forecast_Data,B$138,FALSE) -> 449.4023555 | E223: =VLOOKUP(Vlookup!E223,Volume_Forecast_Data,E$138,FALSE) -> 0 | G223: =VLOOKUP(Vlookup!G223,Volume_Forecast_Data,G$138,FALSE) -> 29.2974
A224: LDNO HV: LV Sub Generation Intermittent | B224: =VLOOKUP(Vlookup!B224,Volume_Forecast_Data,B$138,FALSE) -> 0 | E224: =VLOOKUP(Vlookup!E224,Volume_Forecast_Data,E$138,FALSE) -> 0 | G224: =VLOOKUP(Vlookup!G224,Volume_Forecast_Data,G$138,FALSE) -> 0
A225: > LV Sub Generation Non-Intermittent
A226: LV Sub Generation Non-Intermittent | B226: =VLOOKUP(Vlookup!B226,Volume_Forecast_Data,B$138,FALSE) -> 76.60945299 | C226: =VLOOKUP(Vlookup!C226,Volume_Forecast_Data,C$138,FALSE) -> 345.9384805 | D226: =VLOOKUP(Vlookup!D226,Volume_Forecast_Data,D$138,FALSE) -> 761.3862122 | E226: =VLOOKUP(Vlookup!E226,Volume_Forecast_Data,E$138,FALSE) -> 0 | G226: =VLOOKUP(Vlookup!G226,Volume_Forecast_Data,G$138,FALSE) -> 158.12
A227: LDNO HV: LV Sub Generation Non-Intermittent | B227: =VLOOKUP(Vlookup!B227,Volume_Forecast_Data,B$138,FALSE) -> 0 | C227: =VLOOKUP(Vlookup!C227,Volume_Forecast_Data,C$138,FALSE) -> 0 | D227: =VLOOKUP(Vlookup!D227,Volume_Forecast_Data,D$138,FALSE) -> 0 | E227: =VLOOKUP(Vlookup!E227,Volume_Forecast_Data,E$138,FALSE) -> 0 | G227: =VLOOKUP(Vlookup!G227,Volume_Forecast_Data,G$138,FALSE) -> 0
A228: > HV Generation Intermittent
A229: HV Generation Intermittent | B229: =VLOOKUP(Vlookup!B229,Volume_Forecast_Data,B$138,FALSE) -> 33111.26513 | E229: =VLOOKUP(Vlookup!E229,Volume_Forecast_Data,E$138,FALSE) -> 32.25872431 | G229: =VLOOKUP(Vlookup!G229,Volume_Forecast_Data,G$138,FALSE) -> 1094.707
A230: LDNO HV: HV Generation Intermittent | B230: =VLOOKUP(Vlookup!B230,Volume_Forecast_Data,B$138,FALSE) -> 0 | E230: =VLOOKUP(Vlookup!E230,Volume_Forecast_Data,E$138,FALSE) -> 0 | G230: =VLOOKUP(Vlookup!G230,Volume_Forecast_Data,G$138,FALSE) -> 0
... 96 more rows

Sheet Tariffs
B2: ='CDCM Forecast Data'!F3&" - 5 Year Tariff Summary" -> WPD South West - 5 Year Tariff Summary
D5: Shortcut | F5: Note: These tariffs are based on the assumptions set out in the CDCM forecast Data and CDCM Volume Forecast sheets. If the assumptions in these sheets have been changed, the tariffs can be updated by pressing the button below.
C6: Year 0: | D6: =+'CDCM Volume Forecasts'!G6 -> 2013/14
C7: Year 1: | D7: =+'CDCM Volume Forecasts'!H6 -> 2014/15
C8: Year 2: | D8: =+'CDCM Volume Forecasts'!I6 -> 2015/16
C9: Year 3: | D9: =+'CDCM Volume Forecasts'!J6 -> 2016/17
C10: Year 4: | D10: =+'CDCM Volume Forecasts'!K6 -> 2017/18
C17: ="Tariffs for Charging Year: "& " "&D6&"" -> Tariffs for Charging Year: 2013/14
D20: Open LLFCs | E20: PCs | F20: Unit rate 1 p/kWh | G20: Unit rate 2 p/kWh | H20: Unit rate 3 p/kWh | I20: Fixed charge p/MPAN/day | J20: Capacity charge p/kVA/day | K20: Reactive power charge p/kVArh | L20: Closed LLFCs
C21: Domestic Unrestricted | D21: ='Tariffs (2)'!B15 -> 10, 20 | E21: ='Tariffs (2)'!C15 -> 1 | F21: 3.345 | G21: 0 | H21: 0 | I21: 4.23 | J21: 0 | K21: 0 | L21: ='Tariffs (2)'!J15 -> n/a
C22: Domestic Two Rate | D22: ='Tariffs (2)'!B16 -> 30, 40 | E22: ='Tariffs (2)'!C16 -> 2 | F22: 4.047 | G22: 0.256 | H22: 0 | I22: 4.23 | J22: 0 | K22: 0 | L22: ='Tariffs (2)'!J16 -> n/a
C23: Domestic Off Peak (related MPAN) | D23: ='Tariffs (2)'!B17 -> 430 | E23: ='Tariffs (2)'!C17 -> 2 | F23: 0.215 | G23: 0 | H23: 0 | I23: 0 | J23: 0 | K23: 0 | L23: ='Tariffs (2)'!J17 -> n/a
C24: Small Non Domestic Unrestricted | D24: ='Tariffs (2)'!B18 -> 110 | E24: ='Tariffs (2)'!C18 -> 3 | F24: 2.541 | G24: 0 | H24: 0 | I24: 6.59 | J24: 0 | K24: 0 | L24: ='Tariffs (2)'!J18 -> n/a
C25: Small Non Domestic Two Rate | D25: ='Tariffs (2)'!B19 -> 210 | E25: ='Tariffs (2)'!C19 -> 4 | F25: 2.872 | G25: 0.235 | H25: 0 | I25: 6.59 | J25: 0 | K25: 0 | L25: ='Tariffs (2)'!J19 -> n/a
C26: Small Non Domestic Off Peak (related MPAN) | D26: ='Tariffs (2)'!B20 -> 251 | E26: ='Tariffs (2)'!C20 -> 4 | F26: 0.227 | G26: 0 | H26: 0 | I26: 0 | J26: 0 | K26: 0 | L26: ='Tariffs (2)'!J20 -> n/a
C27: LV Medium Non-Domestic | D27: ='Tariffs (2)'!B21 -> 570 | E27: ='Tariffs (2)'!C21 -> 5-8 | F27: 2.574 | G27: 0.226 | H27: 0 | I27: 35.44 | J27: 0 | K27: 0 | L27: ='Tariffs (2)'!J21 -> n/a
C28: LV Sub Medium Non-Domestic | D28: ='Tariffs (2)'!B22 -> 540 | E28: ='Tariffs (2)'!C22 -> 5-8 | F28: 2.445 | G28: 0.203 | H28: 0 | I28: 22.1 | J28: 0 | K28: 0 | L28: ='Tariffs (2)'!J22 -> n/a
C29: HV Medium Non-Domestic | D29: ='Tariffs (2)'!B23 -> 510 | E29: ='Tariffs (2)'!C23 -> 5-8 | F29: 2.608 | G29: 0.132 | H29: 0 | I29: 159.6 | J29: 0 | K29: 0 | L29: ='Tariffs (2)'!J23 -> n/a
C30: LV HH Metered | D30: ='Tariffs (2)'!B24 -> 570 | E30: ='Tariffs (2)'!C24 -> 0 | F30: 24.41 | G30: 0.287 | H30: 0.161 | I30: 9.05 | J30: 2.6 | K30: 0.382 | L30: ='Tariffs (2)'!J24 -> n/a
C31: LV Sub HH Metered | D31: ='Tariffs (2)'!B25 -> 540 | E31: ='Tariffs (2)'!C25 -> 0 | F31: 22.433 | G31: 0.17 | H31: 0.115 | I31: 6.54 | J31: 2.87 | K31: 0.318 | L31: ='Tariffs (2)'!J25 -> n/a
C32: HV HH Metered | D32: ='Tariffs (2)'!B26 -> 510 | E32: ='Tariffs (2)'!C26 -> 0 | F32: 18.909 | G32: 0.072 | H32: 0.071 | I32: 72.95 | J32: 2.22 | K32: 0.25 | L32: ='Tariffs (2)'!J26 -> n/a
C33: HV Sub HH Metered | D33: ='Tariffs (2)'!B27 -> 522 | E33: ='Tariffs (2)'!C27 -> 0 | F33: 17.168 | G33: 0.034 | H33: 0.053 | I33: 72.95 | J33: 1.55 | K33: 0.186 | L33: ='Tariffs (2)'!J27 -> n/a
C34: NHH UMS category A | D34: 977 | E34: ='Tariffs (2)'!C28 -> 8 | F34: 2.39 | G34: 0 | H34: 0 | I34: 0 | J34: 0 | K34: 0 | L34: ='Tariffs (2)'!J28 -> n/a
C35: NHH UMS category B | D35: 980 | E35: ='Tariffs (2)'!C29 -> 1 | F35: 3.544 | G35: 0 | H35: 0 | I35: 0 | J35: 0 | K35: 0 | L35: ='Tariffs (2)'!J29 -> n/a
C36: NHH UMS category C | D36: 978 | E36: ='Tariffs (2)'!C30 -> 1 | F36: 5.984 | G36: 0 | H36: 0 | I36: 0 | J36: 0 | K36: 0 | L36: ='Tariffs (2)'!J30 -> n/a
C37: NHH UMS category D | D37: 979 | E37: ='Tariffs (2)'!C31 -> 1 | F37: 1.499 | G37: 0 | H37: 0 | I37: 0 | J37: 0 | K37: 0 | L37: ='Tariffs (2)'!J31 -> n/a
C38: LV UMS (Pseudo HH Metered) | D38: ='Tariffs (2)'!B32 -> 970 | E38: ='Tariffs (2)'!C32 -> 0 | F38: 78.944 | G38: 1.179 | H38: 0.904 | I38: 0 | J38: 0 | K38: 0 | L38: ='Tariffs (2)'!J32 -> n/a
C39: LV Generation NHH | D39: ='Tariffs (2)'!B33 -> 581 | E39: ='Tariffs (2)'!C33 -> 8 | F39: -0.649 | G39: 0 | H39: 0 | I39: 0 | J39: 0 | K39: 0 | L39: ='Tariffs (2)'!J33 -> n/a
C40: LV Sub Generation NHH | D40: ='Tariffs (2)'!B34 -> 551 | E40: ='Tariffs (2)'!C34 -> 8 | F40: -0.598 | G40: 0 | H40: 0 | I40: 0 | J40: 0 | K40: 0 | L40: ='Tariffs (2)'!J34 -> n/a
C41: LV Generation Intermittent | D41: ='Tariffs (2)'!B35 -> 581 | E41: ='Tariffs (2)'!C35 -> 0 | F41: -0.649 | G41: 0 | H41: 0 | I41: 0 | J41: 0 | K41: 0.147 | L41: ='Tariffs (2)'!J35 -> n/a
C42: LV Generation Non-Intermittent | D42: ='Tariffs (2)'!B36 -> 527 | E42: ='Tariffs (2)'!C36 -> 0 | F42: -7.478 | G42: -0.3 | H42: -0.157 | I42: 0 | J42: 0 | K42: 0.147 | L42: ='Tariffs (2)'!J36 -> n/a
C43: LV Sub Generation Intermittent | D43: ='Tariffs (2)'!B37 -> 551 | E43: ='Tariffs (2)'!C37 -> 0 | F43: -0.598 | G43: 0 | H43: 0 | I43: 0 | J43: 0 | K43: 0.126 | L43: ='Tariffs (2)'!J37 -> n/a
C44: LV Sub Generation Non-Intermittent | D44: ='Tariffs (2)'!B38 -> 526 | E44: ='Tariffs (2)'!C38 -> 0 | F44: -7.008 | G44: -0.262 | H44: -0.142 | I44: 0 | J44: 0 | K44: 0.126 | L44: ='Tariffs (2)'!J38 -> n/a
C45: HV Generation Intermittent | D45: ='Tariffs (2)'!B39 -> 521 | E45: ='Tariffs (2)'!C39 -> 0 | F45: -0.368 | G45: 0 | H45: 0 | I45: 31.36 | J45: 0 | K45: 0.092 | L45: ='Tariffs (2)'!J39 -> n/a
C46: HV Generation Non-Intermittent | D46: ='Tariffs (2)'!B40 -> 524 | E46: ='Tariffs (2)'!C40 -> 0 | F46: -4.834 | G46: -0.096 | H46: -0.077 | I46: 31.36 | J46: 0 | K46: 0.092 | L46: ='Tariffs (2)'!J40 -> n/a
C47: HV Sub Generation Non-Intermittent | D47: ='Tariffs (2)'!B41 -> 525 | E47: ='Tariffs (2)'!C41 -> 0 | F47: -0.336 | G47: 0 | H47: 0 | I47: 31.36 | J47: 0 | K47: 0.066 | L47: ='Tariffs (2)'!J41 -> n/a
C48: HV Sub Generation Intermittent | D48: ='Tariffs (2)'!B42 -> 523 | E48: ='Tariffs (2)'!C42 -> 0 | F48: -4.513 | G48: -0.075 | H48: -0.069 | I48: 31.36 | J48: 0 | K48: 0.066 | L48: ='Tariffs (2)'!J42 -> n/a
